Workbook

Sheet ŞABLON (32 6 BİST İNDİRİMSİ (2) (hidden)
B2: FAALİYET TÜRLERİ İTİBARİYLE HASILATLAR VE TOPLAM İÇİNDEKİ ORANLARI | C2: =IFERROR(C4/C4,0) -> 1 | D2: =IFERROR(D4/C4,0) -> 0.202914298 | E2: =IFERROR(E4/C4,0) -> 1.409212079 | F2: =IFERROR(F4/C4,0) -> -0.6121263773
C3: Toplam Hasılat | D3: İhracat faaliyeti | E3: İmalat faaliyeti | F3: Diğer faaliyetler
B4: A-BRÜT SATIŞLAR (60) | C4: =D4+E4+F4 -> 32870601.36 | D4: =SUM(D5:D7) -> 6669915 | E4: =SUM(E5:E7) -> 46321648.49 | F4: -20120962.13
B5: 1-Yurtiçi Satışlar (600) | C5: =D5+E5+F5 -> 46321648.49 | E5: 46321648.49
B6: 2-Yurtdışı Satışlar (601) | C6: =D6+E6+F6 -> 6669915 | D6: 6669915
B7: 3-Diğer Gelirler (602) | C7: =D7+E7+F7 -> -20120962.13 | F7: -20120962.13
B8: B-SATIŞ İNDİRİMLERİ(-) (61) | C8: =SUM(C9:C11) -> 0 | D8: =SUM(D9:D11) -> 0 | E8: =SUM(E9:E11) -> 0 | F8: 0
B9: 1-Satıştan İadeler (-) (610) | C9: =SUM(D9:F9) -> 0
B10: 2- Satış İskontoları (-) (611) | C10: =SUM(D10:F10) -> 0
B11: 3-Diğer İndirimler (-) (612) | C11: 0
B12: C-NET SATIŞLAR | C12: =C4-C8 -> 32870601.36 | D12: =D4-D8 -> 6669915 | E12: =E4-E8 -> 46321648.49 | F12: -20120962.13
B13: D-SATIŞLARIN MALİYETİ (-) (62) | C13: =SUM(C14:C17) -> 0 | D13: =SUM(D14:D17) -> 0 | E13: =SUM(E14:E17) -> 0 | F13: =SUM(F14:F17) -> 0
B14: 1-Satılan Mamuller Maliyeti ( 620) | C14: =SUM(D14:F14) -> 0
B15: 2-Satılan Ticari Mal Maliyeti (621) | C15: =SUM(D15:F15) -> 0
B16: 3-Satılan Hizmet Maliyeti (622) | C16: 0
B17: 4-Diğer Satışların Maliyeti (623) | C17: 0
B18: BRÜT SATIŞ KARI / ZARARI | C18: =C12-C13 -> 32870601.36 | D18: =D12-D13 -> 6669915 | E18: =E12-E13 -> 46321648.49 | F18: -20120962.13
B19: E-FAALİYET GİDERLERİ (-) (63) | C19: =SUM(C20:C24) -> 0 | D19: =SUM(D20:D24) -> 0 | E19: =SUM(E20:E24) -> 0 | F19: 0
B20: 1-Araştırma ve Geliştirme Giderleri(-) (630) | C20: =SUM(D20:F20) -> 0
B21: 2-Pazarlama, Satış ve Dağıtım Giderleri(-) (631) | C21: =SUM(D21:F21) -> 0
B22: 3-Genel Yönetim Giderleri(-) (632) | C22: =SUM(D22:F22) -> 0
B23: MÜŞTEREK GENEL GİDERLER (DAĞITIM-HASILAT PAYINA GÖRE) | D23: =C23*D2 -> 0 | E23: =C23*E2 -> 0 | F23: =C23*F2 -> 0
B24: MÜŞTEREK GENEL GİDER GİBİ DAĞITIMA TABİ TUTULACAK AMORTİSMAN GİDERLERİ (DAĞITIM-HASILAT PAYINA GÖRE) | D24: =C24*D2 -> 0 | E24: =C24*E2 -> 0 | F24: =C24*F2 -> 0
B25: FAALİYET KARI / ZARARI | C25: =C18-C19 -> 32870601.36 | D25: =D18-D19 -> 6669915 | E25: =E18-E19 -> 46321648.49 | F25: -20120962.13
B26: F-DİĞER FAALİYETLERDEN OLAĞAN GELİR VE KARLAR (64) | C26: =SUM(C27:C35) -> 0 | D26: =SUM(D27:D35) -> 0 | E26: =SUM(E27:E35) -> 0 | F26: =SUM(F27:F35) -> 0
B27: 1- İŞTİRAKLERDEN TEMETTÜ GELİRLERİ (640) | C27: =SUM(D27:F27) -> 0
B28: 2- BAĞLI ORTAKLIKLARDAN TEMETTÜ GELİRLERİ (641) | C28: =SUM(D28:F28) -> 0
B29: 3- FAİZ GELİRLERİ (642) (ihracat ve imalat kaynaklı alacağın tahsiline kadar olan süreçte oluşan) | C29: 0
B30: 4- KOMİSYON GELİRLERİ (643) | C30: 0
B31: 5- KONUSU OLMAYAN KARŞILIKLAR (644) | C31: 0
B32: 6- MENKUL KIYMET SATIŞ KARLARI (645) | C32: 0
B33: 7- KAMBİYO KARLARI (646) (ihracat ve imalat kaynaklı alacağın tahsiline kadar olan süreçte oluşan) | C33: 0
B34: 8- REESKONT FAİZ GELİRLERİ (647) | C34: 0
B35: 9- FAALİYETLE İLGİLİ DİĞER GELİR VE KARLAR (649) | C35: 0
B36: ARA TOPLAM | C36: =C25+C26 -> 32870601.36 | D36: =D25+D26 -> 6669915 | E36: =E25+E26 -> 46321648.49 | F36: =F25+F26 -> -20120962.13
B37: G-DİĞER FAALİYETLERDEN OLAĞAN GİDER VE ZARARLAR(-) (65) | C37: =SUM(C38:C43) -> 0 | D37: =SUM(D38:D43) -> 0 | E37: =SUM(E38:E43) -> 0 | F37: 0
B38: 1- KOMİSYON GİDERLERİ (653) | C38: =SUM(D38:F38) -> 0
B39: 2- KARŞILIK GİDERLERİ (654) | C39: =SUM(D39:F39) -> 0
B40: 3- MENKUL KIYMET SATIŞ ZARARLARI (655) | C40: 0
B41: 4- KAMBİYO ZARARLARI (656) (ihracat ve imalat kaynaklı alacağın tahsiline kadar olan süreçte oluşan) | C41: 0
B42: 5- REESKONT FAİZ GİDERLERİ (657) | C42: 0
B43: 6- DİĞER OLAĞAN GİDER VE ZARARLAR (659) | C43: =SUM(D43:F43) -> 0
B44: ARA TOPLAM | C44: =C36-C37 -> 32870601.36 | D44: =D36-D37 -> 6669915 | E44: =E36-E37 -> 46321648.49 | F44: -20120962.13
B45: H-FİNANSMAN GİDERLERİ(-) (66) | C45: =SUM(C46:C49) -> 0 | D45: =SUM(D46:D49) -> 0 | E45: =SUM(E46:E49) -> 0 | F45: =SUM(F46:F49) -> 0
B46: 1- KISA VADELİ BORÇLANMA GİDERLERİ (-) | C46: =SUM(D46:F46) -> 0
B47: 2- UZUN VADELİ BORÇLANMA GİDERLERİ (-) | C47: =SUM(D47:F47) -> 0
B48: 1- KISA VADELİ BORÇLANMA GİDERLERİ (-) (DAĞITIM) | D48: =C48*D2 -> 0 | E48: =C48*E2 -> 0 | F48: =C48*F2 -> 0
B49: 2- UZUN VADELİ BORÇLANMA GİDERLERİ (-) (DAĞITIM) | D49: =C49*D2 -> 0 | E49: =C49*E2 -> 0 | F49: =C49*F2 -> 0
B50: ARA TOPLAM | C50: =C44-C45 -> 32870601.36 | D50: =D44-D45 -> 6669915 | E50: =E44-E45 -> 46321648.49 | F50: =F44-F45 -> -20120962.13
B51: I-OLAĞANDIŞI GELİR VE KÂRLAR (67) | C51: =SUM(D51:F51) -> 0 | D51: =SUM(D52:D53) -> 0 | E51: =SUM(E52:E53) -> 0 | F51: =SUM(F52:F53) -> 0
B52: 1- ÖNCEKİ DÖNEM GELİR VE KARLARI (671) | C52: =SUM(D52:F52) -> 0
B53: 2-DİĞER OLAĞAN DIŞI GELİR VE KARLAR (679) | C53: =SUM(D53:F53) -> 0
B54: ARA TOPLAM | C54: =SUM(D54:F54) -> 32870601.36 | D54: =D50+D51 -> 6669915 | E54: =E50+E51 -> 46321648.49 | F54: -20120962.13
B55: J-OLAĞANDIŞI GİDER VE ZARARLAR(-) (68) | C55: =SUM(C56:C58) -> 0 | D55: =SUM(D56:D58) -> 0 | E55: =SUM(E56:E58) -> 0 | F55: 0
B56: 1-Çalışmayan Kısım Gider ve Zararları(-) (680) | C56: =SUM(D56:F56) -> 0
B57: 2-Önceki Dönem Gider ve Zararları(-) (681) | C57: =SUM(D57:F57) -> 0
B58: 3-Diğer Olağan Dışı Gider ve Zararlar(-) (689) | C58: 0
B59: DÖNEM KÂRI VEYA ZARARI (TİCARİ BİLANÇO KARI ZARARI ) | C59: =C54-C55 -> 32870601.36 | D59: =D54-D55 -> 6669915 | E59: =E54-E55 -> 46321648.49 | F59: -20120962.13
B60: İHRACAT, İMALAT VE DİĞER FAALİYETLERDEN ELDE EDİLEN KAZANCIN TOPLAM TİCARİ KAZANÇ İÇİNDEKİ PAYLARI | D60: =IF(D59>=$C$59,1, IF(D59<=0,0, IF(AND(D59>0,D59<$C$59),D59/$C$59))) -> 0.202914298 | E60: =IF(E59>=$C$59,1, IF(E59<=0,0, IF(AND(E59>0,E59<$C$59),E59/$C$59))) -> 1 | F60: =IF(F59>=$C$59,1, IF(F59<=0,0, IF(AND(F59>0,F59<$C$59),F59/$C$59))) -> 0
D61: =D60/(D60+E60+F60) -> 0.1686855816 | E61: =E60/(D60+E60+F60) -> 0.8313144184 | F61: =F60/(D60+E60+F60) -> 0
B63: KKEG + | C63: 16204572.36
B64: KABUL EDİLMEYEN GELİRLER -
B65: ZARAR OLSA DAHİ İNDİRİLECEK İSTİSNALAR - | C65: =C66+C67+C68 -> 0
B66: Hizmet İhracatı Faaliyetinden (KVK 10-1/ğ) Elde Edilen Kazançlardan İstisna Edilenlerin Toplamı
B67: İmalat Faaliyetinden Elde Edilen Kazançlardan İstisna Edilenlerin Toplamı
B68: Diğer Faaliyetlerden Elde Edilen Kazançlardan İstisna Edilenlerin Toplamı
B69: GEÇMİŞ YIL ZARARLARI -
B70: İNDİRİMLER - | D70: AZAMİ YAZILABİLECEK İNDİRİMLER TUTARI | E70: =C59+C63-C64-C65-C69 -> 49075173.72
B72: 1 PUAN İNDİRİM UYGULANACAK TUTARIN HESABINDA İSTİSNA KAZANÇLAR DÜŞÜLDÜKTEN SONRA BULUNAN TİCARİ KAZANÇ TUTARI İLE BU KAZANÇ İÇİNDE İHRACAT,İMALAT VE DİĞER KAZANÇLARIN TUTARI | C72: TİCARİ KAZANÇ TAN İhracat ve İmalat Kazancından İstisna Olan Tutarlar Düşüldükten Sonra Kalan Tutarı | D72: İhracat Faaliyetinden Elde Edilen Kazançtan İstisna Olan Kısım Düşüldükten Sonra Bulunan Tutarı | E72: Üretim Faaliyetinden Elde Edilen Kazançtan İstisna Olan Kısım Düşüldükten Sonra Bulunan Tutarı | F72: Diğer Faaliyetinden Elde Edilen Kazanç
C73: =IF(C59-C66-C67<=0,0,C59-C66-C67) -> 32870601.36 | D73: =IF($D$59-C66<=0,0,MIN($D$59-C66,$C$73*D61)) -> 5544796.509 | E73: =IF($E$59-C67<=0,0,MIN($E$59-C67,$C$73*E61)) -> 27325804.85 | F73: =IF(C73-D73-E73<=0,0,C73-D73-E73) -> 0
B74: İHRACAT, İMALAT VE DİĞER FAALİYETLERDEN ELDE EDİLEN KAZANCIN TOPLAM TİCARİ KAZANÇ İÇİNDEKİ PAYLARI | D74: =IFERROR(IF(D73/C73<=0,0,D73/C73),0) -> 0.1686855816 | E74: =IFERROR(IF(E73/C73<=0,0,E73/C73),0) -> 0.8313144184 | F74: =IFERROR(F73/C73,0) -> 0
B75: NEGATİF VE % 100 DEN BÜYÜKLÜK KONTROLÜ SONRASINDAKİ PAYLARI | D75: =IFERROR(IF(D74<=0,0,IF(D74>1,1,D74)),0) -> 0.1686855816 | E75: =IFERROR(IF(E74<=0,0,IF(E74>1,1,E74)),0) -> 0.8313144184 | F75: =IFERROR(IF(F74<=0,0,IF(F74>1,1,F74)),0) -> 0
B77: SAFİ KURUM KAZANCI (KURUMLAR VERGİSİ MATRAHI) | C77: =C59+C63-C64-C65-C69-C70 -> 49075173.72 | D77: =IF(C77<0, "ZARAR","KAR") -> KAR
B79: 2022 YILI 3. DÖNEM İNDİRİMLİ KURUMLAR VERGİSİ HESAPLAMA TABLOSU
C80: 1. TEŞVİK BELGESİ | D80: 2. TEŞVİK BELGESİ | E80: 3. TEŞVİK BELGESİ | F80: 4. TEŞVİK BELGESİ | G80: 5. TEŞVİK BELGESİ
B81: Vergi İndirim Oranı (VİO)
B82: KV MATRAHI (Safi Kurum Kazancı) | C82: =C77 -> 49075173.72
B83: 32/A Uygulanacak K.V. Matrahı (HER BİR TEŞVİK BELGESİ KAPSAMINDA YARARLANILABİLECEK YATIRIMA KATKI TUTARININ MATRAHI BU HÜCRELERE YAZILMALIDIR) | H83: =IF(SUM(C83:G83)>C77,"32/A İNDİRİMİ UYGULANACAK KAZANÇ, SAFİ KURUM KAZANCINDAN FAZLADIR",SUM(C83:G83)) -> 0
B84: 32/A UYGULANMAYACAK K.V. Matrahı | C84: =IF(C82-(C83+D83+E83+F83+G83)<0,0,C82-(C83+D83+E83+F83+G83)) -> 49075173.72
B85: MATRAH TOPLAMI | C85: =IF((C83+D83+E83+F83+G83+C84)>C77,C77,(C83+D83+E83+F83+G83+C84)) -> 49075173.72
B87: SAFİ KURUM KAZANCININ KV VERGİ ORANLARI İTİBARİYLE DAĞILIMI | C87: TOPLAM SAFİ KAZANÇ | D87: İhracat Kazancı Payı | E87: Üretim Kazancı Payı | F87: Diğer Faaliyet Kazancı Payı
C89: =C77 -> 49075173.72 | D89: =IF(AND(OR(D59>=C89,D59+E59>=C89),C66>0),MAX(MIN(C89*D74,D59,D73),0),MIN(C89*D74,D59)) -> 6669915 | E89: =MAX( IF(AND(OR(E59>=C89,E59+F59>=C89),C67>0),MAX(MIN(C89*E74,E59,E73),0),MIN(C89*E74,E59)),0) -> 40796899.5 | F89: =IF(C89-D89-E89<=0,0,C89-D89-E89) -> 1608359.222
B90: SAFİ KURUM KAZANCININ DAĞILIMI ORANSAL DAĞILIMI | C90: =C89 -> 49075173.72 | D90: =D89/C89 -> 0.1359122036 | E90: =E89/C89 -> 0.8313144184 | F90: =F89/C89 -> 0.03277337807
B91: SAFİ KURUM KAZANCININ DAĞILIMI TUTARSAL | C91: =C90 -> 49075173.72 | D91: =D89 -> 6669915 | E91: =E89 -> 40796899.5 | F91: =F89 -> 1608359.222
B92: SAFİ KURUM KAZANCI DAĞILIMI | C92: =C91 -> 49075173.72 | D92: =IFERROR(IF(D91/C91>=1,1,D91/C91),0) -> 0.1359122036 | E92: =IFERROR(IF(E91/C91>=1,1,E91/C91),0) -> 0.8313144184 | F92: =IFERROR(IF(F91/C91>=1,1,F91/C91),0) -> 0.03277337807 | H92: KV ORANI
B93: 1 PUAN VE 32/A İNDİRİMİ OLMASAYDI HESAPLANAN KV TUTARI | C93: =C92*$H$93 -> 12268793.43 | D93: =D91*$H$93 -> 1667478.75 | E93: =E91*$H$93 -> 10199224.87 | F93: =F91*$H$93 -> 402089.8056 | H93: 0.25
B94: 32/ A UYGULANAN MATRAH | C94: =C83+D83+E83+F83+G83 -> 0 | D94: =D106+D111+D116+D121+D126 -> 0 | E94: =D105+D110+D115+D120+D125 -> 0 | F94: =D104+D109+D114+D119+D124 -> 0
B95: 32/A UYGULANACAK MATRAH ÜZERİNDEN ÖDENECEK KV TUTARI | C95: =J107+J112+J117+J122+J127 -> 0 | D95: =J106+J111+J116+J121+J126 -> 0 | E95: =J105+J110+J115+J120+J125 -> 0 | F95: =J104+J109+J114+J119+J124 -> 0
B96: 32/A UYGULANMAYAN MATRAH | C96: =IF(C84<=0,0,C84) -> 49075173.72 | D96: =D131 -> 6669915 | E96: =D130 -> 40796899.5 | F96: =D129 -> 1608359.222
B97: 32/A UYGULANMAYAN MATRAH ÜZERİNDEN ÖDENECEK KV TUTARI | C97: =L129 -> 11527328.69 | D97: =J131 -> 1333983 | E97: =J130 -> 9791255.879 | F97: =J129 -> 402089.8056
B98: TOPLAM ÖDENECEK KV | C98: =C95+C97 -> 11527328.69 | D98: =J131+J106 -> 1333983 | E98: =J130+J105 -> 9791255.879 | F98: =J129+J104 -> 402089.8056
B99: TOPLAM AVANTAJ (YARARLANILAN 1 PUAN İNDİRİMİ + 32/A İNDİRİMİ TUTARI ) | C99: =C93-C98 -> 741464.745 | D99: =D100+D101 -> 333495.75 | E99: =E100+E101 -> 407968.995 | F99: =F100+F101 -> 0
B100: YARARLANILAN 1 - 5 PUAN İNDİRİMİ TUTARI | C100: =F132+F127+F122+F117+F112+F107 -> 741464.745 | D100: =F131+F106+F111+F116+F121+F126 -> 333495.75 | E100: =F130+F105+F110+F115+F120+F125 -> 407968.995 | F100: =F129+F104+F109+F114+F119+F124 -> 0
B101: YARLANILAN 32/A İNDİRİMİ TUTARI | C101: =K107+K112+K117+K122+K127+K132 -> 0 | D101: =K106+K111+K121+K126+K131 -> 0 | E101: =K105+K110+K115+K120+K125+K130 -> 0 | F101: =K104++K109+K114+K119+K124+K129 -> 0
B103: 32/A UYGULANABİLECEK MATRAH (1.TEŞVİK BELGESİ) | C103: =C83 -> 0 | D103: KV MATRAHI | E103: 1 - 5 PUAN İNDİRİM OLMASAYDI HESAPLANAN KV TUTARI | F103: 1 -5 Puan İndirim Tutarı | G103: 1 - 5 Puan İndirim Sonrasında Hesaplanan KV Tutarı | H103: 32/A İndirimi Olmasaydı Ödenecek KV Tutarı | I103: 1 -5 Puan İndirim ve 32/A VİO Uygulandıktan Sonra Tatbik Edilecek KV Oranı | J103: 1 -5 Puan İndirim ve 32/A İndirimi Uygulandıktan Sonra Ödenecek KV Tutarı | K103: Yararlanılan Yatırıma Katkı Tutarı (32/A İnd. KV Nedeniyle Vazgeçilen Vergi Tutarı) | L103: Ödenecek KV Tutarı
B104: GENEL ORANA TABİ KISIM (DİĞER FAALİYETLER) | C104: =F92 -> 0.03277337807 | D104: =C103*C104 -> 0 | E104: =D104*$H$93 -> 0 | F104: 0 | G104: =E104-F104 -> 0 | H104: =G104 -> 0 | I104: =($H$93)-(($H$93)*$C$81) -> 0.25 | J104: =I104*D104 -> 0 | K104: =G104-J104 -> 0 | L104: =J107 -> 0
B105: 1 PUAN İNDİRİMLİ ORANA TABİ KISIM (İMALAT) | C105: =E92 -> 0.8313144184 | D105: =C103*C105 -> 0 | E105: =D105*$H$93 -> 0 | F105: =D105/100 -> 0 | G105: =E105-F105 -> 0 | H105: =G105 -> 0 | I105: =($H$93-0.01)-(($H$93-0.01)*$C$81) -> 0.24 | J105: =I105*D105 -> 0 | K105: =G105-J105 -> 0
B106: 5 PUAN İNDİRİMLİ ORANA TABİ KISIM ( İHRACAT) | C106: =D92 -> 0.1359122036 | D106: =C103*C106 -> 0 | E106: =D106*$H$93 -> 0 | F106: =D106/20 -> 0 | G106: =E106-F106 -> 0 | H106: 0 | I106: =($H$93-0.05)-(($H$93-0.05)*C81) -> 0.2 | J106: 0 | K106: =G106-J106 -> 0
B107: TOPLAM | C107: =SUM(C104:C106) -> 1 | D107: =SUM(D104:D106) -> 0 | E107: 0 | F107: =SUM(F104:F106) -> 0 | G107: =SUM(G104:G106) -> 0 | H107: =SUM(H104:H106) -> 0 | J107: 0 | K107: 0
B108: 32/A UYGULANABİLECEK MATRAH (2.TEŞVİK BELGESİ) | C108: =D83 -> 0 | D108: KV MATRAHI | E108: 1 - 5 PUAN İNDİRİM OLMASAYDI HESAPLANAN KV TUTARI | F108: 1 -5 Puan İndirim Tutarı | G108: 1 -5 Puan İndirim Sonrasında Hesaplanan KV Tutarı | H108: 32/A İndirimi Olmasaydı Ödenecek KV Tutarı | I108: 1 - 5 Puan İndirim ve 32/A VİO Uygulandıktan Sonra Tatbik Edilecek KV Oranı | J108: 1-5 Puan İndirim ve 32/A İndirimi Uygulandıktan Sonra Ödenecek KV Tutarı | K108: Yararlanılan Yatırıma Katkı Tutarı (32/A İnd. KV Nedeniyle Vazgeçilen Vergi Tutarı) | L108: Ödenecek KV Tutarı
B109: GENEL ORANA TABİ KISIM (DİĞER FAALİYETLER) | C109: =F92 -> 0.03277337807 | D109: =C108*C109 -> 0 | E109: =D109*$H$93 -> 0 | F109: 0 | G109: =E109-F109 -> 0 | H109: =G109 -> 0 | I109: =($H$93)-(($H$93)*D81) -> 0.25 | J109: =I109*D109 -> 0 | K109: =G109-J109 -> 0 | L109: =J112 -> 0
B110: 1 PUAN İNDİRİMLİ ORANA TABİ KISIM (İMALAT) | C110: =E92 -> 0.8313144184 | D110: =C108*C110 -> 0 | E110: =D110*$H$93 -> 0 | F110: =D110/100 -> 0 | G110: =E110-F110 -> 0 | H110: =G110 -> 0 | I110: =($H$93-0.01)-(($H$93-0.01)*D81) -> 0.24 | J110: =I110*D110 -> 0 | K110: =G110-J110 -> 0
B111: 5 PUAN İNDİRİMLİ ORANA TABİ KISIM ( İHRACAT) | C111: =D92 -> 0.1359122036 | D111: =C108*C111 -> 0 | E111: =D111*$H$93 -> 0 | F111: =D111/20 -> 0 | G111: =E111-F111 -> 0 | H111: 0 | I111: =($H$93-0.05)-(($H$93-0.05)*D81) -> 0.2 | J111: 0 | K111: =G111-J111 -> 0
B112: TOPLAM | C112: =SUM(C109:C111) -> 1 | D112: 0 | E112: 0 | F112: =SUM(F109:F111) -> 0 | G112: =SUM(G109:G111) -> 0 | H112: =SUM(H109:H111) -> 0 | J112: =SUM(J109:J111) -> 0 | K112: 0
B113: 32/A UYGULANABİLECEK MATRAH (3.TEŞVİK BELGESİ) | C113: =E83 -> 0 | D113: KV MATRAHI | E113: 1 - 5 PUAN İNDİRİM OLMASAYDI HESAPLANAN KV TUTARI | F113: 1-5 Puan İndirim Tutarı | G113: 1 - 5 Puan İndirim Sonrasında Hesaplanan KV Tutarı | H113: 32/A İndirimi Olmasaydı Ödenecek KV Tutarı | I113: 1 - 5 Puan İndirim ve 32/A VİO Uygulandıktan Sonra Tatbik Edilecek KV Oranı | J113: 1 -5 Puan İndirim ve 32/A İndirimi Uygulandıktan Sonra Ödenecek KV Tutarı | K113: Yararlanılan Yatırıma Katkı Tutarı (32/A İnd. KV Nedeniyle Vazgeçilen Vergi Tutarı) | L113: Ödenecek KV Tutarı
B114: GENEL ORANA TABİ KISIM (DİĞER FAALİYETLER) | C114: =F92 -> 0.03277337807 | D114: =C113*C114 -> 0 | E114: =D114*$H$93 -> 0 | F114: 0 | G114: =E114-F114 -> 0 | H114: =G114 -> 0 | I114: =($H$93)-(($H$93)*E81) -> 0.25 | J114: =I114*D114 -> 0 | K114: =G114-J114 -> 0 | L114: =J117 -> 0
B115: 1 PUAN İNDİRİMLİ ORANA TABİ KISIM (İMALAT) | C115: =E92 -> 0.8313144184 | D115: =C113*C115 -> 0 | E115: =D115*$H$93 -> 0 | F115: =D115/100 -> 0 | G115: =E115-F115 -> 0 | H115: =G115 -> 0 | I115: =($H$93-0.01)-(($H$93-0.01)*E81) -> 0.24 | J115: =I115*D115 -> 0 | K115: =G115-J115 -> 0
B116: 5 PUAN İNDİRİMLİ ORANA TABİ KISIM ( İHRACAT) | C116: =D92 -> 0.1359122036 | D116: =C113*C116 -> 0 | E116: =D116*$H$93 -> 0 | F116: =D116/20 -> 0 | G116: =E116-F116 -> 0 | H116: 0 | I116: =($H$93-0.05)-(($H$93-0.05)*E81) -> 0.2 | J116: 0 | K116: =G116-J116 -> 0
B117: TOPLAM | C117: =SUM(C114:C116) -> 1 | D117: 0 | E117: 0 | F117: =SUM(F114:F116) -> 0 | G117: =SUM(G114:G116) -> 0 | H117: =SUM(H114:H116) -> 0 | J117: =SUM(J114:J116) -> 0 | K117: 0
B118: 32/A UYGULANABİLECEK MATRAH (4. TEŞVİK BELGESİ) | C118: =F83 -> 0 | D118: KV MATRAHI | E118: 1 - 5 PUAN İNDİRİM OLMASAYDI HESAPLANAN KV TUTARI | F118: 1-5 Puan İndirim Tutarı | G118: 1 -5 Puan İndirim Sonrasında Hesaplanan KV Tutarı | H118: 32/A İndirimi Olmasaydı Ödenecek KV Tutarı | I118: 1- 5 Puan İndirim ve 32/A VİO Uygulandıktan Sonra Tatbik Edilecek KV Oranı | J118: 1-5 Puan İndirim ve 32/A İndirimi Uygulandıktan Sonra Ödenecek KV Tutarı | K118: Yararlanılan Yatırıma Katkı Tutarı (32/A İnd. KV Nedeniyle Vazgeçilen Vergi Tutarı) | L118: Ödenecek KV Tutarı
B119: GENEL ORANA TABİ KISIM (DİĞER FAALİYETLER) | C119: =F92 -> 0.03277337807 | D119: =C118*C119 -> 0 | E119: =D119*$H$93 -> 0 | F119: 0 | G119: =E119-F119 -> 0 | H119: =G119 -> 0 | I119: =($H$93)-(($H$93)*F81) -> 0.25 | J119: =I119*D119 -> 0 | K119: =G119-J119 -> 0 | L119: =J122 -> 0
B120: 1 PUAN İNDİRİMLİ ORANA TABİ KISIM (İMALAT) | C120: =E92 -> 0.8313144184 | D120: =C118*C120 -> 0 | E120: =D120*$H$93 -> 0 | F120: =D120/100 -> 0 | G120: =E120-F120 -> 0 | H120: =G120 -> 0 | I120: =($H$93-0.01)-(($H$93-0.01)*F81) -> 0.24 | J120: =I120*D120 -> 0 | K120: =G120-J120 -> 0
B121: 5 PUAN İNDİRİMLİ ORANA TABİ KISIM ( İHRACAT) | C121: =D92 -> 0.1359122036 | D121: =C118*C121 -> 0 | E121: =D121*$H$93 -> 0 | F121: =D121/20 -> 0 | G121: =E121-F121 -> 0 | H121: 0 | I121: =($H$93-0.05)-(($H$93-0.05)*F81) -> 0.2 | J121: 0 | K121: =G121-J121 -> 0
B122: TOPLAM | C122: =SUM(C119:C121) -> 1 | D122: 0 | E122: 0 | F122: =SUM(F119:F121) -> 0 | G122: =SUM(G119:G121) -> 0 | H122: =SUM(H119:H121) -> 0 | J122: =SUM(J119:J121) -> 0 | K122: 0
B123: 32/A UYGULANABİLECEK MATRAH (5.TEŞVİK BELGESİ) | C123: =G83 -> 0 | D123: KV MATRAHI | E123: 1 - 5 PUAN İNDİRİM OLMASAYDI HESAPLANAN KV TUTARI | F123: 1-5 Puan İndirim Tutarı | G123: 1 - 5 Puan İndirim Sonrasında Hesaplanan KV Tutarı | H123: 32/A İndirimi Olmasaydı Ödenecek KV Tutarı | I123: 1 -5 Puan İndirim ve 32/A VİO Uygulandıktan Sonra Tatbik Edilecek KV Oranı | J123: 1 - 5 Puan İndirim ve 32/A İndirimi Uygulandıktan Sonra Ödenecek KV Tutarı | K123: Yararlanılan Yatırıma Katkı Tutarı (32/A İnd. KV Nedeniyle Vazgeçilen Vergi Tutarı) | L123: Ödenecek KV Tutarı
B124: GENEL ORANA TABİ KISIM (DİĞER FAALİYETLER) | C124: =F92 -> 0.03277337807 | D124: =C123*C124 -> 0 | E124: =D124*$H$93 -> 0 | F124: 0 | G124: =E124-F124 -> 0 | H124: =G124 -> 0 | I124: =($H$93)-(($H$93)*G81) -> 0.25 | J124: =I124*D124 -> 0 | K124: =G124-J124 -> 0 | L124: =J127 -> 0
B125: 1 PUAN İNDİRİMLİ ORANA TABİ KISIM (İMALAT) | C125: =E92 -> 0.8313144184 | D125: =C123*C125 -> 0 | E125: =D125*$H$93 -> 0 | F125: =D125/100 -> 0 | G125: =E125-F125 -> 0 | H125: =G125 -> 0 | I125: =($H$93-0.01)-(($H$93-0.01)*G81) -> 0.24 | J125: =I125*D125 -> 0 | K125: =G125-J125 -> 0
B126: 5 PUAN İNDİRİMLİ ORANA TABİ KISIM ( İHRACAT) | C126: =D92 -> 0.1359122036 | D126: =C123*C126 -> 0 | E126: =D126*$H$93 -> 0 | F126: =D126/20 -> 0 | G126: =E126-F126 -> 0 | H126: 0 | I126: =($H$93-0.05)-(($H$93-0.05)*G81) -> 0.2 | J126: 0 | K126: =G126-J126 -> 0
B127: TOPLAM | C127: =SUM(C124:C126) -> 1 | D127: 0 | E127: 0 | F127: =SUM(F124:F126) -> 0 | G127: =SUM(G124:G126) -> 0 | H127: =SUM(H124:H126) -> 0 | J127: =SUM(J124:J126) -> 0 | K127: 0
B128: 32/A UYGULANAMAYACAK MATRAH | C128: =IF(C84<=0,0,C84) -> 49075173.72 | D128: KV MATRAHI | E128: 1-5 PUAN İNDİRİM OLMASAYDI HESAPLANAN KV TUTARI | F128: 1-5 Puan İndirim Tutarı | G128: 1 -5 Puan İndirim Sonrasında Hesaplanan KV Tutarı | H128: 32/A İNDİRİMİ UYGULANMAZ | J128: 1 Puan İndirim ve 32/A İndirimi Uygulandıktan Sonra Ödenecek KV Tutarı | K128: Yararlanılan Yatırıma Katkı Tutarı (32/A İnd. KV Nedeniyle Vazgeçilen Vergi Tutarı) | L128: Ödenecek KV Tutarı
B129: GENEL ORANA TABİ KISIM (DİĞER FAALİYETLER) | C129: =F92 -> 0.03277337807 | D129: =C128*C129 -> 1608359.222 | E129: =D129*$H$93 -> 402089.8056 | F129: 0 | G129: =E129-F129 -> 402089.8056 | J129: =G129 -> 402089.8056 | K129: =G129-J129 -> 0 | L129: =J132 -> 11527328.69
B130: 1 PUAN İNDİRİMLİ ORANA TABİ KISIM (İMALAT) | C130: =E92 -> 0.8313144184 | D130: =C130*C128 -> 40796899.5 | E130: =D130*$H$93 -> 10199224.87 | F130: =D130/100 -> 407968.995 | G130: =E130-F130 -> 9791255.879 | J130: =G130 -> 9791255.879 | K130: =G130-J130 -> 0
B131: 5 PUAN İNDİRİMLİ ORANA TABİ KISIM ( İHRACAT) | C131: =D92 -> 0.1359122036 | D131: =C131*C128 -> 6669915 | E131: =D131*$H$93 -> 1667478.75 | F131: =D131/20 -> 333495.75 | G131: =E131-F131 -> 1333983 | J131: 1333983 | K131: 0
B132: TOPLAM | C132: =SUM(C129:C131) -> 1 | D132: =SUM(D129:D131) -> 49075173.72 | E132: 12268793.43 | F132: =SUM(F129:F131) -> 741464.745 | G132: =SUM(G129:G131) -> 11527328.69 | J132: 11527328.69 | K132: 0
B133: TOPLAM KV MATRAHI VE ÖDENMESİ GEREKEN KV | C133: =C103+C128+C108+C113+C118+C123 -> 49075173.72 | D133: =D107+D132+D112+D117+D122+D127 -> 49075173.72 | E133: =E107+E132+E112+E117+E122+E127 -> 12268793.43 | F133: =F107+F132+F112+F117+F122+F127 -> 741464.745 | G133: =G107+G132+G112+G117+G122+G127 -> 11527328.69 | J133: =J107+J132+J112+J117+J122+J127 -> 11527328.69 | K133: =K132+K107+K112+K117+K122+K127 -> 0 | L133: =L104+L129+L109+L114+L119+L124 -> 11527328.69
B135: GEÇİCİ VERGİ BEYANNMESİNDE MATRAH BİLDİRİMİ BÖLÜMÜNDE DOLDURULACAK KISIMLAR VE TUTARLARI
B136: 32 A Madde Kapsamında İndirimli Kurumlar Vergisine (Geçici Vergiye) Tabi Matrah | C136: =C103+C108+C113+C118+C123 -> 0 | D136: =E107+E112+E117+E122+E127 -> 0 | E136: 1-5 Puan Olmasaydı Hesaplan KV Tutarı
D137: =G107+G112+G117+G122++G127 -> 0 | E137: 1 -5 Puan İndirim Sonrasında Ödenecek KV Tutarı (32 A olmasaydı hesaplanacak Vergi)
D138: =K107+K112+K117+K122+K127 -> 0 | E138: 32/A İndirimi ile Vazgeçilen Vergi
B139: 32 A Madde Kapsamında İndirimli Kurumlar Vergisi(Geçici Vergi) Oranı | C139: =IFERROR(D139/C136,0) -> 0 | D139: =L104+L109+L114+L119+L124 -> 0 | E139: 32/A ya Tabi Matrah Üzerinden Ödenecek KV
B140: 32/7 Madde Kapsamında İndirimli Kurumlar Vergisine (Geçici Vergiye) Tabi Matrah (İhracat) | C140: =D131 -> 6669915 | D140: =E131 -> 1667478.75 | E140: 5 Puan Olmasaydı Hesaplan KV Tutarı
D141: =F131 -> 333495.75 | E141: 5 Puan İndirimin Vergi Etkisi
B142: 32/7 Madde Kapsamında İndirimli Kurumlar Vergisi (Geçici Vergi) Oranı | C142: =IFERROR(D142/C140,0) -> 0.2 | D142: =G131 -> 1333983 | E142: 5 Puan İndirim Sonrasında Ödenecek KV Tutarı (İhracat)
B143: 32/8 Madde Kapsamında İndirimli Kurumlar Vergisine (Geçici Vergiye) Tabi Matrah (Üretim) | C143: =D130 -> 40796899.5 | D143: =E130 -> 10199224.87 | E143: 1 Puan Olmasaydı Hesaplan KV Tutarı
D144: =F130 -> 407968.995 | E144: 1 Puan İndirimin Vergi Etkisi
B145: 32/8 Madde Kapsamında İndirimli Kurumlar Vergisi (Geçici Vergi) Oranı | C145: =IFERROR(D145/C143,0) -> 0.24 | D145: =G130 -> 9791255.879 | E145: 1 Puan İndirim Sonrasında Ödenecek KV Tutarı (Üretim)
B146: Genel Orana Tabi Matrah (Diğer) | C146: =D129 -> 1608359.222 | D146: =J129 -> 402089.8056 | E146: Diğer Faalilyetlerden Elde Edilen Kazanç
C147: =IFERROR(D146/C146,0) -> 0.25
B148: MATRAHLAR TOPLAMI | C148: =C136+C143+C140+C146 -> 49075173.72 | D148: =D139+D145+D142+D146 -> 11527328.69

Sheet ŞABLON (32 6 BİST İNDİRİMSİZ)
B2: FAALİYET TÜRLERİ İTİBARİYLE HASILATLAR VE TOPLAM İÇİNDEKİ ORANLARI | C2: =IFERROR(C4/C4,0) -> 0 | D2: =IFERROR(D4/C4,0) -> 0 | E2: =IFERROR(E4/C4,0) -> 0 | F2: =IFERROR(F4/C4,0) -> 0
C3: Toplam Hasılat | D3: İhracat faaliyeti | E3: İmalat faaliyeti | F3: Diğer faaliyetler
B4: A-BRÜT SATIŞLAR (60) | C4: =D4+E4+F4 -> 0 | D4: =SUM(D5:D7) -> 0 | E4: =SUM(E5:E7) -> 0 | F4: 0
B5: 1-Yurtiçi Satışlar (600) | C5: =D5+E5+F5 -> 0
B6: 2-Yurtdışı Satışlar (601) | C6: =D6+E6+F6 -> 0
B7: 3-Diğer Gelirler (602) | C7: =D7+E7+F7 -> 0
B8: B-SATIŞ İNDİRİMLERİ(-) (61) | C8: =SUM(C9:C11) -> 0 | D8: =SUM(D9:D11) -> 0 | E8: =SUM(E9:E11) -> 0 | F8: 0
B9: 1-Satıştan İadeler (-) (610) | C9: =SUM(D9:F9) -> 0
B10: 2- Satış İskontoları (-) (611) | C10: =SUM(D10:F10) -> 0
B11: 3-Diğer İndirimler (-) (612) | C11: 0
B12: C-NET SATIŞLAR | C12: =C4-C8 -> 0 | D12: =D4-D8 -> 0 | E12: =E4-E8 -> 0 | F12: 0
B13: D-SATIŞLARIN MALİYETİ (-) (62) | C13: =SUM(C14:C17) -> 0 | D13: =SUM(D14:D17) -> 0 | E13: =SUM(E14:E17) -> 0 | F13: =SUM(F14:F17) -> 0
B14: 1-Satılan Mamuller Maliyeti ( 620) | C14: =SUM(D14:F14) -> 0
B15: 2-Satılan Ticari Mal Maliyeti (621) | C15: =SUM(D15:F15) -> 0
B16: 3-Satılan Hizmet Maliyeti (622) | C16: 0
B17: 4-Diğer Satışların Maliyeti (623) | C17: 0
B18: BRÜT SATIŞ KARI / ZARARI | C18: =C12-C13 -> 0 | D18: =D12-D13 -> 0 | E18: =E12-E13 -> 0 | F18: 0
B19: E-FAALİYET GİDERLERİ (-) (63) | C19: =SUM(C20:C24) -> 0 | D19: =SUM(D20:D24) -> 0 | E19: =SUM(E20:E24) -> 0 | F19: 0
B20: 1-Araştırma ve Geliştirme Giderleri(-) (630) | C20: =SUM(D20:F20) -> 0
B21: 2-Pazarlama, Satış ve Dağıtım Giderleri(-) (631) | C21: =SUM(D21:F21) -> 0
B22: 3-Genel Yönetim Giderleri(-) (632) | C22: =SUM(D22:F22) -> 0
B23: MÜŞTEREK GENEL GİDERLER (DAĞITIM-HASILAT PAYINA GÖRE) | D23: =C23*D2 -> 0 | E23: =C23*E2 -> 0 | F23: =C23*F2 -> 0
B24: MÜŞTEREK GENEL GİDER GİBİ DAĞITIMA TABİ TUTULACAK AMORTİSMAN GİDERLERİ (DAĞITIM-HASILAT PAYINA GÖRE) | D24: =C24*D2 -> 0 | E24: =C24*E2 -> 0 | F24: =C24*F2 -> 0
B25: FAALİYET KARI / ZARARI | C25: =C18-C19 -> 0 | D25: =D18-D19 -> 0 | E25: =E18-E19 -> 0 | F25: 0
B26: F-DİĞER FAALİYETLERDEN OLAĞAN GELİR VE KARLAR (64) | C26: =SUM(C27:C35) -> 0 | D26: =SUM(D27:D35) -> 0 | E26: =SUM(E27:E35) -> 0 | F26: =SUM(F27:F35) -> 0
B27: 1- İŞTİRAKLERDEN TEMETTÜ GELİRLERİ (640) | C27: =SUM(D27:F27) -> 0
B28: 2- BAĞLI ORTAKLIKLARDAN TEMETTÜ GELİRLERİ (641) | C28: =SUM(D28:F28) -> 0
B29: 3- FAİZ GELİRLERİ (642) (ihracat ve imalat kaynaklı alacağın tahsiline kadar olan süreçte oluşan) | C29: 0
B30: 4- KOMİSYON GELİRLERİ (643) | C30: 0
B31: 5- KONUSU OLMAYAN KARŞILIKLAR (644) | C31: 0
B32: 6- MENKUL KIYMET SATIŞ KARLARI (645) | C32: 0
B33: 7- KAMBİYO KARLARI (646) (ihracat ve imalat kaynaklı alacağın tahsiline kadar olan süreçte oluşan) | C33: 0
B34: 8- REESKONT FAİZ GELİRLERİ (647) | C34: 0
B35: 9- FAALİYETLE İLGİLİ DİĞER GELİR VE KARLAR (649) | C35: 0
B36: ARA TOPLAM | C36: =C25+C26 -> 0 | D36: =D25+D26 -> 0 | E36: =E25+E26 -> 0 | F36: =F25+F26 -> 0
B37: G-DİĞER FAALİYETLERDEN OLAĞAN GİDER VE ZARARLAR(-) (65) | C37: =SUM(C38:C43) -> 0 | D37: =SUM(D38:D43) -> 0 | E37: =SUM(E38:E43) -> 0 | F37: 0
B38: 1- KOMİSYON GİDERLERİ (653) | C38: =SUM(D38:F38) -> 0
B39: 2- KARŞILIK GİDERLERİ (654) | C39: =SUM(D39:F39) -> 0
B40: 3- MENKUL KIYMET SATIŞ ZARARLARI (655) | C40: 0
B41: 4- KAMBİYO ZARARLARI (656) (ihracat ve imalat kaynaklı alacağın tahsiline kadar olan süreçte oluşan) | C41: 0
B42: 5- REESKONT FAİZ GİDERLERİ (657) | C42: 0
B43: 6- DİĞER OLAĞAN GİDER VE ZARARLAR (659) | C43: =SUM(D43:F43) -> 0
B44: ARA TOPLAM | C44: =C36-C37 -> 0 | D44: =D36-D37 -> 0 | E44: =E36-E37 -> 0 | F44: 0
B45: H-FİNANSMAN GİDERLERİ(-) (66) | C45: =SUM(C46:C49) -> 0 | D45: =SUM(D46:D49) -> 0 | E45: =SUM(E46:E49) -> 0 | F45: =SUM(F46:F49) -> 0
B46: 1- KISA VADELİ BORÇLANMA GİDERLERİ (-) | C46: =SUM(D46:F46) -> 0
B47: 2- UZUN VADELİ BORÇLANMA GİDERLERİ (-) | C47: =SUM(D47:F47) -> 0
B48: 1- KISA VADELİ BORÇLANMA GİDERLERİ (-) (DAĞITIM) | D48: =C48*D2 -> 0 | E48: =C48*E2 -> 0 | F48: =C48*F2 -> 0
B49: 2- UZUN VADELİ BORÇLANMA GİDERLERİ (-) (DAĞITIM) | D49: =C49*D2 -> 0 | E49: =C49*E2 -> 0 | F49: =C49*F2 -> 0
B50: ARA TOPLAM | C50: =C44-C45 -> 0 | D50: =D44-D45 -> 0 | E50: =E44-E45 -> 0 | F50: =F44-F45 -> 0
B51: I-OLAĞANDIŞI GELİR VE KÂRLAR (67) | C51: =SUM(D51:F51) -> 0 | D51: =SUM(D52:D53) -> 0 | E51: =SUM(E52:E53) -> 0 | F51: =SUM(F52:F53) -> 0
B52: 1- ÖNCEKİ DÖNEM GELİR VE KARLARI (671) | C52: =SUM(D52:F52) -> 0
B53: 2-DİĞER OLAĞAN DIŞI GELİR VE KARLAR (679) | C53: =SUM(D53:F53) -> 0
B54: ARA TOPLAM | C54: =SUM(D54:F54) -> 0 | D54: =D50+D51 -> 0 | E54: =E50+E51 -> 0 | F54: 0
B55: J-OLAĞANDIŞI GİDER VE ZARARLAR(-) (68) | C55: =SUM(C56:C58) -> 0 | D55: =SUM(D56:D58) -> 0 | E55: =SUM(E56:E58) -> 0 | F55: 0
B56: 1-Çalışmayan Kısım Gider ve Zararları(-) (680) | C56: =SUM(D56:F56) -> 0
B57: 2-Önceki Dönem Gider ve Zararları(-) (681) | C57: =SUM(D57:F57) -> 0
B58: 3-Diğer Olağan Dışı Gider ve Zararlar(-) (689) | C58: 0
B59: DÖNEM KÂRI VEYA ZARARI (TİCARİ BİLANÇO KARI ZARARI ) | C59: =C54-C55 -> 0 | D59: =D54-D55 -> 0 | E59: =E54-E55 -> 0 | F59: 0
B60: İHRACAT, İMALAT VE DİĞER FAALİYETLERDEN ELDE EDİLEN KAZANCIN TOPLAM TİCARİ KAZANÇ İÇİNDEKİ PAYLARI | D60: =IF(D59>=$C$59,1, IF(D59<=0,0, IF(AND(D59>0,D59<$C$59),D59/$C$59))) -> 1 | E60: =IF(E59>=$C$59,1, IF(E59<=0,0, IF(AND(E59>0,E59<$C$59),E59/$C$59))) -> 1 | F60: =IF(F59>=$C$59,1, IF(F59<=0,0, IF(AND(F59>0,F59<$C$59),F59/$C$59))) -> 1
D61: =D60/(D60+E60+F60) -> 0.3333333333 | E61: =E60/(D60+E60+F60) -> 0.3333333333 | F61: =F60/(D60+E60+F60) -> 0.3333333333
B63: KKEG +
B64: KABUL EDİLMEYEN GELİRLER -
B65: ZARAR OLSA DAHİ İNDİRİLECEK İSTİSNALAR - | C65: =C66+C67+C68 -> 0
B66: Hizmet İhracatı Faaliyetinden (KVK 10-1/ğ) Elde Edilen Kazançlardan İstisna Edilenlerin Toplamı
B67: İmalat Faaliyetinden Elde Edilen Kazançlardan İstisna Edilenlerin Toplamı
B68: Diğer Faaliyetlerden Elde Edilen Kazançlardan İstisna Edilenlerin Toplamı
B69: GEÇMİŞ YIL ZARARLARI -
B70: İNDİRİMLER - | D70: AZAMİ YAZILABİLECEK İNDİRİMLER TUTARI | E70: =C59+C63-C64-C65-C69 -> 0
B72: 1 PUAN İNDİRİM UYGULANACAK TUTARIN HESABINDA İSTİSNA KAZANÇLAR DÜŞÜLDÜKTEN SONRA BULUNAN TİCARİ KAZANÇ TUTARI İLE BU KAZANÇ İÇİNDE İHRACAT,İMALAT VE DİĞER KAZANÇLARIN TUTARI | C72: TİCARİ KAZANÇ TAN İhracat ve İmalat Kazancından İstisna Olan Tutarlar Düşüldükten Sonra Kalan Tutarı | D72: İhracat Faaliyetinden Elde Edilen Kazançtan İstisna Olan Kısım Düşüldükten Sonra Bulunan Tutarı | E72: Üretim Faaliyetinden Elde Edilen Kazançtan İstisna Olan Kısım Düşüldükten Sonra Bulunan Tutarı | F72: Diğer Faaliyetinden Elde Edilen Kazanç
C73: =IF(C59-C66-C67<=0,0,C59-C66-C67) -> 0 | D73: =IF($D$59-C66<=0,0,MIN($D$59-C66,$C$73*D61)) -> 0 | E73: =IF($E$59-C67<=0,0,MIN($E$59-C67,$C$73*E61)) -> 0 | F73: =IF(C73-D73-E73<=0,0,C73-D73-E73) -> 0
B74: İHRACAT, İMALAT VE DİĞER FAALİYETLERDEN ELDE EDİLEN KAZANCIN TOPLAM TİCARİ KAZANÇ İÇİNDEKİ PAYLARI | D74: =IFERROR(IF(D73/C73<=0,0,D73/C73),0) -> 0 | E74: =IFERROR(IF(E73/C73<=0,0,E73/C73),0) -> 0 | F74: =IFERROR(F73/C73,0) -> 0
B75: NEGATİF VE % 100 DEN BÜYÜKLÜK KONTROLÜ SONRASINDAKİ PAYLARI | D75: =IFERROR(IF(D74<=0,0,IF(D74>1,1,D74)),0) -> 0 | E75: =IFERROR(IF(E74<=0,0,IF(E74>1,1,E74)),0) -> 0 | F75: =IFERROR(IF(F74<=0,0,IF(F74>1,1,F74)),0) -> 0
B77: SAFİ KURUM KAZANCI (KURUMLAR VERGİSİ MATRAHI) | C77: =C59+C63-C64-C65-C69-C70 -> 0 | D77: =IF(C77<0, "ZARAR","KAR") -> KAR
B79: 2022 YILI 3. DÖNEM İNDİRİMLİ KURUMLAR VERGİSİ HESAPLAMA TABLOSU
C80: 1. TEŞVİK BELGESİ | D80: 2. TEŞVİK BELGESİ | E80: 3. TEŞVİK BELGESİ | F80: 4. TEŞVİK BELGESİ | G80: 5. TEŞVİK BELGESİ
B81: Vergi İndirim Oranı (VİO)
B82: KV MATRAHI (Safi Kurum Kazancı) | C82: =C77 -> 0
B83: 32/A Uygulanacak K.V. Matrahı (HER BİR TEŞVİK BELGESİ KAPSAMINDA YARARLANILABİLECEK YATIRIMA KATKI TUTARININ MATRAHI BU HÜCRELERE YAZILMALIDIR) | H83: =IF(SUM(C83:G83)>C77,"32/A İNDİRİMİ UYGULANACAK KAZANÇ, SAFİ KURUM KAZANCINDAN FAZLADIR",SUM(C83:G83)) -> 0
B84: 32/A UYGULANMAYACAK K.V. Matrahı | C84: =IF(C82-(C83+D83+E83+F83+G83)<0,0,C82-(C83+D83+E83+F83+G83)) -> 0
B85: MATRAH TOPLAMI | C85: =IF((C83+D83+E83+F83+G83+C84)>C77,C77,(C83+D83+E83+F83+G83+C84)) -> 0
B87: SAFİ KURUM KAZANCININ KV VERGİ ORANLARI İTİBARİYLE DAĞILIMI | C87: TOPLAM SAFİ KAZANÇ | D87: İhracat Kazancı Payı | E87: Üretim Kazancı Payı | F87: Diğer Faaliyet Kazancı Payı
C89: =C77 -> 0 | D89: =IF(AND(OR(D59>=C89,D59+E59>=C89),C66>0),MAX(MIN(C89*D74,D59,D73),0),MIN(C89*D74,D59)) -> 0 | E89: =MAX( IF(AND(OR(E59>=C89,E59+F59>=C89),C67>0),MAX(MIN(C89*E74,E59,E73),0),MIN(C89*E74,E59)),0) -> 0 | F89: =IF(C89-D89-E89<=0,0,C89-D89-E89) -> 0
B90: SAFİ KURUM KAZANCININ DAĞILIMI ORANSAL DAĞILIMI | C90: =C89 -> 0 | D90: =IFERROR(D89/C89,0) -> 0 | E90: =IFERROR(E89/D89,0) -> 0 | F90: =IFERROR(F89/E89,0) -> 0
B91: SAFİ KURUM KAZANCININ DAĞILIMI TUTARSAL | C91: =C90 -> 0 | D91: =D89 -> 0 | E91: =E89 -> 0 | F91: =F89 -> 0
B92: SAFİ KURUM KAZANCI DAĞILIMI | C92: =C91 -> 0 | D92: =IFERROR(IF(D91/C91>=1,1,D91/C91),0) -> 0 | E92: =IFERROR(IF(E91/C91>=1,1,E91/C91),0) -> 0 | F92: =IFERROR(IF(F91/C91>=1,1,F91/C91),0) -> 0 | H92: KV ORANI
B93: 1 PUAN VE 32/A İNDİRİMİ OLMASAYDI HESAPLANAN KV TUTARI | C93: =C92*$H$93 -> 0 | D93: =D91*$H$93 -> 0 | E93: =E91*$H$93 -> 0 | F93: =F91*$H$93 -> 0 | H93: 0.25
B94: 32/ A UYGULANAN MATRAH | C94: =C83+D83+E83+F83+G83 -> 0 | D94: =D106+D111+D116+D121+D126 -> 0 | E94: =D105+D110+D115+D120+D125 -> 0 | F94: =D104+D109+D114+D119+D124 -> 0
B95: 32/A UYGULANACAK MATRAH ÜZERİNDEN ÖDENECEK KV TUTARI | C95: =J107+J112+J117+J122+J127 -> 0 | D95: =J106+J111+J116+J121+J126 -> 0 | E95: =J105+J110+J115+J120+J125 -> 0 | F95: =J104+J109+J114+J119+J124 -> 0
B96: 32/A UYGULANMAYAN MATRAH | C96: =IF(C84<=0,0,C84) -> 0 | D96: =D131 -> 0 | E96: =D130 -> 0 | F96: =D129 -> 0
B97: 32/A UYGULANMAYAN MATRAH ÜZERİNDEN ÖDENECEK KV TUTARI | C97: =L129 -> 0 | D97: =J131 -> 0 | E97: =J130 -> 0 | F97: =J129 -> 0
B98: TOPLAM ÖDENECEK KV | C98: =C95+C97 -> 0 | D98: =J131+J106 -> 0 | E98: =J130+J105 -> 0 | F98: =J129+J104 -> 0
B99: TOPLAM AVANTAJ (YARARLANILAN 1 PUAN İNDİRİMİ + 32/A İNDİRİMİ TUTARI ) | C99: =C93-C98 -> 0 | D99: =D100+D101 -> 0 | E99: =E100+E101 -> 0 | F99: =F100+F101 -> 0
B100: YARARLANILAN 1 - 5 PUAN İNDİRİMİ TUTARI | C100: =F132+F127+F122+F117+F112+F107 -> 0 | D100: =F131+F106+F111+F116+F121+F126 -> 0 | E100: =F130+F105+F110+F115+F120+F125 -> 0 | F100: =F129+F104+F109+F114+F119+F124 -> 0
B101: YARLANILAN 32/A İNDİRİMİ TUTARI | C101: =K107+K112+K117+K122+K127+K132 -> 0 | D101: =K106+K111+K121+K126+K131 -> 0 | E101: =K105+K110+K115+K120+K125+K130 -> 0 | F101: =K104++K109+K114+K119+K124+K129 -> 0
B103: 32/A UYGULANABİLECEK MATRAH (1.TEŞVİK BELGESİ) | C103: =C83 -> 0 | D103: KV MATRAHI | E103: 1 - 5 PUAN İNDİRİM OLMASAYDI HESAPLANAN KV TUTARI | F103: 1 -5 Puan İndirim Tutarı | G103: 1 - 5 Puan İndirim Sonrasında Hesaplanan KV Tutarı | H103: 32/A İndirimi Olmasaydı Ödenecek KV Tutarı | I103: 1 -5 Puan İndirim ve 32/A VİO Uygulandıktan Sonra Tatbik Edilecek KV Oranı | J103: 1 -5 Puan İndirim ve 32/A İndirimi Uygulandıktan Sonra Ödenecek KV Tutarı | K103: Yararlanılan Yatırıma Katkı Tutarı (32/A İnd. KV Nedeniyle Vazgeçilen Vergi Tutarı) | L103: Ödenecek KV Tutarı
B104: GENEL ORANA TABİ KISIM (DİĞER FAALİYETLER) | C104: =F92 -> 0 | D104: =C103*C104 -> 0 | E104: =D104*$H$93 -> 0 | F104: 0 | G104: =E104-F104 -> 0 | H104: =G104 -> 0 | I104: =($H$93)-(($H$93)*$C$81) -> 0.25 | J104: =I104*D104 -> 0 | K104: =G104-J104 -> 0 | L104: =J107 -> 0
B105: 1 PUAN İNDİRİMLİ ORANA TABİ KISIM (İMALAT) | C105: =E92 -> 0 | D105: =C103*C105 -> 0 | E105: =D105*$H$93 -> 0 | F105: =D105/100 -> 0 | G105: =E105-F105 -> 0 | H105: =G105 -> 0 | I105: =($H$93-0.01)-(($H$93-0.01)*$C$81) -> 0.24 | J105: =I105*D105 -> 0 | K105: =G105-J105 -> 0
B106: 5 PUAN İNDİRİMLİ ORANA TABİ KISIM ( İHRACAT) | C106: =D92 -> 0 | D106: =C103*C106 -> 0 | E106: =D106*$H$93 -> 0 | F106: =D106/20 -> 0 | G106: =E106-F106 -> 0 | H106: 0 | I106: =($H$93-0.05)-(($H$93-0.05)*C81) -> 0.2 | J106: 0 | K106: =G106-J106 -> 0
B107: TOPLAM | C107: =SUM(C104:C106) -> 0 | D107: =SUM(D104:D106) -> 0 | E107: 0 | F107: =SUM(F104:F106) -> 0 | G107: =SUM(G104:G106) -> 0 | H107: =SUM(H104:H106) -> 0 | J107: 0 | K107: 0
B108: 32/A UYGULANABİLECEK MATRAH (2.TEŞVİK BELGESİ) | C108: =D83 -> 0 | D108: KV MATRAHI | E108: 1 - 5 PUAN İNDİRİM OLMASAYDI HESAPLANAN KV TUTARI | F108: 1 -5 Puan İndirim Tutarı | G108: 1 -5 Puan İndirim Sonrasında Hesaplanan KV Tutarı | H108: 32/A İndirimi Olmasaydı Ödenecek KV Tutarı | I108: 1 - 5 Puan İndirim ve 32/A VİO Uygulandıktan Sonra Tatbik Edilecek KV Oranı | J108: 1-5 Puan İndirim ve 32/A İndirimi Uygulandıktan Sonra Ödenecek KV Tutarı | K108: Yararlanılan Yatırıma Katkı Tutarı (32/A İnd. KV Nedeniyle Vazgeçilen Vergi Tutarı) | L108: Ödenecek KV Tutarı
B109: GENEL ORANA TABİ KISIM (DİĞER FAALİYETLER) | C109: =F92 -> 0 | D109: =C108*C109 -> 0 | E109: =D109*$H$93 -> 0 | F109: 0 | G109: =E109-F109 -> 0 | H109: =G109 -> 0 | I109: =($H$93)-(($H$93)*D81) -> 0.25 | J109: =I109*D109 -> 0 | K109: =G109-J109 -> 0 | L109: =J112 -> 0
B110: 1 PUAN İNDİRİMLİ ORANA TABİ KISIM (İMALAT) | C110: =E92 -> 0 | D110: =C108*C110 -> 0 | E110: =D110*$H$93 -> 0 | F110: =D110/100 -> 0 | G110: =E110-F110 -> 0 | H110: =G110 -> 0 | I110: =($H$93-0.01)-(($H$93-0.01)*D81) -> 0.24 | J110: =I110*D110 -> 0 | K110: =G110-J110 -> 0
B111: 5 PUAN İNDİRİMLİ ORANA TABİ KISIM ( İHRACAT) | C111: =D92 -> 0 | D111: =C108*C111 -> 0 | E111: =D111*$H$93 -> 0 | F111: =D111/20 -> 0 | G111: =E111-F111 -> 0 | H111: 0 | I111: =($H$93-0.05)-(($H$93-0.05)*D81) -> 0.2 | J111: 0 | K111: =G111-J111 -> 0
B112: TOPLAM | C112: =SUM(C109:C111) -> 0 | D112: 0 | E112: 0 | F112: =SUM(F109:F111) -> 0 | G112: =SUM(G109:G111) -> 0 | H112: =SUM(H109:H111) -> 0 | J112: =SUM(J109:J111) -> 0 | K112: 0
B113: 32/A UYGULANABİLECEK MATRAH (3.TEŞVİK BELGESİ) | C113: =E83 -> 0 | D113: KV MATRAHI | E113: 1 - 5 PUAN İNDİRİM OLMASAYDI HESAPLANAN KV TUTARI | F113: 1-5 Puan İndirim Tutarı | G113: 1 - 5 Puan İndirim Sonrasında Hesaplanan KV Tutarı | H113: 32/A İndirimi Olmasaydı Ödenecek KV Tutarı | I113: 1 - 5 Puan İndirim ve 32/A VİO Uygulandıktan Sonra Tatbik Edilecek KV Oranı | J113: 1 -5 Puan İndirim ve 32/A İndirimi Uygulandıktan Sonra Ödenecek KV Tutarı | K113: Yararlanılan Yatırıma Katkı Tutarı (32/A İnd. KV Nedeniyle Vazgeçilen Vergi Tutarı) | L113: Ödenecek KV Tutarı
B114: GENEL ORANA TABİ KISIM (DİĞER FAALİYETLER) | C114: =F92 -> 0 | D114: =C113*C114 -> 0 | E114: =D114*$H$93 -> 0 | F114: 0 | G114: =E114-F114 -> 0 | H114: =G114 -> 0 | I114: =($H$93)-(($H$93)*E81) -> 0.25 | J114: =I114*D114 -> 0 | K114: =G114-J114 -> 0 | L114: =J117 -> 0
B115: 1 PUAN İNDİRİMLİ ORANA TABİ KISIM (İMALAT) | C115: =E92 -> 0 | D115: =C113*C115 -> 0 | E115: =D115*$H$93 -> 0 | F115: =D115/100 -> 0 | G115: =E115-F115 -> 0 | H115: =G115 -> 0 | I115: =($H$93-0.01)-(($H$93-0.01)*E81) -> 0.24 | J115: =I115*D115 -> 0 | K115: =G115-J115 -> 0
B116: 5 PUAN İNDİRİMLİ ORANA TABİ KISIM ( İHRACAT) | C116: =D92 -> 0 | D116: =C113*C116 -> 0 | E116: =D116*$H$93 -> 0 | F116: =D116/20 -> 0 | G116: =E116-F116 -> 0 | H116: 0 | I116: =($H$93-0.05)-(($H$93-0.05)*E81) -> 0.2 | J116: 0 | K116: =G116-J116 -> 0
B117: TOPLAM | C117: =SUM(C114:C116) -> 0 | D117: 0 | E117: 0 | F117: =SUM(F114:F116) -> 0 | G117: =SUM(G114:G116) -> 0 | H117: =SUM(H114:H116) -> 0 | J117: =SUM(J114:J116) -> 0 | K117: 0
B118: 32/A UYGULANABİLECEK MATRAH (4. TEŞVİK BELGESİ) | C118: =F83 -> 0 | D118: KV MATRAHI | E118: 1 - 5 PUAN İNDİRİM OLMASAYDI HESAPLANAN KV TUTARI | F118: 1-5 Puan İndirim Tutarı | G118: 1 -5 Puan İndirim Sonrasında Hesaplanan KV Tutarı | H118: 32/A İndirimi Olmasaydı Ödenecek KV Tutarı | I118: 1- 5 Puan İndirim ve 32/A VİO Uygulandıktan Sonra Tatbik Edilecek KV Oranı | J118: 1-5 Puan İndirim ve 32/A İndirimi Uygulandıktan Sonra Ödenecek KV Tutarı | K118: Yararlanılan Yatırıma Katkı Tutarı (32/A İnd. KV Nedeniyle Vazgeçilen Vergi Tutarı) | L118: Ödenecek KV Tutarı
B119: GENEL ORANA TABİ KISIM (DİĞER FAALİYETLER) | C119: =F92 -> 0 | D119: =C118*C119 -> 0 | E119: =D119*$H$93 -> 0 | F119: 0 | G119: =E119-F119 -> 0 | H119: =G119 -> 0 | I119: =($H$93)-(($H$93)*F81) -> 0.25 | J119: =I119*D119 -> 0 | K119: =G119-J119 -> 0 | L119: =J122 -> 0
B120: 1 PUAN İNDİRİMLİ ORANA TABİ KISIM (İMALAT) | C120: =E92 -> 0 | D120: =C118*C120 -> 0 | E120: =D120*$H$93 -> 0 | F120: =D120/100 -> 0 | G120: =E120-F120 -> 0 | H120: =G120 -> 0 | I120: =($H$93-0.01)-(($H$93-0.01)*F81) -> 0.24 | J120: =I120*D120 -> 0 | K120: =G120-J120 -> 0
B121: 5 PUAN İNDİRİMLİ ORANA TABİ KISIM ( İHRACAT) | C121: =D92 -> 0 | D121: =C118*C121 -> 0 | E121: =D121*$H$93 -> 0 | F121: =D121/20 -> 0 | G121: =E121-F121 -> 0 | H121: 0 | I121: =($H$93-0.05)-(($H$93-0.05)*F81) -> 0.2 | J121: 0 | K121: =G121-J121 -> 0
B122: TOPLAM | C122: =SUM(C119:C121) -> 0 | D122: 0 | E122: 0 | F122: =SUM(F119:F121) -> 0 | G122: =SUM(G119:G121) -> 0 | H122: =SUM(H119:H121) -> 0 | J122: =SUM(J119:J121) -> 0 | K122: 0
B123: 32/A UYGULANABİLECEK MATRAH (5.TEŞVİK BELGESİ) | C123: =G83 -> 0 | D123: KV MATRAHI | E123: 1 - 5 PUAN İNDİRİM OLMASAYDI HESAPLANAN KV TUTARI | F123: 1-5 Puan İndirim Tutarı | G123: 1 - 5 Puan İndirim Sonrasında Hesaplanan KV Tutarı | H123: 32/A İndirimi Olmasaydı Ödenecek KV Tutarı | I123: 1 -5 Puan İndirim ve 32/A VİO Uygulandıktan Sonra Tatbik Edilecek KV Oranı | J123: 1 - 5 Puan İndirim ve 32/A İndirimi Uygulandıktan Sonra Ödenecek KV Tutarı | K123: Yararlanılan Yatırıma Katkı Tutarı (32/A İnd. KV Nedeniyle Vazgeçilen Vergi Tutarı) | L123: Ödenecek KV Tutarı
B124: GENEL ORANA TABİ KISIM (DİĞER FAALİYETLER) | C124: =F92 -> 0 | D124: =C123*C124 -> 0 | E124: =D124*$H$93 -> 0 | F124: 0 | G124: =E124-F124 -> 0 | H124: =G124 -> 0 | I124: =($H$93)-(($H$93)*G81) -> 0.25 | J124: =I124*D124 -> 0 | K124: =G124-J124 -> 0 | L124: =J127 -> 0
B125: 1 PUAN İNDİRİMLİ ORANA TABİ KISIM (İMALAT) | C125: =E92 -> 0 | D125: =C123*C125 -> 0 | E125: =D125*$H$93 -> 0 | F125: =D125/100 -> 0 | G125: =E125-F125 -> 0 | H125: =G125 -> 0 | I125: =($H$93-0.01)-(($H$93-0.01)*G81) -> 0.24 | J125: =I125*D125 -> 0 | K125: =G125-J125 -> 0
B126: 5 PUAN İNDİRİMLİ ORANA TABİ KISIM ( İHRACAT) | C126: =D92 -> 0 | D126: =C123*C126 -> 0 | E126: =D126*$H$93 -> 0 | F126: =D126/20 -> 0 | G126: =E126-F126 -> 0 | H126: 0 | I126: =($H$93-0.05)-(($H$93-0.05)*G81) -> 0.2 | J126: 0 | K126: =G126-J126 -> 0
B127: TOPLAM | C127: =SUM(C124:C126) -> 0 | D127: 0 | E127: 0 | F127: =SUM(F124:F126) -> 0 | G127: =SUM(G124:G126) -> 0 | H127: =SUM(H124:H126) -> 0 | J127: =SUM(J124:J126) -> 0 | K127: 0
B128: 32/A UYGULANAMAYACAK MATRAH | C128: =IF(C84<=0,0,C84) -> 0 | D128: KV MATRAHI | E128: 1-5 PUAN İNDİRİM OLMASAYDI HESAPLANAN KV TUTARI | F128: 1-5 Puan İndirim Tutarı | G128: 1 -5 Puan İndirim Sonrasında Hesaplanan KV Tutarı | H128: 32/A İNDİRİMİ UYGULANMAZ | J128: 1 Puan İndirim ve 32/A İndirimi Uygulandıktan Sonra Ödenecek KV Tutarı | K128: Yararlanılan Yatırıma Katkı Tutarı (32/A İnd. KV Nedeniyle Vazgeçilen Vergi Tutarı) | L128: Ödenecek KV Tutarı
B129: GENEL ORANA TABİ KISIM (DİĞER FAALİYETLER) | C129: =F92 -> 0 | D129: =C128*C129 -> 0 | E129: =D129*$H$93 -> 0 | F129: 0 | G129: =E129-F129 -> 0 | J129: =G129 -> 0 | K129: =G129-J129 -> 0 | L129: =J132 -> 0
B130: 1 PUAN İNDİRİMLİ ORANA TABİ KISIM (İMALAT) | C130: =E92 -> 0 | D130: =C130*C128 -> 0 | E130: =D130*$H$93 -> 0 | F130: =D130/100 -> 0 | G130: =E130-F130 -> 0 | J130: =G130 -> 0 | K130: =G130-J130 -> 0
B131: 5 PUAN İNDİRİMLİ ORANA TABİ KISIM ( İHRACAT) | C131: =D92 -> 0 | D131: =C131*C128 -> 0 | E131: =D131*$H$93 -> 0 | F131: =D131/20 -> 0 | G131: =E131-F131 -> 0 | J131: 0 | K131: 0
B132: TOPLAM | C132: =SUM(C129:C131) -> 0 | D132: =SUM(D129:D131) -> 0 | E132: 0 | F132: =SUM(F129:F131) -> 0 | G132: =SUM(G129:G131) -> 0 | J132: 0 | K132: 0
B133: TOPLAM KV MATRAHI VE ÖDENMESİ GEREKEN KV | C133: =C103+C128+C108+C113+C118+C123 -> 0 | D133: =D107+D132+D112+D117+D122+D127 -> 0 | E133: =E107+E132+E112+E117+E122+E127 -> 0 | F133: =F107+F132+F112+F117+F122+F127 -> 0 | G133: =G107+G132+G112+G117+G122+G127 -> 0 | J133: =J107+J132+J112+J117+J122+J127 -> 0 | K133: =K132+K107+K112+K117+K122+K127 -> 0 | L133: =L104+L129+L109+L114+L119+L124 -> 0
B135: GEÇİCİ VERGİ BEYANNMESİNDE MATRAH BİLDİRİMİ BÖLÜMÜNDE DOLDURULACAK KISIMLAR VE TUTARLARI
B136: 32 A Madde Kapsamında İndirimli Kurumlar Vergisine (Geçici Vergiye) Tabi Matrah | C136: =C103+C108+C113+C118+C123 -> 0 | D136: =E107+E112+E117+E122+E127 -> 0 | E136: 1-5 Puan Olmasaydı Hesaplan KV Tutarı
D137: =G107+G112+G117+G122++G127 -> 0 | E137: 1 -5 Puan İndirim Sonrasında Ödenecek KV Tutarı (32 A olmasaydı hesaplanacak Vergi)
D138: =K107+K112+K117+K122+K127 -> 0 | E138: 32/A İndirimi ile Vazgeçilen Vergi
B139: 32 A Madde Kapsamında İndirimli Kurumlar Vergisi(Geçici Vergi) Oranı | C139: =IFERROR(D139/C136,0) -> 0 | D139: =L104+L109+L114+L119+L124 -> 0 | E139: 32/A ya Tabi Matrah Üzerinden Ödenecek KV
B140: 32/7 Madde Kapsamında İndirimli Kurumlar Vergisine (Geçici Vergiye) Tabi Matrah (İhracat) | C140: =D131 -> 0 | D140: =E131 -> 0 | E140: 5 Puan Olmasaydı Hesaplan KV Tutarı
D141: =F131 -> 0 | E141: 5 Puan İndirimin Vergi Etkisi
B142: 32/7 Madde Kapsamında İndirimli Kurumlar Vergisi (Geçici Vergi) Oranı | C142: =IFERROR(D142/C140,0) -> 0 | D142: =G131 -> 0 | E142: 5 Puan İndirim Sonrasında Ödenecek KV Tutarı (İhracat)
B143: 32/8 Madde Kapsamında İndirimli Kurumlar Vergisine (Geçici Vergiye) Tabi Matrah (Üretim) | C143: =D130 -> 0 | D143: =E130 -> 0 | E143: 1 Puan Olmasaydı Hesaplan KV Tutarı
D144: =F130 -> 0 | E144: 1 Puan İndirimin Vergi Etkisi
B145: 32/8 Madde Kapsamında İndirimli Kurumlar Vergisi (Geçici Vergi) Oranı | C145: =IFERROR(D145/C143,0) -> 0 | D145: =G130 -> 0 | E145: 1 Puan İndirim Sonrasında Ödenecek KV Tutarı (Üretim)
B146: Genel Orana Tabi Matrah (Diğer) | C146: =D129 -> 0 | D146: =J129 -> 0 | E146: Diğer Faalilyetlerden Elde Edilen Kazanç
C147: =IFERROR(D146/C146,0) -> 0
B148: MATRAHLAR TOPLAMI | C148: =C136+C143+C140+C146 -> 0 | D148: =D139+D145+D142+D146 -> 0

Sheet BİST (32 6 İNDİRİMLİ)
B2: FAALİYET TÜRLERİ İTİBARİYLE HASILATLAR VE TOPLAM İÇİNDEKİ ORANLARI | C2: =IFERROR(C4/C4,0) -> 0 | D2: =IFERROR(D4/C4,0) -> 0 | E2: =IFERROR(E4/C4,0) -> 0 | F2: =IFERROR(F4/C4,0) -> 0
C3: Toplam Hasılat | D3: İhracat faaliyeti | E3: İmalat faaliyeti | F3: Diğer faaliyetler
B4: A-BRÜT SATIŞLAR (60) | C4: =D4+E4+F4 -> 0 | D4: =SUM(D5:D7) -> 0 | E4: =SUM(E5:E7) -> 0 | F4: 0
B5: 1-Yurtiçi Satışlar (600) | C5: =D5+E5+F5 -> 0
B6: 2-Yurtdışı Satışlar (601) | C6: =D6+E6+F6 -> 0
B7: 3-Diğer Gelirler (602) | C7: =D7+E7+F7 -> 0
B8: B-SATIŞ İNDİRİMLERİ(-) (61) | C8: =SUM(C9:C11) -> 0 | D8: =SUM(D9:D11) -> 0 | E8: =SUM(E9:E11) -> 0 | F8: 0
B9: 1-Satıştan İadeler (-) (610) | C9: =SUM(D9:F9) -> 0
B10: 2- Satış İskontoları (-) (611) | C10: =SUM(D10:F10) -> 0
B11: 3-Diğer İndirimler (-) (612) | C11: 0
B12: C-NET SATIŞLAR | C12: =C4-C8 -> 0 | D12: =D4-D8 -> 0 | E12: =E4-E8 -> 0 | F12: 0
B13: D-SATIŞLARIN MALİYETİ (-) (62) | C13: =SUM(C14:C17) -> 0 | D13: =SUM(D14:D17) -> 0 | E13: =SUM(E14:E17) -> 0 | F13: =SUM(F14:F17) -> 0
B14: 1-Satılan Mamuller Maliyeti ( 620) | C14: =SUM(D14:F14) -> 0
B15: 2-Satılan Ticari Mal Maliyeti (621) | C15: =SUM(D15:F15) -> 0
B16: 3-Satılan Hizmet Maliyeti (622) | C16: 0
B17: 4-Diğer Satışların Maliyeti (623) | C17: 0
B18: BRÜT SATIŞ KARI / ZARARI | C18: =C12-C13 -> 0 | D18: =D12-D13 -> 0 | E18: =E12-E13 -> 0 | F18: 0
B19: E-FAALİYET GİDERLERİ (-) (63) | C19: =SUM(C20:C24) -> 0 | D19: =SUM(D20:D24) -> 0 | E19: =SUM(E20:E24) -> 0 | F19: 0
B20: 1-Araştırma ve Geliştirme Giderleri(-) (630) | C20: =SUM(D20:F20) -> 0
B21: 2-Pazarlama, Satış ve Dağıtım Giderleri(-) (631) | C21: =SUM(D21:F21) -> 0
B22: 3-Genel Yönetim Giderleri(-) (632) | C22: =SUM(D22:F22) -> 0
B23: MÜŞTEREK GENEL GİDERLER (DAĞITIM-HASILAT PAYINA GÖRE) | D23: =C23*D2 -> 0 | E23: =C23*E2 -> 0 | F23: =C23*F2 -> 0
B24: MÜŞTEREK GENEL GİDER GİBİ DAĞITIMA TABİ TUTULACAK AMORTİSMAN GİDERLERİ (DAĞITIM-HASILAT PAYINA GÖRE) | D24: =C24*D2 -> 0 | E24: =C24*E2 -> 0 | F24: =C24*F2 -> 0
B25: FAALİYET KARI / ZARARI | C25: =C18-C19 -> 0 | D25: =D18-D19 -> 0 | E25: =E18-E19 -> 0 | F25: 0
B26: F-DİĞER FAALİYETLERDEN OLAĞAN GELİR VE KARLAR (64) | C26: =SUM(C27:C35) -> 0 | D26: =SUM(D27:D35) -> 0 | E26: =SUM(E27:E35) -> 0 | F26: =SUM(F27:F35) -> 0
B27: 1- İŞTİRAKLERDEN TEMETTÜ GELİRLERİ (640) | C27: =SUM(D27:F27) -> 0
B28: 2- BAĞLI ORTAKLIKLARDAN TEMETTÜ GELİRLERİ (641) | C28: =SUM(D28:F28) -> 0
B29: 3- FAİZ GELİRLERİ (642) (ihracat ve imalat kaynaklı alacağın tahsiline kadar olan süreçte oluşan) | C29: 0
B30: 4- KOMİSYON GELİRLERİ (643) | C30: 0
B31: 5- KONUSU OLMAYAN KARŞILIKLAR (644) | C31: 0
B32: 6- MENKUL KIYMET SATIŞ KARLARI (645) | C32: 0
B33: 7- KAMBİYO KARLARI (646) (ihracat ve imalat kaynaklı alacağın tahsiline kadar olan süreçte oluşan) | C33: 0
B34: 8- REESKONT FAİZ GELİRLERİ (647) | C34: 0
B35: 9- FAALİYETLE İLGİLİ DİĞER GELİR VE KARLAR (649) | C35: 0
B36: ARA TOPLAM | C36: =C25+C26 -> 0 | D36: =D25+D26 -> 0 | E36: =E25+E26 -> 0 | F36: =F25+F26 -> 0
B37: G-DİĞER FAALİYETLERDEN OLAĞAN GİDER VE ZARARLAR(-) (65) | C37: =SUM(C38:C43) -> 0 | D37: =SUM(D38:D43) -> 0 | E37: =SUM(E38:E43) -> 0 | F37: 0
B38: 1- KOMİSYON GİDERLERİ (653) | C38: =SUM(D38:F38) -> 0
B39: 2- KARŞILIK GİDERLERİ (654) | C39: =SUM(D39:F39) -> 0
B40: 3- MENKUL KIYMET SATIŞ ZARARLARI (655) | C40: 0
B41: 4- KAMBİYO ZARARLARI (656) (ihracat ve imalat kaynaklı alacağın tahsiline kadar olan süreçte oluşan) | C41: 0
B42: 5- REESKONT FAİZ GİDERLERİ (657) | C42: 0
B43: 6- DİĞER OLAĞAN GİDER VE ZARARLAR (659) | C43: =SUM(D43:F43) -> 0
B44: ARA TOPLAM | C44: =C36-C37 -> 0 | D44: =D36-D37 -> 0 | E44: =E36-E37 -> 0 | F44: 0
B45: H-FİNANSMAN GİDERLERİ(-) (66) | C45: =SUM(C46:C49) -> 0 | D45: =SUM(D46:D49) -> 0 | E45: =SUM(E46:E49) -> 0 | F45: =SUM(F46:F49) -> 0
B46: 1- KISA VADELİ BORÇLANMA GİDERLERİ (-) | C46: =SUM(D46:F46) -> 0
B47: 2- UZUN VADELİ BORÇLANMA GİDERLERİ (-) | C47: =SUM(D47:F47) -> 0
B48: 1- KISA VADELİ BORÇLANMA GİDERLERİ (-) (DAĞITIM) | D48: =C48*D2 -> 0 | E48: =C48*E2 -> 0 | F48: =C48*F2 -> 0
B49: 2- UZUN VADELİ BORÇLANMA GİDERLERİ (-) (DAĞITIM) | D49: =C49*D2 -> 0 | E49: =C49*E2 -> 0 | F49: =C49*F2 -> 0
B50: ARA TOPLAM | C50: =C44-C45 -> 0 | D50: =D44-D45 -> 0 | E50: =E44-E45 -> 0 | F50: =F44-F45 -> 0
B51: I-OLAĞANDIŞI GELİR VE KÂRLAR (67) | C51: =SUM(D51:F51) -> 0 | D51: =SUM(D52:D53) -> 0 | E51: =SUM(E52:E53) -> 0 | F51: =SUM(F52:F53) -> 0
B52: 1- ÖNCEKİ DÖNEM GELİR VE KARLARI (671) | C52: =SUM(D52:F52) -> 0
B53: 2-DİĞER OLAĞAN DIŞI GELİR VE KARLAR (679) | C53: =SUM(D53:F53) -> 0
B54: ARA TOPLAM | C54: =SUM(D54:F54) -> 0 | D54: =D50+D51 -> 0 | E54: =E50+E51 -> 0 | F54: 0
B55: J-OLAĞANDIŞI GİDER VE ZARARLAR(-) (68) | C55: =SUM(C56:C58) -> 0 | D55: =SUM(D56:D58) -> 0 | E55: =SUM(E56:E58) -> 0 | F55: 0
B56: 1-Çalışmayan Kısım Gider ve Zararları(-) (680) | C56: =SUM(D56:F56) -> 0
B57: 2-Önceki Dönem Gider ve Zararları(-) (681) | C57: =SUM(D57:F57) -> 0
B58: 3-Diğer Olağan Dışı Gider ve Zararlar(-) (689) | C58: 0
B59: DÖNEM KÂRI VEYA ZARARI (TİCARİ BİLANÇO KARI ZARARI ) | C59: =C54-C55 -> 0 | D59: =D54-D55 -> 0 | E59: =E54-E55 -> 0 | F59: 0
B60: İHRACAT, İMALAT VE DİĞER FAALİYETLERDEN ELDE EDİLEN KAZANCIN TOPLAM TİCARİ KAZANÇ İÇİNDEKİ PAYLARI | D60: =IF(D59>=$C$59,1, IF(D59<=0,0, IF(AND(D59>0,D59<$C$59),D59/$C$59))) -> 1 | E60: =IF(E59>=$C$59,1, IF(E59<=0,0, IF(AND(E59>0,E59<$C$59),E59/$C$59))) -> 1 | F60: =IF(F59>=$C$59,1, IF(F59<=0,0, IF(AND(F59>0,F59<$C$59),F59/$C$59))) -> 1
D61: =D60/(D60+E60+F60) -> 0.3333333333 | E61: =E60/(D60+E60+F60) -> 0.3333333333 | F61: =F60/(D60+E60+F60) -> 0.3333333333
B63: KKEG +
B64: KABUL EDİLMEYEN GELİRLER -
B65: ZARAR OLSA DAHİ İNDİRİLECEK İSTİSNALAR - | C65: =C66+C67+C68 -> 0
B66: Hizmet İhracatı Faaliyetinden (KVK 10-1/ğ) Elde Edilen Kazançlardan İstisna Edilenlerin Toplamı
B67: İmalat Faaliyetinden Elde Edilen Kazançlardan İstisna Edilenlerin Toplamı
B68: Diğer Faaliyetlerden Elde Edilen Kazançlardan İstisna Edilenlerin Toplamı
B69: GEÇMİŞ YIL ZARARLARI -
B70: İNDİRİMLER - | D70: AZAMİ YAZILABİLECEK İNDİRİMLER TUTARI | E70: =C59+C63-C64-C65-C69 -> 0
B72: 1 PUAN İNDİRİM UYGULANACAK TUTARIN HESABINDA İSTİSNA KAZANÇLAR DÜŞÜLDÜKTEN SONRA BULUNAN TİCARİ KAZANÇ TUTARI İLE BU KAZANÇ İÇİNDE İHRACAT,İMALAT VE DİĞER KAZANÇLARIN TUTARI | C72: TİCARİ KAZANÇ TAN İhracat ve İmalat Kazancından İstisna Olan Tutarlar Düşüldükten Sonra Kalan Tutarı | D72: İhracat Faaliyetinden Elde Edilen Kazançtan İstisna Olan Kısım Düşüldükten Sonra Bulunan Tutarı | E72: Üretim Faaliyetinden Elde Edilen Kazançtan İstisna Olan Kısım Düşüldükten Sonra Bulunan Tutarı | F72: Diğer Faaliyetinden Elde Edilen Kazanç
C73: =IF(C59-C66-C67<=0,0,C59-C66-C67) -> 0 | D73: =IF($D$59-C66<=0,0,MIN($D$59-C66,$C$73*D61)) -> 0 | E73: =IF($E$59-C67<=0,0,MIN($E$59-C67,$C$73*E61)) -> 0 | F73: =IF(C73-D73-E73<=0,0,C73-D73-E73) -> 0
B74: İHRACAT, İMALAT VE DİĞER FAALİYETLERDEN ELDE EDİLEN KAZANCIN TOPLAM TİCARİ KAZANÇ İÇİNDEKİ PAYLARI | D74: =IFERROR(IF(D73/C73<=0,0,D73/C73),0) -> 0 | E74: =IFERROR(IF(E73/C73<=0,0,E73/C73),0) -> 0 | F74: =IFERROR(F73/C73,0) -> 0
B75: NEGATİF VE % 100 DEN BÜYÜKLÜK KONTROLÜ SONRASINDAKİ PAYLARI | D75: =IFERROR(IF(D74<=0,0,IF(D74>1,1,D74)),0) -> 0 | E75: =IFERROR(IF(E74<=0,0,IF(E74>1,1,E74)),0) -> 0 | F75: =IFERROR(IF(F74<=0,0,IF(F74>1,1,F74)),0) -> 0
B77: SAFİ KURUM KAZANCI (KURUMLAR VERGİSİ MATRAHI) | C77: =C59+C63-C64-C65-C69-C70 -> 0 | D77: =IF(C77<0, "ZARAR","KAR") -> KAR
B79: 2022 YILI 3. DÖNEM İNDİRİMLİ KURUMLAR VERGİSİ HESAPLAMA TABLOSU
C80: 1. TEŞVİK BELGESİ | D80: 2. TEŞVİK BELGESİ | E80: 3. TEŞVİK BELGESİ | F80: 4. TEŞVİK BELGESİ | G80: 5. TEŞVİK BELGESİ
B81: Vergi İndirim Oranı (VİO)
B82: KV MATRAHI (Safi Kurum Kazancı) | C82: =C77 -> 0
B83: 32/A Uygulanacak K.V. Matrahı (HER BİR TEŞVİK BELGESİ KAPSAMINDA YARARLANILABİLECEK YATIRIMA KATKI TUTARININ MATRAHI BU HÜCRELERE YAZILMALIDIR) | H83: =IF(SUM(C83:G83)>C77,"32/A İNDİRİMİ UYGULANACAK KAZANÇ, SAFİ KURUM KAZANCINDAN FAZLADIR",SUM(C83:G83)) -> 0
B84: 32/A UYGULANMAYACAK K.V. Matrahı | C84: =IF(C82-(C83+D83+E83+F83+G83)<0,0,C82-(C83+D83+E83+F83+G83)) -> 0
B85: MATRAH TOPLAMI | C85: =IF((C83+D83+E83+F83+G83+C84)>C77,C77,(C83+D83+E83+F83+G83+C84)) -> 0
B87: SAFİ KURUM KAZANCININ KV VERGİ ORANLARI İTİBARİYLE DAĞILIMI | C87: TOPLAM SAFİ KAZANÇ | D87: İhracat Kazancı Payı | E87: Üretim Kazancı Payı | F87: Diğer Faaliyet Kazancı Payı | G87: KVK 32/6 DA BELİRTİLEN ŞARTLARIN BULUNDUĞU KABUL EDİLMİŞTİR.
C89: =C77 -> 0 | D89: =IF(AND(OR(D59>=C89,D59+E59>=C89),C66>0),MAX(MIN(C89*D74,D59,D73),0),MIN(C89*D74,D59)) -> 0 | E89: =MAX( IF(AND(OR(E59>=C89,E59+F59>=C89),C67>0),MAX(MIN(C89*E74,E59,E73),0),MIN(C89*E74,E59)),0) -> 0 | F89: =IF(C89-D89-E89<=0,0,C89-D89-E89) -> 0
B90: SAFİ KURUM KAZANCININ DAĞILIMI ORANSAL DAĞILIMI | C90: =C89 -> 0 | D90: =IFERROR(D89/C89,0) -> 0 | E90: =IFERROR(E89/D89,0) -> 0 | F90: =IFERROR(F89/E89,0) -> 0
B91: SAFİ KURUM KAZANCININ DAĞILIMI TUTARSAL | C91: =C90 -> 0 | D91: =D89 -> 0 | E91: =E89 -> 0 | F91: =F89 -> 0
B92: SAFİ KURUM KAZANCI DAĞILIMI | C92: =C91 -> 0 | D92: =IFERROR(IF(D91/C91>=1,1,D91/C91),0) -> 0 | E92: =IFERROR(IF(E91/C91>=1,1,E91/C91),0) -> 0 | F92: =IFERROR(IF(F91/C91>=1,1,F91/C91),0) -> 0 | I92: KV ORANI
B93: 1 PUAN VE 32/A İNDİRİMİ OLMASAYDI HESAPLANAN KV TUTARI (32/6 UYGULANMIŞTIR) | C93: =C92*($I$93-2/100) -> 0 | D93: =D91*($I$93-2/100) -> 0 | E93: =E91*($I$93-2/100) -> 0 | F93: =F91*($I$93-2/100) -> 0 | I93: 0.25
B94: 32/ A UYGULANAN MATRAH | C94: =C83+D83+E83+F83+G83 -> 0 | D94: =D106+D111+D116+D121+D126 -> 0 | E94: =D105+D110+D115+D120+D125 -> 0 | F94: =D104+D109+D114+D119+D124 -> 0
B95: 32/A UYGULANACAK MATRAH ÜZERİNDEN ÖDENECEK KV TUTARI | C95: =L107+L112+L117+L122+L127 -> 0 | D95: =L106+L111+L116+L121+L126 -> 0 | E95: =L105+L110+L115+L120+L125 -> 0 | F95: =L104+L109+L114+L119+L124 -> 0
B96: 32/A UYGULANMAYAN MATRAH | C96: =IF(C84<=0,0,C84) -> 0 | D96: =D131 -> 0 | E96: =D130 -> 0 | F96: =D129 -> 0
B97: 32/A UYGULANMAYAN MATRAH ÜZERİNDEN ÖDENECEK KV TUTARI | C97: =N129 -> 0 | D97: =L131 -> 0 | E97: =L130 -> 0 | F97: =L129 -> 0
B98: TOPLAM ÖDENECEK KV | C98: =C95+C97 -> 0 | D98: =L131+L106 -> 0 | E98: =L130+L105 -> 0 | F98: =L129+L104 -> 0
B99: TOPLAM AVANTAJ (YARARLANILAN 1 PUAN İNDİRİMİ + 32/A İNDİRİMİ TUTARI ) | C99: =C93-C98 -> 0 | D99: =D100+D101 -> 0 | E99: =E100+E101 -> 0 | F99: 0
B100: YARARLANILAN 1 - 5 PUAN İNDİRİMİ TUTARI | C100: =H132+H127+H122+H117+H112+H107 -> 0 | D100: =H131+H106+H111+H116+H121+H126 -> 0 | E100: =H130+H105+H110+H115+H120+H125 -> 0 | F100: =H129+H104+H109+H114+H119+H124 -> 0
B101: YARLANILAN 32/A İNDİRİMİ TUTARI | C101: =M107+M112+M117+M122+M127+M132 -> 0 | D101: =M106+M111+M121+M126+M131+M116 -> 0 | E101: =M105+M110+M115+M120+M125+M130 -> 0 | F101: =M104++M109+M114+M119+M124+M129 -> 0
B103: 32/A UYGULANABİLECEK MATRAH (1.TEŞVİK BELGESİ) | C103: =C83 -> 0 | D103: KV MATRAHI | E103: 32/6 VE 1 - 5 PUAN İNDİRİM OLMASAYDI HESAPLANAN KV TUTARI | F103: 32/6 NEDENİYLE HESAPLANAN İNDİRİM TUTAR | G103: 32/6 A İNDİRİMİ SONRASINDA HESAPLANAN KURUMLAR VERGİSİ TUTARI | H103: 1 - 5 Puan İndirim Tutarı | I103: 1 -5 Puan İndirim Sonrasında Hesaplanan KV Tutarı | J103: 32/A İndirimi Olmasaydı Ödenecek KV Tutarı | K103: 32/6 İndirimi / 1 -5 Puan İndirim ve 32/A VİO Uygulandıktan Sonra Tatbik Edilecek KV Oranı | L103: 1 - 5 Puan İndirim ve 32/A İndirimi Uygulandıktan Sonra Ödenecek KV Tutarı | M103: Yararlanılan Yatırıma Katkı Tutarı (32/A İnd. KV Nedeniyle Vazgeçilen Vergi Tutarı) | N103: Ödenecek KV Tutarı
B104: GENEL ORANA TABİ KISIM (DİĞER FAALİYETLER) | C104: =F92 -> 0 | D104: =C103*C104 -> 0 | E104: =D104*$I$93 -> 0 | F104: =D104*0.02 -> 0 | G104: =E104-F104 -> 0 | H104: 0 | I104: =E104-H104-F104 -> 0 | J104: =I104 -> 0 | K104: =($I$93-0.02)-(($I$93-0.02)*C81) -> 0.23 | L104: =K104*D104 -> 0 | M104: =J104-L104 -> 0 | N104: =L107 -> 0
B105: 1 PUAN İNDİRİMLİ ORANA TABİ KISIM (İMALAT) | C105: =E92 -> 0 | D105: =C103*C105 -> 0 | E105: =D105*$I$93 -> 0 | F105: =D105*0.02 -> 0 | G105: =E105-F105 -> 0 | H105: =D105/100 -> 0 | I105: =E105-H105-F105 -> 0 | J105: =I105 -> 0 | K105: =($I$93-0.03)-(($I$93-0.03)*C81) -> 0.22 | L105: =K105*D105 -> 0 | M105: =J105-L105 -> 0
B106: 5 PUAN İNDİRİMLİ ORANA TABİ KISIM ( İHRACAT) | C106: =D92 -> 0 | D106: =C103*C106 -> 0 | E106: =D106*$I$93 -> 0 | F106: 0 | G106: 0 | H106: =D106/20 -> 0 | I106: =E106-H106-F106 -> 0 | J106: 0 | K106: =($I$93-0.07)-(($I$93-0.07)*C81) -> 0.18 | L106: =K106*D106 -> 0 | M106: 0
B107: TOPLAM | C107: =SUM(C104:C106) -> 0 | D107: =SUM(D104:D106) -> 0 | E107: 0 | F107: 0 | G107: 0 | H107: =SUM(H104:H106) -> 0 | I107: =SUM(I104:I106) -> 0 | J107: =SUM(J104:J106) -> 0 | L107: 0 | M107: 0
B108: 32/A UYGULANABİLECEK MATRAH (2.TEŞVİK BELGESİ) | C108: =D83 -> 0 | D108: KV MATRAHI | E108: 32/6 VE 1-5 PUAN İNDİRİM OLMASAYDI HESAPLANAN KV TUTARI | F108: 32/6 NEDENİYLE HESAPLANAN İNDİRİM TUTAR | G108: 32/6 A İNDİRİMİ SONRASINDA HESAPLANAN KURUMLAR VERGİSİ TUTARI | H108: 1 - 5 Puan İndirim Tutarı | I108: 1 -5 Puan İndirim Sonrasında Hesaplanan KV Tutarı | J108: 32/A İndirimi Olmasaydı Ödenecek KV Tutarı | K108: 32/6 İndirimi / 1 - 5 Puan İndirim ve 32/A VİO Uygulandıktan Sonra Tatbik Edilecek KV Oranı | L108: 1 -5 Puan İndirim ve 32/A İndirimi Uygulandıktan Sonra Ödenecek KV Tutarı | M108: Yararlanılan Yatırıma Katkı Tutarı (32/A İnd. KV Nedeniyle Vazgeçilen Vergi Tutarı) | N108: Ödenecek KV Tutarı
B109: GENEL ORANA TABİ KISIM (DİĞER FAALİYETLER) | C109: =F92 -> 0 | D109: =C108*C109 -> 0 | E109: =D109*$I$93 -> 0 | F109: =D109*0.02 -> 0 | G109: =E109-F109 -> 0 | H109: 0 | I109: =E109-H109-F109 -> 0 | J109: =I109 -> 0 | K109: =($I$93-0.02)-(($I$93-0.02)*D81) -> 0.23 | L109: =K109*D109 -> 0 | M109: =J109-L109 -> 0 | N109: =L112 -> 0
B110: 1 PUAN İNDİRİMLİ ORANA TABİ KISIM (İMALAT) | C110: =E92 -> 0 | D110: =C108*C110 -> 0 | E110: =D110*$I$93 -> 0 | F110: =D110*0.02 -> 0 | G110: =E110-F110 -> 0 | H110: =D110/100 -> 0 | I110: =E110-H110-F110 -> 0 | J110: =I110 -> 0 | K110: =($I$93-0.03)-(($I$93-0.03)*D81) -> 0.22 | L110: =K110*D110 -> 0 | M110: =J110-L110 -> 0
B111: 5 PUAN İNDİRİMLİ ORANA TABİ KISIM ( İHRACAT) | C111: =D92 -> 0 | D111: =C108*C111 -> 0 | E111: =D111*$I$93 -> 0 | F111: 0 | G111: 0 | H111: =D111/20 -> 0 | I111: =E111-H111-F111 -> 0 | J111: 0 | K111: =($I$93-0.07)-(($I$93-0.07)*D81) -> 0.18 | L111: =K111*D111 -> 0 | M111: 0
B112: TOPLAM | C112: =SUM(C109:C111) -> 0 | D112: 0 | E112: 0 | F112: 0 | G112: 0 | H112: =SUM(H109:H111) -> 0 | I112: =SUM(I109:I111) -> 0 | J112: =SUM(J109:J111) -> 0 | L112: =SUM(L109:L111) -> 0 | M112: 0
B113: 32/A UYGULANABİLECEK MATRAH (3.TEŞVİK BELGESİ) | C113: =E83 -> 0 | D113: KV MATRAHI | E113: 32/6 VE 1 - 5 PUAN İNDİRİM OLMASAYDI HESAPLANAN KV TUTARI | F113: 32/6 NEDENİYLE HESAPLANAN İNDİRİM TUTAR | G113: 32/6 A İNDİRİMİ SONRASINDA HESAPLANAN KURUMLAR VERGİSİ TUTARI | H113: 1 - 5 Puan İndirim Tutarı | I113: 1 -5 Puan İndirim Sonrasında Hesaplanan KV Tutarı | J113: 32/A İndirimi Olmasaydı Ödenecek KV Tutarı | K113: 32/6 İndirimi / 1 -5 Puan İndirim ve 32/A VİO Uygulandıktan Sonra Tatbik Edilecek KV Oranı | L113: 1 - 5 Puan İndirim ve 32/A İndirimi Uygulandıktan Sonra Ödenecek KV Tutarı | M113: Yararlanılan Yatırıma Katkı Tutarı (32/A İnd. KV Nedeniyle Vazgeçilen Vergi Tutarı) | N113: Ödenecek KV Tutarı
B114: GENEL ORANA TABİ KISIM (DİĞER FAALİYETLER) | C114: =F92 -> 0 | D114: =C113*C114 -> 0 | E114: =D114*$I$93 -> 0 | F114: =D114*0.02 -> 0 | G114: =E114-F114 -> 0 | H114: 0 | I114: =E114-H114-F114 -> 0 | J114: =I114 -> 0 | K114: =($I$93-0.02)-(($I$93-0.02)*E81) -> 0.23 | L114: =K114*D114 -> 0 | M114: =J114-L114 -> 0 | N114: =L117 -> 0
B115: 1 PUAN İNDİRİMLİ ORANA TABİ KISIM (İMALAT) | C115: =E92 -> 0 | D115: =C113*C115 -> 0 | E115: =D115*$I$93 -> 0 | F115: =D115*0.02 -> 0 | G115: =E115-F115 -> 0 | H115: =D115/100 -> 0 | I115: =E115-H115-F115 -> 0 | J115: =I115 -> 0 | K115: =($I$93-0.03)-(($I$93-0.03)*E81) -> 0.22 | L115: =K115*D115 -> 0 | M115: =J115-L115 -> 0
B116: 5 PUAN İNDİRİMLİ ORANA TABİ KISIM ( İHRACAT) | C116: =D92 -> 0 | D116: =C113*C116 -> 0 | E116: =D116*$I$93 -> 0 | F116: 0 | G116: 0 | H116: =D116/20 -> 0 | I116: =E116-H116-F116 -> 0 | J116: 0 | K116: =($I$93-0.07)-(($I$93-0.07)*E81) -> 0.18 | L116: =K116*D116 -> 0 | M116: 0
B117: TOPLAM | C117: =SUM(C114:C116) -> 0 | D117: 0 | E117: 0 | F117: 0 | G117: 0 | H117: =SUM(H114:H116) -> 0 | I117: =SUM(I114:I116) -> 0 | J117: =SUM(J114:J116) -> 0 | L117: =SUM(L114:L116) -> 0 | M117: 0
B118: 32/A UYGULANABİLECEK MATRAH (4. TEŞVİK BELGESİ) | C118: =F83 -> 0 | D118: KV MATRAHI | E118: 32/6 VE 1-5 PUAN İNDİRİM OLMASAYDI HESAPLANAN KV TUTARI | F118: 32/6 NEDENİYLE HESAPLANAN İNDİRİM TUTAR | G118: 32/6 A İNDİRİMİ SONRASINDA HESAPLANAN KURUMLAR VERGİSİ TUTARI | H118: 1 - 5 Puan İndirim Tutarı | I118: 1 -5 Puan İndirim Sonrasında Hesaplanan KV Tutarı | J118: 32/A İndirimi Olmasaydı Ödenecek KV Tutarı | K118: 32/6 İndirimi / 1 - 5 Puan İndirim ve 32/A VİO Uygulandıktan Sonra Tatbik Edilecek KV Oranı | L118: 1 -5 Puan İndirim ve 32/A İndirimi Uygulandıktan Sonra Ödenecek KV Tutarı | M118: Yararlanılan Yatırıma Katkı Tutarı (32/A İnd. KV Nedeniyle Vazgeçilen Vergi Tutarı) | N118: Ödenecek KV Tutarı
B119: GENEL ORANA TABİ KISIM (DİĞER FAALİYETLER) | C119: =F92 -> 0 | D119: =C118*C119 -> 0 | E119: =D119*$I$93 -> 0 | F119: =D119*0.02 -> 0 | G119: =E119-F119 -> 0 | H119: 0 | I119: =E119-H119-F119 -> 0 | J119: =I119 -> 0 | K119: =($I$93-0.02)-(($I$93-0.02)*F81) -> 0.23 | L119: =K119*D119 -> 0 | M119: =J119-L119 -> 0 | N119: =L122 -> 0
B120: 1 PUAN İNDİRİMLİ ORANA TABİ KISIM (İMALAT) | C120: =E92 -> 0 | D120: =C118*C120 -> 0 | E120: =D120*$I$93 -> 0 | F120: =D120*0.02 -> 0 | G120: =E120-F120 -> 0 | H120: =D120/100 -> 0 | I120: =E120-H120-F120 -> 0 | J120: =I120 -> 0 | K120: =($I$93-0.03)-(($I$93-0.03)*F81) -> 0.22 | L120: =K120*D120 -> 0 | M120: =J120-L120 -> 0
B121: 5 PUAN İNDİRİMLİ ORANA TABİ KISIM ( İHRACAT) | C121: =D92 -> 0 | D121: =C118*C121 -> 0 | E121: =D121*$I$93 -> 0 | F121: 0 | G121: 0 | H121: =D121/20 -> 0 | I121: =E121-H121-F121 -> 0 | J121: 0 | K121: =($I$93-0.07)-(($I$93-0.07)*F81) -> 0.18 | L121: =K121*D121 -> 0 | M121: 0
B122: TOPLAM | C122: =SUM(C119:C121) -> 0 | D122: 0 | E122: 0 | F122: 0 | G122: 0 | H122: =SUM(H119:H121) -> 0 | I122: =SUM(I119:I121) -> 0 | J122: =SUM(J119:J121) -> 0 | L122: =SUM(L119:L121) -> 0 | M122: 0
B123: 32/A UYGULANABİLECEK MATRAH (5.TEŞVİK BELGESİ) | C123: =G83 -> 0 | D123: KV MATRAHI | E123: 32/6 VE 1 - 5 PUAN İNDİRİM OLMASAYDI HESAPLANAN KV TUTARI | F123: 32/6 NEDENİYLE HESAPLANAN İNDİRİM TUTAR | G123: 32/6 A İNDİRİMİ SONRASINDA HESAPLANAN KURUMLAR VERGİSİ TUTARI | H123: 1 - 5 Puan İndirim Tutarı | I123: 1 -5 Puan İndirim Sonrasında Hesaplanan KV Tutarı | J123: 32/A İndirimi Olmasaydı Ödenecek KV Tutarı | K123: 32/6 İndirimi / 1 -5 Puan İndirim ve 32/A VİO Uygulandıktan Sonra Tatbik Edilecek KV Oranı | L123: 1 - 5 Puan İndirim ve 32/A İndirimi Uygulandıktan Sonra Ödenecek KV Tutarı | M123: Yararlanılan Yatırıma Katkı Tutarı (32/A İnd. KV Nedeniyle Vazgeçilen Vergi Tutarı) | N123: Ödenecek KV Tutarı
B124: GENEL ORANA TABİ KISIM (DİĞER FAALİYETLER) | C124: =F92 -> 0 | D124: =C123*C124 -> 0 | E124: =D124*$I$93 -> 0 | F124: =D124*0.02 -> 0 | G124: =E124-F124 -> 0 | H124: 0 | I124: =E124-H124-F124 -> 0 | J124: =I124 -> 0 | K124: =($I$93-0.02)-(($I$93-0.02)*F81) -> 0.23 | L124: =K124*D124 -> 0 | M124: =J124-L124 -> 0 | N124: =L127 -> 0
B125: 1 PUAN İNDİRİMLİ ORANA TABİ KISIM (İMALAT) | C125: =E92 -> 0 | D125: =C123*C125 -> 0 | E125: =D125*$I$93 -> 0 | F125: =D125*0.02 -> 0 | G125: =E125-F125 -> 0 | H125: =D125/100 -> 0 | I125: =E125-H125-F125 -> 0 | J125: =I125 -> 0 | K125: =($I$93-0.03)-(($I$93-0.03)*G81) -> 0.22 | L125: =K125*D125 -> 0 | M125: =J125-L125 -> 0
B126: 5 PUAN İNDİRİMLİ ORANA TABİ KISIM ( İHRACAT) | C126: =D92 -> 0 | D126: =C123*C126 -> 0 | E126: =D126*$I$93 -> 0 | F126: 0 | G126: 0 | H126: =D126/20 -> 0 | I126: =E126-H126-F126 -> 0 | J126: 0 | K126: =($I$93-0.07)-(($I$93-0.07)*G81) -> 0.18 | L126: =K126*D126 -> 0 | M126: 0
B127: TOPLAM | C127: =SUM(C124:C126) -> 0 | D127: 0 | E127: 0 | F127: 0 | G127: 0 | H127: =SUM(H124:H126) -> 0 | I127: =SUM(I124:I126) -> 0 | J127: =SUM(J124:J126) -> 0 | L127: =SUM(L124:L126) -> 0 | M127: 0
B128: 32/A UYGULANAMAYACAK MATRAH | C128: =IF(C84<=0,0,C84) -> 0 | D128: KV MATRAHI | E128: 32/6 VE 1-5 PUAN İNDİRİM OLMASAYDI HESAPLANAN KV TUTARI | F128: 32/6 NEDENİYLE HESAPLANAN İNDİRİM TUTAR | G128: 32/6 A İNDİRİMİ SONRASINDA HESAPLANAN KURUMLAR VERGİSİ TUTARI | H128: 1 - 5 Puan İndirim Tutarı | I128: 1 -5 Puan İndirim Sonrasında Hesaplanan KV Tutarı | J128: 32/A İNDİRİMİ UYGULANMAZ | L128: 1 Puan İndirim ve 32/A İndirimi Uygulandıktan Sonra Ödenecek KV Tutarı | M128: Yararlanılan Yatırıma Katkı Tutarı (32/A İnd. KV Nedeniyle Vazgeçilen Vergi Tutarı) | N128: Ödenecek KV Tutarı
B129: GENEL ORANA TABİ KISIM (DİĞER FAALİYETLER) | C129: =F92 -> 0 | D129: =C128*C129 -> 0 | E129: =D129*$I$93 -> 0 | F129: =D129*0.02 -> 0 | G129: =E129-F129 -> 0 | H129: 0 | I129: =E129-H129-F129 -> 0 | L129: =I129 -> 0 | M129: 0 | N129: =L132 -> 0
B130: 1 PUAN İNDİRİMLİ ORANA TABİ KISIM (İMALAT) | C130: =E92 -> 0 | D130: =C130*C128 -> 0 | E130: =D130*$I$93 -> 0 | F130: =D130*0.02 -> 0 | G130: =E130-F130 -> 0 | H130: =D130/100 -> 0 | I130: =E130-H130-F130 -> 0 | L130: =I130 -> 0 | M130: 0
B131: 5 PUAN İNDİRİMLİ ORANA TABİ KISIM ( İHRACAT) | C131: =D92 -> 0 | D131: =C131*C128 -> 0 | E131: =D131*$I$93 -> 0 | F131: 0 | G131: 0 | H131: =D131/20 -> 0 | I131: =E131-H131-F131 -> 0 | L131: 0 | M131: 0
B132: TOPLAM | C132: =SUM(C129:C131) -> 0 | D132: =SUM(D129:D131) -> 0 | E132: 0 | F132: =SUM(F129:F131) -> 0 | G132: 0 | H132: =SUM(H129:H131) -> 0 | I132: =SUM(I129:I131) -> 0 | L132: 0 | M132: =SUM(M129:M131) -> 0
B133: TOPLAM KV MATRAHI VE ÖDENMESİ GEREKEN KV | C133: =C103+C128+C108+C113+C118+C123 -> 0 | D133: =D107+D132+D112+D117+D122+D127 -> 0 | E133: 0 | F133: 0 | G133: 0 | H133: 0 | I133: 0 | L133: =L107+L132+L112+L117+L122+L127 -> 0 | M133: =M132+M107+M112+M117+M122+M127 -> 0 | N133: =N104+N129+N109+N114+N119+N124 -> 0
B135: GEÇİCİ VERGİ BEYANNMESİNDE MATRAH BİLDİRİMİ BÖLÜMÜNDE DOLDURULACAK KISIMLAR VE TUTARLARI
B136: 32 A Madde Kapsamında İndirimli Kurumlar Vergisine (Geçici Vergiye) Tabi Matrah | C136: =C103+C108+C113+C118+C123 -> 0 | D136: =E107+E112+E117+E122+E127 -> 0 | E136: 1-5 Puan Olmasaydı Hesaplan KV Tutarı
D137: =I107+I112+I117+I122++I127 -> 0 | E137: 1 -5 Puan İndirim Sonrasında Ödenecek KV Tutarı (32 A olmasaydı hesaplanacak Vergi)
D138: =M107+M112+M117+M122+M127 -> 0 | E138: 32/A İndirimi ile Vazgeçilen Vergi
B139: 32 A Madde Kapsamında İndirimli Kurumlar Vergisi(Geçici Vergi) Oranı | C139: =IFERROR(D139/C136,0) -> 0 | D139: =N104+N109+N114+N119+N124 -> 0 | E139: 32/A ya Tabi Matrah Üzerinden Ödenecek KV
B140: 32/7 Madde Kapsamında İndirimli Kurumlar Vergisine (Geçici Vergiye) Tabi Matrah (İhracat) | C140: =D131 -> 0 | D140: =G131 -> 0 | E140: 5 Puan Olmasaydı Hesaplan KV Tutarı
D141: =H131 -> 0 | E141: 5 Puan İndirimin Vergi Etkisi
B142: 32/7 Madde Kapsamında İndirimli Kurumlar Vergisi (Geçici Vergi) Oranı | C142: =IFERROR(D142/C140,0) -> 0 | D142: =I131 -> 0 | E142: 5 Puan İndirim Sonrasında Ödenecek KV Tutarı (İhracat)
B143: 32/8 Madde Kapsamında İndirimli Kurumlar Vergisine (Geçici Vergiye) Tabi Matrah (Üretim) | C143: =D130 -> 0 | D143: =G130 -> 0 | E143: 1 Puan Olmasaydı Hesaplan KV Tutarı
D144: =H130 -> 0 | E144: 1 Puan İndirimin Vergi Etkisi
B145: 32/8 Madde Kapsamında İndirimli Kurumlar Vergisi (Geçici Vergi) Oranı | C145: =IFERROR(D145/C143,0) -> 0 | D145: =I130 -> 0 | E145: 1 Puan İndirim Sonrasında Ödenecek KV Tutarı (Üretim)
B146: Genel Orana Tabi Matrah (Diğer) | C146: =D129 -> 0 | D146: =L129 -> 0 | E146: Diğer Faalilyetlerden Elde Edilen Kazanç
C147: =IFERROR(D146/C146,0) -> 0
B148: MATRAHLAR TOPLAMI | C148: =C136+C143+C140+C146 -> 0 | D148: =D139+D145+D142+D146 -> 0

Sheet İ Ö 2 (hidden)
B2: FAALİYET TÜRLERİ İTİBARİYLE HASILATLAR VE TOPLAM İÇİNDEKİ ORANLARI | C2: =IFERROR(C4/C4,0) -> 1 | D2: =IFERROR(D4/C4,0) -> 0.6 | E2: =IFERROR(E4/C4,0) -> 0 | F2: =IFERROR(F4/C4,0) -> 0.4
C3: Toplam Hasılat | D3: İhracat faaliyeti | E3: İmalat faaliyeti | F3: Diğer faaliyetler
B4: A-BRÜT SATIŞLAR (60) | C4: =D4+E4+F4 -> 2000000 | D4: =SUM(D5:D7) -> 1200000 | E4: =SUM(E5:E7) -> 0 | F4: 800000
B5: 1-Yurtiçi Satışlar (600) | C5: =D5+E5+F5 -> 800000 | F5: 800000
B6: 2-Yurtdışı Satışlar (601) | C6: =D6+E6+F6 -> 1200000 | D6: 1200000
B7: 3-Diğer Gelirler (602) | C7: =D7+E7+F7 -> 0
B8: B-SATIŞ İNDİRİMLERİ(-) (61) | C8: =SUM(C9:C11) -> 0 | D8: =SUM(D9:D11) -> 0 | E8: =SUM(E9:E11) -> 0 | F8: 0
B9: 1-Satıştan İadeler (-) (610) | C9: =SUM(D9:F9) -> 0
B10: 2- Satış İskontoları (-) (611) | C10: =SUM(D10:F10) -> 0
B11: 3-Diğer İndirimler (-) (612) | C11: 0
B12: C-NET SATIŞLAR | C12: =C4-C8 -> 2000000 | D12: =D4-D8 -> 1200000 | E12: =E4-E8 -> 0 | F12: 800000
B13: D-SATIŞLARIN MALİYETİ (-) (62) | C13: =SUM(C14:C17) -> 0 | D13: =SUM(D14:D17) -> 0 | E13: =SUM(E14:E17) -> 0 | F13: =SUM(F14:F17) -> 0
B14: 1-Satılan Mamuller Maliyeti ( 620) | C14: =SUM(D14:F14) -> 0
B15: 2-Satılan Ticari Mal Maliyeti (621) | C15: =SUM(D15:F15) -> 0
B16: 3-Satılan Hizmet Maliyeti (622) | C16: 0
B17: 4-Diğer Satışların Maliyeti (623) | C17: 0
B18: BRÜT SATIŞ KARI / ZARARI | C18: =C12-C13 -> 2000000 | D18: =D12-D13 -> 1200000 | E18: =E12-E13 -> 0 | F18: 800000
B19: E-FAALİYET GİDERLERİ (-) (63) | C19: =SUM(C20:C24) -> 0 | D19: =SUM(D20:D24) -> 0 | E19: =SUM(E20:E24) -> 0 | F19: 0
B20: 1-Araştırma ve Geliştirme Giderleri(-) (630) | C20: =SUM(D20:F20) -> 0
B21: 2-Pazarlama, Satış ve Dağıtım Giderleri(-) (631) | C21: =SUM(D21:F21) -> 0
B22: 3-Genel Yönetim Giderleri(-) (632) | C22: =SUM(D22:F22) -> 0
B23: MÜŞTEREK GENEL GİDERLER (DAĞITIM-HASILAT PAYINA GÖRE) | D23: =C23*D2 -> 0 | E23: =C23*E2 -> 0 | F23: =C23*F2 -> 0
B24: MÜŞTEREK GENEL GİDER GİBİ DAĞITIMA TABİ TUTULACAK AMORTİSMAN GİDERLERİ (DAĞITIM-HASILAT PAYINA GÖRE) | D24: =C24*D2 -> 0 | E24: =C24*E2 -> 0 | F24: =C24*F2 -> 0
B25: FAALİYET KARI / ZARARI | C25: =C18-C19 -> 2000000 | D25: =D18-D19 -> 1200000 | E25: =E18-E19 -> 0 | F25: 800000
B26: F-DİĞER FAALİYETLERDEN OLAĞAN GELİR VE KARLAR (64) | C26: =SUM(C27:C35) -> 0 | D26: =SUM(D27:D35) -> 0 | E26: =SUM(E27:E35) -> 0 | F26: =SUM(F27:F35) -> 0
B27: 1- İŞTİRAKLERDEN TEMETTÜ GELİRLERİ (640) | C27: =SUM(D27:F27) -> 0
B28: 2- BAĞLI ORTAKLIKLARDAN TEMETTÜ GELİRLERİ (641) | C28: =SUM(D28:F28) -> 0
B29: 3- FAİZ GELİRLERİ (642) (ihracat ve imalat kaynaklı alacağın tahsiline kadar olan süreçte oluşan) | C29: 0
B30: 4- KOMİSYON GELİRLERİ (643) | C30: 0
B31: 5- KONUSU OLMAYAN KARŞILIKLAR (644) | C31: 0
B32: 6- MENKUL KIYMET SATIŞ KARLARI (645) | C32: 0
B33: 7- KAMBİYO KARLARI (646) (ihracat ve imalat kaynaklı alacağın tahsiline kadar olan süreçte oluşan) | C33: 0
B34: 8- REESKONT FAİZ GELİRLERİ (647) | C34: 0
B35: 9- FAALİYETLE İLGİLİ DİĞER GELİR VE KARLAR (649) | C35: 0
B36: ARA TOPLAM | C36: =C25+C26 -> 2000000 | D36: =D25+D26 -> 1200000 | E36: =E25+E26 -> 0 | F36: =F25+F26 -> 800000
B37: G-DİĞER FAALİYETLERDEN OLAĞAN GİDER VE ZARARLAR(-) (65) | C37: =SUM(C38:C43) -> 0 | D37: =SUM(D38:D43) -> 0 | E37: =SUM(E38:E43) -> 0 | F37: 0
B38: 1- KOMİSYON GİDERLERİ (653) | C38: =SUM(D38:F38) -> 0
B39: 2- KARŞILIK GİDERLERİ (654) | C39: =SUM(D39:F39) -> 0
B40: 3- MENKUL KIYMET SATIŞ ZARARLARI (655) | C40: 0
B41: 4- KAMBİYO ZARARLARI (656) (ihracat ve imalat kaynaklı alacağın tahsiline kadar olan süreçte oluşan) | C41: 0
B42: 5- REESKONT FAİZ GİDERLERİ (657) | C42: 0
B43: 6- DİĞER OLAĞAN GİDER VE ZARARLAR (659) | C43: =SUM(D43:F43) -> 0
B44: ARA TOPLAM | C44: =C36-C37 -> 2000000 | D44: =D36-D37 -> 1200000 | E44: =E36-E37 -> 0 | F44: 800000
B45: H-FİNANSMAN GİDERLERİ(-) (66) | C45: =SUM(C46:C49) -> 0 | D45: =SUM(D46:D49) -> 0 | E45: =SUM(E46:E49) -> 0 | F45: =SUM(F46:F49) -> 0
B46: 1- KISA VADELİ BORÇLANMA GİDERLERİ (-) | C46: =SUM(D46:F46) -> 0
B47: 2- UZUN VADELİ BORÇLANMA GİDERLERİ (-) | C47: =SUM(D47:F47) -> 0
B48: 1- KISA VADELİ BORÇLANMA GİDERLERİ (-) (DAĞITIM) | D48: =C48*D2 -> 0 | E48: =C48*E2 -> 0 | F48: =C48*F2 -> 0
B49: 2- UZUN VADELİ BORÇLANMA GİDERLERİ (-) (DAĞITIM) | D49: =C49*D2 -> 0 | E49: =C49*E2 -> 0 | F49: =C49*F2 -> 0
B50: ARA TOPLAM | C50: =C44-C45 -> 2000000 | D50: =D44-D45 -> 1200000 | E50: =E44-E45 -> 0 | F50: =F44-F45 -> 800000
B51: I-OLAĞANDIŞI GELİR VE KÂRLAR (67) | C51: =SUM(D51:F51) -> 0 | D51: =SUM(D52:D53) -> 0 | E51: =SUM(E52:E53) -> 0 | F51: =SUM(F52:F53) -> 0
B52: 1- ÖNCEKİ DÖNEM GELİR VE KARLARI (671) | C52: =SUM(D52:F52) -> 0
B53: 2-DİĞER OLAĞAN DIŞI GELİR VE KARLAR (679) | C53: =SUM(D53:F53) -> 0
B54: ARA TOPLAM | C54: =SUM(D54:F54) -> 2000000 | D54: =D50+D51 -> 1200000 | E54: =E50+E51 -> 0 | F54: 800000
B55: J-OLAĞANDIŞI GİDER VE ZARARLAR(-) (68) | C55: =SUM(C56:C58) -> 0 | D55: =SUM(D56:D58) -> 0 | E55: =SUM(E56:E58) -> 0 | F55: 0
B56: 1-Çalışmayan Kısım Gider ve Zararları(-) (680) | C56: =SUM(D56:F56) -> 0
B57: 2-Önceki Dönem Gider ve Zararları(-) (681) | C57: =SUM(D57:F57) -> 0
B58: 3-Diğer Olağan Dışı Gider ve Zararlar(-) (689) | C58: 0
B59: DÖNEM KÂRI VEYA ZARARI (TİCARİ BİLANÇO KARI ZARARI ) | C59: =C54-C55 -> 2000000 | D59: =D54-D55 -> 1200000 | E59: =E54-E55 -> 0 | F59: 800000
B60: İHRACAT, İMALAT VE DİĞER FAALİYETLERDEN ELDE EDİLEN KAZANCIN TOPLAM TİCARİ KAZANÇ İÇİNDEKİ PAYLARI | D60: =IF(D59>=$C$59,1, IF(D59<=0,0, IF(AND(D59>0,D59<$C$59),D59/$C$59))) -> 0.6 | E60: =IF(E59>=$C$59,1, IF(E59<=0,0, IF(AND(E59>0,E59<$C$59),E59/$C$59))) -> 0 | F60: =IF(F59>=$C$59,1, IF(F59<=0,0, IF(AND(F59>0,F59<$C$59),F59/$C$59))) -> 0.4
D61: =D60/(D60+E60+F60) -> 0.6 | E61: =E60/(D60+E60+F60) -> 0 | F61: =F60/(D60+E60+F60) -> 0.4
B63: KKEG + | C63: 200000
B64: KABUL EDİLMEYEN GELİRLER -
B65: ZARAR OLSA DAHİ İNDİRİLECEK İSTİSNALAR - | C65: =C66+C67+C68 -> 100000
B66: Hizmet İhracatı Faaliyetinden (KVK 10-1/ğ) Elde Edilen Kazançlardan İstisna Edilenlerin Toplamı
B67: İmalat Faaliyetinden Elde Edilen Kazançlardan İstisna Edilenlerin Toplamı
B68: Diğer Faaliyetlerden Elde Edilen Kazançlardan İstisna Edilenlerin Toplamı | C68: 100000
B69: GEÇMİŞ YIL ZARARLARI -
B70: İNDİRİMLER - | C70: 100000 | D70: AZAMİ YAZILABİLECEK İNDİRİMLER TUTARI | E70: =C59+C63-C64-C65-C69 -> 2100000
B72: 1 PUAN İNDİRİM UYGULANACAK TUTARIN HESABINDA İSTİSNA KAZANÇLAR DÜŞÜLDÜKTEN SONRA BULUNAN TİCARİ KAZANÇ TUTARI İLE BU KAZANÇ İÇİNDE İHRACAT,İMALAT VE DİĞER KAZANÇLARIN TUTARI | C72: TİCARİ KAZANÇ TAN İhracat ve İmalat Kazancından İstisna Olan Tutarlar Düşüldükten Sonra Kalan Tutarı | D72: İhracat Faaliyetinden Elde Edilen Kazançtan İstisna Olan Kısım Düşüldükten Sonra Bulunan Tutarı | E72: Üretim Faaliyetinden Elde Edilen Kazançtan İstisna Olan Kısım Düşüldükten Sonra Bulunan Tutarı | F72: Diğer Faaliyetinden Elde Edilen Kazanç
C73: =IF(C59-C66-C67<=0,0,C59-C66-C67) -> 2000000 | D73: =IF($D$59-C66<=0,0,MIN($D$59-C66,$C$73*D61)) -> 1200000 | E73: =IF($E$59-C67<=0,0,MIN($E$59-C67,$C$73*E61)) -> 0 | F73: =IF(C73-D73-E73<=0,0,C73-D73-E73) -> 800000
B74: İHRACAT, İMALAT VE DİĞER FAALİYETLERDEN ELDE EDİLEN KAZANCIN TOPLAM TİCARİ KAZANÇ İÇİNDEKİ PAYLARI | D74: =IFERROR(IF(D73/C73<=0,0,D73/C73),0) -> 0.6 | E74: =IFERROR(IF(E73/C73<=0,0,E73/C73),0) -> 0 | F74: =IFERROR(F73/C73,0) -> 0.4
B75: NEGATİF VE % 100 DEN BÜYÜKLÜK KONTROLÜ SONRASINDAKİ PAYLARI | D75: =IFERROR(IF(D74<=0,0,IF(D74>1,1,D74)),0) -> 0.6 | E75: =IFERROR(IF(E74<=0,0,IF(E74>1,1,E74)),0) -> 0 | F75: =IFERROR(IF(F74<=0,0,IF(F74>1,1,F74)),0) -> 0.4
B77: SAFİ KURUM KAZANCI (KURUMLAR VERGİSİ MATRAHI) | C77: =C59+C63-C64-C65-C69-C70 -> 2000000 | D77: =IF(C77<0, "ZARAR","KAR") -> KAR
B79: 2022 YILI 3. DÖNEM İNDİRİMLİ KURUMLAR VERGİSİ HESAPLAMA TABLOSU
C80: 1. TEŞVİK BELGESİ | D80: 2. TEŞVİK BELGESİ | E80: 3. TEŞVİK BELGESİ | F80: 4. TEŞVİK BELGESİ | G80: 5. TEŞVİK BELGESİ
B81: Vergi İndirim Oranı (VİO)
B82: KV MATRAHI (Safi Kurum Kazancı) | C82: =C77 -> 2000000
B83: 32/A Uygulanacak K.V. Matrahı (HER BİR TEŞVİK BELGESİ KAPSAMINDA YARARLANILABİLECEK YATIRIMA KATKI TUTARININ MATRAHI BU HÜCRELERE YAZILMALIDIR) | H83: =IF(SUM(C83:G83)>C77,"32/A İNDİRİMİ UYGULANACAK KAZANÇ, SAFİ KURUM KAZANCINDAN FAZLADIR",SUM(C83:G83)) -> 0
B84: 32/A UYGULANMAYACAK K.V. Matrahı | C84: =IF(C82-(C83+D83+E83+F83+G83)<0,0,C82-(C83+D83+E83+F83+G83)) -> 2000000
B85: MATRAH TOPLAMI | C85: =IF((C83+D83+E83+F83+G83+C84)>C77,C77,(C83+D83+E83+F83+G83+C84)) -> 2000000
B87: SAFİ KURUM KAZANCININ KV VERGİ ORANLARI İTİBARİYLE DAĞILIMI | C87: TOPLAM SAFİ KAZANÇ | D87: İhracat Kazancı Payı | E87: Üretim Kazancı Payı | F87: Diğer Faaliyet Kazancı Payı
C89: =C77 -> 2000000 | D89: =IF(AND(OR(D59>=C89,D59+E59>=C89),C66>0),MAX(MIN(C89*D74,D59,D73),0),MIN(C89*D74,D59)) -> 1200000 | E89: =MAX( IF(AND(OR(E59>=C89,E59+F59>=C89),C67>0),MAX(MIN(C89*E74,E59,E73),0),MIN(C89*E74,E59)),0) -> 0 | F89: =IF(C89-D89-E89<=0,0,C89-D89-E89) -> 800000
B90: SAFİ KURUM KAZANCININ DAĞILIMI ORANSAL DAĞILIMI | C90: =C89 -> 2000000 | D90: =D89/C89 -> 0.6 | E90: =E89/C89 -> 0 | F90: =F89/C89 -> 0.4
B91: SAFİ KURUM KAZANCININ DAĞILIMI TUTARSAL | C91: =C90 -> 2000000 | D91: =D89 -> 1200000 | E91: =E89 -> 0 | F91: =F89 -> 800000
B92: SAFİ KURUM KAZANCI DAĞILIMI | C92: =C91 -> 2000000 | D92: =IFERROR(IF(D91/C91>=1,1,D91/C91),0) -> 0.6 | E92: =IFERROR(IF(E91/C91>=1,1,E91/C91),0) -> 0 | F92: =IFERROR(IF(F91/C91>=1,1,F91/C91),0) -> 0.4 | H92: KV ORANI
B93: 1 PUAN VE 32/A İNDİRİMİ OLMASAYDI HESAPLANAN KV TUTARI | C93: =C92*$H$93 -> 500000 | D93: =D91*$H$93 -> 300000 | E93: =E91*$H$93 -> 0 | F93: =F91*$H$93 -> 200000 | H93: 0.25
B94: 32/ A UYGULANAN MATRAH | C94: =C83+D83+E83+F83+G83 -> 0 | D94: =D106+D111+D116+D121+D126 -> 0 | E94: =D105+D110+D115+D120+D125 -> 0 | F94: =D104+D109+D114+D119+D124 -> 0
B95: 32/A UYGULANACAK MATRAH ÜZERİNDEN ÖDENECEK KV TUTARI | C95: =J107+J112+J117+J122+J127 -> 0 | D95: =J106+J111+J116+J121+J126 -> 0 | E95: =J105+J110+J115+J120+J125 -> 0 | F95: =J104+J109+J114+J119+J124 -> 0
B96: 32/A UYGULANMAYAN MATRAH | C96: =IF(C84<=0,0,C84) -> 2000000 | D96: =D131 -> 1200000 | E96: =D130 -> 0 | F96: =D129 -> 800000
B97: 32/A UYGULANMAYAN MATRAH ÜZERİNDEN ÖDENECEK KV TUTARI | C97: =L129 -> 440000 | D97: =J131 -> 240000 | E97: =J130 -> 0 | F97: =J129 -> 200000
B98: TOPLAM ÖDENECEK KV | C98: =C95+C97 -> 440000 | D98: =J131+J106 -> 240000 | E98: =J130+J105 -> 0 | F98: =J129+J104 -> 200000
B99: TOPLAM AVANTAJ (YARARLANILAN 1 PUAN İNDİRİMİ + 32/A İNDİRİMİ TUTARI ) | C99: =C93-C98 -> 60000 | D99: =D100+D101 -> 60000 | E99: =E100+E101 -> 0 | F99: =F100+F101 -> 0
B100: YARARLANILAN 1 - 5 PUAN İNDİRİMİ TUTARI | C100: =F132+F127+F122+F117+F112+F107 -> 60000 | D100: =F131+F106+F111+F116+F121+F126 -> 60000 | E100: =F130+F105+F110+F115+F120+F125 -> 0 | F100: =F129+F104+F109+F114+F119+F124 -> 0
B101: YARLANILAN 32/A İNDİRİMİ TUTARI | C101: =K107+K112+K117+K122+K127+K132 -> 0 | D101: =K106+K111+K121+K126+K131 -> 0 | E101: =K105+K110+K115+K120+K125+K130 -> 0 | F101: =K104++K109+K114+K119+K124+K129 -> 0
B103: 32/A UYGULANABİLECEK MATRAH (1.TEŞVİK BELGESİ) | C103: =C83 -> 0 | D103: KV MATRAHI | E103: 1 - 5 PUAN İNDİRİM OLMASAYDI HESAPLANAN KV TUTARI | F103: 1 -5 Puan İndirim Tutarı | G103: 1 - 5 Puan İndirim Sonrasında Hesaplanan KV Tutarı | H103: 32/A İndirimi Olmasaydı Ödenecek KV Tutarı | I103: 1 -5 Puan İndirim ve 32/A VİO Uygulandıktan Sonra Tatbik Edilecek KV Oranı | J103: 1 -5 Puan İndirim ve 32/A İndirimi Uygulandıktan Sonra Ödenecek KV Tutarı | K103: Yararlanılan Yatırıma Katkı Tutarı (32/A İnd. KV Nedeniyle Vazgeçilen Vergi Tutarı) | L103: Ödenecek KV Tutarı
B104: GENEL ORANA TABİ KISIM (DİĞER FAALİYETLER) | C104: =F92 -> 0.4 | D104: =C103*C104 -> 0 | E104: =D104*$H$93 -> 0 | F104: 0 | G104: =E104-F104 -> 0 | H104: =G104 -> 0 | I104: =($H$93)-(($H$93)*$C$81) -> 0.25 | J104: =I104*D104 -> 0 | K104: =G104-J104 -> 0 | L104: =J107 -> 0
B105: 1 PUAN İNDİRİMLİ ORANA TABİ KISIM (İMALAT) | C105: =E92 -> 0 | D105: =C103*C105 -> 0 | E105: =D105*$H$93 -> 0 | F105: =D105/100 -> 0 | G105: =E105-F105 -> 0 | H105: =G105 -> 0 | I105: =($H$93-0.01)-(($H$93-0.01)*$C$81) -> 0.24 | J105: =I105*D105 -> 0 | K105: =G105-J105 -> 0
B106: 5 PUAN İNDİRİMLİ ORANA TABİ KISIM ( İHRACAT) | C106: =D92 -> 0.6 | D106: =C103*C106 -> 0 | E106: =D106*$H$93 -> 0 | F106: =D106/20 -> 0 | G106: =E106-F106 -> 0 | H106: 0 | I106: =($H$93-0.05)-(($H$93-0.05)*C81) -> 0.2 | J106: 0 | K106: =G106-J106 -> 0
B107: TOPLAM | C107: =SUM(C104:C106) -> 1 | D107: =SUM(D104:D106) -> 0 | E107: 0 | F107: =SUM(F104:F106) -> 0 | G107: =SUM(G104:G106) -> 0 | H107: =SUM(H104:H106) -> 0 | J107: 0 | K107: 0
B108: 32/A UYGULANABİLECEK MATRAH (2.TEŞVİK BELGESİ) | C108: =D83 -> 0 | D108: KV MATRAHI | E108: 1 - 5 PUAN İNDİRİM OLMASAYDI HESAPLANAN KV TUTARI | F108: 1 -5 Puan İndirim Tutarı | G108: 1 -5 Puan İndirim Sonrasında Hesaplanan KV Tutarı | H108: 32/A İndirimi Olmasaydı Ödenecek KV Tutarı | I108: 1 - 5 Puan İndirim ve 32/A VİO Uygulandıktan Sonra Tatbik Edilecek KV Oranı | J108: 1-5 Puan İndirim ve 32/A İndirimi Uygulandıktan Sonra Ödenecek KV Tutarı | K108: Yararlanılan Yatırıma Katkı Tutarı (32/A İnd. KV Nedeniyle Vazgeçilen Vergi Tutarı) | L108: Ödenecek KV Tutarı
B109: GENEL ORANA TABİ KISIM (DİĞER FAALİYETLER) | C109: =F92 -> 0.4 | D109: =C108*C109 -> 0 | E109: =D109*$H$93 -> 0 | F109: 0 | G109: =E109-F109 -> 0 | H109: =G109 -> 0 | I109: =($H$93)-(($H$93)*D81) -> 0.25 | J109: =I109*D109 -> 0 | K109: =G109-J109 -> 0 | L109: =J112 -> 0
B110: 1 PUAN İNDİRİMLİ ORANA TABİ KISIM (İMALAT) | C110: =E92 -> 0 | D110: =C108*C110 -> 0 | E110: =D110*$H$93 -> 0 | F110: =D110/100 -> 0 | G110: =E110-F110 -> 0 | H110: =G110 -> 0 | I110: =($H$93-0.01)-(($H$93-0.01)*D81) -> 0.24 | J110: =I110*D110 -> 0 | K110: =G110-J110 -> 0
B111: 5 PUAN İNDİRİMLİ ORANA TABİ KISIM ( İHRACAT) | C111: =D92 -> 0.6 | D111: =C108*C111 -> 0 | E111: =D111*$H$93 -> 0 | F111: =D111/20 -> 0 | G111: =E111-F111 -> 0 | H111: 0 | I111: =($H$93-0.05)-(($H$93-0.05)*D81) -> 0.2 | J111: 0 | K111: =G111-J111 -> 0
B112: TOPLAM | C112: =SUM(C109:C111) -> 1 | D112: 0 | E112: 0 | F112: =SUM(F109:F111) -> 0 | G112: =SUM(G109:G111) -> 0 | H112: =SUM(H109:H111) -> 0 | J112: =SUM(J109:J111) -> 0 | K112: 0
B113: 32/A UYGULANABİLECEK MATRAH (3.TEŞVİK BELGESİ) | C113: =E83 -> 0 | D113: KV MATRAHI | E113: 1 - 5 PUAN İNDİRİM OLMASAYDI HESAPLANAN KV TUTARI | F113: 1-5 Puan İndirim Tutarı | G113: 1 - 5 Puan İndirim Sonrasında Hesaplanan KV Tutarı | H113: 32/A İndirimi Olmasaydı Ödenecek KV Tutarı | I113: 1 - 5 Puan İndirim ve 32/A VİO Uygulandıktan Sonra Tatbik Edilecek KV Oranı | J113: 1 -5 Puan İndirim ve 32/A İndirimi Uygulandıktan Sonra Ödenecek KV Tutarı | K113: Yararlanılan Yatırıma Katkı Tutarı (32/A İnd. KV Nedeniyle Vazgeçilen Vergi Tutarı) | L113: Ödenecek KV Tutarı
B114: GENEL ORANA TABİ KISIM (DİĞER FAALİYETLER) | C114: =F92 -> 0.4 | D114: =C113*C114 -> 0 | E114: =D114*$H$93 -> 0 | F114: 0 | G114: =E114-F114 -> 0 | H114: =G114 -> 0 | I114: =($H$93)-(($H$93)*E81) -> 0.25 | J114: =I114*D114 -> 0 | K114: =G114-J114 -> 0 | L114: =J117 -> 0
B115: 1 PUAN İNDİRİMLİ ORANA TABİ KISIM (İMALAT) | C115: =E92 -> 0 | D115: =C113*C115 -> 0 | E115: =D115*$H$93 -> 0 | F115: =D115/100 -> 0 | G115: =E115-F115 -> 0 | H115: =G115 -> 0 | I115: =($H$93-0.01)-(($H$93-0.01)*E81) -> 0.24 | J115: =I115*D115 -> 0 | K115: =G115-J115 -> 0
B116: 5 PUAN İNDİRİMLİ ORANA TABİ KISIM ( İHRACAT) | C116: =D92 -> 0.6 | D116: =C113*C116 -> 0 | E116: =D116*$H$93 -> 0 | F116: =D116/20 -> 0 | G116: =E116-F116 -> 0 | H116: 0 | I116: =($H$93-0.05)-(($H$93-0.05)*E81) -> 0.2 | J116: 0 | K116: =G116-J116 -> 0
B117: TOPLAM | C117: =SUM(C114:C116) -> 1 | D117: 0 | E117: 0 | F117: =SUM(F114:F116) -> 0 | G117: =SUM(G114:G116) -> 0 | H117: =SUM(H114:H116) -> 0 | J117: =SUM(J114:J116) -> 0 | K117: 0
B118: 32/A UYGULANABİLECEK MATRAH (4. TEŞVİK BELGESİ) | C118: =F83 -> 0 | D118: KV MATRAHI | E118: 1 - 5 PUAN İNDİRİM OLMASAYDI HESAPLANAN KV TUTARI | F118: 1-5 Puan İndirim Tutarı | G118: 1 -5 Puan İndirim Sonrasında Hesaplanan KV Tutarı | H118: 32/A İndirimi Olmasaydı Ödenecek KV Tutarı | I118: 1- 5 Puan İndirim ve 32/A VİO Uygulandıktan Sonra Tatbik Edilecek KV Oranı | J118: 1-5 Puan İndirim ve 32/A İndirimi Uygulandıktan Sonra Ödenecek KV Tutarı | K118: Yararlanılan Yatırıma Katkı Tutarı (32/A İnd. KV Nedeniyle Vazgeçilen Vergi Tutarı) | L118: Ödenecek KV Tutarı
B119: GENEL ORANA TABİ KISIM (DİĞER FAALİYETLER) | C119: =F92 -> 0.4 | D119: =C118*C119 -> 0 | E119: =D119*$H$93 -> 0 | F119: 0 | G119: =E119-F119 -> 0 | H119: =G119 -> 0 | I119: =($H$93)-(($H$93)*F81) -> 0.25 | J119: =I119*D119 -> 0 | K119: =G119-J119 -> 0 | L119: =J122 -> 0
B120: 1 PUAN İNDİRİMLİ ORANA TABİ KISIM (İMALAT) | C120: =E92 -> 0 | D120: =C118*C120 -> 0 | E120: =D120*$H$93 -> 0 | F120: =D120/100 -> 0 | G120: =E120-F120 -> 0 | H120: =G120 -> 0 | I120: =($H$93-0.01)-(($H$93-0.01)*F81) -> 0.24 | J120: =I120*D120 -> 0 | K120: =G120-J120 -> 0
B121: 5 PUAN İNDİRİMLİ ORANA TABİ KISIM ( İHRACAT) | C121: =D92 -> 0.6 | D121: =C118*C121 -> 0 | E121: =D121*$H$93 -> 0 | F121: =D121/20 -> 0 | G121: =E121-F121 -> 0 | H121: 0 | I121: =($H$93-0.05)-(($H$93-0.05)*F81) -> 0.2 | J121: 0 | K121: =G121-J121 -> 0
B122: TOPLAM | C122: =SUM(C119:C121) -> 1 | D122: 0 | E122: 0 | F122: =SUM(F119:F121) -> 0 | G122: =SUM(G119:G121) -> 0 | H122: =SUM(H119:H121) -> 0 | J122: =SUM(J119:J121) -> 0 | K122: 0
B123: 32/A UYGULANABİLECEK MATRAH (5.TEŞVİK BELGESİ) | C123: =G83 -> 0 | D123: KV MATRAHI | E123: 1 - 5 PUAN İNDİRİM OLMASAYDI HESAPLANAN KV TUTARI | F123: 1-5 Puan İndirim Tutarı | G123: 1 - 5 Puan İndirim Sonrasında Hesaplanan KV Tutarı | H123: 32/A İndirimi Olmasaydı Ödenecek KV Tutarı | I123: 1 -5 Puan İndirim ve 32/A VİO Uygulandıktan Sonra Tatbik Edilecek KV Oranı | J123: 1 - 5 Puan İndirim ve 32/A İndirimi Uygulandıktan Sonra Ödenecek KV Tutarı | K123: Yararlanılan Yatırıma Katkı Tutarı (32/A İnd. KV Nedeniyle Vazgeçilen Vergi Tutarı) | L123: Ödenecek KV Tutarı
B124: GENEL ORANA TABİ KISIM (DİĞER FAALİYETLER) | C124: =F92 -> 0.4 | D124: =C123*C124 -> 0 | E124: =D124*$H$93 -> 0 | F124: 0 | G124: =E124-F124 -> 0 | H124: =G124 -> 0 | I124: =($H$93)-(($H$93)*G81) -> 0.25 | J124: =I124*D124 -> 0 | K124: =G124-J124 -> 0 | L124: =J127 -> 0
B125: 1 PUAN İNDİRİMLİ ORANA TABİ KISIM (İMALAT) | C125: =E92 -> 0 | D125: =C123*C125 -> 0 | E125: =D125*$H$93 -> 0 | F125: =D125/100 -> 0 | G125: =E125-F125 -> 0 | H125: =G125 -> 0 | I125: =($H$93-0.01)-(($H$93-0.01)*G81) -> 0.24 | J125: =I125*D125 -> 0 | K125: =G125-J125 -> 0
B126: 5 PUAN İNDİRİMLİ ORANA TABİ KISIM ( İHRACAT) | C126: =D92 -> 0.6 | D126: =C123*C126 -> 0 | E126: =D126*$H$93 -> 0 | F126: =D126/20 -> 0 | G126: =E126-F126 -> 0 | H126: 0 | I126: =($H$93-0.05)-(($H$93-0.05)*G81) -> 0.2 | J126: 0 | K126: =G126-J126 -> 0
B127: TOPLAM | C127: =SUM(C124:C126) -> 1 | D127: 0 | E127: 0 | F127: =SUM(F124:F126) -> 0 | G127: =SUM(G124:G126) -> 0 | H127: =SUM(H124:H126) -> 0 | J127: =SUM(J124:J126) -> 0 | K127: 0
B128: 32/A UYGULANAMAYACAK MATRAH | C128: =IF(C84<=0,0,C84) -> 2000000 | D128: KV MATRAHI | E128: 1-5 PUAN İNDİRİM OLMASAYDI HESAPLANAN KV TUTARI | F128: 1-5 Puan İndirim Tutarı | G128: 1 -5 Puan İndirim Sonrasında Hesaplanan KV Tutarı | H128: 32/A İNDİRİMİ UYGULANMAZ | J128: 1 Puan İndirim ve 32/A İndirimi Uygulandıktan Sonra Ödenecek KV Tutarı | K128: Yararlanılan Yatırıma Katkı Tutarı (32/A İnd. KV Nedeniyle Vazgeçilen Vergi Tutarı) | L128: Ödenecek KV Tutarı
B129: GENEL ORANA TABİ KISIM (DİĞER FAALİYETLER) | C129: =F92 -> 0.4 | D129: =C128*C129 -> 800000 | E129: =D129*$H$93 -> 200000 | F129: 0 | G129: =E129-F129 -> 200000 | J129: =G129 -> 200000 | K129: =G129-J129 -> 0 | L129: =J132 -> 440000
B130: 1 PUAN İNDİRİMLİ ORANA TABİ KISIM (İMALAT) | C130: =E92 -> 0 | D130: =C130*C128 -> 0 | E130: =D130*$H$93 -> 0 | F130: =D130/100 -> 0 | G130: =E130-F130 -> 0 | J130: =G130 -> 0 | K130: =G130-J130 -> 0
B131: 5 PUAN İNDİRİMLİ ORANA TABİ KISIM ( İHRACAT) | C131: =D92 -> 0.6 | D131: =C131*C128 -> 1200000 | E131: =D131*$H$93 -> 300000 | F131: =D131/20 -> 60000 | G131: =E131-F131 -> 240000 | J131: 240000 | K131: 0
B132: TOPLAM | C132: =SUM(C129:C131) -> 1 | D132: =SUM(D129:D131) -> 2000000 | E132: 500000 | F132: =SUM(F129:F131) -> 60000 | G132: =SUM(G129:G131) -> 440000 | J132: 440000 | K132: 0
B133: TOPLAM KV MATRAHI VE ÖDENMESİ GEREKEN KV | C133: =C103+C128+C108+C113+C118+C123 -> 2000000 | D133: =D107+D132+D112+D117+D122+D127 -> 2000000 | E133: =E107+E132+E112+E117+E122+E127 -> 500000 | F133: =F107+F132+F112+F117+F122+F127 -> 60000 | G133: =G107+G132+G112+G117+G122+G127 -> 440000 | J133: =J107+J132+J112+J117+J122+J127 -> 440000 | K133: =K132+K107+K112+K117+K122+K127 -> 0 | L133: =L104+L129+L109+L114+L119+L124 -> 440000
B135: GEÇİCİ VERGİ BEYANNMESİNDE MATRAH BİLDİRİMİ BÖLÜMÜNDE DOLDURULACAK KISIMLAR VE TUTARLARI
B136: 32 A Madde Kapsamında İndirimli Kurumlar Vergisine (Geçici Vergiye) Tabi Matrah | C136: =C103+C108+C113+C118+C123 -> 0 | D136: =E107+E112+E117+E122+E127 -> 0 | E136: 1-5 Puan Olmasaydı Hesaplan KV Tutarı
D137: =G107+G112+G117+G122++G127 -> 0 | E137: 1 -5 Puan İndirim Sonrasında Ödenecek KV Tutarı (32 A olmasaydı hesaplanacak Vergi)
D138: =K107+K112+K117+K122+K127 -> 0 | E138: 32/A İndirimi ile Vazgeçilen Vergi
B139: 32 A Madde Kapsamında İndirimli Kurumlar Vergisi(Geçici Vergi) Oranı | C139: =IFERROR(D139/C136,0) -> 0 | D139: =L104+L109+L114+L119+L124 -> 0 | E139: 32/A ya Tabi Matrah Üzerinden Ödenecek KV
B140: 32/7 Madde Kapsamında İndirimli Kurumlar Vergisine (Geçici Vergiye) Tabi Matrah (İhracat) | C140: =D131 -> 1200000 | D140: =E131 -> 300000 | E140: 5 Puan Olmasaydı Hesaplan KV Tutarı
D141: =F131 -> 60000 | E141: 5 Puan İndirimin Vergi Etkisi
B142: 32/7 Madde Kapsamında İndirimli Kurumlar Vergisi (Geçici Vergi) Oranı | C142: =IFERROR(D142/C140,0) -> 0.2 | D142: =G131 -> 240000 | E142: 5 Puan İndirim Sonrasında Ödenecek KV Tutarı (İhracat)
B143: 32/8 Madde Kapsamında İndirimli Kurumlar Vergisine (Geçici Vergiye) Tabi Matrah (Üretim) | C143: =D130 -> 0 | D143: =E130 -> 0 | E143: 1 Puan Olmasaydı Hesaplan KV Tutarı
D144: =F130 -> 0 | E144: 1 Puan İndirimin Vergi Etkisi
B145: 32/8 Madde Kapsamında İndirimli Kurumlar Vergisi (Geçici Vergi) Oranı | C145: =IFERROR(D145/C143,0) -> 0 | D145: =G130 -> 0 | E145: 1 Puan İndirim Sonrasında Ödenecek KV Tutarı (Üretim)
B146: Genel Orana Tabi Matrah (Diğer) | C146: =D129 -> 800000 | D146: =J129 -> 200000 | E146: Diğer Faalilyetlerden Elde Edilen Kazanç
C147: =IFERROR(D146/C146,0) -> 0.25
B148: MATRAHLAR TOPLAMI | C148: =C136+C143+C140+C146 -> 2000000 | D148: =D139+D145+D142+D146 -> 440000

Sheet İ Ö 3 (hidden)
B2: FAALİYET TÜRLERİ İTİBARİYLE HASILATLAR VE TOPLAM İÇİNDEKİ ORANLARI | C2: =IFERROR(C4/C4,0) -> 1 | D2: =IFERROR(D4/C4,0) -> 1.2 | E2: =IFERROR(E4/C4,0) -> 0 | F2: =IFERROR(F4/C4,0) -> -0.2
C3: Toplam Hasılat | D3: İhracat faaliyeti | E3: İmalat faaliyeti | F3: Diğer faaliyetler
B4: A-BRÜT SATIŞLAR (60) | C4: =D4+E4+F4 -> 500000 | D4: =SUM(D5:D7) -> 600000 | E4: =SUM(E5:E7) -> 0 | F4: -100000
B5: 1-Yurtiçi Satışlar (600) | C5: =D5+E5+F5 -> -100000 | F5: -100000
B6: 2-Yurtdışı Satışlar (601) | C6: =D6+E6+F6 -> 600000 | D6: 600000
B7: 3-Diğer Gelirler (602) | C7: =D7+E7+F7 -> 0
B8: B-SATIŞ İNDİRİMLERİ(-) (61) | C8: =SUM(C9:C11) -> 0 | D8: =SUM(D9:D11) -> 0 | E8: =SUM(E9:E11) -> 0 | F8: 0
B9: 1-Satıştan İadeler (-) (610) | C9: =SUM(D9:F9) -> 0
B10: 2- Satış İskontoları (-) (611) | C10: =SUM(D10:F10) -> 0
B11: 3-Diğer İndirimler (-) (612) | C11: 0
B12: C-NET SATIŞLAR | C12: =C4-C8 -> 500000 | D12: =D4-D8 -> 600000 | E12: =E4-E8 -> 0 | F12: -100000
B13: D-SATIŞLARIN MALİYETİ (-) (62) | C13: =SUM(C14:C17) -> 0 | D13: =SUM(D14:D17) -> 0 | E13: =SUM(E14:E17) -> 0 | F13: =SUM(F14:F17) -> 0
B14: 1-Satılan Mamuller Maliyeti ( 620) | C14: =SUM(D14:F14) -> 0
B15: 2-Satılan Ticari Mal Maliyeti (621) | C15: =SUM(D15:F15) -> 0
B16: 3-Satılan Hizmet Maliyeti (622) | C16: 0
B17: 4-Diğer Satışların Maliyeti (623) | C17: 0
B18: BRÜT SATIŞ KARI / ZARARI | C18: =C12-C13 -> 500000 | D18: =D12-D13 -> 600000 | E18: =E12-E13 -> 0 | F18: -100000
B19: E-FAALİYET GİDERLERİ (-) (63) | C19: =SUM(C20:C24) -> 0 | D19: =SUM(D20:D24) -> 0 | E19: =SUM(E20:E24) -> 0 | F19: 0
B20: 1-Araştırma ve Geliştirme Giderleri(-) (630) | C20: =SUM(D20:F20) -> 0
B21: 2-Pazarlama, Satış ve Dağıtım Giderleri(-) (631) | C21: =SUM(D21:F21) -> 0
B22: 3-Genel Yönetim Giderleri(-) (632) | C22: =SUM(D22:F22) -> 0
B23: MÜŞTEREK GENEL GİDERLER (DAĞITIM-HASILAT PAYINA GÖRE) | D23: =C23*D2 -> 0 | E23: =C23*E2 -> 0 | F23: =C23*F2 -> 0
B24: MÜŞTEREK GENEL GİDER GİBİ DAĞITIMA TABİ TUTULACAK AMORTİSMAN GİDERLERİ (DAĞITIM-HASILAT PAYINA GÖRE) | D24: =C24*D2 -> 0 | E24: =C24*E2 -> 0 | F24: =C24*F2 -> 0
B25: FAALİYET KARI / ZARARI | C25: =C18-C19 -> 500000 | D25: =D18-D19 -> 600000 | E25: =E18-E19 -> 0 | F25: -100000
B26: F-DİĞER FAALİYETLERDEN OLAĞAN GELİR VE KARLAR (64) | C26: =SUM(C27:C35) -> 0 | D26: =SUM(D27:D35) -> 0 | E26: =SUM(E27:E35) -> 0 | F26: =SUM(F27:F35) -> 0
B27: 1- İŞTİRAKLERDEN TEMETTÜ GELİRLERİ (640) | C27: =SUM(D27:F27) -> 0
B28: 2- BAĞLI ORTAKLIKLARDAN TEMETTÜ GELİRLERİ (641) | C28: =SUM(D28:F28) -> 0
B29: 3- FAİZ GELİRLERİ (642) (ihracat ve imalat kaynaklı alacağın tahsiline kadar olan süreçte oluşan) | C29: 0
B30: 4- KOMİSYON GELİRLERİ (643) | C30: 0
B31: 5- KONUSU OLMAYAN KARŞILIKLAR (644) | C31: 0
B32: 6- MENKUL KIYMET SATIŞ KARLARI (645) | C32: 0
B33: 7- KAMBİYO KARLARI (646) (ihracat ve imalat kaynaklı alacağın tahsiline kadar olan süreçte oluşan) | C33: 0
B34: 8- REESKONT FAİZ GELİRLERİ (647) | C34: 0
B35: 9- FAALİYETLE İLGİLİ DİĞER GELİR VE KARLAR (649) | C35: 0
B36: ARA TOPLAM | C36: =C25+C26 -> 500000 | D36: =D25+D26 -> 600000 | E36: =E25+E26 -> 0 | F36: =F25+F26 -> -100000
B37: G-DİĞER FAALİYETLERDEN OLAĞAN GİDER VE ZARARLAR(-) (65) | C37: =SUM(C38:C43) -> 0 | D37: =SUM(D38:D43) -> 0 | E37: =SUM(E38:E43) -> 0 | F37: 0
B38: 1- KOMİSYON GİDERLERİ (653) | C38: =SUM(D38:F38) -> 0
B39: 2- KARŞILIK GİDERLERİ (654) | C39: =SUM(D39:F39) -> 0
B40: 3- MENKUL KIYMET SATIŞ ZARARLARI (655) | C40: 0
B41: 4- KAMBİYO ZARARLARI (656) (ihracat ve imalat kaynaklı alacağın tahsiline kadar olan süreçte oluşan) | C41: 0
B42: 5- REESKONT FAİZ GİDERLERİ (657) | C42: 0
B43: 6- DİĞER OLAĞAN GİDER VE ZARARLAR (659) | C43: =SUM(D43:F43) -> 0
B44: ARA TOPLAM | C44: =C36-C37 -> 500000 | D44: =D36-D37 -> 600000 | E44: =E36-E37 -> 0 | F44: -100000
B45: H-FİNANSMAN GİDERLERİ(-) (66) | C45: =SUM(C46:C49) -> 0 | D45: =SUM(D46:D49) -> 0 | E45: =SUM(E46:E49) -> 0 | F45: =SUM(F46:F49) -> 0
B46: 1- KISA VADELİ BORÇLANMA GİDERLERİ (-) | C46: =SUM(D46:F46) -> 0
B47: 2- UZUN VADELİ BORÇLANMA GİDERLERİ (-) | C47: =SUM(D47:F47) -> 0
B48: 1- KISA VADELİ BORÇLANMA GİDERLERİ (-) (DAĞITIM) | D48: =C48*D2 -> 0 | E48: =C48*E2 -> 0 | F48: =C48*F2 -> 0
B49: 2- UZUN VADELİ BORÇLANMA GİDERLERİ (-) (DAĞITIM) | D49: =C49*D2 -> 0 | E49: =C49*E2 -> 0 | F49: =C49*F2 -> 0
B50: ARA TOPLAM | C50: =C44-C45 -> 500000 | D50: =D44-D45 -> 600000 | E50: =E44-E45 -> 0 | F50: =F44-F45 -> -100000
B51: I-OLAĞANDIŞI GELİR VE KÂRLAR (67) | C51: =SUM(D51:F51) -> 0 | D51: =SUM(D52:D53) -> 0 | E51: =SUM(E52:E53) -> 0 | F51: =SUM(F52:F53) -> 0
B52: 1- ÖNCEKİ DÖNEM GELİR VE KARLARI (671) | C52: =SUM(D52:F52) -> 0
B53: 2-DİĞER OLAĞAN DIŞI GELİR VE KARLAR (679) | C53: =SUM(D53:F53) -> 0
B54: ARA TOPLAM | C54: =SUM(D54:F54) -> 500000 | D54: =D50+D51 -> 600000 | E54: =E50+E51 -> 0 | F54: -100000
B55: J-OLAĞANDIŞI GİDER VE ZARARLAR(-) (68) | C55: =SUM(C56:C58) -> 0 | D55: =SUM(D56:D58) -> 0 | E55: =SUM(E56:E58) -> 0 | F55: 0
B56: 1-Çalışmayan Kısım Gider ve Zararları(-) (680) | C56: =SUM(D56:F56) -> 0
B57: 2-Önceki Dönem Gider ve Zararları(-) (681) | C57: =SUM(D57:F57) -> 0
B58: 3-Diğer Olağan Dışı Gider ve Zararlar(-) (689) | C58: 0
B59: DÖNEM KÂRI VEYA ZARARI (TİCARİ BİLANÇO KARI ZARARI ) | C59: =C54-C55 -> 500000 | D59: =D54-D55 -> 600000 | E59: =E54-E55 -> 0 | F59: -100000
B60: İHRACAT, İMALAT VE DİĞER FAALİYETLERDEN ELDE EDİLEN KAZANCIN TOPLAM TİCARİ KAZANÇ İÇİNDEKİ PAYLARI | D60: =IF(D59>=$C$59,1, IF(D59<=0,0, IF(AND(D59>0,D59<$C$59),D59/$C$59))) -> 1 | E60: =IF(E59>=$C$59,1, IF(E59<=0,0, IF(AND(E59>0,E59<$C$59),E59/$C$59))) -> 0 | F60: =IF(F59>=$C$59,1, IF(F59<=0,0, IF(AND(F59>0,F59<$C$59),F59/$C$59))) -> 0
D61: =D60/(D60+E60+F60) -> 1 | E61: =E60/(D60+E60+F60) -> 0 | F61: =F60/(D60+E60+F60) -> 0
B63: KKEG + | C63: 300000
B64: KABUL EDİLMEYEN GELİRLER -
B65: ZARAR OLSA DAHİ İNDİRİLECEK İSTİSNALAR - | C65: =C66+C67+C68 -> 0
B66: Hizmet İhracatı Faaliyetinden (KVK 10-1/ğ) Elde Edilen Kazançlardan İstisna Edilenlerin Toplamı
B67: İmalat Faaliyetinden Elde Edilen Kazançlardan İstisna Edilenlerin Toplamı
B68: Diğer Faaliyetlerden Elde Edilen Kazançlardan İstisna Edilenlerin Toplamı
B69: GEÇMİŞ YIL ZARARLARI -
B70: İNDİRİMLER - | D70: AZAMİ YAZILABİLECEK İNDİRİMLER TUTARI | E70: =C59+C63-C64-C65-C69 -> 800000
B72: 1 PUAN İNDİRİM UYGULANACAK TUTARIN HESABINDA İSTİSNA KAZANÇLAR DÜŞÜLDÜKTEN SONRA BULUNAN TİCARİ KAZANÇ TUTARI İLE BU KAZANÇ İÇİNDE İHRACAT,İMALAT VE DİĞER KAZANÇLARIN TUTARI | C72: TİCARİ KAZANÇ TAN İhracat ve İmalat Kazancından İstisna Olan Tutarlar Düşüldükten Sonra Kalan Tutarı | D72: İhracat Faaliyetinden Elde Edilen Kazançtan İstisna Olan Kısım Düşüldükten Sonra Bulunan Tutarı | E72: Üretim Faaliyetinden Elde Edilen Kazançtan İstisna Olan Kısım Düşüldükten Sonra Bulunan Tutarı | F72: Diğer Faaliyetinden Elde Edilen Kazanç
C73: =IF(C59-C66-C67<=0,0,C59-C66-C67) -> 500000 | D73: =IF($D$59-C66<=0,0,MIN($D$59-C66,$C$73*D61)) -> 500000 | E73: =IF($E$59-C67<=0,0,MIN($E$59-C67,$C$73*E61)) -> 0 | F73: =IF(C73-D73-E73<=0,0,C73-D73-E73) -> 0
B74: İHRACAT, İMALAT VE DİĞER FAALİYETLERDEN ELDE EDİLEN KAZANCIN TOPLAM TİCARİ KAZANÇ İÇİNDEKİ PAYLARI | D74: =IFERROR(IF(D73/C73<=0,0,D73/C73),0) -> 1 | E74: =IFERROR(IF(E73/C73<=0,0,E73/C73),0) -> 0 | F74: =IFERROR(F73/C73,0) -> 0
B75: NEGATİF VE % 100 DEN BÜYÜKLÜK KONTROLÜ SONRASINDAKİ PAYLARI | D75: =IFERROR(IF(D74<=0,0,IF(D74>1,1,D74)),0) -> 1 | E75: =IFERROR(IF(E74<=0,0,IF(E74>1,1,E74)),0) -> 0 | F75: =IFERROR(IF(F74<=0,0,IF(F74>1,1,F74)),0) -> 0
B77: SAFİ KURUM KAZANCI (KURUMLAR VERGİSİ MATRAHI) | C77: =C59+C63-C64-C65-C69-C70 -> 800000 | D77: =IF(C77<0, "ZARAR","KAR") -> KAR
B79: 2022 YILI 3. DÖNEM İNDİRİMLİ KURUMLAR VERGİSİ HESAPLAMA TABLOSU
C80: 1. TEŞVİK BELGESİ | D80: 2. TEŞVİK BELGESİ | E80: 3. TEŞVİK BELGESİ | F80: 4. TEŞVİK BELGESİ | G80: 5. TEŞVİK BELGESİ
B81: Vergi İndirim Oranı (VİO)
B82: KV MATRAHI (Safi Kurum Kazancı) | C82: =C77 -> 800000
B83: 32/A Uygulanacak K.V. Matrahı (HER BİR TEŞVİK BELGESİ KAPSAMINDA YARARLANILABİLECEK YATIRIMA KATKI TUTARININ MATRAHI BU HÜCRELERE YAZILMALIDIR) | H83: =IF(SUM(C83:G83)>C77,"32/A İNDİRİMİ UYGULANACAK KAZANÇ, SAFİ KURUM KAZANCINDAN FAZLADIR",SUM(C83:G83)) -> 0
B84: 32/A UYGULANMAYACAK K.V. Matrahı | C84: =IF(C82-(C83+D83+E83+F83+G83)<0,0,C82-(C83+D83+E83+F83+G83)) -> 800000
B85: MATRAH TOPLAMI | C85: =IF((C83+D83+E83+F83+G83+C84)>C77,C77,(C83+D83+E83+F83+G83+C84)) -> 800000
B87: SAFİ KURUM KAZANCININ KV VERGİ ORANLARI İTİBARİYLE DAĞILIMI | C87: TOPLAM SAFİ KAZANÇ | D87: İhracat Kazancı Payı | E87: Üretim Kazancı Payı | F87: Diğer Faaliyet Kazancı Payı
C89: =C77 -> 800000 | D89: =IF(AND(OR(D59>=C89,D59+E59>=C89),C66>0),MAX(MIN(C89*D74,D59,D73),0),MIN(C89*D74,D59)) -> 600000 | E89: =MAX( IF(AND(OR(E59>=C89,E59+F59>=C89),C67>0),MAX(MIN(C89*E74,E59,E73),0),MIN(C89*E74,E59)),0) -> 0 | F89: =IF(C89-D89-E89<=0,0,C89-D89-E89) -> 200000
B90: SAFİ KURUM KAZANCININ DAĞILIMI ORANSAL DAĞILIMI | C90: =C89 -> 800000 | D90: =D89/C89 -> 0.75 | E90: =E89/C89 -> 0 | F90: =F89/C89 -> 0.25
B91: SAFİ KURUM KAZANCININ DAĞILIMI TUTARSAL | C91: =C90 -> 800000 | D91: =D89 -> 600000 | E91: =E89 -> 0 | F91: =F89 -> 200000
B92: SAFİ KURUM KAZANCI DAĞILIMI | C92: =C91 -> 800000 | D92: =IFERROR(IF(D91/C91>=1,1,D91/C91),0) -> 0.75 | E92: =IFERROR(IF(E91/C91>=1,1,E91/C91),0) -> 0 | F92: =IFERROR(IF(F91/C91>=1,1,F91/C91),0) -> 0.25 | H92: KV ORANI
B93: 1 PUAN VE 32/A İNDİRİMİ OLMASAYDI HESAPLANAN KV TUTARI | C93: =C92*$H$93 -> 200000 | D93: =D91*$H$93 -> 150000 | E93: =E91*$H$93 -> 0 | F93: =F91*$H$93 -> 50000 | H93: 0.25
B94: 32/ A UYGULANAN MATRAH | C94: =C83+D83+E83+F83+G83 -> 0 | D94: =D106+D111+D116+D121+D126 -> 0 | E94: =D105+D110+D115+D120+D125 -> 0 | F94: =D104+D109+D114+D119+D124 -> 0
B95: 32/A UYGULANACAK MATRAH ÜZERİNDEN ÖDENECEK KV TUTARI | C95: =J107+J112+J117+J122+J127 -> 0 | D95: =J106+J111+J116+J121+J126 -> 0 | E95: =J105+J110+J115+J120+J125 -> 0 | F95: =J104+J109+J114+J119+J124 -> 0
B96: 32/A UYGULANMAYAN MATRAH | C96: =IF(C84<=0,0,C84) -> 800000 | D96: =D131 -> 600000 | E96: =D130 -> 0 | F96: =D129 -> 200000
B97: 32/A UYGULANMAYAN MATRAH ÜZERİNDEN ÖDENECEK KV TUTARI | C97: =L129 -> 170000 | D97: =J131 -> 120000 | E97: =J130 -> 0 | F97: =J129 -> 50000
B98: TOPLAM ÖDENECEK KV | C98: =C95+C97 -> 170000 | D98: =J131+J106 -> 120000 | E98: =J130+J105 -> 0 | F98: =J129+J104 -> 50000
B99: TOPLAM AVANTAJ (YARARLANILAN 1 PUAN İNDİRİMİ + 32/A İNDİRİMİ TUTARI ) | C99: =C93-C98 -> 30000 | D99: =D100+D101 -> 30000 | E99: =E100+E101 -> 0 | F99: =F100+F101 -> 0
B100: YARARLANILAN 1 - 5 PUAN İNDİRİMİ TUTARI | C100: =F132+F127+F122+F117+F112+F107 -> 30000 | D100: =F131+F106+F111+F116+F121+F126 -> 30000 | E100: =F130+F105+F110+F115+F120+F125 -> 0 | F100: =F129+F104+F109+F114+F119+F124 -> 0
B101: YARLANILAN 32/A İNDİRİMİ TUTARI | C101: =K107+K112+K117+K122+K127+K132 -> 0 | D101: =K106+K111+K121+K126+K131 -> 0 | E101: =K105+K110+K115+K120+K125+K130 -> 0 | F101: =K104++K109+K114+K119+K124+K129 -> 0
B103: 32/A UYGULANABİLECEK MATRAH (1.TEŞVİK BELGESİ) | C103: =C83 -> 0 | D103: KV MATRAHI | E103: 1 - 5 PUAN İNDİRİM OLMASAYDI HESAPLANAN KV TUTARI | F103: 1 -5 Puan İndirim Tutarı | G103: 1 - 5 Puan İndirim Sonrasında Hesaplanan KV Tutarı | H103: 32/A İndirimi Olmasaydı Ödenecek KV Tutarı | I103: 1 -5 Puan İndirim ve 32/A VİO Uygulandıktan Sonra Tatbik Edilecek KV Oranı | J103: 1 -5 Puan İndirim ve 32/A İndirimi Uygulandıktan Sonra Ödenecek KV Tutarı | K103: Yararlanılan Yatırıma Katkı Tutarı (32/A İnd. KV Nedeniyle Vazgeçilen Vergi Tutarı) | L103: Ödenecek KV Tutarı
B104: GENEL ORANA TABİ KISIM (DİĞER FAALİYETLER) | C104: =F92 -> 0.25 | D104: =C103*C104 -> 0 | E104: =D104*$H$93 -> 0 | F104: 0 | G104: =E104-F104 -> 0 | H104: =G104 -> 0 | I104: =($H$93)-(($H$93)*$C$81) -> 0.25 | J104: =I104*D104 -> 0 | K104: =G104-J104 -> 0 | L104: =J107 -> 0
B105: 1 PUAN İNDİRİMLİ ORANA TABİ KISIM (İMALAT) | C105: =E92 -> 0 | D105: =C103*C105 -> 0 | E105: =D105*$H$93 -> 0 | F105: =D105/100 -> 0 | G105: =E105-F105 -> 0 | H105: =G105 -> 0 | I105: =($H$93-0.01)-(($H$93-0.01)*$C$81) -> 0.24 | J105: =I105*D105 -> 0 | K105: =G105-J105 -> 0
B106: 5 PUAN İNDİRİMLİ ORANA TABİ KISIM ( İHRACAT) | C106: =D92 -> 0.75 | D106: =C103*C106 -> 0 | E106: =D106*$H$93 -> 0 | F106: =D106/20 -> 0 | G106: =E106-F106 -> 0 | H106: 0 | I106: =($H$93-0.05)-(($H$93-0.05)*C81) -> 0.2 | J106: 0 | K106: =G106-J106 -> 0
B107: TOPLAM | C107: =SUM(C104:C106) -> 1 | D107: =SUM(D104:D106) -> 0 | E107: 0 | F107: =SUM(F104:F106) -> 0 | G107: =SUM(G104:G106) -> 0 | H107: =SUM(H104:H106) -> 0 | J107: 0 | K107: 0
B108: 32/A UYGULANABİLECEK MATRAH (2.TEŞVİK BELGESİ) | C108: =D83 -> 0 | D108: KV MATRAHI | E108: 1 - 5 PUAN İNDİRİM OLMASAYDI HESAPLANAN KV TUTARI | F108: 1 -5 Puan İndirim Tutarı | G108: 1 -5 Puan İndirim Sonrasında Hesaplanan KV Tutarı | H108: 32/A İndirimi Olmasaydı Ödenecek KV Tutarı | I108: 1 - 5 Puan İndirim ve 32/A VİO Uygulandıktan Sonra Tatbik Edilecek KV Oranı | J108: 1-5 Puan İndirim ve 32/A İndirimi Uygulandıktan Sonra Ödenecek KV Tutarı | K108: Yararlanılan Yatırıma Katkı Tutarı (32/A İnd. KV Nedeniyle Vazgeçilen Vergi Tutarı) | L108: Ödenecek KV Tutarı
B109: GENEL ORANA TABİ KISIM (DİĞER FAALİYETLER) | C109: =F92 -> 0.25 | D109: =C108*C109 -> 0 | E109: =D109*$H$93 -> 0 | F109: 0 | G109: =E109-F109 -> 0 | H109: =G109 -> 0 | I109: =($H$93)-(($H$93)*D81) -> 0.25 | J109: =I109*D109 -> 0 | K109: =G109-J109 -> 0 | L109: =J112 -> 0
B110: 1 PUAN İNDİRİMLİ ORANA TABİ KISIM (İMALAT) | C110: =E92 -> 0 | D110: =C108*C110 -> 0 | E110: =D110*$H$93 -> 0 | F110: =D110/100 -> 0 | G110: =E110-F110 -> 0 | H110: =G110 -> 0 | I110: =($H$93-0.01)-(($H$93-0.01)*D81) -> 0.24 | J110: =I110*D110 -> 0 | K110: =G110-J110 -> 0
B111: 5 PUAN İNDİRİMLİ ORANA TABİ KISIM ( İHRACAT) | C111: =D92 -> 0.75 | D111: =C108*C111 -> 0 | E111: =D111*$H$93 -> 0 | F111: =D111/20 -> 0 | G111: =E111-F111 -> 0 | H111: 0 | I111: =($H$93-0.05)-(($H$93-0.05)*D81) -> 0.2 | J111: 0 | K111: =G111-J111 -> 0
B112: TOPLAM | C112: =SUM(C109:C111) -> 1 | D112: 0 | E112: 0 | F112: =SUM(F109:F111) -> 0 | G112: =SUM(G109:G111) -> 0 | H112: =SUM(H109:H111) -> 0 | J112: =SUM(J109:J111) -> 0 | K112: 0
B113: 32/A UYGULANABİLECEK MATRAH (3.TEŞVİK BELGESİ) | C113: =E83 -> 0 | D113: KV MATRAHI | E113: 1 - 5 PUAN İNDİRİM OLMASAYDI HESAPLANAN KV TUTARI | F113: 1-5 Puan İndirim Tutarı | G113: 1 - 5 Puan İndirim Sonrasında Hesaplanan KV Tutarı | H113: 32/A İndirimi Olmasaydı Ödenecek KV Tutarı | I113: 1 - 5 Puan İndirim ve 32/A VİO Uygulandıktan Sonra Tatbik Edilecek KV Oranı | J113: 1 -5 Puan İndirim ve 32/A İndirimi Uygulandıktan Sonra Ödenecek KV Tutarı | K113: Yararlanılan Yatırıma Katkı Tutarı (32/A İnd. KV Nedeniyle Vazgeçilen Vergi Tutarı) | L113: Ödenecek KV Tutarı
B114: GENEL ORANA TABİ KISIM (DİĞER FAALİYETLER) | C114: =F92 -> 0.25 | D114: =C113*C114 -> 0 | E114: =D114*$H$93 -> 0 | F114: 0 | G114: =E114-F114 -> 0 | H114: =G114 -> 0 | I114: =($H$93)-(($H$93)*E81) -> 0.25 | J114: =I114*D114 -> 0 | K114: =G114-J114 -> 0 | L114: =J117 -> 0
B115: 1 PUAN İNDİRİMLİ ORANA TABİ KISIM (İMALAT) | C115: =E92 -> 0 | D115: =C113*C115 -> 0 | E115: =D115*$H$93 -> 0 | F115: =D115/100 -> 0 | G115: =E115-F115 -> 0 | H115: =G115 -> 0 | I115: =($H$93-0.01)-(($H$93-0.01)*E81) -> 0.24 | J115: =I115*D115 -> 0 | K115: =G115-J115 -> 0
B116: 5 PUAN İNDİRİMLİ ORANA TABİ KISIM ( İHRACAT) | C116: =D92 -> 0.75 | D116: =C113*C116 -> 0 | E116: =D116*$H$93 -> 0 | F116: =D116/20 -> 0 | G116: =E116-F116 -> 0 | H116: 0 | I116: =($H$93-0.05)-(($H$93-0.05)*E81) -> 0.2 | J116: 0 | K116: =G116-J116 -> 0
B117: TOPLAM | C117: =SUM(C114:C116) -> 1 | D117: 0 | E117: 0 | F117: =SUM(F114:F116) -> 0 | G117: =SUM(G114:G116) -> 0 | H117: =SUM(H114:H116) -> 0 | J117: =SUM(J114:J116) -> 0 | K117: 0
B118: 32/A UYGULANABİLECEK MATRAH (4. TEŞVİK BELGESİ) | C118: =F83 -> 0 | D118: KV MATRAHI | E118: 1 - 5 PUAN İNDİRİM OLMASAYDI HESAPLANAN KV TUTARI | F118: 1-5 Puan İndirim Tutarı | G118: 1 -5 Puan İndirim Sonrasında Hesaplanan KV Tutarı | H118: 32/A İndirimi Olmasaydı Ödenecek KV Tutarı | I118: 1- 5 Puan İndirim ve 32/A VİO Uygulandıktan Sonra Tatbik Edilecek KV Oranı | J118: 1-5 Puan İndirim ve 32/A İndirimi Uygulandıktan Sonra Ödenecek KV Tutarı | K118: Yararlanılan Yatırıma Katkı Tutarı (32/A İnd. KV Nedeniyle Vazgeçilen Vergi Tutarı) | L118: Ödenecek KV Tutarı
B119: GENEL ORANA TABİ KISIM (DİĞER FAALİYETLER) | C119: =F92 -> 0.25 | D119: =C118*C119 -> 0 | E119: =D119*$H$93 -> 0 | F119: 0 | G119: =E119-F119 -> 0 | H119: =G119 -> 0 | I119: =($H$93)-(($H$93)*F81) -> 0.25 | J119: =I119*D119 -> 0 | K119: =G119-J119 -> 0 | L119: =J122 -> 0
B120: 1 PUAN İNDİRİMLİ ORANA TABİ KISIM (İMALAT) | C120: =E92 -> 0 | D120: =C118*C120 -> 0 | E120: =D120*$H$93 -> 0 | F120: =D120/100 -> 0 | G120: =E120-F120 -> 0 | H120: =G120 -> 0 | I120: =($H$93-0.01)-(($H$93-0.01)*F81) -> 0.24 | J120: =I120*D120 -> 0 | K120: =G120-J120 -> 0
B121: 5 PUAN İNDİRİMLİ ORANA TABİ KISIM ( İHRACAT) | C121: =D92 -> 0.75 | D121: =C118*C121 -> 0 | E121: =D121*$H$93 -> 0 | F121: =D121/20 -> 0 | G121: =E121-F121 -> 0 | H121: 0 | I121: =($H$93-0.05)-(($H$93-0.05)*F81) -> 0.2 | J121: 0 | K121: =G121-J121 -> 0
B122: TOPLAM | C122: =SUM(C119:C121) -> 1 | D122: 0 | E122: 0 | F122: =SUM(F119:F121) -> 0 | G122: =SUM(G119:G121) -> 0 | H122: =SUM(H119:H121) -> 0 | J122: =SUM(J119:J121) -> 0 | K122: 0
B123: 32/A UYGULANABİLECEK MATRAH (5.TEŞVİK BELGESİ) | C123: =G83 -> 0 | D123: KV MATRAHI | E123: 1 - 5 PUAN İNDİRİM OLMASAYDI HESAPLANAN KV TUTARI | F123: 1-5 Puan İndirim Tutarı | G123: 1 - 5 Puan İndirim Sonrasında Hesaplanan KV Tutarı | H123: 32/A İndirimi Olmasaydı Ödenecek KV Tutarı | I123: 1 -5 Puan İndirim ve 32/A VİO Uygulandıktan Sonra Tatbik Edilecek KV Oranı | J123: 1 - 5 Puan İndirim ve 32/A İndirimi Uygulandıktan Sonra Ödenecek KV Tutarı | K123: Yararlanılan Yatırıma Katkı Tutarı (32/A İnd. KV Nedeniyle Vazgeçilen Vergi Tutarı) | L123: Ödenecek KV Tutarı
B124: GENEL ORANA TABİ KISIM (DİĞER FAALİYETLER) | C124: =F92 -> 0.25 | D124: =C123*C124 -> 0 | E124: =D124*$H$93 -> 0 | F124: 0 | G124: =E124-F124 -> 0 | H124: =G124 -> 0 | I124: =($H$93)-(($H$93)*G81) -> 0.25 | J124: =I124*D124 -> 0 | K124: =G124-J124 -> 0 | L124: =J127 -> 0
B125: 1 PUAN İNDİRİMLİ ORANA TABİ KISIM (İMALAT) | C125: =E92 -> 0 | D125: =C123*C125 -> 0 | E125: =D125*$H$93 -> 0 | F125: =D125/100 -> 0 | G125: =E125-F125 -> 0 | H125: =G125 -> 0 | I125: =($H$93-0.01)-(($H$93-0.01)*G81) -> 0.24 | J125: =I125*D125 -> 0 | K125: =G125-J125 -> 0
B126: 5 PUAN İNDİRİMLİ ORANA TABİ KISIM ( İHRACAT) | C126: =D92 -> 0.75 | D126: =C123*C126 -> 0 | E126: =D126*$H$93 -> 0 | F126: =D126/20 -> 0 | G126: =E126-F126 -> 0 | H126: 0 | I126: =($H$93-0.05)-(($H$93-0.05)*G81) -> 0.2 | J126: 0 | K126: =G126-J126 -> 0
B127: TOPLAM | C127: =SUM(C124:C126) -> 1 | D127: 0 | E127: 0 | F127: =SUM(F124:F126) -> 0 | G127: =SUM(G124:G126) -> 0 | H127: =SUM(H124:H126) -> 0 | J127: =SUM(J124:J126) -> 0 | K127: 0
B128: 32/A UYGULANAMAYACAK MATRAH | C128: =IF(C84<=0,0,C84) -> 800000 | D128: KV MATRAHI | E128: 1-5 PUAN İNDİRİM OLMASAYDI HESAPLANAN KV TUTARI | F128: 1-5 Puan İndirim Tutarı | G128: 1 -5 Puan İndirim Sonrasında Hesaplanan KV Tutarı | H128: 32/A İNDİRİMİ UYGULANMAZ | J128: 1 Puan İndirim ve 32/A İndirimi Uygulandıktan Sonra Ödenecek KV Tutarı | K128: Yararlanılan Yatırıma Katkı Tutarı (32/A İnd. KV Nedeniyle Vazgeçilen Vergi Tutarı) | L128: Ödenecek KV Tutarı
B129: GENEL ORANA TABİ KISIM (DİĞER FAALİYETLER) | C129: =F92 -> 0.25 | D129: =C128*C129 -> 200000 | E129: =D129*$H$93 -> 50000 | F129: 0 | G129: =E129-F129 -> 50000 | J129: =G129 -> 50000 | K129: =G129-J129 -> 0 | L129: =J132 -> 170000
B130: 1 PUAN İNDİRİMLİ ORANA TABİ KISIM (İMALAT) | C130: =E92 -> 0 | D130: =C130*C128 -> 0 | E130: =D130*$H$93 -> 0 | F130: =D130/100 -> 0 | G130: =E130-F130 -> 0 | J130: =G130 -> 0 | K130: =G130-J130 -> 0
B131: 5 PUAN İNDİRİMLİ ORANA TABİ KISIM ( İHRACAT) | C131: =D92 -> 0.75 | D131: =C131*C128 -> 600000 | E131: =D131*$H$93 -> 150000 | F131: =D131/20 -> 30000 | G131: =E131-F131 -> 120000 | J131: 120000 | K131: 0
B132: TOPLAM | C132: =SUM(C129:C131) -> 1 | D132: =SUM(D129:D131) -> 800000 | E132: 200000 | F132: =SUM(F129:F131) -> 30000 | G132: =SUM(G129:G131) -> 170000 | J132: 170000 | K132: 0
B133: TOPLAM KV MATRAHI VE ÖDENMESİ GEREKEN KV | C133: =C103+C128+C108+C113+C118+C123 -> 800000 | D133: =D107+D132+D112+D117+D122+D127 -> 800000 | E133: =E107+E132+E112+E117+E122+E127 -> 200000 | F133: =F107+F132+F112+F117+F122+F127 -> 30000 | G133: =G107+G132+G112+G117+G122+G127 -> 170000 | J133: =J107+J132+J112+J117+J122+J127 -> 170000 | K133: =K132+K107+K112+K117+K122+K127 -> 0 | L133: =L104+L129+L109+L114+L119+L124 -> 170000
B135: GEÇİCİ VERGİ BEYANNMESİNDE MATRAH BİLDİRİMİ BÖLÜMÜNDE DOLDURULACAK KISIMLAR VE TUTARLARI
B136: 32 A Madde Kapsamında İndirimli Kurumlar Vergisine (Geçici Vergiye) Tabi Matrah | C136: =C103+C108+C113+C118+C123 -> 0 | D136: =E107+E112+E117+E122+E127 -> 0 | E136: 1-5 Puan Olmasaydı Hesaplan KV Tutarı
D137: =G107+G112+G117+G122++G127 -> 0 | E137: 1 -5 Puan İndirim Sonrasında Ödenecek KV Tutarı (32 A olmasaydı hesaplanacak Vergi)
D138: =K107+K112+K117+K122+K127 -> 0 | E138: 32/A İndirimi ile Vazgeçilen Vergi
B139: 32 A Madde Kapsamında İndirimli Kurumlar Vergisi(Geçici Vergi) Oranı | C139: =IFERROR(D139/C136,0) -> 0 | D139: =L104+L109+L114+L119+L124 -> 0 | E139: 32/A ya Tabi Matrah Üzerinden Ödenecek KV
B140: 32/7 Madde Kapsamında İndirimli Kurumlar Vergisine (Geçici Vergiye) Tabi Matrah (İhracat) | C140: =D131 -> 600000 | D140: =E131 -> 150000 | E140: 5 Puan Olmasaydı Hesaplan KV Tutarı
D141: =F131 -> 30000 | E141: 5 Puan İndirimin Vergi Etkisi
B142: 32/7 Madde Kapsamında İndirimli Kurumlar Vergisi (Geçici Vergi) Oranı | C142: =IFERROR(D142/C140,0) -> 0.2 | D142: =G131 -> 120000 | E142: 5 Puan İndirim Sonrasında Ödenecek KV Tutarı (İhracat)
B143: 32/8 Madde Kapsamında İndirimli Kurumlar Vergisine (Geçici Vergiye) Tabi Matrah (Üretim) | C143: =D130 -> 0 | D143: =E130 -> 0 | E143: 1 Puan Olmasaydı Hesaplan KV Tutarı
D144: =F130 -> 0 | E144: 1 Puan İndirimin Vergi Etkisi
B145: 32/8 Madde Kapsamında İndirimli Kurumlar Vergisi (Geçici Vergi) Oranı | C145: =IFERROR(D145/C143,0) -> 0 | D145: =G130 -> 0 | E145: 1 Puan İndirim Sonrasında Ödenecek KV Tutarı (Üretim)
B146: Genel Orana Tabi Matrah (Diğer) | C146: =D129 -> 200000 | D146: =J129 -> 50000 | E146: Diğer Faalilyetlerden Elde Edilen Kazanç
C147: =IFERROR(D146/C146,0) -> 0.25
B148: MATRAHLAR TOPLAMI | C148: =C136+C143+C140+C146 -> 800000 | D148: =D139+D145+D142+D146 -> 170000

Sheet İ Ö 4 (hidden)
B2: FAALİYET TÜRLERİ İTİBARİYLE HASILATLAR VE TOPLAM İÇİNDEKİ ORANLARI | C2: =IFERROR(C4/C4,0) -> 1 | D2: =IFERROR(D4/C4,0) -> 1.052631579 | E2: =IFERROR(E4/C4,0) -> 0 | F2: =IFERROR(F4/C4,0) -> -0.05263157895
C3: Toplam Hasılat | D3: İhracat faaliyeti | E3: İmalat faaliyeti | F3: Diğer faaliyetler
B4: A-BRÜT SATIŞLAR (60) | C4: =D4+E4+F4 -> 950000 | D4: =SUM(D5:D7) -> 1000000 | E4: =SUM(E5:E7) -> 0 | F4: -50000
B5: 1-Yurtiçi Satışlar (600) | C5: =D5+E5+F5 -> -50000 | F5: -50000
B6: 2-Yurtdışı Satışlar (601) | C6: =D6+E6+F6 -> 1000000 | D6: 1000000
B7: 3-Diğer Gelirler (602) | C7: =D7+E7+F7 -> 0
B8: B-SATIŞ İNDİRİMLERİ(-) (61) | C8: =SUM(C9:C11) -> 0 | D8: =SUM(D9:D11) -> 0 | E8: =SUM(E9:E11) -> 0 | F8: 0
B9: 1-Satıştan İadeler (-) (610) | C9: =SUM(D9:F9) -> 0
B10: 2- Satış İskontoları (-) (611) | C10: =SUM(D10:F10) -> 0
B11: 3-Diğer İndirimler (-) (612) | C11: 0
B12: C-NET SATIŞLAR | C12: =C4-C8 -> 950000 | D12: =D4-D8 -> 1000000 | E12: =E4-E8 -> 0 | F12: -50000
B13: D-SATIŞLARIN MALİYETİ (-) (62) | C13: =SUM(C14:C17) -> 0 | D13: =SUM(D14:D17) -> 0 | E13: =SUM(E14:E17) -> 0 | F13: =SUM(F14:F17) -> 0
B14: 1-Satılan Mamuller Maliyeti ( 620) | C14: =SUM(D14:F14) -> 0
B15: 2-Satılan Ticari Mal Maliyeti (621) | C15: =SUM(D15:F15) -> 0
B16: 3-Satılan Hizmet Maliyeti (622) | C16: 0
B17: 4-Diğer Satışların Maliyeti (623) | C17: 0
B18: BRÜT SATIŞ KARI / ZARARI | C18: =C12-C13 -> 950000 | D18: =D12-D13 -> 1000000 | E18: =E12-E13 -> 0 | F18: -50000
B19: E-FAALİYET GİDERLERİ (-) (63) | C19: =SUM(C20:C24) -> 0 | D19: =SUM(D20:D24) -> 0 | E19: =SUM(E20:E24) -> 0 | F19: 0
B20: 1-Araştırma ve Geliştirme Giderleri(-) (630) | C20: =SUM(D20:F20) -> 0
B21: 2-Pazarlama, Satış ve Dağıtım Giderleri(-) (631) | C21: =SUM(D21:F21) -> 0
B22: 3-Genel Yönetim Giderleri(-) (632) | C22: =SUM(D22:F22) -> 0
B23: MÜŞTEREK GENEL GİDERLER (DAĞITIM-HASILAT PAYINA GÖRE) | D23: =C23*D2 -> 0 | E23: =C23*E2 -> 0 | F23: =C23*F2 -> 0
B24: MÜŞTEREK GENEL GİDER GİBİ DAĞITIMA TABİ TUTULACAK AMORTİSMAN GİDERLERİ (DAĞITIM-HASILAT PAYINA GÖRE) | D24: =C24*D2 -> 0 | E24: =C24*E2 -> 0 | F24: =C24*F2 -> 0
B25: FAALİYET KARI / ZARARI | C25: =C18-C19 -> 950000 | D25: =D18-D19 -> 1000000 | E25: =E18-E19 -> 0 | F25: -50000
B26: F-DİĞER FAALİYETLERDEN OLAĞAN GELİR VE KARLAR (64) | C26: =SUM(C27:C35) -> 0 | D26: =SUM(D27:D35) -> 0 | E26: =SUM(E27:E35) -> 0 | F26: =SUM(F27:F35) -> 0
B27: 1- İŞTİRAKLERDEN TEMETTÜ GELİRLERİ (640) | C27: =SUM(D27:F27) -> 0
B28: 2- BAĞLI ORTAKLIKLARDAN TEMETTÜ GELİRLERİ (641) | C28: =SUM(D28:F28) -> 0
B29: 3- FAİZ GELİRLERİ (642) (ihracat ve imalat kaynaklı alacağın tahsiline kadar olan süreçte oluşan) | C29: 0
B30: 4- KOMİSYON GELİRLERİ (643) | C30: 0
B31: 5- KONUSU OLMAYAN KARŞILIKLAR (644) | C31: 0
B32: 6- MENKUL KIYMET SATIŞ KARLARI (645) | C32: 0
B33: 7- KAMBİYO KARLARI (646) (ihracat ve imalat kaynaklı alacağın tahsiline kadar olan süreçte oluşan) | C33: 0
B34: 8- REESKONT FAİZ GELİRLERİ (647) | C34: 0
B35: 9- FAALİYETLE İLGİLİ DİĞER GELİR VE KARLAR (649) | C35: 0
B36: ARA TOPLAM | C36: =C25+C26 -> 950000 | D36: =D25+D26 -> 1000000 | E36: =E25+E26 -> 0 | F36: =F25+F26 -> -50000
B37: G-DİĞER FAALİYETLERDEN OLAĞAN GİDER VE ZARARLAR(-) (65) | C37: =SUM(C38:C43) -> 0 | D37: =SUM(D38:D43) -> 0 | E37: =SUM(E38:E43) -> 0 | F37: 0
B38: 1- KOMİSYON GİDERLERİ (653) | C38: =SUM(D38:F38) -> 0
B39: 2- KARŞILIK GİDERLERİ (654) | C39: =SUM(D39:F39) -> 0
B40: 3- MENKUL KIYMET SATIŞ ZARARLARI (655) | C40: 0
B41: 4- KAMBİYO ZARARLARI (656) (ihracat ve imalat kaynaklı alacağın tahsiline kadar olan süreçte oluşan) | C41: 0
B42: 5- REESKONT FAİZ GİDERLERİ (657) | C42: 0
B43: 6- DİĞER OLAĞAN GİDER VE ZARARLAR (659) | C43: =SUM(D43:F43) -> 0
B44: ARA TOPLAM | C44: =C36-C37 -> 950000 | D44: =D36-D37 -> 1000000 | E44: =E36-E37 -> 0 | F44: -50000
B45: H-FİNANSMAN GİDERLERİ(-) (66) | C45: =SUM(C46:C49) -> 0 | D45: =SUM(D46:D49) -> 0 | E45: =SUM(E46:E49) -> 0 | F45: =SUM(F46:F49) -> 0
B46: 1- KISA VADELİ BORÇLANMA GİDERLERİ (-) | C46: =SUM(D46:F46) -> 0
B47: 2- UZUN VADELİ BORÇLANMA GİDERLERİ (-) | C47: =SUM(D47:F47) -> 0
B48: 1- KISA VADELİ BORÇLANMA GİDERLERİ (-) (DAĞITIM) | D48: =C48*D2 -> 0 | E48: =C48*E2 -> 0 | F48: =C48*F2 -> 0
B49: 2- UZUN VADELİ BORÇLANMA GİDERLERİ (-) (DAĞITIM) | D49: =C49*D2 -> 0 | E49: =C49*E2 -> 0 | F49: =C49*F2 -> 0
B50: ARA TOPLAM | C50: =C44-C45 -> 950000 | D50: =D44-D45 -> 1000000 | E50: =E44-E45 -> 0 | F50: =F44-F45 -> -50000
B51: I-OLAĞANDIŞI GELİR VE KÂRLAR (67) | C51: =SUM(D51:F51) -> 0 | D51: =SUM(D52:D53) -> 0 | E51: =SUM(E52:E53) -> 0 | F51: =SUM(F52:F53) -> 0
B52: 1- ÖNCEKİ DÖNEM GELİR VE KARLARI (671) | C52: =SUM(D52:F52) -> 0
B53: 2-DİĞER OLAĞAN DIŞI GELİR VE KARLAR (679) | C53: =SUM(D53:F53) -> 0
B54: ARA TOPLAM | C54: =SUM(D54:F54) -> 950000 | D54: =D50+D51 -> 1000000 | E54: =E50+E51 -> 0 | F54: -50000
B55: J-OLAĞANDIŞI GİDER VE ZARARLAR(-) (68) | C55: =SUM(C56:C58) -> 0 | D55: =SUM(D56:D58) -> 0 | E55: =SUM(E56:E58) -> 0 | F55: 0
B56: 1-Çalışmayan Kısım Gider ve Zararları(-) (680) | C56: =SUM(D56:F56) -> 0
B57: 2-Önceki Dönem Gider ve Zararları(-) (681) | C57: =SUM(D57:F57) -> 0
B58: 3-Diğer Olağan Dışı Gider ve Zararlar(-) (689) | C58: 0
B59: DÖNEM KÂRI VEYA ZARARI (TİCARİ BİLANÇO KARI ZARARI ) | C59: =C54-C55 -> 950000 | D59: =D54-D55 -> 1000000 | E59: =E54-E55 -> 0 | F59: -50000
B60: İHRACAT, İMALAT VE DİĞER FAALİYETLERDEN ELDE EDİLEN KAZANCIN TOPLAM TİCARİ KAZANÇ İÇİNDEKİ PAYLARI | D60: =IF(D59>=$C$59,1, IF(D59<=0,0, IF(AND(D59>0,D59<$C$59),D59/$C$59))) -> 1 | E60: =IF(E59>=$C$59,1, IF(E59<=0,0, IF(AND(E59>0,E59<$C$59),E59/$C$59))) -> 0 | F60: =IF(F59>=$C$59,1, IF(F59<=0,0, IF(AND(F59>0,F59<$C$59),F59/$C$59))) -> 0
D61: =D60/(D60+E60+F60) -> 1 | E61: =E60/(D60+E60+F60) -> 0 | F61: =F60/(D60+E60+F60) -> 0
B63: KKEG + | C63: 0
B64: KABUL EDİLMEYEN GELİRLER -
B65: ZARAR OLSA DAHİ İNDİRİLECEK İSTİSNALAR - | C65: =C66+C67+C68 -> 0
B66: Hizmet İhracatı Faaliyetinden (KVK 10-1/ğ) Elde Edilen Kazançlardan İstisna Edilenlerin Toplamı
B67: İmalat Faaliyetinden Elde Edilen Kazançlardan İstisna Edilenlerin Toplamı
B68: Diğer Faaliyetlerden Elde Edilen Kazançlardan İstisna Edilenlerin Toplamı
B69: GEÇMİŞ YIL ZARARLARI - | C69: 750000
B70: İNDİRİMLER - | D70: AZAMİ YAZILABİLECEK İNDİRİMLER TUTARI | E70: =C59+C63-C64-C65-C69 -> 200000
B72: 1 PUAN İNDİRİM UYGULANACAK TUTARIN HESABINDA İSTİSNA KAZANÇLAR DÜŞÜLDÜKTEN SONRA BULUNAN TİCARİ KAZANÇ TUTARI İLE BU KAZANÇ İÇİNDE İHRACAT,İMALAT VE DİĞER KAZANÇLARIN TUTARI | C72: TİCARİ KAZANÇ TAN İhracat ve İmalat Kazancından İstisna Olan Tutarlar Düşüldükten Sonra Kalan Tutarı | D72: İhracat Faaliyetinden Elde Edilen Kazançtan İstisna Olan Kısım Düşüldükten Sonra Bulunan Tutarı | E72: Üretim Faaliyetinden Elde Edilen Kazançtan İstisna Olan Kısım Düşüldükten Sonra Bulunan Tutarı | F72: Diğer Faaliyetinden Elde Edilen Kazanç
C73: =IF(C59-C66-C67<=0,0,C59-C66-C67) -> 950000 | D73: =IF($D$59-C66<=0,0,MIN($D$59-C66,$C$73*D61)) -> 950000 | E73: =IF($E$59-C67<=0,0,MIN($E$59-C67,$C$73*E61)) -> 0 | F73: =IF(C73-D73-E73<=0,0,C73-D73-E73) -> 0
B74: İHRACAT, İMALAT VE DİĞER FAALİYETLERDEN ELDE EDİLEN KAZANCIN TOPLAM TİCARİ KAZANÇ İÇİNDEKİ PAYLARI | D74: =IFERROR(IF(D73/C73<=0,0,D73/C73),0) -> 1 | E74: =IFERROR(IF(E73/C73<=0,0,E73/C73),0) -> 0 | F74: =IFERROR(F73/C73,0) -> 0
B75: NEGATİF VE % 100 DEN BÜYÜKLÜK KONTROLÜ SONRASINDAKİ PAYLARI | D75: =IFERROR(IF(D74<=0,0,IF(D74>1,1,D74)),0) -> 1 | E75: =IFERROR(IF(E74<=0,0,IF(E74>1,1,E74)),0) -> 0 | F75: =IFERROR(IF(F74<=0,0,IF(F74>1,1,F74)),0) -> 0
B77: SAFİ KURUM KAZANCI (KURUMLAR VERGİSİ MATRAHI) | C77: =C59+C63-C64-C65-C69-C70 -> 200000 | D77: =IF(C77<0, "ZARAR","KAR") -> KAR
B79: 2022 YILI 3. DÖNEM İNDİRİMLİ KURUMLAR VERGİSİ HESAPLAMA TABLOSU
C80: 1. TEŞVİK BELGESİ | D80: 2. TEŞVİK BELGESİ | E80: 3. TEŞVİK BELGESİ | F80: 4. TEŞVİK BELGESİ | G80: 5. TEŞVİK BELGESİ
B81: Vergi İndirim Oranı (VİO)
B82: KV MATRAHI (Safi Kurum Kazancı) | C82: =C77 -> 200000
B83: 32/A Uygulanacak K.V. Matrahı (HER BİR TEŞVİK BELGESİ KAPSAMINDA YARARLANILABİLECEK YATIRIMA KATKI TUTARININ MATRAHI BU HÜCRELERE YAZILMALIDIR) | H83: =IF(SUM(C83:G83)>C77,"32/A İNDİRİMİ UYGULANACAK KAZANÇ, SAFİ KURUM KAZANCINDAN FAZLADIR",SUM(C83:G83)) -> 0
B84: 32/A UYGULANMAYACAK K.V. Matrahı | C84: =IF(C82-(C83+D83+E83+F83+G83)<0,0,C82-(C83+D83+E83+F83+G83)) -> 200000
B85: MATRAH TOPLAMI | C85: =IF((C83+D83+E83+F83+G83+C84)>C77,C77,(C83+D83+E83+F83+G83+C84)) -> 200000
B87: SAFİ KURUM KAZANCININ KV VERGİ ORANLARI İTİBARİYLE DAĞILIMI | C87: TOPLAM SAFİ KAZANÇ | D87: İhracat Kazancı Payı | E87: Üretim Kazancı Payı | F87: Diğer Faaliyet Kazancı Payı
C89: =C77 -> 200000 | D89: =IF(AND(OR(D59>=C89,D59+E59>=C89),C66>0),MAX(MIN(C89*D74,D59,D73),0),MIN(C89*D74,D59)) -> 200000 | E89: =MAX( IF(AND(OR(E59>=C89,E59+F59>=C89),C67>0),MAX(MIN(C89*E74,E59,E73),0),MIN(C89*E74,E59)),0) -> 0 | F89: =IF(C89-D89-E89<=0,0,C89-D89-E89) -> 0
B90: SAFİ KURUM KAZANCININ DAĞILIMI ORANSAL DAĞILIMI | C90: =C89 -> 200000 | D90: =D89/C89 -> 1 | E90: =E89/C89 -> 0 | F90: =F89/C89 -> 0
B91: SAFİ KURUM KAZANCININ DAĞILIMI TUTARSAL | C91: =C90 -> 200000 | D91: =D89 -> 200000 | E91: =E89 -> 0 | F91: =F89 -> 0
B92: SAFİ KURUM KAZANCI DAĞILIMI | C92: =C91 -> 200000 | D92: =IFERROR(IF(D91/C91>=1,1,D91/C91),0) -> 1 | E92: =IFERROR(IF(E91/C91>=1,1,E91/C91),0) -> 0 | F92: =IFERROR(IF(F91/C91>=1,1,F91/C91),0) -> 0 | H92: KV ORANI
B93: 1 PUAN VE 32/A İNDİRİMİ OLMASAYDI HESAPLANAN KV TUTARI | C93: =C92*$H$93 -> 50000 | D93: =D91*$H$93 -> 50000 | E93: =E91*$H$93 -> 0 | F93: =F91*$H$93 -> 0 | H93: 0.25
B94: 32/ A UYGULANAN MATRAH | C94: =C83+D83+E83+F83+G83 -> 0 | D94: =D106+D111+D116+D121+D126 -> 0 | E94: =D105+D110+D115+D120+D125 -> 0 | F94: =D104+D109+D114+D119+D124 -> 0
B95: 32/A UYGULANACAK MATRAH ÜZERİNDEN ÖDENECEK KV TUTARI | C95: =J107+J112+J117+J122+J127 -> 0 | D95: =J106+J111+J116+J121+J126 -> 0 | E95: =J105+J110+J115+J120+J125 -> 0 | F95: =J104+J109+J114+J119+J124 -> 0
B96: 32/A UYGULANMAYAN MATRAH | C96: =IF(C84<=0,0,C84) -> 200000 | D96: =D131 -> 200000 | E96: =D130 -> 0 | F96: =D129 -> 0
B97: 32/A UYGULANMAYAN MATRAH ÜZERİNDEN ÖDENECEK KV TUTARI | C97: =L129 -> 40000 | D97: =J131 -> 40000 | E97: =J130 -> 0 | F97: =J129 -> 0
B98: TOPLAM ÖDENECEK KV | C98: =C95+C97 -> 40000 | D98: =J131+J106 -> 40000 | E98: =J130+J105 -> 0 | F98: =J129+J104 -> 0
B99: TOPLAM AVANTAJ (YARARLANILAN 1 PUAN İNDİRİMİ + 32/A İNDİRİMİ TUTARI ) | C99: =C93-C98 -> 10000 | D99: =D100+D101 -> 10000 | E99: =E100+E101 -> 0 | F99: =F100+F101 -> 0
B100: YARARLANILAN 1 - 5 PUAN İNDİRİMİ TUTARI | C100: =F132+F127+F122+F117+F112+F107 -> 10000 | D100: =F131+F106+F111+F116+F121+F126 -> 10000 | E100: =F130+F105+F110+F115+F120+F125 -> 0 | F100: =F129+F104+F109+F114+F119+F124 -> 0
B101: YARLANILAN 32/A İNDİRİMİ TUTARI | C101: =K107+K112+K117+K122+K127+K132 -> 0 | D101: =K106+K111+K121+K126+K131 -> 0 | E101: =K105+K110+K115+K120+K125+K130 -> 0 | F101: =K104++K109+K114+K119+K124+K129 -> 0
B103: 32/A UYGULANABİLECEK MATRAH (1.TEŞVİK BELGESİ) | C103: =C83 -> 0 | D103: KV MATRAHI | E103: 1 - 5 PUAN İNDİRİM OLMASAYDI HESAPLANAN KV TUTARI | F103: 1 -5 Puan İndirim Tutarı | G103: 1 - 5 Puan İndirim Sonrasında Hesaplanan KV Tutarı | H103: 32/A İndirimi Olmasaydı Ödenecek KV Tutarı | I103: 1 -5 Puan İndirim ve 32/A VİO Uygulandıktan Sonra Tatbik Edilecek KV Oranı | J103: 1 -5 Puan İndirim ve 32/A İndirimi Uygulandıktan Sonra Ödenecek KV Tutarı | K103: Yararlanılan Yatırıma Katkı Tutarı (32/A İnd. KV Nedeniyle Vazgeçilen Vergi Tutarı) | L103: Ödenecek KV Tutarı
B104: GENEL ORANA TABİ KISIM (DİĞER FAALİYETLER) | C104: =F92 -> 0 | D104: =C103*C104 -> 0 | E104: =D104*$H$93 -> 0 | F104: 0 | G104: =E104-F104 -> 0 | H104: =G104 -> 0 | I104: =($H$93)-(($H$93)*$C$81) -> 0.25 | J104: =I104*D104 -> 0 | K104: =G104-J104 -> 0 | L104: =J107 -> 0
B105: 1 PUAN İNDİRİMLİ ORANA TABİ KISIM (İMALAT) | C105: =E92 -> 0 | D105: =C103*C105 -> 0 | E105: =D105*$H$93 -> 0 | F105: =D105/100 -> 0 | G105: =E105-F105 -> 0 | H105: =G105 -> 0 | I105: =($H$93-0.01)-(($H$93-0.01)*$C$81) -> 0.24 | J105: =I105*D105 -> 0 | K105: =G105-J105 -> 0
B106: 5 PUAN İNDİRİMLİ ORANA TABİ KISIM ( İHRACAT) | C106: =D92 -> 1 | D106: =C103*C106 -> 0 | E106: =D106*$H$93 -> 0 | F106: =D106/20 -> 0 | G106: =E106-F106 -> 0 | H106: 0 | I106: =($H$93-0.05)-(($H$93-0.05)*C81) -> 0.2 | J106: 0 | K106: =G106-J106 -> 0
B107: TOPLAM | C107: =SUM(C104:C106) -> 1 | D107: =SUM(D104:D106) -> 0 | E107: 0 | F107: =SUM(F104:F106) -> 0 | G107: =SUM(G104:G106) -> 0 | H107: =SUM(H104:H106) -> 0 | J107: 0 | K107: 0
B108: 32/A UYGULANABİLECEK MATRAH (2.TEŞVİK BELGESİ) | C108: =D83 -> 0 | D108: KV MATRAHI | E108: 1 - 5 PUAN İNDİRİM OLMASAYDI HESAPLANAN KV TUTARI | F108: 1 -5 Puan İndirim Tutarı | G108: 1 -5 Puan İndirim Sonrasında Hesaplanan KV Tutarı | H108: 32/A İndirimi Olmasaydı Ödenecek KV Tutarı | I108: 1 - 5 Puan İndirim ve 32/A VİO Uygulandıktan Sonra Tatbik Edilecek KV Oranı | J108: 1-5 Puan İndirim ve 32/A İndirimi Uygulandıktan Sonra Ödenecek KV Tutarı | K108: Yararlanılan Yatırıma Katkı Tutarı (32/A İnd. KV Nedeniyle Vazgeçilen Vergi Tutarı) | L108: Ödenecek KV Tutarı
B109: GENEL ORANA TABİ KISIM (DİĞER FAALİYETLER) | C109: =F92 -> 0 | D109: =C108*C109 -> 0 | E109: =D109*$H$93 -> 0 | F109: 0 | G109: =E109-F109 -> 0 | H109: =G109 -> 0 | I109: =($H$93)-(($H$93)*D81) -> 0.25 | J109: =I109*D109 -> 0 | K109: =G109-J109 -> 0 | L109: =J112 -> 0
B110: 1 PUAN İNDİRİMLİ ORANA TABİ KISIM (İMALAT) | C110: =E92 -> 0 | D110: =C108*C110 -> 0 | E110: =D110*$H$93 -> 0 | F110: =D110/100 -> 0 | G110: =E110-F110 -> 0 | H110: =G110 -> 0 | I110: =($H$93-0.01)-(($H$93-0.01)*D81) -> 0.24 | J110: =I110*D110 -> 0 | K110: =G110-J110 -> 0
B111: 5 PUAN İNDİRİMLİ ORANA TABİ KISIM ( İHRACAT) | C111: =D92 -> 1 | D111: =C108*C111 -> 0 | E111: =D111*$H$93 -> 0 | F111: =D111/20 -> 0 | G111: =E111-F111 -> 0 | H111: 0 | I111: =($H$93-0.05)-(($H$93-0.05)*D81) -> 0.2 | J111: 0 | K111: =G111-J111 -> 0
B112: TOPLAM | C112: =SUM(C109:C111) -> 1 | D112: 0 | E112: 0 | F112: =SUM(F109:F111) -> 0 | G112: =SUM(G109:G111) -> 0 | H112: =SUM(H109:H111) -> 0 | J112: =SUM(J109:J111) -> 0 | K112: 0
B113: 32/A UYGULANABİLECEK MATRAH (3.TEŞVİK BELGESİ) | C113: =E83 -> 0 | D113: KV MATRAHI | E113: 1 - 5 PUAN İNDİRİM OLMASAYDI HESAPLANAN KV TUTARI | F113: 1-5 Puan İndirim Tutarı | G113: 1 - 5 Puan İndirim Sonrasında Hesaplanan KV Tutarı | H113: 32/A İndirimi Olmasaydı Ödenecek KV Tutarı | I113: 1 - 5 Puan İndirim ve 32/A VİO Uygulandıktan Sonra Tatbik Edilecek KV Oranı | J113: 1 -5 Puan İndirim ve 32/A İndirimi Uygulandıktan Sonra Ödenecek KV Tutarı | K113: Yararlanılan Yatırıma Katkı Tutarı (32/A İnd. KV Nedeniyle Vazgeçilen Vergi Tutarı) | L113: Ödenecek KV Tutarı
B114: GENEL ORANA TABİ KISIM (DİĞER FAALİYETLER) | C114: =F92 -> 0 | D114: =C113*C114 -> 0 | E114: =D114*$H$93 -> 0 | F114: 0 | G114: =E114-F114 -> 0 | H114: =G114 -> 0 | I114: =($H$93)-(($H$93)*E81) -> 0.25 | J114: =I114*D114 -> 0 | K114: =G114-J114 -> 0 | L114: =J117 -> 0
B115: 1 PUAN İNDİRİMLİ ORANA TABİ KISIM (İMALAT) | C115: =E92 -> 0 | D115: =C113*C115 -> 0 | E115: =D115*$H$93 -> 0 | F115: =D115/100 -> 0 | G115: =E115-F115 -> 0 | H115: =G115 -> 0 | I115: =($H$93-0.01)-(($H$93-0.01)*E81) -> 0.24 | J115: =I115*D115 -> 0 | K115: =G115-J115 -> 0
B116: 5 PUAN İNDİRİMLİ ORANA TABİ KISIM ( İHRACAT) | C116: =D92 -> 1 | D116: =C113*C116 -> 0 | E116: =D116*$H$93 -> 0 | F116: =D116/20 -> 0 | G116: =E116-F116 -> 0 | H116: 0 | I116: =($H$93-0.05)-(($H$93-0.05)*E81) -> 0.2 | J116: 0 | K116: =G116-J116 -> 0
B117: TOPLAM | C117: =SUM(C114:C116) -> 1 | D117: 0 | E117: 0 | F117: =SUM(F114:F116) -> 0 | G117: =SUM(G114:G116) -> 0 | H117: =SUM(H114:H116) -> 0 | J117: =SUM(J114:J116) -> 0 | K117: 0
B118: 32/A UYGULANABİLECEK MATRAH (4. TEŞVİK BELGESİ) | C118: =F83 -> 0 | D118: KV MATRAHI | E118: 1 - 5 PUAN İNDİRİM OLMASAYDI HESAPLANAN KV TUTARI | F118: 1-5 Puan İndirim Tutarı | G118: 1 -5 Puan İndirim Sonrasında Hesaplanan KV Tutarı | H118: 32/A İndirimi Olmasaydı Ödenecek KV Tutarı | I118: 1- 5 Puan İndirim ve 32/A VİO Uygulandıktan Sonra Tatbik Edilecek KV Oranı | J118: 1-5 Puan İndirim ve 32/A İndirimi Uygulandıktan Sonra Ödenecek KV Tutarı | K118: Yararlanılan Yatırıma Katkı Tutarı (32/A İnd. KV Nedeniyle Vazgeçilen Vergi Tutarı) | L118: Ödenecek KV Tutarı
B119: GENEL ORANA TABİ KISIM (DİĞER FAALİYETLER) | C119: =F92 -> 0 | D119: =C118*C119 -> 0 | E119: =D119*$H$93 -> 0 | F119: 0 | G119: =E119-F119 -> 0 | H119: =G119 -> 0 | I119: =($H$93)-(($H$93)*F81) -> 0.25 | J119: =I119*D119 -> 0 | K119: =G119-J119 -> 0 | L119: =J122 -> 0
B120: 1 PUAN İNDİRİMLİ ORANA TABİ KISIM (İMALAT) | C120: =E92 -> 0 | D120: =C118*C120 -> 0 | E120: =D120*$H$93 -> 0 | F120: =D120/100 -> 0 | G120: =E120-F120 -> 0 | H120: =G120 -> 0 | I120: =($H$93-0.01)-(($H$93-0.01)*F81) -> 0.24 | J120: =I120*D120 -> 0 | K120: =G120-J120 -> 0
B121: 5 PUAN İNDİRİMLİ ORANA TABİ KISIM ( İHRACAT) | C121: =D92 -> 1 | D121: =C118*C121 -> 0 | E121: =D121*$H$93 -> 0 | F121: =D121/20 -> 0 | G121: =E121-F121 -> 0 | H121: 0 | I121: =($H$93-0.05)-(($H$93-0.05)*F81) -> 0.2 | J121: 0 | K121: =G121-J121 -> 0
B122: TOPLAM | C122: =SUM(C119:C121) -> 1 | D122: 0 | E122: 0 | F122: =SUM(F119:F121) -> 0 | G122: =SUM(G119:G121) -> 0 | H122: =SUM(H119:H121) -> 0 | J122: =SUM(J119:J121) -> 0 | K122: 0
B123: 32/A UYGULANABİLECEK MATRAH (5.TEŞVİK BELGESİ) | C123: =G83 -> 0 | D123: KV MATRAHI | E123: 1 - 5 PUAN İNDİRİM OLMASAYDI HESAPLANAN KV TUTARI | F123: 1-5 Puan İndirim Tutarı | G123: 1 - 5 Puan İndirim Sonrasında Hesaplanan KV Tutarı | H123: 32/A İndirimi Olmasaydı Ödenecek KV Tutarı | I123: 1 -5 Puan İndirim ve 32/A VİO Uygulandıktan Sonra Tatbik Edilecek KV Oranı | J123: 1 - 5 Puan İndirim ve 32/A İndirimi Uygulandıktan Sonra Ödenecek KV Tutarı | K123: Yararlanılan Yatırıma Katkı Tutarı (32/A İnd. KV Nedeniyle Vazgeçilen Vergi Tutarı) | L123: Ödenecek KV Tutarı
B124: GENEL ORANA TABİ KISIM (DİĞER FAALİYETLER) | C124: =F92 -> 0 | D124: =C123*C124 -> 0 | E124: =D124*$H$93 -> 0 | F124: 0 | G124: =E124-F124 -> 0 | H124: =G124 -> 0 | I124: =($H$93)-(($H$93)*G81) -> 0.25 | J124: =I124*D124 -> 0 | K124: =G124-J124 -> 0 | L124: =J127 -> 0
B125: 1 PUAN İNDİRİMLİ ORANA TABİ KISIM (İMALAT) | C125: =E92 -> 0 | D125: =C123*C125 -> 0 | E125: =D125*$H$93 -> 0 | F125: =D125/100 -> 0 | G125: =E125-F125 -> 0 | H125: =G125 -> 0 | I125: =($H$93-0.01)-(($H$93-0.01)*G81) -> 0.24 | J125: =I125*D125 -> 0 | K125: =G125-J125 -> 0
B126: 5 PUAN İNDİRİMLİ ORANA TABİ KISIM ( İHRACAT) | C126: =D92 -> 1 | D126: =C123*C126 -> 0 | E126: =D126*$H$93 -> 0 | F126: =D126/20 -> 0 | G126: =E126-F126 -> 0 | H126: 0 | I126: =($H$93-0.05)-(($H$93-0.05)*G81) -> 0.2 | J126: 0 | K126: =G126-J126 -> 0
B127: TOPLAM | C127: =SUM(C124:C126) -> 1 | D127: 0 | E127: 0 | F127: =SUM(F124:F126) -> 0 | G127: =SUM(G124:G126) -> 0 | H127: =SUM(H124:H126) -> 0 | J127: =SUM(J124:J126) -> 0 | K127: 0
B128: 32/A UYGULANAMAYACAK MATRAH | C128: =IF(C84<=0,0,C84) -> 200000 | D128: KV MATRAHI | E128: 1-5 PUAN İNDİRİM OLMASAYDI HESAPLANAN KV TUTARI | F128: 1-5 Puan İndirim Tutarı | G128: 1 -5 Puan İndirim Sonrasında Hesaplanan KV Tutarı | H128: 32/A İNDİRİMİ UYGULANMAZ | J128: 1 Puan İndirim ve 32/A İndirimi Uygulandıktan Sonra Ödenecek KV Tutarı | K128: Yararlanılan Yatırıma Katkı Tutarı (32/A İnd. KV Nedeniyle Vazgeçilen Vergi Tutarı) | L128: Ödenecek KV Tutarı
B129: GENEL ORANA TABİ KISIM (DİĞER FAALİYETLER) | C129: =F92 -> 0 | D129: =C128*C129 -> 0 | E129: =D129*$H$93 -> 0 | F129: 0 | G129: =E129-F129 -> 0 | J129: =G129 -> 0 | K129: =G129-J129 -> 0 | L129: =J132 -> 40000
B130: 1 PUAN İNDİRİMLİ ORANA TABİ KISIM (İMALAT) | C130: =E92 -> 0 | D130: =C130*C128 -> 0 | E130: =D130*$H$93 -> 0 | F130: =D130/100 -> 0 | G130: =E130-F130 -> 0 | J130: =G130 -> 0 | K130: =G130-J130 -> 0
B131: 5 PUAN İNDİRİMLİ ORANA TABİ KISIM ( İHRACAT) | C131: =D92 -> 1 | D131: =C131*C128 -> 200000 | E131: =D131*$H$93 -> 50000 | F131: =D131/20 -> 10000 | G131: =E131-F131 -> 40000 | J131: 40000 | K131: 0
B132: TOPLAM | C132: =SUM(C129:C131) -> 1 | D132: =SUM(D129:D131) -> 200000 | E132: 50000 | F132: =SUM(F129:F131) -> 10000 | G132: =SUM(G129:G131) -> 40000 | J132: 40000 | K132: 0
B133: TOPLAM KV MATRAHI VE ÖDENMESİ GEREKEN KV | C133: =C103+C128+C108+C113+C118+C123 -> 200000 | D133: =D107+D132+D112+D117+D122+D127 -> 200000 | E133: =E107+E132+E112+E117+E122+E127 -> 50000 | F133: =F107+F132+F112+F117+F122+F127 -> 10000 | G133: =G107+G132+G112+G117+G122+G127 -> 40000 | J133: =J107+J132+J112+J117+J122+J127 -> 40000 | K133: =K132+K107+K112+K117+K122+K127 -> 0 | L133: =L104+L129+L109+L114+L119+L124 -> 40000
B135: GEÇİCİ VERGİ BEYANNMESİNDE MATRAH BİLDİRİMİ BÖLÜMÜNDE DOLDURULACAK KISIMLAR VE TUTARLARI
B136: 32 A Madde Kapsamında İndirimli Kurumlar Vergisine (Geçici Vergiye) Tabi Matrah | C136: =C103+C108+C113+C118+C123 -> 0 | D136: =E107+E112+E117+E122+E127 -> 0 | E136: 1-5 Puan Olmasaydı Hesaplan KV Tutarı
D137: =G107+G112+G117+G122++G127 -> 0 | E137: 1 -5 Puan İndirim Sonrasında Ödenecek KV Tutarı (32 A olmasaydı hesaplanacak Vergi)
D138: =K107+K112+K117+K122+K127 -> 0 | E138: 32/A İndirimi ile Vazgeçilen Vergi
B139: 32 A Madde Kapsamında İndirimli Kurumlar Vergisi(Geçici Vergi) Oranı | C139: =IFERROR(D139/C136,0) -> 0 | D139: =L104+L109+L114+L119+L124 -> 0 | E139: 32/A ya Tabi Matrah Üzerinden Ödenecek KV
B140: 32/7 Madde Kapsamında İndirimli Kurumlar Vergisine (Geçici Vergiye) Tabi Matrah (İhracat) | C140: =D131 -> 200000 | D140: =E131 -> 50000 | E140: 5 Puan Olmasaydı Hesaplan KV Tutarı
D141: =F131 -> 10000 | E141: 5 Puan İndirimin Vergi Etkisi
B142: 32/7 Madde Kapsamında İndirimli Kurumlar Vergisi (Geçici Vergi) Oranı | C142: =IFERROR(D142/C140,0) -> 0.2 | D142: =G131 -> 40000 | E142: 5 Puan İndirim Sonrasında Ödenecek KV Tutarı (İhracat)
B143: 32/8 Madde Kapsamında İndirimli Kurumlar Vergisine (Geçici Vergiye) Tabi Matrah (Üretim) | C143: =D130 -> 0 | D143: =E130 -> 0 | E143: 1 Puan Olmasaydı Hesaplan KV Tutarı
D144: =F130 -> 0 | E144: 1 Puan İndirimin Vergi Etkisi
B145: 32/8 Madde Kapsamında İndirimli Kurumlar Vergisi (Geçici Vergi) Oranı | C145: =IFERROR(D145/C143,0) -> 0 | D145: =G130 -> 0 | E145: 1 Puan İndirim Sonrasında Ödenecek KV Tutarı (Üretim)
B146: Genel Orana Tabi Matrah (Diğer) | C146: =D129 -> 0 | D146: =J129 -> 0 | E146: Diğer Faalilyetlerden Elde Edilen Kazanç
C147: =IFERROR(D146/C146,0) -> 0
B148: MATRAHLAR TOPLAMI | C148: =C136+C143+C140+C146 -> 200000 | D148: =D139+D145+D142+D146 -> 40000

Sheet İ Ö 5 (hidden)
B2: FAALİYET TÜRLERİ İTİBARİYLE HASILATLAR VE TOPLAM İÇİNDEKİ ORANLARI | C2: =IFERROR(C4/C4,0) -> 1 | D2: =IFERROR(D4/C4,0) -> 0.1 | E2: =IFERROR(E4/C4,0) -> 0 | F2: =IFERROR(F4/C4,0) -> 0.9
C3: Toplam Hasılat | D3: İhracat faaliyeti | E3: İmalat faaliyeti | F3: Diğer faaliyetler
B4: A-BRÜT SATIŞLAR (60) | C4: =D4+E4+F4 -> 50000000 | D4: =SUM(D5:D7) -> 5000000 | E4: =SUM(E5:E7) -> 0 | F4: 45000000
B5: 1-Yurtiçi Satışlar (600) | C5: =D5+E5+F5 -> 45000000 | F5: 45000000
B6: 2-Yurtdışı Satışlar (601) | C6: =D6+E6+F6 -> 5000000 | D6: 5000000
B7: 3-Diğer Gelirler (602) | C7: =D7+E7+F7 -> 0
B8: B-SATIŞ İNDİRİMLERİ(-) (61) | C8: =SUM(C9:C11) -> 0 | D8: =SUM(D9:D11) -> 0 | E8: =SUM(E9:E11) -> 0 | F8: 0
B9: 1-Satıştan İadeler (-) (610) | C9: =SUM(D9:F9) -> 0
B10: 2- Satış İskontoları (-) (611) | C10: =SUM(D10:F10) -> 0
B11: 3-Diğer İndirimler (-) (612) | C11: 0
B12: C-NET SATIŞLAR | C12: =C4-C8 -> 50000000 | D12: =D4-D8 -> 5000000 | E12: =E4-E8 -> 0 | F12: 45000000
B13: D-SATIŞLARIN MALİYETİ (-) (62) | C13: =SUM(C14:C17) -> 0 | D13: =SUM(D14:D17) -> 0 | E13: =SUM(E14:E17) -> 0 | F13: =SUM(F14:F17) -> 0
B14: 1-Satılan Mamuller Maliyeti ( 620) | C14: =SUM(D14:F14) -> 0
B15: 2-Satılan Ticari Mal Maliyeti (621) | C15: =SUM(D15:F15) -> 0
B16: 3-Satılan Hizmet Maliyeti (622) | C16: 0
B17: 4-Diğer Satışların Maliyeti (623) | C17: 0
B18: BRÜT SATIŞ KARI / ZARARI | C18: =C12-C13 -> 50000000 | D18: =D12-D13 -> 5000000 | E18: =E12-E13 -> 0 | F18: 45000000
B19: E-FAALİYET GİDERLERİ (-) (63) | C19: =SUM(C20:C24) -> 0 | D19: =SUM(D20:D24) -> 0 | E19: =SUM(E20:E24) -> 0 | F19: 0
B20: 1-Araştırma ve Geliştirme Giderleri(-) (630) | C20: =SUM(D20:F20) -> 0
B21: 2-Pazarlama, Satış ve Dağıtım Giderleri(-) (631) | C21: =SUM(D21:F21) -> 0
B22: 3-Genel Yönetim Giderleri(-) (632) | C22: =SUM(D22:F22) -> 0
B23: MÜŞTEREK GENEL GİDERLER (DAĞITIM-HASILAT PAYINA GÖRE) | D23: =C23*D2 -> 0 | E23: =C23*E2 -> 0 | F23: =C23*F2 -> 0
B24: MÜŞTEREK GENEL GİDER GİBİ DAĞITIMA TABİ TUTULACAK AMORTİSMAN GİDERLERİ (DAĞITIM-HASILAT PAYINA GÖRE) | D24: =C24*D2 -> 0 | E24: =C24*E2 -> 0 | F24: =C24*F2 -> 0
B25: FAALİYET KARI / ZARARI | C25: =C18-C19 -> 50000000 | D25: =D18-D19 -> 5000000 | E25: =E18-E19 -> 0 | F25: 45000000
B26: F-DİĞER FAALİYETLERDEN OLAĞAN GELİR VE KARLAR (64) | C26: =SUM(C27:C35) -> 0 | D26: =SUM(D27:D35) -> 0 | E26: =SUM(E27:E35) -> 0 | F26: =SUM(F27:F35) -> 0
B27: 1- İŞTİRAKLERDEN TEMETTÜ GELİRLERİ (640) | C27: =SUM(D27:F27) -> 0
B28: 2- BAĞLI ORTAKLIKLARDAN TEMETTÜ GELİRLERİ (641) | C28: =SUM(D28:F28) -> 0
B29: 3- FAİZ GELİRLERİ (642) (ihracat ve imalat kaynaklı alacağın tahsiline kadar olan süreçte oluşan) | C29: 0
B30: 4- KOMİSYON GELİRLERİ (643) | C30: 0
B31: 5- KONUSU OLMAYAN KARŞILIKLAR (644) | C31: 0
B32: 6- MENKUL KIYMET SATIŞ KARLARI (645) | C32: 0
B33: 7- KAMBİYO KARLARI (646) (ihracat ve imalat kaynaklı alacağın tahsiline kadar olan süreçte oluşan) | C33: 0
B34: 8- REESKONT FAİZ GELİRLERİ (647) | C34: 0
B35: 9- FAALİYETLE İLGİLİ DİĞER GELİR VE KARLAR (649) | C35: 0
B36: ARA TOPLAM | C36: =C25+C26 -> 50000000 | D36: =D25+D26 -> 5000000 | E36: =E25+E26 -> 0 | F36: =F25+F26 -> 45000000
B37: G-DİĞER FAALİYETLERDEN OLAĞAN GİDER VE ZARARLAR(-) (65) | C37: =SUM(C38:C43) -> 0 | D37: =SUM(D38:D43) -> 0 | E37: =SUM(E38:E43) -> 0 | F37: 0
B38: 1- KOMİSYON GİDERLERİ (653) | C38: =SUM(D38:F38) -> 0
B39: 2- KARŞILIK GİDERLERİ (654) | C39: =SUM(D39:F39) -> 0
B40: 3- MENKUL KIYMET SATIŞ ZARARLARI (655) | C40: 0
B41: 4- KAMBİYO ZARARLARI (656) (ihracat ve imalat kaynaklı alacağın tahsiline kadar olan süreçte oluşan) | C41: 0
B42: 5- REESKONT FAİZ GİDERLERİ (657) | C42: 0
B43: 6- DİĞER OLAĞAN GİDER VE ZARARLAR (659) | C43: =SUM(D43:F43) -> 0
B44: ARA TOPLAM | C44: =C36-C37 -> 50000000 | D44: =D36-D37 -> 5000000 | E44: =E36-E37 -> 0 | F44: 45000000
B45: H-FİNANSMAN GİDERLERİ(-) (66) | C45: =SUM(C46:C49) -> 0 | D45: =SUM(D46:D49) -> 0 | E45: =SUM(E46:E49) -> 0 | F45: =SUM(F46:F49) -> 0
B46: 1- KISA VADELİ BORÇLANMA GİDERLERİ (-) | C46: =SUM(D46:F46) -> 0
B47: 2- UZUN VADELİ BORÇLANMA GİDERLERİ (-) | C47: =SUM(D47:F47) -> 0
B48: 1- KISA VADELİ BORÇLANMA GİDERLERİ (-) (DAĞITIM) | D48: =C48*D2 -> 0 | E48: =C48*E2 -> 0 | F48: =C48*F2 -> 0
B49: 2- UZUN VADELİ BORÇLANMA GİDERLERİ (-) (DAĞITIM) | D49: =C49*D2 -> 0 | E49: =C49*E2 -> 0 | F49: =C49*F2 -> 0
B50: ARA TOPLAM | C50: =C44-C45 -> 50000000 | D50: =D44-D45 -> 5000000 | E50: =E44-E45 -> 0 | F50: =F44-F45 -> 45000000
B51: I-OLAĞANDIŞI GELİR VE KÂRLAR (67) | C51: =SUM(D51:F51) -> 0 | D51: =SUM(D52:D53) -> 0 | E51: =SUM(E52:E53) -> 0 | F51: =SUM(F52:F53) -> 0
B52: 1- ÖNCEKİ DÖNEM GELİR VE KARLARI (671) | C52: =SUM(D52:F52) -> 0
B53: 2-DİĞER OLAĞAN DIŞI GELİR VE KARLAR (679) | C53: =SUM(D53:F53) -> 0
B54: ARA TOPLAM | C54: =SUM(D54:F54) -> 50000000 | D54: =D50+D51 -> 5000000 | E54: =E50+E51 -> 0 | F54: 45000000
B55: J-OLAĞANDIŞI GİDER VE ZARARLAR(-) (68) | C55: =SUM(C56:C58) -> 0 | D55: =SUM(D56:D58) -> 0 | E55: =SUM(E56:E58) -> 0 | F55: 0
B56: 1-Çalışmayan Kısım Gider ve Zararları(-) (680) | C56: =SUM(D56:F56) -> 0
B57: 2-Önceki Dönem Gider ve Zararları(-) (681) | C57: =SUM(D57:F57) -> 0
B58: 3-Diğer Olağan Dışı Gider ve Zararlar(-) (689) | C58: 0
B59: DÖNEM KÂRI VEYA ZARARI (TİCARİ BİLANÇO KARI ZARARI ) | C59: =C54-C55 -> 50000000 | D59: =D54-D55 -> 5000000 | E59: =E54-E55 -> 0 | F59: 45000000
B60: İHRACAT, İMALAT VE DİĞER FAALİYETLERDEN ELDE EDİLEN KAZANCIN TOPLAM TİCARİ KAZANÇ İÇİNDEKİ PAYLARI | D60: =IF(D59>=$C$59,1, IF(D59<=0,0, IF(AND(D59>0,D59<$C$59),D59/$C$59))) -> 0.1 | E60: =IF(E59>=$C$59,1, IF(E59<=0,0, IF(AND(E59>0,E59<$C$59),E59/$C$59))) -> 0 | F60: =IF(F59>=$C$59,1, IF(F59<=0,0, IF(AND(F59>0,F59<$C$59),F59/$C$59))) -> 0.9
D61: =D60/(D60+E60+F60) -> 0.1 | E61: =E60/(D60+E60+F60) -> 0 | F61: =F60/(D60+E60+F60) -> 0.9
B63: KKEG + | C63: 2000000
B64: KABUL EDİLMEYEN GELİRLER -
B65: ZARAR OLSA DAHİ İNDİRİLECEK İSTİSNALAR - | C65: =C66+C67+C68 -> 12000000
B66: Hizmet İhracatı Faaliyetinden (KVK 10-1/ğ) Elde Edilen Kazançlardan İstisna Edilenlerin Toplamı
B67: İmalat Faaliyetinden Elde Edilen Kazançlardan İstisna Edilenlerin Toplamı
B68: Diğer Faaliyetlerden Elde Edilen Kazançlardan İstisna Edilenlerin Toplamı | C68: 12000000
B69: GEÇMİŞ YIL ZARARLARI - | C69: 0
B70: İNDİRİMLER - | D70: AZAMİ YAZILABİLECEK İNDİRİMLER TUTARI | E70: =C59+C63-C64-C65-C69 -> 40000000
B72: 1 PUAN İNDİRİM UYGULANACAK TUTARIN HESABINDA İSTİSNA KAZANÇLAR DÜŞÜLDÜKTEN SONRA BULUNAN TİCARİ KAZANÇ TUTARI İLE BU KAZANÇ İÇİNDE İHRACAT,İMALAT VE DİĞER KAZANÇLARIN TUTARI | C72: TİCARİ KAZANÇ TAN İhracat ve İmalat Kazancından İstisna Olan Tutarlar Düşüldükten Sonra Kalan Tutarı | D72: İhracat Faaliyetinden Elde Edilen Kazançtan İstisna Olan Kısım Düşüldükten Sonra Bulunan Tutarı | E72: Üretim Faaliyetinden Elde Edilen Kazançtan İstisna Olan Kısım Düşüldükten Sonra Bulunan Tutarı | F72: Diğer Faaliyetinden Elde Edilen Kazanç
C73: =IF(C59-C66-C67<=0,0,C59-C66-C67) -> 50000000 | D73: =IF($D$59-C66<=0,0,MIN($D$59-C66,$C$73*D61)) -> 5000000 | E73: =IF($E$59-C67<=0,0,MIN($E$59-C67,$C$73*E61)) -> 0 | F73: =IF(C73-D73-E73<=0,0,C73-D73-E73) -> 45000000
B74: İHRACAT, İMALAT VE DİĞER FAALİYETLERDEN ELDE EDİLEN KAZANCIN TOPLAM TİCARİ KAZANÇ İÇİNDEKİ PAYLARI | D74: =IFERROR(IF(D73/C73<=0,0,D73/C73),0) -> 0.1 | E74: =IFERROR(IF(E73/C73<=0,0,E73/C73),0) -> 0 | F74: =IFERROR(F73/C73,0) -> 0.9
B75: NEGATİF VE % 100 DEN BÜYÜKLÜK KONTROLÜ SONRASINDAKİ PAYLARI | D75: =IFERROR(IF(D74<=0,0,IF(D74>1,1,D74)),0) -> 0.1 | E75: =IFERROR(IF(E74<=0,0,IF(E74>1,1,E74)),0) -> 0 | F75: =IFERROR(IF(F74<=0,0,IF(F74>1,1,F74)),0) -> 0.9
B77: SAFİ KURUM KAZANCI (KURUMLAR VERGİSİ MATRAHI) | C77: =C59+C63-C64-C65-C69-C70 -> 40000000 | D77: =IF(C77<0, "ZARAR","KAR") -> KAR
B79: 2022 YILI 3. DÖNEM İNDİRİMLİ KURUMLAR VERGİSİ HESAPLAMA TABLOSU
C80: 1. TEŞVİK BELGESİ | D80: 2. TEŞVİK BELGESİ | E80: 3. TEŞVİK BELGESİ | F80: 4. TEŞVİK BELGESİ | G80: 5. TEŞVİK BELGESİ
B81: Vergi İndirim Oranı (VİO)
B82: KV MATRAHI (Safi Kurum Kazancı) | C82: =C77 -> 40000000
B83: 32/A Uygulanacak K.V. Matrahı (HER BİR TEŞVİK BELGESİ KAPSAMINDA YARARLANILABİLECEK YATIRIMA KATKI TUTARININ MATRAHI BU HÜCRELERE YAZILMALIDIR) | H83: =IF(SUM(C83:G83)>C77,"32/A İNDİRİMİ UYGULANACAK KAZANÇ, SAFİ KURUM KAZANCINDAN FAZLADIR",SUM(C83:G83)) -> 0
B84: 32/A UYGULANMAYACAK K.V. Matrahı | C84: =IF(C82-(C83+D83+E83+F83+G83)<0,0,C82-(C83+D83+E83+F83+G83)) -> 40000000
B85: MATRAH TOPLAMI | C85: =IF((C83+D83+E83+F83+G83+C84)>C77,C77,(C83+D83+E83+F83+G83+C84)) -> 40000000
B87: SAFİ KURUM KAZANCININ KV VERGİ ORANLARI İTİBARİYLE DAĞILIMI | C87: TOPLAM SAFİ KAZANÇ | D87: İhracat Kazancı Payı | E87: Üretim Kazancı Payı | F87: Diğer Faaliyet Kazancı Payı
C89: =C77 -> 40000000 | D89: =IF(AND(OR(D59>=C89,D59+E59>=C89),C66>0),MAX(MIN(C89*D74,D59,D73),0),MIN(C89*D74,D59)) -> 4000000 | E89: =MAX( IF(AND(OR(E59>=C89,E59+F59>=C89),C67>0),MAX(MIN(C89*E74,E59,E73),0),MIN(C89*E74,E59)),0) -> 0 | F89: =IF(C89-D89-E89<=0,0,C89-D89-E89) -> 36000000
B90: SAFİ KURUM KAZANCININ DAĞILIMI ORANSAL DAĞILIMI | C90: =C89 -> 40000000 | D90: =D89/C89 -> 0.1 | E90: =E89/C89 -> 0 | F90: =F89/C89 -> 0.9
B91: SAFİ KURUM KAZANCININ DAĞILIMI TUTARSAL | C91: =C90 -> 40000000 | D91: =D89 -> 4000000 | E91: =E89 -> 0 | F91: =F89 -> 36000000
B92: SAFİ KURUM KAZANCI DAĞILIMI | C92: =C91 -> 40000000 | D92: =IFERROR(IF(D91/C91>=1,1,D91/C91),0) -> 0.1 | E92: =IFERROR(IF(E91/C91>=1,1,E91/C91),0) -> 0 | F92: =IFERROR(IF(F91/C91>=1,1,F91/C91),0) -> 0.9 | H92: KV ORANI
B93: 1 PUAN VE 32/A İNDİRİMİ OLMASAYDI HESAPLANAN KV TUTARI | C93: =C92*$H$93 -> 10000000 | D93: =D91*$H$93 -> 1000000 | E93: =E91*$H$93 -> 0 | F93: =F91*$H$93 -> 9000000 | H93: 0.25
B94: 32/ A UYGULANAN MATRAH | C94: =C83+D83+E83+F83+G83 -> 0 | D94: =D106+D111+D116+D121+D126 -> 0 | E94: =D105+D110+D115+D120+D125 -> 0 | F94: =D104+D109+D114+D119+D124 -> 0
B95: 32/A UYGULANACAK MATRAH ÜZERİNDEN ÖDENECEK KV TUTARI | C95: =J107+J112+J117+J122+J127 -> 0 | D95: =J106+J111+J116+J121+J126 -> 0 | E95: =J105+J110+J115+J120+J125 -> 0 | F95: =J104+J109+J114+J119+J124 -> 0
B96: 32/A UYGULANMAYAN MATRAH | C96: =IF(C84<=0,0,C84) -> 40000000 | D96: =D131 -> 4000000 | E96: =D130 -> 0 | F96: =D129 -> 36000000
B97: 32/A UYGULANMAYAN MATRAH ÜZERİNDEN ÖDENECEK KV TUTARI | C97: =L129 -> 9800000 | D97: =J131 -> 800000 | E97: =J130 -> 0 | F97: =J129 -> 9000000
B98: TOPLAM ÖDENECEK KV | C98: =C95+C97 -> 9800000 | D98: =J131+J106 -> 800000 | E98: =J130+J105 -> 0 | F98: =J129+J104 -> 9000000
B99: TOPLAM AVANTAJ (YARARLANILAN 1 PUAN İNDİRİMİ + 32/A İNDİRİMİ TUTARI ) | C99: =C93-C98 -> 200000 | D99: =D100+D101 -> 200000 | E99: =E100+E101 -> 0 | F99: =F100+F101 -> 0
B100: YARARLANILAN 1 - 5 PUAN İNDİRİMİ TUTARI | C100: =F132+F127+F122+F117+F112+F107 -> 200000 | D100: =F131+F106+F111+F116+F121+F126 -> 200000 | E100: =F130+F105+F110+F115+F120+F125 -> 0 | F100: =F129+F104+F109+F114+F119+F124 -> 0
B101: YARLANILAN 32/A İNDİRİMİ TUTARI | C101: =K107+K112+K117+K122+K127+K132 -> 0 | D101: =K106+K111+K121+K126+K131 -> 0 | E101: =K105+K110+K115+K120+K125+K130 -> 0 | F101: =K104++K109+K114+K119+K124+K129 -> 0
B103: 32/A UYGULANABİLECEK MATRAH (1.TEŞVİK BELGESİ) | C103: =C83 -> 0 | D103: KV MATRAHI | E103: 1 - 5 PUAN İNDİRİM OLMASAYDI HESAPLANAN KV TUTARI | F103: 1 -5 Puan İndirim Tutarı | G103: 1 - 5 Puan İndirim Sonrasında Hesaplanan KV Tutarı | H103: 32/A İndirimi Olmasaydı Ödenecek KV Tutarı | I103: 1 -5 Puan İndirim ve 32/A VİO Uygulandıktan Sonra Tatbik Edilecek KV Oranı | J103: 1 -5 Puan İndirim ve 32/A İndirimi Uygulandıktan Sonra Ödenecek KV Tutarı | K103: Yararlanılan Yatırıma Katkı Tutarı (32/A İnd. KV Nedeniyle Vazgeçilen Vergi Tutarı) | L103: Ödenecek KV Tutarı
B104: GENEL ORANA TABİ KISIM (DİĞER FAALİYETLER) | C104: =F92 -> 0.9 | D104: =C103*C104 -> 0 | E104: =D104*$H$93 -> 0 | F104: 0 | G104: =E104-F104 -> 0 | H104: =G104 -> 0 | I104: =($H$93)-(($H$93)*$C$81) -> 0.25 | J104: =I104*D104 -> 0 | K104: =G104-J104 -> 0 | L104: =J107 -> 0
B105: 1 PUAN İNDİRİMLİ ORANA TABİ KISIM (İMALAT) | C105: =E92 -> 0 | D105: =C103*C105 -> 0 | E105: =D105*$H$93 -> 0 | F105: =D105/100 -> 0 | G105: =E105-F105 -> 0 | H105: =G105 -> 0 | I105: =($H$93-0.01)-(($H$93-0.01)*$C$81) -> 0.24 | J105: =I105*D105 -> 0 | K105: =G105-J105 -> 0
B106: 5 PUAN İNDİRİMLİ ORANA TABİ KISIM ( İHRACAT) | C106: =D92 -> 0.1 | D106: =C103*C106 -> 0 | E106: =D106*$H$93 -> 0 | F106: =D106/20 -> 0 | G106: =E106-F106 -> 0 | H106: 0 | I106: =($H$93-0.05)-(($H$93-0.05)*C81) -> 0.2 | J106: 0 | K106: =G106-J106 -> 0
B107: TOPLAM | C107: =SUM(C104:C106) -> 1 | D107: =SUM(D104:D106) -> 0 | E107: 0 | F107: =SUM(F104:F106) -> 0 | G107: =SUM(G104:G106) -> 0 | H107: =SUM(H104:H106) -> 0 | J107: 0 | K107: 0
B108: 32/A UYGULANABİLECEK MATRAH (2.TEŞVİK BELGESİ) | C108: =D83 -> 0 | D108: KV MATRAHI | E108: 1 - 5 PUAN İNDİRİM OLMASAYDI HESAPLANAN KV TUTARI | F108: 1 -5 Puan İndirim Tutarı | G108: 1 -5 Puan İndirim Sonrasında Hesaplanan KV Tutarı | H108: 32/A İndirimi Olmasaydı Ödenecek KV Tutarı | I108: 1 - 5 Puan İndirim ve 32/A VİO Uygulandıktan Sonra Tatbik Edilecek KV Oranı | J108: 1-5 Puan İndirim ve 32/A İndirimi Uygulandıktan Sonra Ödenecek KV Tutarı | K108: Yararlanılan Yatırıma Katkı Tutarı (32/A İnd. KV Nedeniyle Vazgeçilen Vergi Tutarı) | L108: Ödenecek KV Tutarı
B109: GENEL ORANA TABİ KISIM (DİĞER FAALİYETLER) | C109: =F92 -> 0.9 | D109: =C108*C109 -> 0 | E109: =D109*$H$93 -> 0 | F109: 0 | G109: =E109-F109 -> 0 | H109: =G109 -> 0 | I109: =($H$93)-(($H$93)*D81) -> 0.25 | J109: =I109*D109 -> 0 | K109: =G109-J109 -> 0 | L109: =J112 -> 0
B110: 1 PUAN İNDİRİMLİ ORANA TABİ KISIM (İMALAT) | C110: =E92 -> 0 | D110: =C108*C110 -> 0 | E110: =D110*$H$93 -> 0 | F110: =D110/100 -> 0 | G110: =E110-F110 -> 0 | H110: =G110 -> 0 | I110: =($H$93-0.01)-(($H$93-0.01)*D81) -> 0.24 | J110: =I110*D110 -> 0 | K110: =G110-J110 -> 0
B111: 5 PUAN İNDİRİMLİ ORANA TABİ KISIM ( İHRACAT) | C111: =D92 -> 0.1 | D111: =C108*C111 -> 0 | E111: =D111*$H$93 -> 0 | F111: =D111/20 -> 0 | G111: =E111-F111 -> 0 | H111: 0 | I111: =($H$93-0.05)-(($H$93-0.05)*D81) -> 0.2 | J111: 0 | K111: =G111-J111 -> 0
B112: TOPLAM | C112: =SUM(C109:C111) -> 1 | D112: 0 | E112: 0 | F112: =SUM(F109:F111) -> 0 | G112: =SUM(G109:G111) -> 0 | H112: =SUM(H109:H111) -> 0 | J112: =SUM(J109:J111) -> 0 | K112: 0
B113: 32/A UYGULANABİLECEK MATRAH (3.TEŞVİK BELGESİ) | C113: =E83 -> 0 | D113: KV MATRAHI | E113: 1 - 5 PUAN İNDİRİM OLMASAYDI HESAPLANAN KV TUTARI | F113: 1-5 Puan İndirim Tutarı | G113: 1 - 5 Puan İndirim Sonrasında Hesaplanan KV Tutarı | H113: 32/A İndirimi Olmasaydı Ödenecek KV Tutarı | I113: 1 - 5 Puan İndirim ve 32/A VİO Uygulandıktan Sonra Tatbik Edilecek KV Oranı | J113: 1 -5 Puan İndirim ve 32/A İndirimi Uygulandıktan Sonra Ödenecek KV Tutarı | K113: Yararlanılan Yatırıma Katkı Tutarı (32/A İnd. KV Nedeniyle Vazgeçilen Vergi Tutarı) | L113: Ödenecek KV Tutarı
B114: GENEL ORANA TABİ KISIM (DİĞER FAALİYETLER) | C114: =F92 -> 0.9 | D114: =C113*C114 -> 0 | E114: =D114*$H$93 -> 0 | F114: 0 | G114: =E114-F114 -> 0 | H114: =G114 -> 0 | I114: =($H$93)-(($H$93)*E81) -> 0.25 | J114: =I114*D114 -> 0 | K114: =G114-J114 -> 0 | L114: =J117 -> 0
B115: 1 PUAN İNDİRİMLİ ORANA TABİ KISIM (İMALAT) | C115: =E92 -> 0 | D115: =C113*C115 -> 0 | E115: =D115*$H$93 -> 0 | F115: =D115/100 -> 0 | G115: =E115-F115 -> 0 | H115: =G115 -> 0 | I115: =($H$93-0.01)-(($H$93-0.01)*E81) -> 0.24 | J115: =I115*D115 -> 0 | K115: =G115-J115 -> 0
B116: 5 PUAN İNDİRİMLİ ORANA TABİ KISIM ( İHRACAT) | C116: =D92 -> 0.1 | D116: =C113*C116 -> 0 | E116: =D116*$H$93 -> 0 | F116: =D116/20 -> 0 | G116: =E116-F116 -> 0 | H116: 0 | I116: =($H$93-0.05)-(($H$93-0.05)*E81) -> 0.2 | J116: 0 | K116: =G116-J116 -> 0
B117: TOPLAM | C117: =SUM(C114:C116) -> 1 | D117: 0 | E117: 0 | F117: =SUM(F114:F116) -> 0 | G117: =SUM(G114:G116) -> 0 | H117: =SUM(H114:H116) -> 0 | J117: =SUM(J114:J116) -> 0 | K117: 0
B118: 32/A UYGULANABİLECEK MATRAH (4. TEŞVİK BELGESİ) | C118: =F83 -> 0 | D118: KV MATRAHI | E118: 1 - 5 PUAN İNDİRİM OLMASAYDI HESAPLANAN KV TUTARI | F118: 1-5 Puan İndirim Tutarı | G118: 1 -5 Puan İndirim Sonrasında Hesaplanan KV Tutarı | H118: 32/A İndirimi Olmasaydı Ödenecek KV Tutarı | I118: 1- 5 Puan İndirim ve 32/A VİO Uygulandıktan Sonra Tatbik Edilecek KV Oranı | J118: 1-5 Puan İndirim ve 32/A İndirimi Uygulandıktan Sonra Ödenecek KV Tutarı | K118: Yararlanılan Yatırıma Katkı Tutarı (32/A İnd. KV Nedeniyle Vazgeçilen Vergi Tutarı) | L118: Ödenecek KV Tutarı
B119: GENEL ORANA TABİ KISIM (DİĞER FAALİYETLER) | C119: =F92 -> 0.9 | D119: =C118*C119 -> 0 | E119: =D119*$H$93 -> 0 | F119: 0 | G119: =E119-F119 -> 0 | H119: =G119 -> 0 | I119: =($H$93)-(($H$93)*F81) -> 0.25 | J119: =I119*D119 -> 0 | K119: =G119-J119 -> 0 | L119: =J122 -> 0
B120: 1 PUAN İNDİRİMLİ ORANA TABİ KISIM (İMALAT) | C120: =E92 -> 0 | D120: =C118*C120 -> 0 | E120: =D120*$H$93 -> 0 | F120: =D120/100 -> 0 | G120: =E120-F120 -> 0 | H120: =G120 -> 0 | I120: =($H$93-0.01)-(($H$93-0.01)*F81) -> 0.24 | J120: =I120*D120 -> 0 | K120: =G120-J120 -> 0
B121: 5 PUAN İNDİRİMLİ ORANA TABİ KISIM ( İHRACAT) | C121: =D92 -> 0.1 | D121: =C118*C121 -> 0 | E121: =D121*$H$93 -> 0 | F121: =D121/20 -> 0 | G121: =E121-F121 -> 0 | H121: 0 | I121: =($H$93-0.05)-(($H$93-0.05)*F81) -> 0.2 | J121: 0 | K121: =G121-J121 -> 0
B122: TOPLAM | C122: =SUM(C119:C121) -> 1 | D122: 0 | E122: 0 | F122: =SUM(F119:F121) -> 0 | G122: =SUM(G119:G121) -> 0 | H122: =SUM(H119:H121) -> 0 | J122: =SUM(J119:J121) -> 0 | K122: 0
B123: 32/A UYGULANABİLECEK MATRAH (5.TEŞVİK BELGESİ) | C123: =G83 -> 0 | D123: KV MATRAHI | E123: 1 - 5 PUAN İNDİRİM OLMASAYDI HESAPLANAN KV TUTARI | F123: 1-5 Puan İndirim Tutarı | G123: 1 - 5 Puan İndirim Sonrasında Hesaplanan KV Tutarı | H123: 32/A İndirimi Olmasaydı Ödenecek KV Tutarı | I123: 1 -5 Puan İndirim ve 32/A VİO Uygulandıktan Sonra Tatbik Edilecek KV Oranı | J123: 1 - 5 Puan İndirim ve 32/A İndirimi Uygulandıktan Sonra Ödenecek KV Tutarı | K123: Yararlanılan Yatırıma Katkı Tutarı (32/A İnd. KV Nedeniyle Vazgeçilen Vergi Tutarı) | L123: Ödenecek KV Tutarı
B124: GENEL ORANA TABİ KISIM (DİĞER FAALİYETLER) | C124: =F92 -> 0.9 | D124: =C123*C124 -> 0 | E124: =D124*$H$93 -> 0 | F124: 0 | G124: =E124-F124 -> 0 | H124: =G124 -> 0 | I124: =($H$93)-(($H$93)*G81) -> 0.25 | J124: =I124*D124 -> 0 | K124: =G124-J124 -> 0 | L124: =J127 -> 0
B125: 1 PUAN İNDİRİMLİ ORANA TABİ KISIM (İMALAT) | C125: =E92 -> 0 | D125: =C123*C125 -> 0 | E125: =D125*$H$93 -> 0 | F125: =D125/100 -> 0 | G125: =E125-F125 -> 0 | H125: =G125 -> 0 | I125: =($H$93-0.01)-(($H$93-0.01)*G81) -> 0.24 | J125: =I125*D125 -> 0 | K125: =G125-J125 -> 0
B126: 5 PUAN İNDİRİMLİ ORANA TABİ KISIM ( İHRACAT) | C126: =D92 -> 0.1 | D126: =C123*C126 -> 0 | E126: =D126*$H$93 -> 0 | F126: =D126/20 -> 0 | G126: =E126-F126 -> 0 | H126: 0 | I126: =($H$93-0.05)-(($H$93-0.05)*G81) -> 0.2 | J126: 0 | K126: =G126-J126 -> 0
B127: TOPLAM | C127: =SUM(C124:C126) -> 1 | D127: 0 | E127: 0 | F127: =SUM(F124:F126) -> 0 | G127: =SUM(G124:G126) -> 0 | H127: =SUM(H124:H126) -> 0 | J127: =SUM(J124:J126) -> 0 | K127: 0
B128: 32/A UYGULANAMAYACAK MATRAH | C128: =IF(C84<=0,0,C84) -> 40000000 | D128: KV MATRAHI | E128: 1-5 PUAN İNDİRİM OLMASAYDI HESAPLANAN KV TUTARI | F128: 1-5 Puan İndirim Tutarı | G128: 1 -5 Puan İndirim Sonrasında Hesaplanan KV Tutarı | H128: 32/A İNDİRİMİ UYGULANMAZ | J128: 1 Puan İndirim ve 32/A İndirimi Uygulandıktan Sonra Ödenecek KV Tutarı | K128: Yararlanılan Yatırıma Katkı Tutarı (32/A İnd. KV Nedeniyle Vazgeçilen Vergi Tutarı) | L128: Ödenecek KV Tutarı
B129: GENEL ORANA TABİ KISIM (DİĞER FAALİYETLER) | C129: =F92 -> 0.9 | D129: =C128*C129 -> 36000000 | E129: =D129*$H$93 -> 9000000 | F129: 0 | G129: =E129-F129 -> 9000000 | J129: =G129 -> 9000000 | K129: =G129-J129 -> 0 | L129: =J132 -> 9800000
B130: 1 PUAN İNDİRİMLİ ORANA TABİ KISIM (İMALAT) | C130: =E92 -> 0 | D130: =C130*C128 -> 0 | E130: =D130*$H$93 -> 0 | F130: =D130/100 -> 0 | G130: =E130-F130 -> 0 | J130: =G130 -> 0 | K130: =G130-J130 -> 0
B131: 5 PUAN İNDİRİMLİ ORANA TABİ KISIM ( İHRACAT) | C131: =D92 -> 0.1 | D131: =C131*C128 -> 4000000 | E131: =D131*$H$93 -> 1000000 | F131: =D131/20 -> 200000 | G131: =E131-F131 -> 800000 | J131: 800000 | K131: 0
B132: TOPLAM | C132: =SUM(C129:C131) -> 1 | D132: =SUM(D129:D131) -> 40000000 | E132: 10000000 | F132: =SUM(F129:F131) -> 200000 | G132: =SUM(G129:G131) -> 9800000 | J132: 9800000 | K132: 0
B133: TOPLAM KV MATRAHI VE ÖDENMESİ GEREKEN KV | C133: =C103+C128+C108+C113+C118+C123 -> 40000000 | D133: =D107+D132+D112+D117+D122+D127 -> 40000000 | E133: =E107+E132+E112+E117+E122+E127 -> 10000000 | F133: =F107+F132+F112+F117+F122+F127 -> 200000 | G133: =G107+G132+G112+G117+G122+G127 -> 9800000 | J133: =J107+J132+J112+J117+J122+J127 -> 9800000 | K133: =K132+K107+K112+K117+K122+K127 -> 0 | L133: =L104+L129+L109+L114+L119+L124 -> 9800000
B135: GEÇİCİ VERGİ BEYANNMESİNDE MATRAH BİLDİRİMİ BÖLÜMÜNDE DOLDURULACAK KISIMLAR VE TUTARLARI
B136: 32 A Madde Kapsamında İndirimli Kurumlar Vergisine (Geçici Vergiye) Tabi Matrah | C136: =C103+C108+C113+C118+C123 -> 0 | D136: =E107+E112+E117+E122+E127 -> 0 | E136: 1-5 Puan Olmasaydı Hesaplan KV Tutarı
D137: =G107+G112+G117+G122++G127 -> 0 | E137: 1 -5 Puan İndirim Sonrasında Ödenecek KV Tutarı (32 A olmasaydı hesaplanacak Vergi)
D138: =K107+K112+K117+K122+K127 -> 0 | E138: 32/A İndirimi ile Vazgeçilen Vergi
B139: 32 A Madde Kapsamında İndirimli Kurumlar Vergisi(Geçici Vergi) Oranı | C139: =IFERROR(D139/C136,0) -> 0 | D139: =L104+L109+L114+L119+L124 -> 0 | E139: 32/A ya Tabi Matrah Üzerinden Ödenecek KV
B140: 32/7 Madde Kapsamında İndirimli Kurumlar Vergisine (Geçici Vergiye) Tabi Matrah (İhracat) | C140: =D131 -> 4000000 | D140: =E131 -> 1000000 | E140: 5 Puan Olmasaydı Hesaplan KV Tutarı
D141: =F131 -> 200000 | E141: 5 Puan İndirimin Vergi Etkisi
B142: 32/7 Madde Kapsamında İndirimli Kurumlar Vergisi (Geçici Vergi) Oranı | C142: =IFERROR(D142/C140,0) -> 0.2 | D142: =G131 -> 800000 | E142: 5 Puan İndirim Sonrasında Ödenecek KV Tutarı (İhracat)
B143: 32/8 Madde Kapsamında İndirimli Kurumlar Vergisine (Geçici Vergiye) Tabi Matrah (Üretim) | C143: =D130 -> 0 | D143: =E130 -> 0 | E143: 1 Puan Olmasaydı Hesaplan KV Tutarı
D144: =F130 -> 0 | E144: 1 Puan İndirimin Vergi Etkisi
B145: 32/8 Madde Kapsamında İndirimli Kurumlar Vergisi (Geçici Vergi) Oranı | C145: =IFERROR(D145/C143,0) -> 0 | D145: =G130 -> 0 | E145: 1 Puan İndirim Sonrasında Ödenecek KV Tutarı (Üretim)
B146: Genel Orana Tabi Matrah (Diğer) | C146: =D129 -> 36000000 | D146: =J129 -> 9000000 | E146: Diğer Faalilyetlerden Elde Edilen Kazanç
C147: =IFERROR(D146/C146,0) -> 0.25
B148: MATRAHLAR TOPLAMI | C148: =C136+C143+C140+C146 -> 40000000 | D148: =D139+D145+D142+D146 -> 9800000

Sheet Ü Ö1 (hidden)
B2: FAALİYET TÜRLERİ İTİBARİYLE HASILATLAR VE TOPLAM İÇİNDEKİ ORANLARI | C2: =IFERROR(C4/C4,0) -> 1 | D2: =IFERROR(D4/C4,0) -> 0 | E2: =IFERROR(E4/C4,0) -> 0.7 | F2: =IFERROR(F4/C4,0) -> 0.3
C3: Toplam Hasılat | D3: İhracat faaliyeti | E3: İmalat faaliyeti | F3: Diğer faaliyetler
B4: A-BRÜT SATIŞLAR (60) | C4: =D4+E4+F4 -> 2000000 | D4: =SUM(D5:D7) -> 0 | E4: =SUM(E5:E7) -> 1400000 | F4: 600000
B5: 1-Yurtiçi Satışlar (600) | C5: =D5+E5+F5 -> 2000000 | E5: 1400000 | F5: 600000
B6: 2-Yurtdışı Satışlar (601) | C6: =D6+E6+F6 -> 0 | D6: 0
B7: 3-Diğer Gelirler (602) | C7: =D7+E7+F7 -> 0
B8: B-SATIŞ İNDİRİMLERİ(-) (61) | C8: =SUM(C9:C11) -> 0 | D8: =SUM(D9:D11) -> 0 | E8: =SUM(E9:E11) -> 0 | F8: 0
B9: 1-Satıştan İadeler (-) (610) | C9: =SUM(D9:F9) -> 0
B10: 2- Satış İskontoları (-) (611) | C10: =SUM(D10:F10) -> 0
B11: 3-Diğer İndirimler (-) (612) | C11: 0
B12: C-NET SATIŞLAR | C12: =C4-C8 -> 2000000 | D12: =D4-D8 -> 0 | E12: =E4-E8 -> 1400000 | F12: 600000
B13: D-SATIŞLARIN MALİYETİ (-) (62) | C13: =SUM(C14:C17) -> 0 | D13: =SUM(D14:D17) -> 0 | E13: =SUM(E14:E17) -> 0 | F13: =SUM(F14:F17) -> 0
B14: 1-Satılan Mamuller Maliyeti ( 620) | C14: =SUM(D14:F14) -> 0
B15: 2-Satılan Ticari Mal Maliyeti (621) | C15: =SUM(D15:F15) -> 0
B16: 3-Satılan Hizmet Maliyeti (622) | C16: 0
B17: 4-Diğer Satışların Maliyeti (623) | C17: 0
B18: BRÜT SATIŞ KARI / ZARARI | C18: =C12-C13 -> 2000000 | D18: =D12-D13 -> 0 | E18: =E12-E13 -> 1400000 | F18: 600000
B19: E-FAALİYET GİDERLERİ (-) (63) | C19: =SUM(C20:C24) -> 0 | D19: =SUM(D20:D24) -> 0 | E19: =SUM(E20:E24) -> 0 | F19: 0
B20: 1-Araştırma ve Geliştirme Giderleri(-) (630) | C20: =SUM(D20:F20) -> 0
B21: 2-Pazarlama, Satış ve Dağıtım Giderleri(-) (631) | C21: =SUM(D21:F21) -> 0
B22: 3-Genel Yönetim Giderleri(-) (632) | C22: =SUM(D22:F22) -> 0
B23: MÜŞTEREK GENEL GİDERLER (DAĞITIM-HASILAT PAYINA GÖRE) | D23: =C23*D2 -> 0 | E23: =C23*E2 -> 0 | F23: =C23*F2 -> 0
B24: MÜŞTEREK GENEL GİDER GİBİ DAĞITIMA TABİ TUTULACAK AMORTİSMAN GİDERLERİ (DAĞITIM-HASILAT PAYINA GÖRE) | D24: =C24*D2 -> 0 | E24: =C24*E2 -> 0 | F24: =C24*F2 -> 0
B25: FAALİYET KARI / ZARARI | C25: =C18-C19 -> 2000000 | D25: =D18-D19 -> 0 | E25: =E18-E19 -> 1400000 | F25: 600000
B26: F-DİĞER FAALİYETLERDEN OLAĞAN GELİR VE KARLAR (64) | C26: =SUM(C27:C35) -> 0 | D26: =SUM(D27:D35) -> 0 | E26: =SUM(E27:E35) -> 0 | F26: =SUM(F27:F35) -> 0
B27: 1- İŞTİRAKLERDEN TEMETTÜ GELİRLERİ (640) | C27: =SUM(D27:F27) -> 0
B28: 2- BAĞLI ORTAKLIKLARDAN TEMETTÜ GELİRLERİ (641) | C28: =SUM(D28:F28) -> 0
B29: 3- FAİZ GELİRLERİ (642) (ihracat ve imalat kaynaklı alacağın tahsiline kadar olan süreçte oluşan) | C29: 0
B30: 4- KOMİSYON GELİRLERİ (643) | C30: 0
B31: 5- KONUSU OLMAYAN KARŞILIKLAR (644) | C31: 0
B32: 6- MENKUL KIYMET SATIŞ KARLARI (645) | C32: 0
B33: 7- KAMBİYO KARLARI (646) (ihracat ve imalat kaynaklı alacağın tahsiline kadar olan süreçte oluşan) | C33: 0
B34: 8- REESKONT FAİZ GELİRLERİ (647) | C34: 0
B35: 9- FAALİYETLE İLGİLİ DİĞER GELİR VE KARLAR (649) | C35: 0
B36: ARA TOPLAM | C36: =C25+C26 -> 2000000 | D36: =D25+D26 -> 0 | E36: =E25+E26 -> 1400000 | F36: =F25+F26 -> 600000
B37: G-DİĞER FAALİYETLERDEN OLAĞAN GİDER VE ZARARLAR(-) (65) | C37: =SUM(C38:C43) -> 0 | D37: =SUM(D38:D43) -> 0 | E37: =SUM(E38:E43) -> 0 | F37: 0
B38: 1- KOMİSYON GİDERLERİ (653) | C38: =SUM(D38:F38) -> 0
B39: 2- KARŞILIK GİDERLERİ (654) | C39: =SUM(D39:F39) -> 0
B40: 3- MENKUL KIYMET SATIŞ ZARARLARI (655) | C40: 0
B41: 4- KAMBİYO ZARARLARI (656) (ihracat ve imalat kaynaklı alacağın tahsiline kadar olan süreçte oluşan) | C41: 0
B42: 5- REESKONT FAİZ GİDERLERİ (657) | C42: 0
B43: 6- DİĞER OLAĞAN GİDER VE ZARARLAR (659) | C43: =SUM(D43:F43) -> 0
B44: ARA TOPLAM | C44: =C36-C37 -> 2000000 | D44: =D36-D37 -> 0 | E44: =E36-E37 -> 1400000 | F44: 600000
B45: H-FİNANSMAN GİDERLERİ(-) (66) | C45: =SUM(C46:C49) -> 0 | D45: =SUM(D46:D49) -> 0 | E45: =SUM(E46:E49) -> 0 | F45: =SUM(F46:F49) -> 0
B46: 1- KISA VADELİ BORÇLANMA GİDERLERİ (-) | C46: =SUM(D46:F46) -> 0
B47: 2- UZUN VADELİ BORÇLANMA GİDERLERİ (-) | C47: =SUM(D47:F47) -> 0
B48: 1- KISA VADELİ BORÇLANMA GİDERLERİ (-) (DAĞITIM) | D48: =C48*D2 -> 0 | E48: =C48*E2 -> 0 | F48: =C48*F2 -> 0
B49: 2- UZUN VADELİ BORÇLANMA GİDERLERİ (-) (DAĞITIM) | D49: =C49*D2 -> 0 | E49: =C49*E2 -> 0 | F49: =C49*F2 -> 0
B50: ARA TOPLAM | C50: =C44-C45 -> 2000000 | D50: =D44-D45 -> 0 | E50: =E44-E45 -> 1400000 | F50: =F44-F45 -> 600000
B51: I-OLAĞANDIŞI GELİR VE KÂRLAR (67) | C51: =SUM(D51:F51) -> 0 | D51: =SUM(D52:D53) -> 0 | E51: =SUM(E52:E53) -> 0 | F51: =SUM(F52:F53) -> 0
B52: 1- ÖNCEKİ DÖNEM GELİR VE KARLARI (671) | C52: =SUM(D52:F52) -> 0
B53: 2-DİĞER OLAĞAN DIŞI GELİR VE KARLAR (679) | C53: =SUM(D53:F53) -> 0
B54: ARA TOPLAM | C54: =SUM(D54:F54) -> 2000000 | D54: =D50+D51 -> 0 | E54: =E50+E51 -> 1400000 | F54: 600000
B55: J-OLAĞANDIŞI GİDER VE ZARARLAR(-) (68) | C55: =SUM(C56:C58) -> 0 | D55: =SUM(D56:D58) -> 0 | E55: =SUM(E56:E58) -> 0 | F55: 0
B56: 1-Çalışmayan Kısım Gider ve Zararları(-) (680) | C56: =SUM(D56:F56) -> 0
B57: 2-Önceki Dönem Gider ve Zararları(-) (681) | C57: =SUM(D57:F57) -> 0
B58: 3-Diğer Olağan Dışı Gider ve Zararlar(-) (689) | C58: 0
B59: DÖNEM KÂRI VEYA ZARARI (TİCARİ BİLANÇO KARI ZARARI ) | C59: =C54-C55 -> 2000000 | D59: =D54-D55 -> 0 | E59: =E54-E55 -> 1400000 | F59: 600000
B60: İHRACAT, İMALAT VE DİĞER FAALİYETLERDEN ELDE EDİLEN KAZANCIN TOPLAM TİCARİ KAZANÇ İÇİNDEKİ PAYLARI | D60: =IF(D59>=$C$59,1, IF(D59<=0,0, IF(AND(D59>0,D59<$C$59),D59/$C$59))) -> 0 | E60: =IF(E59>=$C$59,1, IF(E59<=0,0, IF(AND(E59>0,E59<$C$59),E59/$C$59))) -> 0.7 | F60: =IF(F59>=$C$59,1, IF(F59<=0,0, IF(AND(F59>0,F59<$C$59),F59/$C$59))) -> 0.3
D61: =D60/(D60+E60+F60) -> 0 | E61: =E60/(D60+E60+F60) -> 0.7 | F61: =F60/(D60+E60+F60) -> 0.3
B63: KKEG + | C63: 500000
B64: KABUL EDİLMEYEN GELİRLER -
B65: ZARAR OLSA DAHİ İNDİRİLECEK İSTİSNALAR - | C65: =C66+C67+C68 -> 0
B66: Hizmet İhracatı Faaliyetinden (KVK 10-1/ğ) Elde Edilen Kazançlardan İstisna Edilenlerin Toplamı
B67: İmalat Faaliyetinden Elde Edilen Kazançlardan İstisna Edilenlerin Toplamı
B68: Diğer Faaliyetlerden Elde Edilen Kazançlardan İstisna Edilenlerin Toplamı
B69: GEÇMİŞ YIL ZARARLARI - | C69: 1200000
B70: İNDİRİMLER - | D70: AZAMİ YAZILABİLECEK İNDİRİMLER TUTARI | E70: =C59+C63-C64-C65-C69 -> 1300000
B72: 1 PUAN İNDİRİM UYGULANACAK TUTARIN HESABINDA İSTİSNA KAZANÇLAR DÜŞÜLDÜKTEN SONRA BULUNAN TİCARİ KAZANÇ TUTARI İLE BU KAZANÇ İÇİNDE İHRACAT,İMALAT VE DİĞER KAZANÇLARIN TUTARI | C72: TİCARİ KAZANÇ TAN İhracat ve İmalat Kazancından İstisna Olan Tutarlar Düşüldükten Sonra Kalan Tutarı | D72: İhracat Faaliyetinden Elde Edilen Kazançtan İstisna Olan Kısım Düşüldükten Sonra Bulunan Tutarı | E72: Üretim Faaliyetinden Elde Edilen Kazançtan İstisna Olan Kısım Düşüldükten Sonra Bulunan Tutarı | F72: Diğer Faaliyetinden Elde Edilen Kazanç
C73: =IF(C59-C66-C67<=0,0,C59-C66-C67) -> 2000000 | D73: =IF($D$59-C66<=0,0,MIN($D$59-C66,$C$73*D61)) -> 0 | E73: =IF($E$59-C67<=0,0,MIN($E$59-C67,$C$73*E61)) -> 1400000 | F73: =IF(C73-D73-E73<=0,0,C73-D73-E73) -> 600000
B74: İHRACAT, İMALAT VE DİĞER FAALİYETLERDEN ELDE EDİLEN KAZANCIN TOPLAM TİCARİ KAZANÇ İÇİNDEKİ PAYLARI | D74: =IFERROR(IF(D73/C73<=0,0,D73/C73),0) -> 0 | E74: =IFERROR(IF(E73/C73<=0,0,E73/C73),0) -> 0.7 | F74: =IFERROR(F73/C73,0) -> 0.3
B75: NEGATİF VE % 100 DEN BÜYÜKLÜK KONTROLÜ SONRASINDAKİ PAYLARI | D75: =IFERROR(IF(D74<=0,0,IF(D74>1,1,D74)),0) -> 0 | E75: =IFERROR(IF(E74<=0,0,IF(E74>1,1,E74)),0) -> 0.7 | F75: =IFERROR(IF(F74<=0,0,IF(F74>1,1,F74)),0) -> 0.3
B77: SAFİ KURUM KAZANCI (KURUMLAR VERGİSİ MATRAHI) | C77: =C59+C63-C64-C65-C69-C70 -> 1300000 | D77: =IF(C77<0, "ZARAR","KAR") -> KAR
B79: 2022 YILI 3. DÖNEM İNDİRİMLİ KURUMLAR VERGİSİ HESAPLAMA TABLOSU
C80: 1. TEŞVİK BELGESİ | D80: 2. TEŞVİK BELGESİ | E80: 3. TEŞVİK BELGESİ | F80: 4. TEŞVİK BELGESİ | G80: 5. TEŞVİK BELGESİ
B81: Vergi İndirim Oranı (VİO)
B82: KV MATRAHI (Safi Kurum Kazancı) | C82: =C77 -> 1300000
B83: 32/A Uygulanacak K.V. Matrahı (HER BİR TEŞVİK BELGESİ KAPSAMINDA YARARLANILABİLECEK YATIRIMA KATKI TUTARININ MATRAHI BU HÜCRELERE YAZILMALIDIR) | H83: =IF(SUM(C83:G83)>C77,"32/A İNDİRİMİ UYGULANACAK KAZANÇ, SAFİ KURUM KAZANCINDAN FAZLADIR",SUM(C83:G83)) -> 0
B84: 32/A UYGULANMAYACAK K.V. Matrahı | C84: =IF(C82-(C83+D83+E83+F83+G83)<0,0,C82-(C83+D83+E83+F83+G83)) -> 1300000
B85: MATRAH TOPLAMI | C85: =IF((C83+D83+E83+F83+G83+C84)>C77,C77,(C83+D83+E83+F83+G83+C84)) -> 1300000
B87: SAFİ KURUM KAZANCININ KV VERGİ ORANLARI İTİBARİYLE DAĞILIMI | C87: TOPLAM SAFİ KAZANÇ | D87: İhracat Kazancı Payı | E87: Üretim Kazancı Payı | F87: Diğer Faaliyet Kazancı Payı
C89: =C77 -> 1300000 | D89: =IF(AND(OR(D59>=C89,D59+E59>=C89),C66>0),MAX(MIN(C89*D74,D59,D73),0),MIN(C89*D74,D59)) -> 0 | E89: =MAX( IF(AND(OR(E59>=C89,E59+F59>=C89),C67>0),MAX(MIN(C89*E74,E59,E73),0),MIN(C89*E74,E59)),0) -> 910000 | F89: =IF(C89-D89-E89<=0,0,C89-D89-E89) -> 390000
B90: SAFİ KURUM KAZANCININ DAĞILIMI ORANSAL DAĞILIMI | C90: =C89 -> 1300000 | D90: =D89/C89 -> 0 | E90: =E89/C89 -> 0.7 | F90: =F89/C89 -> 0.3
B91: SAFİ KURUM KAZANCININ DAĞILIMI TUTARSAL | C91: =C90 -> 1300000 | D91: =D89 -> 0 | E91: =E89 -> 910000 | F91: =F89 -> 390000
B92: SAFİ KURUM KAZANCI DAĞILIMI | C92: =C91 -> 1300000 | D92: =IFERROR(IF(D91/C91>=1,1,D91/C91),0) -> 0 | E92: =IFERROR(IF(E91/C91>=1,1,E91/C91),0) -> 0.7 | F92: =IFERROR(IF(F91/C91>=1,1,F91/C91),0) -> 0.3 | H92: KV ORANI
B93: 1 PUAN VE 32/A İNDİRİMİ OLMASAYDI HESAPLANAN KV TUTARI | C93: =C92*$H$93 -> 325000 | D93: =D91*$H$93 -> 0 | E93: =E91*$H$93 -> 227500 | F93: =F91*$H$93 -> 97500 | H93: 0.25
B94: 32/ A UYGULANAN MATRAH | C94: =C83+D83+E83+F83+G83 -> 0 | D94: =D106+D111+D116+D121+D126 -> 0 | E94: =D105+D110+D115+D120+D125 -> 0 | F94: =D104+D109+D114+D119+D124 -> 0
B95: 32/A UYGULANACAK MATRAH ÜZERİNDEN ÖDENECEK KV TUTARI | C95: =J107+J112+J117+J122+J127 -> 0 | D95: =J106+J111+J116+J121+J126 -> 0 | E95: =J105+J110+J115+J120+J125 -> 0 | F95: =J104+J109+J114+J119+J124 -> 0
B96: 32/A UYGULANMAYAN MATRAH | C96: =IF(C84<=0,0,C84) -> 1300000 | D96: =D131 -> 0 | E96: =D130 -> 910000 | F96: =D129 -> 390000
B97: 32/A UYGULANMAYAN MATRAH ÜZERİNDEN ÖDENECEK KV TUTARI | C97: =L129 -> 315900 | D97: =J131 -> 0 | E97: =J130 -> 218400 | F97: =J129 -> 97500
B98: TOPLAM ÖDENECEK KV | C98: =C95+C97 -> 315900 | D98: =J131+J106 -> 0 | E98: =J130+J105 -> 218400 | F98: =J129+J104 -> 97500
B99: TOPLAM AVANTAJ (YARARLANILAN 1 PUAN İNDİRİMİ + 32/A İNDİRİMİ TUTARI ) | C99: =C93-C98 -> 9100 | D99: =D100+D101 -> 0 | E99: =E100+E101 -> 9100 | F99: =F100+F101 -> 0
B100: YARARLANILAN 1 - 5 PUAN İNDİRİMİ TUTARI | C100: =F132+F127+F122+F117+F112+F107 -> 9100 | D100: =F131+F106+F111+F116+F121+F126 -> 0 | E100: =F130+F105+F110+F115+F120+F125 -> 9100 | F100: =F129+F104+F109+F114+F119+F124 -> 0
B101: YARLANILAN 32/A İNDİRİMİ TUTARI | C101: =K107+K112+K117+K122+K127+K132 -> 0 | D101: =K106+K111+K121+K126+K131 -> 0 | E101: =K105+K110+K115+K120+K125+K130 -> 0 | F101: =K104++K109+K114+K119+K124+K129 -> 0
B103: 32/A UYGULANABİLECEK MATRAH (1.TEŞVİK BELGESİ) | C103: =C83 -> 0 | D103: KV MATRAHI | E103: 1 - 5 PUAN İNDİRİM OLMASAYDI HESAPLANAN KV TUTARI | F103: 1 -5 Puan İndirim Tutarı | G103: 1 - 5 Puan İndirim Sonrasında Hesaplanan KV Tutarı | H103: 32/A İndirimi Olmasaydı Ödenecek KV Tutarı | I103: 1 -5 Puan İndirim ve 32/A VİO Uygulandıktan Sonra Tatbik Edilecek KV Oranı | J103: 1 -5 Puan İndirim ve 32/A İndirimi Uygulandıktan Sonra Ödenecek KV Tutarı | K103: Yararlanılan Yatırıma Katkı Tutarı (32/A İnd. KV Nedeniyle Vazgeçilen Vergi Tutarı) | L103: Ödenecek KV Tutarı
B104: GENEL ORANA TABİ KISIM (DİĞER FAALİYETLER) | C104: =F92 -> 0.3 | D104: =C103*C104 -> 0 | E104: =D104*$H$93 -> 0 | F104: 0 | G104: =E104-F104 -> 0 | H104: =G104 -> 0 | I104: =($H$93)-(($H$93)*$C$81) -> 0.25 | J104: =I104*D104 -> 0 | K104: =G104-J104 -> 0 | L104: =J107 -> 0
B105: 1 PUAN İNDİRİMLİ ORANA TABİ KISIM (İMALAT) | C105: =E92 -> 0.7 | D105: =C103*C105 -> 0 | E105: =D105*$H$93 -> 0 | F105: =D105/100 -> 0 | G105: =E105-F105 -> 0 | H105: =G105 -> 0 | I105: =($H$93-0.01)-(($H$93-0.01)*$C$81) -> 0.24 | J105: =I105*D105 -> 0 | K105: =G105-J105 -> 0
B106: 5 PUAN İNDİRİMLİ ORANA TABİ KISIM ( İHRACAT) | C106: =D92 -> 0 | D106: =C103*C106 -> 0 | E106: =D106*$H$93 -> 0 | F106: =D106/20 -> 0 | G106: =E106-F106 -> 0 | H106: 0 | I106: =($H$93-0.05)-(($H$93-0.05)*C81) -> 0.2 | J106: 0 | K106: =G106-J106 -> 0
B107: TOPLAM | C107: =SUM(C104:C106) -> 1 | D107: =SUM(D104:D106) -> 0 | E107: 0 | F107: =SUM(F104:F106) -> 0 | G107: =SUM(G104:G106) -> 0 | H107: =SUM(H104:H106) -> 0 | J107: 0 | K107: 0
B108: 32/A UYGULANABİLECEK MATRAH (2.TEŞVİK BELGESİ) | C108: =D83 -> 0 | D108: KV MATRAHI | E108: 1 - 5 PUAN İNDİRİM OLMASAYDI HESAPLANAN KV TUTARI | F108: 1 -5 Puan İndirim Tutarı | G108: 1 -5 Puan İndirim Sonrasında Hesaplanan KV Tutarı | H108: 32/A İndirimi Olmasaydı Ödenecek KV Tutarı | I108: 1 - 5 Puan İndirim ve 32/A VİO Uygulandıktan Sonra Tatbik Edilecek KV Oranı | J108: 1-5 Puan İndirim ve 32/A İndirimi Uygulandıktan Sonra Ödenecek KV Tutarı | K108: Yararlanılan Yatırıma Katkı Tutarı (32/A İnd. KV Nedeniyle Vazgeçilen Vergi Tutarı) | L108: Ödenecek KV Tutarı
B109: GENEL ORANA TABİ KISIM (DİĞER FAALİYETLER) | C109: =F92 -> 0.3 | D109: =C108*C109 -> 0 | E109: =D109*$H$93 -> 0 | F109: 0 | G109: =E109-F109 -> 0 | H109: =G109 -> 0 | I109: =($H$93)-(($H$93)*D81) -> 0.25 | J109: =I109*D109 -> 0 | K109: =G109-J109 -> 0 | L109: =J112 -> 0
B110: 1 PUAN İNDİRİMLİ ORANA TABİ KISIM (İMALAT) | C110: =E92 -> 0.7 | D110: =C108*C110 -> 0 | E110: =D110*$H$93 -> 0 | F110: =D110/100 -> 0 | G110: =E110-F110 -> 0 | H110: =G110 -> 0 | I110: =($H$93-0.01)-(($H$93-0.01)*D81) -> 0.24 | J110: =I110*D110 -> 0 | K110: =G110-J110 -> 0
B111: 5 PUAN İNDİRİMLİ ORANA TABİ KISIM ( İHRACAT) | C111: =D92 -> 0 | D111: =C108*C111 -> 0 | E111: =D111*$H$93 -> 0 | F111: =D111/20 -> 0 | G111: =E111-F111 -> 0 | H111: 0 | I111: =($H$93-0.05)-(($H$93-0.05)*D81) -> 0.2 | J111: 0 | K111: =G111-J111 -> 0
B112: TOPLAM | C112: =SUM(C109:C111) -> 1 | D112: 0 | E112: 0 | F112: =SUM(F109:F111) -> 0 | G112: =SUM(G109:G111) -> 0 | H112: =SUM(H109:H111) -> 0 | J112: =SUM(J109:J111) -> 0 | K112: 0
B113: 32/A UYGULANABİLECEK MATRAH (3.TEŞVİK BELGESİ) | C113: =E83 -> 0 | D113: KV MATRAHI | E113: 1 - 5 PUAN İNDİRİM OLMASAYDI HESAPLANAN KV TUTARI | F113: 1-5 Puan İndirim Tutarı | G113: 1 - 5 Puan İndirim Sonrasında Hesaplanan KV Tutarı | H113: 32/A İndirimi Olmasaydı Ödenecek KV Tutarı | I113: 1 - 5 Puan İndirim ve 32/A VİO Uygulandıktan Sonra Tatbik Edilecek KV Oranı | J113: 1 -5 Puan İndirim ve 32/A İndirimi Uygulandıktan Sonra Ödenecek KV Tutarı | K113: Yararlanılan Yatırıma Katkı Tutarı (32/A İnd. KV Nedeniyle Vazgeçilen Vergi Tutarı) | L113: Ödenecek KV Tutarı
B114: GENEL ORANA TABİ KISIM (DİĞER FAALİYETLER) | C114: =F92 -> 0.3 | D114: =C113*C114 -> 0 | E114: =D114*$H$93 -> 0 | F114: 0 | G114: =E114-F114 -> 0 | H114: =G114 -> 0 | I114: =($H$93)-(($H$93)*E81) -> 0.25 | J114: =I114*D114 -> 0 | K114: =G114-J114 -> 0 | L114: =J117 -> 0
B115: 1 PUAN İNDİRİMLİ ORANA TABİ KISIM (İMALAT) | C115: =E92 -> 0.7 | D115: =C113*C115 -> 0 | E115: =D115*$H$93 -> 0 | F115: =D115/100 -> 0 | G115: =E115-F115 -> 0 | H115: =G115 -> 0 | I115: =($H$93-0.01)-(($H$93-0.01)*E81) -> 0.24 | J115: =I115*D115 -> 0 | K115: =G115-J115 -> 0
B116: 5 PUAN İNDİRİMLİ ORANA TABİ KISIM ( İHRACAT) | C116: =D92 -> 0 | D116: =C113*C116 -> 0 | E116: =D116*$H$93 -> 0 | F116: =D116/20 -> 0 | G116: =E116-F116 -> 0 | H116: 0 | I116: =($H$93-0.05)-(($H$93-0.05)*E81) -> 0.2 | J116: 0 | K116: =G116-J116 -> 0
B117: TOPLAM | C117: =SUM(C114:C116) -> 1 | D117: 0 | E117: 0 | F117: =SUM(F114:F116) -> 0 | G117: =SUM(G114:G116) -> 0 | H117: =SUM(H114:H116) -> 0 | J117: =SUM(J114:J116) -> 0 | K117: 0
B118: 32/A UYGULANABİLECEK MATRAH (4. TEŞVİK BELGESİ) | C118: =F83 -> 0 | D118: KV MATRAHI | E118: 1 - 5 PUAN İNDİRİM OLMASAYDI HESAPLANAN KV TUTARI | F118: 1-5 Puan İndirim Tutarı | G118: 1 -5 Puan İndirim Sonrasında Hesaplanan KV Tutarı | H118: 32/A İndirimi Olmasaydı Ödenecek KV Tutarı | I118: 1- 5 Puan İndirim ve 32/A VİO Uygulandıktan Sonra Tatbik Edilecek KV Oranı | J118: 1-5 Puan İndirim ve 32/A İndirimi Uygulandıktan Sonra Ödenecek KV Tutarı | K118: Yararlanılan Yatırıma Katkı Tutarı (32/A İnd. KV Nedeniyle Vazgeçilen Vergi Tutarı) | L118: Ödenecek KV Tutarı
B119: GENEL ORANA TABİ KISIM (DİĞER FAALİYETLER) | C119: =F92 -> 0.3 | D119: =C118*C119 -> 0 | E119: =D119*$H$93 -> 0 | F119: 0 | G119: =E119-F119 -> 0 | H119: =G119 -> 0 | I119: =($H$93)-(($H$93)*F81) -> 0.25 | J119: =I119*D119 -> 0 | K119: =G119-J119 -> 0 | L119: =J122 -> 0
B120: 1 PUAN İNDİRİMLİ ORANA TABİ KISIM (İMALAT) | C120: =E92 -> 0.7 | D120: =C118*C120 -> 0 | E120: =D120*$H$93 -> 0 | F120: =D120/100 -> 0 | G120: =E120-F120 -> 0 | H120: =G120 -> 0 | I120: =($H$93-0.01)-(($H$93-0.01)*F81) -> 0.24 | J120: =I120*D120 -> 0 | K120: =G120-J120 -> 0
B121: 5 PUAN İNDİRİMLİ ORANA TABİ KISIM ( İHRACAT) | C121: =D92 -> 0 | D121: =C118*C121 -> 0 | E121: =D121*$H$93 -> 0 | F121: =D121/20 -> 0 | G121: =E121-F121 -> 0 | H121: 0 | I121: =($H$93-0.05)-(($H$93-0.05)*F81) -> 0.2 | J121: 0 | K121: =G121-J121 -> 0
B122: TOPLAM | C122: =SUM(C119:C121) -> 1 | D122: 0 | E122: 0 | F122: =SUM(F119:F121) -> 0 | G122: =SUM(G119:G121) -> 0 | H122: =SUM(H119:H121) -> 0 | J122: =SUM(J119:J121) -> 0 | K122: 0
B123: 32/A UYGULANABİLECEK MATRAH (5.TEŞVİK BELGESİ) | C123: =G83 -> 0 | D123: KV MATRAHI | E123: 1 - 5 PUAN İNDİRİM OLMASAYDI HESAPLANAN KV TUTARI | F123: 1-5 Puan İndirim Tutarı | G123: 1 - 5 Puan İndirim Sonrasında Hesaplanan KV Tutarı | H123: 32/A İndirimi Olmasaydı Ödenecek KV Tutarı | I123: 1 -5 Puan İndirim ve 32/A VİO Uygulandıktan Sonra Tatbik Edilecek KV Oranı | J123: 1 - 5 Puan İndirim ve 32/A İndirimi Uygulandıktan Sonra Ödenecek KV Tutarı | K123: Yararlanılan Yatırıma Katkı Tutarı (32/A İnd. KV Nedeniyle Vazgeçilen Vergi Tutarı) | L123: Ödenecek KV Tutarı
B124: GENEL ORANA TABİ KISIM (DİĞER FAALİYETLER) | C124: =F92 -> 0.3 | D124: =C123*C124 -> 0 | E124: =D124*$H$93 -> 0 | F124: 0 | G124: =E124-F124 -> 0 | H124: =G124 -> 0 | I124: =($H$93)-(($H$93)*G81) -> 0.25 | J124: =I124*D124 -> 0 | K124: =G124-J124 -> 0 | L124: =J127 -> 0
B125: 1 PUAN İNDİRİMLİ ORANA TABİ KISIM (İMALAT) | C125: =E92 -> 0.7 | D125: =C123*C125 -> 0 | E125: =D125*$H$93 -> 0 | F125: =D125/100 -> 0 | G125: =E125-F125 -> 0 | H125: =G125 -> 0 | I125: =($H$93-0.01)-(($H$93-0.01)*G81) -> 0.24 | J125: =I125*D125 -> 0 | K125: =G125-J125 -> 0
B126: 5 PUAN İNDİRİMLİ ORANA TABİ KISIM ( İHRACAT) | C126: =D92 -> 0 | D126: =C123*C126 -> 0 | E126: =D126*$H$93 -> 0 | F126: =D126/20 -> 0 | G126: =E126-F126 -> 0 | H126: 0 | I126: =($H$93-0.05)-(($H$93-0.05)*G81) -> 0.2 | J126: 0 | K126: =G126-J126 -> 0
B127: TOPLAM | C127: =SUM(C124:C126) -> 1 | D127: 0 | E127: 0 | F127: =SUM(F124:F126) -> 0 | G127: =SUM(G124:G126) -> 0 | H127: =SUM(H124:H126) -> 0 | J127: =SUM(J124:J126) -> 0 | K127: 0
B128: 32/A UYGULANAMAYACAK MATRAH | C128: =IF(C84<=0,0,C84) -> 1300000 | D128: KV MATRAHI | E128: 1-5 PUAN İNDİRİM OLMASAYDI HESAPLANAN KV TUTARI | F128: 1-5 Puan İndirim Tutarı | G128: 1 -5 Puan İndirim Sonrasında Hesaplanan KV Tutarı | H128: 32/A İNDİRİMİ UYGULANMAZ | J128: 1 Puan İndirim ve 32/A İndirimi Uygulandıktan Sonra Ödenecek KV Tutarı | K128: Yararlanılan Yatırıma Katkı Tutarı (32/A İnd. KV Nedeniyle Vazgeçilen Vergi Tutarı) | L128: Ödenecek KV Tutarı
B129: GENEL ORANA TABİ KISIM (DİĞER FAALİYETLER) | C129: =F92 -> 0.3 | D129: =C128*C129 -> 390000 | E129: =D129*$H$93 -> 97500 | F129: 0 | G129: =E129-F129 -> 97500 | J129: =G129 -> 97500 | K129: =G129-J129 -> 0 | L129: =J132 -> 315900
B130: 1 PUAN İNDİRİMLİ ORANA TABİ KISIM (İMALAT) | C130: =E92 -> 0.7 | D130: =C130*C128 -> 910000 | E130: =D130*$H$93 -> 227500 | F130: =D130/100 -> 9100 | G130: =E130-F130 -> 218400 | J130: =G130 -> 218400 | K130: =G130-J130 -> 0
B131: 5 PUAN İNDİRİMLİ ORANA TABİ KISIM ( İHRACAT) | C131: =D92 -> 0 | D131: =C131*C128 -> 0 | E131: =D131*$H$93 -> 0 | F131: =D131/20 -> 0 | G131: =E131-F131 -> 0 | J131: 0 | K131: 0
B132: TOPLAM | C132: =SUM(C129:C131) -> 1 | D132: =SUM(D129:D131) -> 1300000 | E132: 325000 | F132: =SUM(F129:F131) -> 9100 | G132: =SUM(G129:G131) -> 315900 | J132: 315900 | K132: 0
B133: TOPLAM KV MATRAHI VE ÖDENMESİ GEREKEN KV | C133: =C103+C128+C108+C113+C118+C123 -> 1300000 | D133: =D107+D132+D112+D117+D122+D127 -> 1300000 | E133: =E107+E132+E112+E117+E122+E127 -> 325000 | F133: =F107+F132+F112+F117+F122+F127 -> 9100 | G133: =G107+G132+G112+G117+G122+G127 -> 315900 | J133: =J107+J132+J112+J117+J122+J127 -> 315900 | K133: =K132+K107+K112+K117+K122+K127 -> 0 | L133: =L104+L129+L109+L114+L119+L124 -> 315900
B135: GEÇİCİ VERGİ BEYANNMESİNDE MATRAH BİLDİRİMİ BÖLÜMÜNDE DOLDURULACAK KISIMLAR VE TUTARLARI
B136: 32 A Madde Kapsamında İndirimli Kurumlar Vergisine (Geçici Vergiye) Tabi Matrah | C136: =C103+C108+C113+C118+C123 -> 0 | D136: =E107+E112+E117+E122+E127 -> 0 | E136: 1-5 Puan Olmasaydı Hesaplan KV Tutarı
D137: =G107+G112+G117+G122++G127 -> 0 | E137: 1 -5 Puan İndirim Sonrasında Ödenecek KV Tutarı (32 A olmasaydı hesaplanacak Vergi)
D138: =K107+K112+K117+K122+K127 -> 0 | E138: 32/A İndirimi ile Vazgeçilen Vergi
B139: 32 A Madde Kapsamında İndirimli Kurumlar Vergisi(Geçici Vergi) Oranı | C139: =IFERROR(D139/C136,0) -> 0 | D139: =L104+L109+L114+L119+L124 -> 0 | E139: 32/A ya Tabi Matrah Üzerinden Ödenecek KV
B140: 32/7 Madde Kapsamında İndirimli Kurumlar Vergisine (Geçici Vergiye) Tabi Matrah (İhracat) | C140: =D131 -> 0 | D140: =E131 -> 0 | E140: 5 Puan Olmasaydı Hesaplan KV Tutarı
D141: =F131 -> 0 | E141: 5 Puan İndirimin Vergi Etkisi
B142: 32/7 Madde Kapsamında İndirimli Kurumlar Vergisi (Geçici Vergi) Oranı | C142: =IFERROR(D142/C140,0) -> 0 | D142: =G131 -> 0 | E142: 5 Puan İndirim Sonrasında Ödenecek KV Tutarı (İhracat)
B143: 32/8 Madde Kapsamında İndirimli Kurumlar Vergisine (Geçici Vergiye) Tabi Matrah (Üretim) | C143: =D130 -> 910000 | D143: =E130 -> 227500 | E143: 1 Puan Olmasaydı Hesaplan KV Tutarı
D144: =F130 -> 9100 | E144: 1 Puan İndirimin Vergi Etkisi
B145: 32/8 Madde Kapsamında İndirimli Kurumlar Vergisi (Geçici Vergi) Oranı | C145: =IFERROR(D145/C143,0) -> 0.24 | D145: =G130 -> 218400 | E145: 1 Puan İndirim Sonrasında Ödenecek KV Tutarı (Üretim)
B146: Genel Orana Tabi Matrah (Diğer) | C146: =D129 -> 390000 | D146: =J129 -> 97500 | E146: Diğer Faalilyetlerden Elde Edilen Kazanç
C147: =IFERROR(D146/C146,0) -> 0.25
B148: MATRAHLAR TOPLAMI | C148: =C136+C143+C140+C146 -> 1300000 | D148: =D139+D145+D142+D146 -> 315900

Sheet Ü Ö2 (hidden)
B2: FAALİYET TÜRLERİ İTİBARİYLE HASILATLAR VE TOPLAM İÇİNDEKİ ORANLARI | C2: =IFERROR(C4/C4,0) -> 1 | D2: =IFERROR(D4/C4,0) -> 0 | E2: =IFERROR(E4/C4,0) -> 0.4 | F2: =IFERROR(F4/C4,0) -> 0.6
C3: Toplam Hasılat | D3: İhracat faaliyeti | E3: İmalat faaliyeti | F3: Diğer faaliyetler
B4: A-BRÜT SATIŞLAR (60) | C4: =D4+E4+F4 -> 2000000 | D4: =SUM(D5:D7) -> 0 | E4: =SUM(E5:E7) -> 800000 | F4: 1200000
B5: 1-Yurtiçi Satışlar (600) | C5: =D5+E5+F5 -> 2600000 | E5: 2600000 | F5: 0
B6: 2-Yurtdışı Satışlar (601) | C6: =D6+E6+F6 -> 0 | D6: 0
B7: 3-Diğer Gelirler (602) | C7: =D7+E7+F7 -> -600000 | E7: -1800000 | F7: 1200000
B8: B-SATIŞ İNDİRİMLERİ(-) (61) | C8: =SUM(C9:C11) -> 0 | D8: =SUM(D9:D11) -> 0 | E8: =SUM(E9:E11) -> 0 | F8: 0
B9: 1-Satıştan İadeler (-) (610) | C9: =SUM(D9:F9) -> 0
B10: 2- Satış İskontoları (-) (611) | C10: =SUM(D10:F10) -> 0
B11: 3-Diğer İndirimler (-) (612) | C11: 0
B12: C-NET SATIŞLAR | C12: =C4-C8 -> 2000000 | D12: =D4-D8 -> 0 | E12: =E4-E8 -> 800000 | F12: 1200000
B13: D-SATIŞLARIN MALİYETİ (-) (62) | C13: =SUM(C14:C17) -> 0 | D13: =SUM(D14:D17) -> 0 | E13: =SUM(E14:E17) -> 0 | F13: =SUM(F14:F17) -> 0
B14: 1-Satılan Mamuller Maliyeti ( 620) | C14: =SUM(D14:F14) -> 0
B15: 2-Satılan Ticari Mal Maliyeti (621) | C15: =SUM(D15:F15) -> 0
B16: 3-Satılan Hizmet Maliyeti (622) | C16: 0
B17: 4-Diğer Satışların Maliyeti (623) | C17: 0
B18: BRÜT SATIŞ KARI / ZARARI | C18: =C12-C13 -> 2000000 | D18: =D12-D13 -> 0 | E18: =E12-E13 -> 800000 | F18: 1200000
B19: E-FAALİYET GİDERLERİ (-) (63) | C19: =SUM(C20:C24) -> 0 | D19: =SUM(D20:D24) -> 0 | E19: =SUM(E20:E24) -> 0 | F19: 0
B20: 1-Araştırma ve Geliştirme Giderleri(-) (630) | C20: =SUM(D20:F20) -> 0
B21: 2-Pazarlama, Satış ve Dağıtım Giderleri(-) (631) | C21: =SUM(D21:F21) -> 0
B22: 3-Genel Yönetim Giderleri(-) (632) | C22: =SUM(D22:F22) -> 0
B23: MÜŞTEREK GENEL GİDERLER (DAĞITIM-HASILAT PAYINA GÖRE) | D23: =C23*D2 -> 0 | E23: =C23*E2 -> 0 | F23: =C23*F2 -> 0
B24: MÜŞTEREK GENEL GİDER GİBİ DAĞITIMA TABİ TUTULACAK AMORTİSMAN GİDERLERİ (DAĞITIM-HASILAT PAYINA GÖRE) | D24: =C24*D2 -> 0 | E24: =C24*E2 -> 0 | F24: =C24*F2 -> 0
B25: FAALİYET KARI / ZARARI | C25: =C18-C19 -> 2000000 | D25: =D18-D19 -> 0 | E25: =E18-E19 -> 800000 | F25: 1200000
B26: F-DİĞER FAALİYETLERDEN OLAĞAN GELİR VE KARLAR (64) | C26: =SUM(C27:C35) -> 0 | D26: =SUM(D27:D35) -> 0 | E26: =SUM(E27:E35) -> 0 | F26: =SUM(F27:F35) -> 0
B27: 1- İŞTİRAKLERDEN TEMETTÜ GELİRLERİ (640) | C27: =SUM(D27:F27) -> 0
B28: 2- BAĞLI ORTAKLIKLARDAN TEMETTÜ GELİRLERİ (641) | C28: =SUM(D28:F28) -> 0
B29: 3- FAİZ GELİRLERİ (642) (ihracat ve imalat kaynaklı alacağın tahsiline kadar olan süreçte oluşan) | C29: 0
B30: 4- KOMİSYON GELİRLERİ (643) | C30: 0
B31: 5- KONUSU OLMAYAN KARŞILIKLAR (644) | C31: 0
B32: 6- MENKUL KIYMET SATIŞ KARLARI (645) | C32: 0
B33: 7- KAMBİYO KARLARI (646) (ihracat ve imalat kaynaklı alacağın tahsiline kadar olan süreçte oluşan) | C33: 0
B34: 8- REESKONT FAİZ GELİRLERİ (647) | C34: 0
B35: 9- FAALİYETLE İLGİLİ DİĞER GELİR VE KARLAR (649) | C35: 0
B36: ARA TOPLAM | C36: =C25+C26 -> 2000000 | D36: =D25+D26 -> 0 | E36: =E25+E26 -> 800000 | F36: =F25+F26 -> 1200000
B37: G-DİĞER FAALİYETLERDEN OLAĞAN GİDER VE ZARARLAR(-) (65) | C37: =SUM(C38:C43) -> 0 | D37: =SUM(D38:D43) -> 0 | E37: =SUM(E38:E43) -> 0 | F37: 0
B38: 1- KOMİSYON GİDERLERİ (653) | C38: =SUM(D38:F38) -> 0
B39: 2- KARŞILIK GİDERLERİ (654) | C39: =SUM(D39:F39) -> 0
B40: 3- MENKUL KIYMET SATIŞ ZARARLARI (655) | C40: 0
B41: 4- KAMBİYO ZARARLARI (656) (ihracat ve imalat kaynaklı alacağın tahsiline kadar olan süreçte oluşan) | C41: 0
B42: 5- REESKONT FAİZ GİDERLERİ (657) | C42: 0
B43: 6- DİĞER OLAĞAN GİDER VE ZARARLAR (659) | C43: =SUM(D43:F43) -> 0
B44: ARA TOPLAM | C44: =C36-C37 -> 2000000 | D44: =D36-D37 -> 0 | E44: =E36-E37 -> 800000 | F44: 1200000
B45: H-FİNANSMAN GİDERLERİ(-) (66) | C45: =SUM(C46:C49) -> 0 | D45: =SUM(D46:D49) -> 0 | E45: =SUM(E46:E49) -> 0 | F45: =SUM(F46:F49) -> 0
B46: 1- KISA VADELİ BORÇLANMA GİDERLERİ (-) | C46: =SUM(D46:F46) -> 0
B47: 2- UZUN VADELİ BORÇLANMA GİDERLERİ (-) | C47: =SUM(D47:F47) -> 0
B48: 1- KISA VADELİ BORÇLANMA GİDERLERİ (-) (DAĞITIM) | D48: =C48*D2 -> 0 | E48: =C48*E2 -> 0 | F48: =C48*F2 -> 0
B49: 2- UZUN VADELİ BORÇLANMA GİDERLERİ (-) (DAĞITIM) | D49: =C49*D2 -> 0 | E49: =C49*E2 -> 0 | F49: =C49*F2 -> 0
B50: ARA TOPLAM | C50: =C44-C45 -> 2000000 | D50: =D44-D45 -> 0 | E50: =E44-E45 -> 800000 | F50: =F44-F45 -> 1200000
B51: I-OLAĞANDIŞI GELİR VE KÂRLAR (67) | C51: =SUM(D51:F51) -> 0 | D51: =SUM(D52:D53) -> 0 | E51: =SUM(E52:E53) -> 0 | F51: =SUM(F52:F53) -> 0
B52: 1- ÖNCEKİ DÖNEM GELİR VE KARLARI (671) | C52: =SUM(D52:F52) -> 0
B53: 2-DİĞER OLAĞAN DIŞI GELİR VE KARLAR (679) | C53: =SUM(D53:F53) -> 0
B54: ARA TOPLAM | C54: =SUM(D54:F54) -> 2000000 | D54: =D50+D51 -> 0 | E54: =E50+E51 -> 800000 | F54: 1200000
B55: J-OLAĞANDIŞI GİDER VE ZARARLAR(-) (68) | C55: =SUM(C56:C58) -> 0 | D55: =SUM(D56:D58) -> 0 | E55: =SUM(E56:E58) -> 0 | F55: 0
B56: 1-Çalışmayan Kısım Gider ve Zararları(-) (680) | C56: =SUM(D56:F56) -> 0
B57: 2-Önceki Dönem Gider ve Zararları(-) (681) | C57: =SUM(D57:F57) -> 0
B58: 3-Diğer Olağan Dışı Gider ve Zararlar(-) (689) | C58: 0
B59: DÖNEM KÂRI VEYA ZARARI (TİCARİ BİLANÇO KARI ZARARI ) | C59: =C54-C55 -> 2000000 | D59: =D54-D55 -> 0 | E59: =E54-E55 -> 800000 | F59: 1200000
B60: İHRACAT, İMALAT VE DİĞER FAALİYETLERDEN ELDE EDİLEN KAZANCIN TOPLAM TİCARİ KAZANÇ İÇİNDEKİ PAYLARI | D60: =IF(D59>=$C$59,1, IF(D59<=0,0, IF(AND(D59>0,D59<$C$59),D59/$C$59))) -> 0 | E60: =IF(E59>=$C$59,1, IF(E59<=0,0, IF(AND(E59>0,E59<$C$59),E59/$C$59))) -> 0.4 | F60: =IF(F59>=$C$59,1, IF(F59<=0,0, IF(AND(F59>0,F59<$C$59),F59/$C$59))) -> 0.6
D61: =D60/(D60+E60+F60) -> 0 | E61: =E60/(D60+E60+F60) -> 0.4 | F61: =F60/(D60+E60+F60) -> 0.6
B63: KKEG + | C63: 1000000
B64: KABUL EDİLMEYEN GELİRLER -
B65: ZARAR OLSA DAHİ İNDİRİLECEK İSTİSNALAR - | C65: =C66+C67+C68 -> 0
B66: Hizmet İhracatı Faaliyetinden (KVK 10-1/ğ) Elde Edilen Kazançlardan İstisna Edilenlerin Toplamı
B67: İmalat Faaliyetinden Elde Edilen Kazançlardan İstisna Edilenlerin Toplamı
B68: Diğer Faaliyetlerden Elde Edilen Kazançlardan İstisna Edilenlerin Toplamı
B69: GEÇMİŞ YIL ZARARLARI - | C69: 2000000
B70: İNDİRİMLER - | D70: AZAMİ YAZILABİLECEK İNDİRİMLER TUTARI | E70: =C59+C63-C64-C65-C69 -> 1000000
B72: 1 PUAN İNDİRİM UYGULANACAK TUTARIN HESABINDA İSTİSNA KAZANÇLAR DÜŞÜLDÜKTEN SONRA BULUNAN TİCARİ KAZANÇ TUTARI İLE BU KAZANÇ İÇİNDE İHRACAT,İMALAT VE DİĞER KAZANÇLARIN TUTARI | C72: TİCARİ KAZANÇ TAN İhracat ve İmalat Kazancından İstisna Olan Tutarlar Düşüldükten Sonra Kalan Tutarı | D72: İhracat Faaliyetinden Elde Edilen Kazançtan İstisna Olan Kısım Düşüldükten Sonra Bulunan Tutarı | E72: Üretim Faaliyetinden Elde Edilen Kazançtan İstisna Olan Kısım Düşüldükten Sonra Bulunan Tutarı | F72: Diğer Faaliyetinden Elde Edilen Kazanç
C73: =IF(C59-C66-C67<=0,0,C59-C66-C67) -> 2000000 | D73: =IF($D$59-C66<=0,0,MIN($D$59-C66,$C$73*D61)) -> 0 | E73: =IF($E$59-C67<=0,0,MIN($E$59-C67,$C$73*E61)) -> 800000 | F73: =IF(C73-D73-E73<=0,0,C73-D73-E73) -> 1200000
B74: İHRACAT, İMALAT VE DİĞER FAALİYETLERDEN ELDE EDİLEN KAZANCIN TOPLAM TİCARİ KAZANÇ İÇİNDEKİ PAYLARI | D74: =IFERROR(IF(D73/C73<=0,0,D73/C73),0) -> 0 | E74: =IFERROR(IF(E73/C73<=0,0,E73/C73),0) -> 0.4 | F74: =IFERROR(F73/C73,0) -> 0.6
B75: NEGATİF VE % 100 DEN BÜYÜKLÜK KONTROLÜ SONRASINDAKİ PAYLARI | D75: =IFERROR(IF(D74<=0,0,IF(D74>1,1,D74)),0) -> 0 | E75: =IFERROR(IF(E74<=0,0,IF(E74>1,1,E74)),0) -> 0.4 | F75: =IFERROR(IF(F74<=0,0,IF(F74>1,1,F74)),0) -> 0.6
B77: SAFİ KURUM KAZANCI (KURUMLAR VERGİSİ MATRAHI) | C77: =C59+C63-C64-C65-C69-C70 -> 1000000 | D77: =IF(C77<0, "ZARAR","KAR") -> KAR
B79: 2022 YILI 3. DÖNEM İNDİRİMLİ KURUMLAR VERGİSİ HESAPLAMA TABLOSU
C80: 1. TEŞVİK BELGESİ | D80: 2. TEŞVİK BELGESİ | E80: 3. TEŞVİK BELGESİ | F80: 4. TEŞVİK BELGESİ | G80: 5. TEŞVİK BELGESİ
B81: Vergi İndirim Oranı (VİO)
B82: KV MATRAHI (Safi Kurum Kazancı) | C82: =C77 -> 1000000
B83: 32/A Uygulanacak K.V. Matrahı (HER BİR TEŞVİK BELGESİ KAPSAMINDA YARARLANILABİLECEK YATIRIMA KATKI TUTARININ MATRAHI BU HÜCRELERE YAZILMALIDIR) | H83: =IF(SUM(C83:G83)>C77,"32/A İNDİRİMİ UYGULANACAK KAZANÇ, SAFİ KURUM KAZANCINDAN FAZLADIR",SUM(C83:G83)) -> 0
B84: 32/A UYGULANMAYACAK K.V. Matrahı | C84: =IF(C82-(C83+D83+E83+F83+G83)<0,0,C82-(C83+D83+E83+F83+G83)) -> 1000000
B85: MATRAH TOPLAMI | C85: =IF((C83+D83+E83+F83+G83+C84)>C77,C77,(C83+D83+E83+F83+G83+C84)) -> 1000000
B87: SAFİ KURUM KAZANCININ KV VERGİ ORANLARI İTİBARİYLE DAĞILIMI | C87: TOPLAM SAFİ KAZANÇ | D87: İhracat Kazancı Payı | E87: Üretim Kazancı Payı | F87: Diğer Faaliyet Kazancı Payı
C89: =C77 -> 1000000 | D89: =IF(AND(OR(D59>=C89,D59+E59>=C89),C66>0),MAX(MIN(C89*D74,D59,D73),0),MIN(C89*D74,D59)) -> 0 | E89: =MAX( IF(AND(OR(E59>=C89,E59+F59>=C89),C67>0),MAX(MIN(C89*E74,E59,E73),0),MIN(C89*E74,E59)),0) -> 400000 | F89: =IF(C89-D89-E89<=0,0,C89-D89-E89) -> 600000
B90: SAFİ KURUM KAZANCININ DAĞILIMI ORANSAL DAĞILIMI | C90: =C89 -> 1000000 | D90: =D89/C89 -> 0 | E90: =E89/C89 -> 0.4 | F90: =F89/C89 -> 0.6
B91: SAFİ KURUM KAZANCININ DAĞILIMI TUTARSAL | C91: =C90 -> 1000000 | D91: =D89 -> 0 | E91: =E89 -> 400000 | F91: =F89 -> 600000
B92: SAFİ KURUM KAZANCI DAĞILIMI | C92: =C91 -> 1000000 | D92: =IFERROR(IF(D91/C91>=1,1,D91/C91),0) -> 0 | E92: =IFERROR(IF(E91/C91>=1,1,E91/C91),0) -> 0.4 | F92: =IFERROR(IF(F91/C91>=1,1,F91/C91),0) -> 0.6 | H92: KV ORANI
B93: 1 PUAN VE 32/A İNDİRİMİ OLMASAYDI HESAPLANAN KV TUTARI | C93: =C92*$H$93 -> 250000 | D93: =D91*$H$93 -> 0 | E93: =E91*$H$93 -> 100000 | F93: =F91*$H$93 -> 150000 | H93: 0.25
B94: 32/ A UYGULANAN MATRAH | C94: =C83+D83+E83+F83+G83 -> 0 | D94: =D106+D111+D116+D121+D126 -> 0 | E94: =D105+D110+D115+D120+D125 -> 0 | F94: =D104+D109+D114+D119+D124 -> 0
B95: 32/A UYGULANACAK MATRAH ÜZERİNDEN ÖDENECEK KV TUTARI | C95: =J107+J112+J117+J122+J127 -> 0 | D95: =J106+J111+J116+J121+J126 -> 0 | E95: =J105+J110+J115+J120+J125 -> 0 | F95: =J104+J109+J114+J119+J124 -> 0
B96: 32/A UYGULANMAYAN MATRAH | C96: =IF(C84<=0,0,C84) -> 1000000 | D96: =D131 -> 0 | E96: =D130 -> 400000 | F96: =D129 -> 600000
B97: 32/A UYGULANMAYAN MATRAH ÜZERİNDEN ÖDENECEK KV TUTARI | C97: =L129 -> 246000 | D97: =J131 -> 0 | E97: =J130 -> 96000 | F97: =J129 -> 150000
B98: TOPLAM ÖDENECEK KV | C98: =C95+C97 -> 246000 | D98: =J131+J106 -> 0 | E98: =J130+J105 -> 96000 | F98: =J129+J104 -> 150000
B99: TOPLAM AVANTAJ (YARARLANILAN 1 PUAN İNDİRİMİ + 32/A İNDİRİMİ TUTARI ) | C99: =C93-C98 -> 4000 | D99: =D100+D101 -> 0 | E99: =E100+E101 -> 4000 | F99: =F100+F101 -> 0
B100: YARARLANILAN 1 - 5 PUAN İNDİRİMİ TUTARI | C100: =F132+F127+F122+F117+F112+F107 -> 4000 | D100: =F131+F106+F111+F116+F121+F126 -> 0 | E100: =F130+F105+F110+F115+F120+F125 -> 4000 | F100: =F129+F104+F109+F114+F119+F124 -> 0
B101: YARLANILAN 32/A İNDİRİMİ TUTARI | C101: =K107+K112+K117+K122+K127+K132 -> 0 | D101: =K106+K111+K121+K126+K131 -> 0 | E101: =K105+K110+K115+K120+K125+K130 -> 0 | F101: =K104++K109+K114+K119+K124+K129 -> 0
B103: 32/A UYGULANABİLECEK MATRAH (1.TEŞVİK BELGESİ) | C103: =C83 -> 0 | D103: KV MATRAHI | E103: 1 - 5 PUAN İNDİRİM OLMASAYDI HESAPLANAN KV TUTARI | F103: 1 -5 Puan İndirim Tutarı | G103: 1 - 5 Puan İndirim Sonrasında Hesaplanan KV Tutarı | H103: 32/A İndirimi Olmasaydı Ödenecek KV Tutarı | I103: 1 -5 Puan İndirim ve 32/A VİO Uygulandıktan Sonra Tatbik Edilecek KV Oranı | J103: 1 -5 Puan İndirim ve 32/A İndirimi Uygulandıktan Sonra Ödenecek KV Tutarı | K103: Yararlanılan Yatırıma Katkı Tutarı (32/A İnd. KV Nedeniyle Vazgeçilen Vergi Tutarı) | L103: Ödenecek KV Tutarı
B104: GENEL ORANA TABİ KISIM (DİĞER FAALİYETLER) | C104: =F92 -> 0.6 | D104: =C103*C104 -> 0 | E104: =D104*$H$93 -> 0 | F104: 0 | G104: =E104-F104 -> 0 | H104: =G104 -> 0 | I104: =($H$93)-(($H$93)*$C$81) -> 0.25 | J104: =I104*D104 -> 0 | K104: =G104-J104 -> 0 | L104: =J107 -> 0
B105: 1 PUAN İNDİRİMLİ ORANA TABİ KISIM (İMALAT) | C105: =E92 -> 0.4 | D105: =C103*C105 -> 0 | E105: =D105*$H$93 -> 0 | F105: =D105/100 -> 0 | G105: =E105-F105 -> 0 | H105: =G105 -> 0 | I105: =($H$93-0.01)-(($H$93-0.01)*$C$81) -> 0.24 | J105: =I105*D105 -> 0 | K105: =G105-J105 -> 0
B106: 5 PUAN İNDİRİMLİ ORANA TABİ KISIM ( İHRACAT) | C106: =D92 -> 0 | D106: =C103*C106 -> 0 | E106: =D106*$H$93 -> 0 | F106: =D106/20 -> 0 | G106: =E106-F106 -> 0 | H106: 0 | I106: =($H$93-0.05)-(($H$93-0.05)*C81) -> 0.2 | J106: 0 | K106: =G106-J106 -> 0
B107: TOPLAM | C107: =SUM(C104:C106) -> 1 | D107: =SUM(D104:D106) -> 0 | E107: 0 | F107: =SUM(F104:F106) -> 0 | G107: =SUM(G104:G106) -> 0 | H107: =SUM(H104:H106) -> 0 | J107: 0 | K107: 0
B108: 32/A UYGULANABİLECEK MATRAH (2.TEŞVİK BELGESİ) | C108: =D83 -> 0 | D108: KV MATRAHI | E108: 1 - 5 PUAN İNDİRİM OLMASAYDI HESAPLANAN KV TUTARI | F108: 1 -5 Puan İndirim Tutarı | G108: 1 -5 Puan İndirim Sonrasında Hesaplanan KV Tutarı | H108: 32/A İndirimi Olmasaydı Ödenecek KV Tutarı | I108: 1 - 5 Puan İndirim ve 32/A VİO Uygulandıktan Sonra Tatbik Edilecek KV Oranı | J108: 1-5 Puan İndirim ve 32/A İndirimi Uygulandıktan Sonra Ödenecek KV Tutarı | K108: Yararlanılan Yatırıma Katkı Tutarı (32/A İnd. KV Nedeniyle Vazgeçilen Vergi Tutarı) | L108: Ödenecek KV Tutarı
B109: GENEL ORANA TABİ KISIM (DİĞER FAALİYETLER) | C109: =F92 -> 0.6 | D109: =C108*C109 -> 0 | E109: =D109*$H$93 -> 0 | F109: 0 | G109: =E109-F109 -> 0 | H109: =G109 -> 0 | I109: =($H$93)-(($H$93)*D81) -> 0.25 | J109: =I109*D109 -> 0 | K109: =G109-J109 -> 0 | L109: =J112 -> 0
B110: 1 PUAN İNDİRİMLİ ORANA TABİ KISIM (İMALAT) | C110: =E92 -> 0.4 | D110: =C108*C110 -> 0 | E110: =D110*$H$93 -> 0 | F110: =D110/100 -> 0 | G110: =E110-F110 -> 0 | H110: =G110 -> 0 | I110: =($H$93-0.01)-(($H$93-0.01)*D81) -> 0.24 | J110: =I110*D110 -> 0 | K110: =G110-J110 -> 0
B111: 5 PUAN İNDİRİMLİ ORANA TABİ KISIM ( İHRACAT) | C111: =D92 -> 0 | D111: =C108*C111 -> 0 | E111: =D111*$H$93 -> 0 | F111: =D111/20 -> 0 | G111: =E111-F111 -> 0 | H111: 0 | I111: =($H$93-0.05)-(($H$93-0.05)*D81) -> 0.2 | J111: 0 | K111: =G111-J111 -> 0
B112: TOPLAM | C112: =SUM(C109:C111) -> 1 | D112: 0 | E112: 0 | F112: =SUM(F109:F111) -> 0 | G112: =SUM(G109:G111) -> 0 | H112: =SUM(H109:H111) -> 0 | J112: =SUM(J109:J111) -> 0 | K112: 0
B113: 32/A UYGULANABİLECEK MATRAH (3.TEŞVİK BELGESİ) | C113: =E83 -> 0 | D113: KV MATRAHI | E113: 1 - 5 PUAN İNDİRİM OLMASAYDI HESAPLANAN KV TUTARI | F113: 1-5 Puan İndirim Tutarı | G113: 1 - 5 Puan İndirim Sonrasında Hesaplanan KV Tutarı | H113: 32/A İndirimi Olmasaydı Ödenecek KV Tutarı | I113: 1 - 5 Puan İndirim ve 32/A VİO Uygulandıktan Sonra Tatbik Edilecek KV Oranı | J113: 1 -5 Puan İndirim ve 32/A İndirimi Uygulandıktan Sonra Ödenecek KV Tutarı | K113: Yararlanılan Yatırıma Katkı Tutarı (32/A İnd. KV Nedeniyle Vazgeçilen Vergi Tutarı) | L113: Ödenecek KV Tutarı
B114: GENEL ORANA TABİ KISIM (DİĞER FAALİYETLER) | C114: =F92 -> 0.6 | D114: =C113*C114 -> 0 | E114: =D114*$H$93 -> 0 | F114: 0 | G114: =E114-F114 -> 0 | H114: =G114 -> 0 | I114: =($H$93)-(($H$93)*E81) -> 0.25 | J114: =I114*D114 -> 0 | K114: =G114-J114 -> 0 | L114: =J117 -> 0
B115: 1 PUAN İNDİRİMLİ ORANA TABİ KISIM (İMALAT) | C115: =E92 -> 0.4 | D115: =C113*C115 -> 0 | E115: =D115*$H$93 -> 0 | F115: =D115/100 -> 0 | G115: =E115-F115 -> 0 | H115: =G115 -> 0 | I115: =($H$93-0.01)-(($H$93-0.01)*E81) -> 0.24 | J115: =I115*D115 -> 0 | K115: =G115-J115 -> 0
B116: 5 PUAN İNDİRİMLİ ORANA TABİ KISIM ( İHRACAT) | C116: =D92 -> 0 | D116: =C113*C116 -> 0 | E116: =D116*$H$93 -> 0 | F116: =D116/20 -> 0 | G116: =E116-F116 -> 0 | H116: 0 | I116: =($H$93-0.05)-(($H$93-0.05)*E81) -> 0.2 | J116: 0 | K116: =G116-J116 -> 0
B117: TOPLAM | C117: =SUM(C114:C116) -> 1 | D117: 0 | E117: 0 | F117: =SUM(F114:F116) -> 0 | G117: =SUM(G114:G116) -> 0 | H117: =SUM(H114:H116) -> 0 | J117: =SUM(J114:J116) -> 0 | K117: 0
B118: 32/A UYGULANABİLECEK MATRAH (4. TEŞVİK BELGESİ) | C118: =F83 -> 0 | D118: KV MATRAHI | E118: 1 - 5 PUAN İNDİRİM OLMASAYDI HESAPLANAN KV TUTARI | F118: 1-5 Puan İndirim Tutarı | G118: 1 -5 Puan İndirim Sonrasında Hesaplanan KV Tutarı | H118: 32/A İndirimi Olmasaydı Ödenecek KV Tutarı | I118: 1- 5 Puan İndirim ve 32/A VİO Uygulandıktan Sonra Tatbik Edilecek KV Oranı | J118: 1-5 Puan İndirim ve 32/A İndirimi Uygulandıktan Sonra Ödenecek KV Tutarı | K118: Yararlanılan Yatırıma Katkı Tutarı (32/A İnd. KV Nedeniyle Vazgeçilen Vergi Tutarı) | L118: Ödenecek KV Tutarı
B119: GENEL ORANA TABİ KISIM (DİĞER FAALİYETLER) | C119: =F92 -> 0.6 | D119: =C118*C119 -> 0 | E119: =D119*$H$93 -> 0 | F119: 0 | G119: =E119-F119 -> 0 | H119: =G119 -> 0 | I119: =($H$93)-(($H$93)*F81) -> 0.25 | J119: =I119*D119 -> 0 | K119: =G119-J119 -> 0 | L119: =J122 -> 0
B120: 1 PUAN İNDİRİMLİ ORANA TABİ KISIM (İMALAT) | C120: =E92 -> 0.4 | D120: =C118*C120 -> 0 | E120: =D120*$H$93 -> 0 | F120: =D120/100 -> 0 | G120: =E120-F120 -> 0 | H120: =G120 -> 0 | I120: =($H$93-0.01)-(($H$93-0.01)*F81) -> 0.24 | J120: =I120*D120 -> 0 | K120: =G120-J120 -> 0
B121: 5 PUAN İNDİRİMLİ ORANA TABİ KISIM ( İHRACAT) | C121: =D92 -> 0 | D121: =C118*C121 -> 0 | E121: =D121*$H$93 -> 0 | F121: =D121/20 -> 0 | G121: =E121-F121 -> 0 | H121: 0 | I121: =($H$93-0.05)-(($H$93-0.05)*F81) -> 0.2 | J121: 0 | K121: =G121-J121 -> 0
B122: TOPLAM | C122: =SUM(C119:C121) -> 1 | D122: 0 | E122: 0 | F122: =SUM(F119:F121) -> 0 | G122: =SUM(G119:G121) -> 0 | H122: =SUM(H119:H121) -> 0 | J122: =SUM(J119:J121) -> 0 | K122: 0
B123: 32/A UYGULANABİLECEK MATRAH (5.TEŞVİK BELGESİ) | C123: =G83 -> 0 | D123: KV MATRAHI | E123: 1 - 5 PUAN İNDİRİM OLMASAYDI HESAPLANAN KV TUTARI | F123: 1-5 Puan İndirim Tutarı | G123: 1 - 5 Puan İndirim Sonrasında Hesaplanan KV Tutarı | H123: 32/A İndirimi Olmasaydı Ödenecek KV Tutarı | I123: 1 -5 Puan İndirim ve 32/A VİO Uygulandıktan Sonra Tatbik Edilecek KV Oranı | J123: 1 - 5 Puan İndirim ve 32/A İndirimi Uygulandıktan Sonra Ödenecek KV Tutarı | K123: Yararlanılan Yatırıma Katkı Tutarı (32/A İnd. KV Nedeniyle Vazgeçilen Vergi Tutarı) | L123: Ödenecek KV Tutarı
B124: GENEL ORANA TABİ KISIM (DİĞER FAALİYETLER) | C124: =F92 -> 0.6 | D124: =C123*C124 -> 0 | E124: =D124*$H$93 -> 0 | F124: 0 | G124: =E124-F124 -> 0 | H124: =G124 -> 0 | I124: =($H$93)-(($H$93)*G81) -> 0.25 | J124: =I124*D124 -> 0 | K124: =G124-J124 -> 0 | L124: =J127 -> 0
B125: 1 PUAN İNDİRİMLİ ORANA TABİ KISIM (İMALAT) | C125: =E92 -> 0.4 | D125: =C123*C125 -> 0 | E125: =D125*$H$93 -> 0 | F125: =D125/100 -> 0 | G125: =E125-F125 -> 0 | H125: =G125 -> 0 | I125: =($H$93-0.01)-(($H$93-0.01)*G81) -> 0.24 | J125: =I125*D125 -> 0 | K125: =G125-J125 -> 0
B126: 5 PUAN İNDİRİMLİ ORANA TABİ KISIM ( İHRACAT) | C126: =D92 -> 0 | D126: =C123*C126 -> 0 | E126: =D126*$H$93 -> 0 | F126: =D126/20 -> 0 | G126: =E126-F126 -> 0 | H126: 0 | I126: =($H$93-0.05)-(($H$93-0.05)*G81) -> 0.2 | J126: 0 | K126: =G126-J126 -> 0
B127: TOPLAM | C127: =SUM(C124:C126) -> 1 | D127: 0 | E127: 0 | F127: =SUM(F124:F126) -> 0 | G127: =SUM(G124:G126) -> 0 | H127: =SUM(H124:H126) -> 0 | J127: =SUM(J124:J126) -> 0 | K127: 0
B128: 32/A UYGULANAMAYACAK MATRAH | C128: =IF(C84<=0,0,C84) -> 1000000 | D128: KV MATRAHI | E128: 1-5 PUAN İNDİRİM OLMASAYDI HESAPLANAN KV TUTARI | F128: 1-5 Puan İndirim Tutarı | G128: 1 -5 Puan İndirim Sonrasında Hesaplanan KV Tutarı | H128: 32/A İNDİRİMİ UYGULANMAZ | J128: 1 Puan İndirim ve 32/A İndirimi Uygulandıktan Sonra Ödenecek KV Tutarı | K128: Yararlanılan Yatırıma Katkı Tutarı (32/A İnd. KV Nedeniyle Vazgeçilen Vergi Tutarı) | L128: Ödenecek KV Tutarı
B129: GENEL ORANA TABİ KISIM (DİĞER FAALİYETLER) | C129: =F92 -> 0.6 | D129: =C128*C129 -> 600000 | E129: =D129*$H$93 -> 150000 | F129: 0 | G129: =E129-F129 -> 150000 | J129: =G129 -> 150000 | K129: =G129-J129 -> 0 | L129: =J132 -> 246000
B130: 1 PUAN İNDİRİMLİ ORANA TABİ KISIM (İMALAT) | C130: =E92 -> 0.4 | D130: =C130*C128 -> 400000 | E130: =D130*$H$93 -> 100000 | F130: =D130/100 -> 4000 | G130: =E130-F130 -> 96000 | J130: =G130 -> 96000 | K130: =G130-J130 -> 0
B131: 5 PUAN İNDİRİMLİ ORANA TABİ KISIM ( İHRACAT) | C131: =D92 -> 0 | D131: =C131*C128 -> 0 | E131: =D131*$H$93 -> 0 | F131: =D131/20 -> 0 | G131: =E131-F131 -> 0 | J131: 0 | K131: 0
B132: TOPLAM | C132: =SUM(C129:C131) -> 1 | D132: =SUM(D129:D131) -> 1000000 | E132: 250000 | F132: =SUM(F129:F131) -> 4000 | G132: =SUM(G129:G131) -> 246000 | J132: 246000 | K132: 0
B133: TOPLAM KV MATRAHI VE ÖDENMESİ GEREKEN KV | C133: =C103+C128+C108+C113+C118+C123 -> 1000000 | D133: =D107+D132+D112+D117+D122+D127 -> 1000000 | E133: =E107+E132+E112+E117+E122+E127 -> 250000 | F133: =F107+F132+F112+F117+F122+F127 -> 4000 | G133: =G107+G132+G112+G117+G122+G127 -> 246000 | J133: =J107+J132+J112+J117+J122+J127 -> 246000 | K133: =K132+K107+K112+K117+K122+K127 -> 0 | L133: =L104+L129+L109+L114+L119+L124 -> 246000
B135: GEÇİCİ VERGİ BEYANNMESİNDE MATRAH BİLDİRİMİ BÖLÜMÜNDE DOLDURULACAK KISIMLAR VE TUTARLARI
B136: 32 A Madde Kapsamında İndirimli Kurumlar Vergisine (Geçici Vergiye) Tabi Matrah | C136: =C103+C108+C113+C118+C123 -> 0 | D136: =E107+E112+E117+E122+E127 -> 0 | E136: 1-5 Puan Olmasaydı Hesaplan KV Tutarı
D137: =G107+G112+G117+G122++G127 -> 0 | E137: 1 -5 Puan İndirim Sonrasında Ödenecek KV Tutarı (32 A olmasaydı hesaplanacak Vergi)
D138: =K107+K112+K117+K122+K127 -> 0 | E138: 32/A İndirimi ile Vazgeçilen Vergi
B139: 32 A Madde Kapsamında İndirimli Kurumlar Vergisi(Geçici Vergi) Oranı | C139: =IFERROR(D139/C136,0) -> 0 | D139: =L104+L109+L114+L119+L124 -> 0 | E139: 32/A ya Tabi Matrah Üzerinden Ödenecek KV
B140: 32/7 Madde Kapsamında İndirimli Kurumlar Vergisine (Geçici Vergiye) Tabi Matrah (İhracat) | C140: =D131 -> 0 | D140: =E131 -> 0 | E140: 5 Puan Olmasaydı Hesaplan KV Tutarı
D141: =F131 -> 0 | E141: 5 Puan İndirimin Vergi Etkisi
B142: 32/7 Madde Kapsamında İndirimli Kurumlar Vergisi (Geçici Vergi) Oranı | C142: =IFERROR(D142/C140,0) -> 0 | D142: =G131 -> 0 | E142: 5 Puan İndirim Sonrasında Ödenecek KV Tutarı (İhracat)
B143: 32/8 Madde Kapsamında İndirimli Kurumlar Vergisine (Geçici Vergiye) Tabi Matrah (Üretim) | C143: =D130 -> 400000 | D143: =E130 -> 100000 | E143: 1 Puan Olmasaydı Hesaplan KV Tutarı
D144: =F130 -> 4000 | E144: 1 Puan İndirimin Vergi Etkisi
B145: 32/8 Madde Kapsamında İndirimli Kurumlar Vergisi (Geçici Vergi) Oranı | C145: =IFERROR(D145/C143,0) -> 0.24 | D145: =G130 -> 96000 | E145: 1 Puan İndirim Sonrasında Ödenecek KV Tutarı (Üretim)
B146: Genel Orana Tabi Matrah (Diğer) | C146: =D129 -> 600000 | D146: =J129 -> 150000 | E146: Diğer Faalilyetlerden Elde Edilen Kazanç
C147: =IFERROR(D146/C146,0) -> 0.25
B148: MATRAHLAR TOPLAMI | C148: =C136+C143+C140+C146 -> 1000000 | D148: =D139+D145+D142+D146 -> 246000

Sheet İÜ Ö1 (hidden)
B2: FAALİYET TÜRLERİ İTİBARİYLE HASILATLAR VE TOPLAM İÇİNDEKİ ORANLARI | C2: =IFERROR(C4/C4,0) -> 1 | D2: =IFERROR(D4/C4,0) -> 0.6 | E2: =IFERROR(E4/C4,0) -> 0.4 | F2: =IFERROR(F4/C4,0) -> 0
C3: Toplam Hasılat | D3: İhracat faaliyeti | E3: İmalat faaliyeti | F3: Diğer faaliyetler
B4: A-BRÜT SATIŞLAR (60) | C4: =D4+E4+F4 -> 1000000 | D4: =SUM(D5:D7) -> 600000 | E4: =SUM(E5:E7) -> 400000 | F4: 0
B5: 1-Yurtiçi Satışlar (600) | C5: =D5+E5+F5 -> 400000 | E5: 400000
B6: 2-Yurtdışı Satışlar (601) | C6: =D6+E6+F6 -> 600000 | D6: 600000
B7: 3-Diğer Gelirler (602) | C7: =D7+E7+F7 -> 0
B8: B-SATIŞ İNDİRİMLERİ(-) (61) | C8: =SUM(C9:C11) -> 0 | D8: =SUM(D9:D11) -> 0 | E8: =SUM(E9:E11) -> 0 | F8: 0
B9: 1-Satıştan İadeler (-) (610) | C9: =SUM(D9:F9) -> 0
B10: 2- Satış İskontoları (-) (611) | C10: =SUM(D10:F10) -> 0
B11: 3-Diğer İndirimler (-) (612) | C11: 0
B12: C-NET SATIŞLAR | C12: =C4-C8 -> 1000000 | D12: =D4-D8 -> 600000 | E12: =E4-E8 -> 400000 | F12: 0
B13: D-SATIŞLARIN MALİYETİ (-) (62) | C13: =SUM(C14:C17) -> 0 | D13: =SUM(D14:D17) -> 0 | E13: =SUM(E14:E17) -> 0 | F13: =SUM(F14:F17) -> 0
B14: 1-Satılan Mamuller Maliyeti ( 620) | C14: =SUM(D14:F14) -> 0
B15: 2-Satılan Ticari Mal Maliyeti (621) | C15: =SUM(D15:F15) -> 0
B16: 3-Satılan Hizmet Maliyeti (622) | C16: 0
B17: 4-Diğer Satışların Maliyeti (623) | C17: 0
B18: BRÜT SATIŞ KARI / ZARARI | C18: =C12-C13 -> 1000000 | D18: =D12-D13 -> 600000 | E18: =E12-E13 -> 400000 | F18: 0
B19: E-FAALİYET GİDERLERİ (-) (63) | C19: =SUM(C20:C24) -> 0 | D19: =SUM(D20:D24) -> 0 | E19: =SUM(E20:E24) -> 0 | F19: 0
B20: 1-Araştırma ve Geliştirme Giderleri(-) (630) | C20: =SUM(D20:F20) -> 0
B21: 2-Pazarlama, Satış ve Dağıtım Giderleri(-) (631) | C21: =SUM(D21:F21) -> 0
B22: 3-Genel Yönetim Giderleri(-) (632) | C22: =SUM(D22:F22) -> 0
B23: MÜŞTEREK GENEL GİDERLER (DAĞITIM-HASILAT PAYINA GÖRE) | D23: =C23*D2 -> 0 | E23: =C23*E2 -> 0 | F23: =C23*F2 -> 0
B24: MÜŞTEREK GENEL GİDER GİBİ DAĞITIMA TABİ TUTULACAK AMORTİSMAN GİDERLERİ (DAĞITIM-HASILAT PAYINA GÖRE) | D24: =C24*D2 -> 0 | E24: =C24*E2 -> 0 | F24: =C24*F2 -> 0
B25: FAALİYET KARI / ZARARI | C25: =C18-C19 -> 1000000 | D25: =D18-D19 -> 600000 | E25: =E18-E19 -> 400000 | F25: 0
B26: F-DİĞER FAALİYETLERDEN OLAĞAN GELİR VE KARLAR (64) | C26: =SUM(C27:C35) -> 0 | D26: =SUM(D27:D35) -> 0 | E26: =SUM(E27:E35) -> 0 | F26: =SUM(F27:F35) -> 0
B27: 1- İŞTİRAKLERDEN TEMETTÜ GELİRLERİ (640) | C27: =SUM(D27:F27) -> 0
B28: 2- BAĞLI ORTAKLIKLARDAN TEMETTÜ GELİRLERİ (641) | C28: =SUM(D28:F28) -> 0
B29: 3- FAİZ GELİRLERİ (642) (ihracat ve imalat kaynaklı alacağın tahsiline kadar olan süreçte oluşan) | C29: 0
B30: 4- KOMİSYON GELİRLERİ (643) | C30: 0
B31: 5- KONUSU OLMAYAN KARŞILIKLAR (644) | C31: 0
B32: 6- MENKUL KIYMET SATIŞ KARLARI (645) | C32: 0
B33: 7- KAMBİYO KARLARI (646) (ihracat ve imalat kaynaklı alacağın tahsiline kadar olan süreçte oluşan) | C33: 0
B34: 8- REESKONT FAİZ GELİRLERİ (647) | C34: 0
B35: 9- FAALİYETLE İLGİLİ DİĞER GELİR VE KARLAR (649) | C35: 0
B36: ARA TOPLAM | C36: =C25+C26 -> 1000000 | D36: =D25+D26 -> 600000 | E36: =E25+E26 -> 400000 | F36: =F25+F26 -> 0
B37: G-DİĞER FAALİYETLERDEN OLAĞAN GİDER VE ZARARLAR(-) (65) | C37: =SUM(C38:C43) -> 0 | D37: =SUM(D38:D43) -> 0 | E37: =SUM(E38:E43) -> 0 | F37: 0
B38: 1- KOMİSYON GİDERLERİ (653) | C38: =SUM(D38:F38) -> 0
B39: 2- KARŞILIK GİDERLERİ (654) | C39: =SUM(D39:F39) -> 0
B40: 3- MENKUL KIYMET SATIŞ ZARARLARI (655) | C40: 0
B41: 4- KAMBİYO ZARARLARI (656) (ihracat ve imalat kaynaklı alacağın tahsiline kadar olan süreçte oluşan) | C41: 0
B42: 5- REESKONT FAİZ GİDERLERİ (657) | C42: 0
B43: 6- DİĞER OLAĞAN GİDER VE ZARARLAR (659) | C43: =SUM(D43:F43) -> 0
B44: ARA TOPLAM | C44: =C36-C37 -> 1000000 | D44: =D36-D37 -> 600000 | E44: =E36-E37 -> 400000 | F44: 0
B45: H-FİNANSMAN GİDERLERİ(-) (66) | C45: =SUM(C46:C49) -> 0 | D45: =SUM(D46:D49) -> 0 | E45: =SUM(E46:E49) -> 0 | F45: =SUM(F46:F49) -> 0
B46: 1- KISA VADELİ BORÇLANMA GİDERLERİ (-) | C46: =SUM(D46:F46) -> 0
B47: 2- UZUN VADELİ BORÇLANMA GİDERLERİ (-) | C47: =SUM(D47:F47) -> 0
B48: 1- KISA VADELİ BORÇLANMA GİDERLERİ (-) (DAĞITIM) | D48: =C48*D2 -> 0 | E48: =C48*E2 -> 0 | F48: =C48*F2 -> 0
B49: 2- UZUN VADELİ BORÇLANMA GİDERLERİ (-) (DAĞITIM) | D49: =C49*D2 -> 0 | E49: =C49*E2 -> 0 | F49: =C49*F2 -> 0
B50: ARA TOPLAM | C50: =C44-C45 -> 1000000 | D50: =D44-D45 -> 600000 | E50: =E44-E45 -> 400000 | F50: =F44-F45 -> 0
B51: I-OLAĞANDIŞI GELİR VE KÂRLAR (67) | C51: =SUM(D51:F51) -> 0 | D51: =SUM(D52:D53) -> 0 | E51: =SUM(E52:E53) -> 0 | F51: =SUM(F52:F53) -> 0
B52: 1- ÖNCEKİ DÖNEM GELİR VE KARLARI (671) | C52: =SUM(D52:F52) -> 0
B53: 2-DİĞER OLAĞAN DIŞI GELİR VE KARLAR (679) | C53: =SUM(D53:F53) -> 0
B54: ARA TOPLAM | C54: =SUM(D54:F54) -> 1000000 | D54: =D50+D51 -> 600000 | E54: =E50+E51 -> 400000 | F54: 0
B55: J-OLAĞANDIŞI GİDER VE ZARARLAR(-) (68) | C55: =SUM(C56:C58) -> 0 | D55: =SUM(D56:D58) -> 0 | E55: =SUM(E56:E58) -> 0 | F55: 0
B56: 1-Çalışmayan Kısım Gider ve Zararları(-) (680) | C56: =SUM(D56:F56) -> 0
B57: 2-Önceki Dönem Gider ve Zararları(-) (681) | C57: =SUM(D57:F57) -> 0
B58: 3-Diğer Olağan Dışı Gider ve Zararlar(-) (689) | C58: 0
B59: DÖNEM KÂRI VEYA ZARARI (TİCARİ BİLANÇO KARI ZARARI ) | C59: =C54-C55 -> 1000000 | D59: =D54-D55 -> 600000 | E59: =E54-E55 -> 400000 | F59: 0
B60: İHRACAT, İMALAT VE DİĞER FAALİYETLERDEN ELDE EDİLEN KAZANCIN TOPLAM TİCARİ KAZANÇ İÇİNDEKİ PAYLARI | D60: =IF(D59>=$C$59,1, IF(D59<=0,0, IF(AND(D59>0,D59<$C$59),D59/$C$59))) -> 0.6 | E60: =IF(E59>=$C$59,1, IF(E59<=0,0, IF(AND(E59>0,E59<$C$59),E59/$C$59))) -> 0.4 | F60: =IF(F59>=$C$59,1, IF(F59<=0,0, IF(AND(F59>0,F59<$C$59),F59/$C$59))) -> 0
D61: =D60/(D60+E60+F60) -> 0.6 | E61: =E60/(D60+E60+F60) -> 0.4 | F61: =F60/(D60+E60+F60) -> 0
B63: KKEG +
B64: KABUL EDİLMEYEN GELİRLER -
B65: ZARAR OLSA DAHİ İNDİRİLECEK İSTİSNALAR - | C65: =C66+C67+C68 -> 0
B66: Hizmet İhracatı Faaliyetinden (KVK 10-1/ğ) Elde Edilen Kazançlardan İstisna Edilenlerin Toplamı
B67: İmalat Faaliyetinden Elde Edilen Kazançlardan İstisna Edilenlerin Toplamı
B68: Diğer Faaliyetlerden Elde Edilen Kazançlardan İstisna Edilenlerin Toplamı
B69: GEÇMİŞ YIL ZARARLARI -
B70: İNDİRİMLER - | D70: AZAMİ YAZILABİLECEK İNDİRİMLER TUTARI | E70: =C59+C63-C64-C65-C69 -> 1000000
B72: 1 PUAN İNDİRİM UYGULANACAK TUTARIN HESABINDA İSTİSNA KAZANÇLAR DÜŞÜLDÜKTEN SONRA BULUNAN TİCARİ KAZANÇ TUTARI İLE BU KAZANÇ İÇİNDE İHRACAT,İMALAT VE DİĞER KAZANÇLARIN TUTARI | C72: TİCARİ KAZANÇ TAN İhracat ve İmalat Kazancından İstisna Olan Tutarlar Düşüldükten Sonra Kalan Tutarı | D72: İhracat Faaliyetinden Elde Edilen Kazançtan İstisna Olan Kısım Düşüldükten Sonra Bulunan Tutarı | E72: Üretim Faaliyetinden Elde Edilen Kazançtan İstisna Olan Kısım Düşüldükten Sonra Bulunan Tutarı | F72: Diğer Faaliyetinden Elde Edilen Kazanç
C73: =IF(C59-C66-C67<=0,0,C59-C66-C67) -> 1000000 | D73: =IF($D$59-C66<=0,0,MIN($D$59-C66,$C$73*D61)) -> 600000 | E73: =IF($E$59-C67<=0,0,MIN($E$59-C67,$C$73*E61)) -> 400000 | F73: =IF(C73-D73-E73<=0,0,C73-D73-E73) -> 0
B74: İHRACAT, İMALAT VE DİĞER FAALİYETLERDEN ELDE EDİLEN KAZANCIN TOPLAM TİCARİ KAZANÇ İÇİNDEKİ PAYLARI | D74: =IFERROR(IF(D73/C73<=0,0,D73/C73),0) -> 0.6 | E74: =IFERROR(IF(E73/C73<=0,0,E73/C73),0) -> 0.4 | F74: =IFERROR(F73/C73,0) -> 0
B75: NEGATİF VE % 100 DEN BÜYÜKLÜK KONTROLÜ SONRASINDAKİ PAYLARI | D75: =IFERROR(IF(D74<=0,0,IF(D74>1,1,D74)),0) -> 0.6 | E75: =IFERROR(IF(E74<=0,0,IF(E74>1,1,E74)),0) -> 0.4 | F75: =IFERROR(IF(F74<=0,0,IF(F74>1,1,F74)),0) -> 0
B77: SAFİ KURUM KAZANCI (KURUMLAR VERGİSİ MATRAHI) | C77: =C59+C63-C64-C65-C69-C70 -> 1000000 | D77: =IF(C77<0, "ZARAR","KAR") -> KAR
B79: 2022 YILI 3. DÖNEM İNDİRİMLİ KURUMLAR VERGİSİ HESAPLAMA TABLOSU
C80: 1. TEŞVİK BELGESİ | D80: 2. TEŞVİK BELGESİ | E80: 3. TEŞVİK BELGESİ | F80: 4. TEŞVİK BELGESİ | G80: 5. TEŞVİK BELGESİ
B81: Vergi İndirim Oranı (VİO)
B82: KV MATRAHI (Safi Kurum Kazancı) | C82: =C77 -> 1000000
B83: 32/A Uygulanacak K.V. Matrahı (HER BİR TEŞVİK BELGESİ KAPSAMINDA YARARLANILABİLECEK YATIRIMA KATKI TUTARININ MATRAHI BU HÜCRELERE YAZILMALIDIR) | H83: =IF(SUM(C83:G83)>C77,"32/A İNDİRİMİ UYGULANACAK KAZANÇ, SAFİ KURUM KAZANCINDAN FAZLADIR",SUM(C83:G83)) -> 0
B84: 32/A UYGULANMAYACAK K.V. Matrahı | C84: =IF(C82-(C83+D83+E83+F83+G83)<0,0,C82-(C83+D83+E83+F83+G83)) -> 1000000
B85: MATRAH TOPLAMI | C85: =IF((C83+D83+E83+F83+G83+C84)>C77,C77,(C83+D83+E83+F83+G83+C84)) -> 1000000
B87: SAFİ KURUM KAZANCININ KV VERGİ ORANLARI İTİBARİYLE DAĞILIMI | C87: TOPLAM SAFİ KAZANÇ | D87: İhracat Kazancı Payı | E87: Üretim Kazancı Payı | F87: Diğer Faaliyet Kazancı Payı
C89: =C77 -> 1000000 | D89: =IF(AND(OR(D59>=C89,D59+E59>=C89),C66>0),MAX(MIN(C89*D74,D59,D73),0),MIN(C89*D74,D59)) -> 600000 | E89: =MAX( IF(AND(OR(E59>=C89,E59+F59>=C89),C67>0),MAX(MIN(C89*E74,E59,E73),0),MIN(C89*E74,E59)),0) -> 400000 | F89: =IF(C89-D89-E89<=0,0,C89-D89-E89) -> 0
B90: SAFİ KURUM KAZANCININ DAĞILIMI ORANSAL DAĞILIMI | C90: =C89 -> 1000000 | D90: =D89/C89 -> 0.6 | E90: =E89/C89 -> 0.4 | F90: =F89/C89 -> 0
B91: SAFİ KURUM KAZANCININ DAĞILIMI TUTARSAL | C91: =C90 -> 1000000 | D91: =D89 -> 600000 | E91: =E89 -> 400000 | F91: =F89 -> 0
B92: SAFİ KURUM KAZANCI DAĞILIMI | C92: =C91 -> 1000000 | D92: =IFERROR(IF(D91/C91>=1,1,D91/C91),0) -> 0.6 | E92: =IFERROR(IF(E91/C91>=1,1,E91/C91),0) -> 0.4 | F92: =IFERROR(IF(F91/C91>=1,1,F91/C91),0) -> 0 | H92: KV ORANI
B93: 1 PUAN VE 32/A İNDİRİMİ OLMASAYDI HESAPLANAN KV TUTARI | C93: =C92*$H$93 -> 250000 | D93: =D91*$H$93 -> 150000 | E93: =E91*$H$93 -> 100000 | F93: =F91*$H$93 -> 0 | H93: 0.25
B94: 32/ A UYGULANAN MATRAH | C94: =C83+D83+E83+F83+G83 -> 0 | D94: =D106+D111+D116+D121+D126 -> 0 | E94: =D105+D110+D115+D120+D125 -> 0 | F94: =D104+D109+D114+D119+D124 -> 0
B95: 32/A UYGULANACAK MATRAH ÜZERİNDEN ÖDENECEK KV TUTARI | C95: =J107+J112+J117+J122+J127 -> 0 | D95: =J106+J111+J116+J121+J126 -> 0 | E95: =J105+J110+J115+J120+J125 -> 0 | F95: =J104+J109+J114+J119+J124 -> 0
B96: 32/A UYGULANMAYAN MATRAH | C96: =IF(C84<=0,0,C84) -> 1000000 | D96: =D131 -> 600000 | E96: =D130 -> 400000 | F96: =D129 -> 0
B97: 32/A UYGULANMAYAN MATRAH ÜZERİNDEN ÖDENECEK KV TUTARI | C97: =L129 -> 216000 | D97: =J131 -> 120000 | E97: =J130 -> 96000 | F97: =J129 -> 0
B98: TOPLAM ÖDENECEK KV | C98: =C95+C97 -> 216000 | D98: =J131+J106 -> 120000 | E98: =J130+J105 -> 96000 | F98: =J129+J104 -> 0
B99: TOPLAM AVANTAJ (YARARLANILAN 1 PUAN İNDİRİMİ + 32/A İNDİRİMİ TUTARI ) | C99: =C93-C98 -> 34000 | D99: =D100+D101 -> 30000 | E99: =E100+E101 -> 4000 | F99: =F100+F101 -> 0
B100: YARARLANILAN 1 - 5 PUAN İNDİRİMİ TUTARI | C100: =F132+F127+F122+F117+F112+F107 -> 34000 | D100: =F131+F106+F111+F116+F121+F126 -> 30000 | E100: =F130+F105+F110+F115+F120+F125 -> 4000 | F100: =F129+F104+F109+F114+F119+F124 -> 0
B101: YARLANILAN 32/A İNDİRİMİ TUTARI | C101: =K107+K112+K117+K122+K127+K132 -> 0 | D101: =K106+K111+K121+K126+K131 -> 0 | E101: =K105+K110+K115+K120+K125+K130 -> 0 | F101: =K104++K109+K114+K119+K124+K129 -> 0
B103: 32/A UYGULANABİLECEK MATRAH (1.TEŞVİK BELGESİ) | C103: =C83 -> 0 | D103: KV MATRAHI | E103: 1 - 5 PUAN İNDİRİM OLMASAYDI HESAPLANAN KV TUTARI | F103: 1 -5 Puan İndirim Tutarı | G103: 1 - 5 Puan İndirim Sonrasında Hesaplanan KV Tutarı | H103: 32/A İndirimi Olmasaydı Ödenecek KV Tutarı | I103: 1 -5 Puan İndirim ve 32/A VİO Uygulandıktan Sonra Tatbik Edilecek KV Oranı | J103: 1 -5 Puan İndirim ve 32/A İndirimi Uygulandıktan Sonra Ödenecek KV Tutarı | K103: Yararlanılan Yatırıma Katkı Tutarı (32/A İnd. KV Nedeniyle Vazgeçilen Vergi Tutarı) | L103: Ödenecek KV Tutarı
B104: GENEL ORANA TABİ KISIM (DİĞER FAALİYETLER) | C104: =F92 -> 0 | D104: =C103*C104 -> 0 | E104: =D104*$H$93 -> 0 | F104: 0 | G104: =E104-F104 -> 0 | H104: =G104 -> 0 | I104: =($H$93)-(($H$93)*$C$81) -> 0.25 | J104: =I104*D104 -> 0 | K104: =G104-J104 -> 0 | L104: =J107 -> 0
B105: 1 PUAN İNDİRİMLİ ORANA TABİ KISIM (İMALAT) | C105: =E92 -> 0.4 | D105: =C103*C105 -> 0 | E105: =D105*$H$93 -> 0 | F105: =D105/100 -> 0 | G105: =E105-F105 -> 0 | H105: =G105 -> 0 | I105: =($H$93-0.01)-(($H$93-0.01)*$C$81) -> 0.24 | J105: =I105*D105 -> 0 | K105: =G105-J105 -> 0
B106: 5 PUAN İNDİRİMLİ ORANA TABİ KISIM ( İHRACAT) | C106: =D92 -> 0.6 | D106: =C103*C106 -> 0 | E106: =D106*$H$93 -> 0 | F106: =D106/20 -> 0 | G106: =E106-F106 -> 0 | H106: 0 | I106: =($H$93-0.05)-(($H$93-0.05)*C81) -> 0.2 | J106: 0 | K106: =G106-J106 -> 0
B107: TOPLAM | C107: =SUM(C104:C106) -> 1 | D107: =SUM(D104:D106) -> 0 | E107: 0 | F107: =SUM(F104:F106) -> 0 | G107: =SUM(G104:G106) -> 0 | H107: =SUM(H104:H106) -> 0 | J107: 0 | K107: 0
B108: 32/A UYGULANABİLECEK MATRAH (2.TEŞVİK BELGESİ) | C108: =D83 -> 0 | D108: KV MATRAHI | E108: 1 - 5 PUAN İNDİRİM OLMASAYDI HESAPLANAN KV TUTARI | F108: 1 -5 Puan İndirim Tutarı | G108: 1 -5 Puan İndirim Sonrasında Hesaplanan KV Tutarı | H108: 32/A İndirimi Olmasaydı Ödenecek KV Tutarı | I108: 1 - 5 Puan İndirim ve 32/A VİO Uygulandıktan Sonra Tatbik Edilecek KV Oranı | J108: 1-5 Puan İndirim ve 32/A İndirimi Uygulandıktan Sonra Ödenecek KV Tutarı | K108: Yararlanılan Yatırıma Katkı Tutarı (32/A İnd. KV Nedeniyle Vazgeçilen Vergi Tutarı) | L108: Ödenecek KV Tutarı
B109: GENEL ORANA TABİ KISIM (DİĞER FAALİYETLER) | C109: =F92 -> 0 | D109: =C108*C109 -> 0 | E109: =D109*$H$93 -> 0 | F109: 0 | G109: =E109-F109 -> 0 | H109: =G109 -> 0 | I109: =($H$93)-(($H$93)*D81) -> 0.25 | J109: =I109*D109 -> 0 | K109: =G109-J109 -> 0 | L109: =J112 -> 0
B110: 1 PUAN İNDİRİMLİ ORANA TABİ KISIM (İMALAT) | C110: =E92 -> 0.4 | D110: =C108*C110 -> 0 | E110: =D110*$H$93 -> 0 | F110: =D110/100 -> 0 | G110: =E110-F110 -> 0 | H110: =G110 -> 0 | I110: =($H$93-0.01)-(($H$93-0.01)*D81) -> 0.24 | J110: =I110*D110 -> 0 | K110: =G110-J110 -> 0
B111: 5 PUAN İNDİRİMLİ ORANA TABİ KISIM ( İHRACAT) | C111: =D92 -> 0.6 | D111: =C108*C111 -> 0 | E111: =D111*$H$93 -> 0 | F111: =D111/20 -> 0 | G111: =E111-F111 -> 0 | H111: 0 | I111: =($H$93-0.05)-(($H$93-0.05)*D81) -> 0.2 | J111: 0 | K111: =G111-J111 -> 0
B112: TOPLAM | C112: =SUM(C109:C111) -> 1 | D112: 0 | E112: 0 | F112: =SUM(F109:F111) -> 0 | G112: =SUM(G109:G111) -> 0 | H112: =SUM(H109:H111) -> 0 | J112: =SUM(J109:J111) -> 0 | K112: 0
B113: 32/A UYGULANABİLECEK MATRAH (3.TEŞVİK BELGESİ) | C113: =E83 -> 0 | D113: KV MATRAHI | E113: 1 - 5 PUAN İNDİRİM OLMASAYDI HESAPLANAN KV TUTARI | F113: 1-5 Puan İndirim Tutarı | G113: 1 - 5 Puan İndirim Sonrasında Hesaplanan KV Tutarı | H113: 32/A İndirimi Olmasaydı Ödenecek KV Tutarı | I113: 1 - 5 Puan İndirim ve 32/A VİO Uygulandıktan Sonra Tatbik Edilecek KV Oranı | J113: 1 -5 Puan İndirim ve 32/A İndirimi Uygulandıktan Sonra Ödenecek KV Tutarı | K113: Yararlanılan Yatırıma Katkı Tutarı (32/A İnd. KV Nedeniyle Vazgeçilen Vergi Tutarı) | L113: Ödenecek KV Tutarı
B114: GENEL ORANA TABİ KISIM (DİĞER FAALİYETLER) | C114: =F92 -> 0 | D114: =C113*C114 -> 0 | E114: =D114*$H$93 -> 0 | F114: 0 | G114: =E114-F114 -> 0 | H114: =G114 -> 0 | I114: =($H$93)-(($H$93)*E81) -> 0.25 | J114: =I114*D114 -> 0 | K114: =G114-J114 -> 0 | L114: =J117 -> 0
B115: 1 PUAN İNDİRİMLİ ORANA TABİ KISIM (İMALAT) | C115: =E92 -> 0.4 | D115: =C113*C115 -> 0 | E115: =D115*$H$93 -> 0 | F115: =D115/100 -> 0 | G115: =E115-F115 -> 0 | H115: =G115 -> 0 | I115: =($H$93-0.01)-(($H$93-0.01)*E81) -> 0.24 | J115: =I115*D115 -> 0 | K115: =G115-J115 -> 0
B116: 5 PUAN İNDİRİMLİ ORANA TABİ KISIM ( İHRACAT) | C116: =D92 -> 0.6 | D116: =C113*C116 -> 0 | E116: =D116*$H$93 -> 0 | F116: =D116/20 -> 0 | G116: =E116-F116 -> 0 | H116: 0 | I116: =($H$93-0.05)-(($H$93-0.05)*E81) -> 0.2 | J116: 0 | K116: =G116-J116 -> 0
B117: TOPLAM | C117: =SUM(C114:C116) -> 1 | D117: 0 | E117: 0 | F117: =SUM(F114:F116) -> 0 | G117: =SUM(G114:G116) -> 0 | H117: =SUM(H114:H116) -> 0 | J117: =SUM(J114:J116) -> 0 | K117: 0
B118: 32/A UYGULANABİLECEK MATRAH (4. TEŞVİK BELGESİ) | C118: =F83 -> 0 | D118: KV MATRAHI | E118: 1 - 5 PUAN İNDİRİM OLMASAYDI HESAPLANAN KV TUTARI | F118: 1-5 Puan İndirim Tutarı | G118: 1 -5 Puan İndirim Sonrasında Hesaplanan KV Tutarı | H118: 32/A İndirimi Olmasaydı Ödenecek KV Tutarı | I118: 1- 5 Puan İndirim ve 32/A VİO Uygulandıktan Sonra Tatbik Edilecek KV Oranı | J118: 1-5 Puan İndirim ve 32/A İndirimi Uygulandıktan Sonra Ödenecek KV Tutarı | K118: Yararlanılan Yatırıma Katkı Tutarı (32/A İnd. KV Nedeniyle Vazgeçilen Vergi Tutarı) | L118: Ödenecek KV Tutarı
B119: GENEL ORANA TABİ KISIM (DİĞER FAALİYETLER) | C119: =F92 -> 0 | D119: =C118*C119 -> 0 | E119: =D119*$H$93 -> 0 | F119: 0 | G119: =E119-F119 -> 0 | H119: =G119 -> 0 | I119: =($H$93)-(($H$93)*F81) -> 0.25 | J119: =I119*D119 -> 0 | K119: =G119-J119 -> 0 | L119: =J122 -> 0
B120: 1 PUAN İNDİRİMLİ ORANA TABİ KISIM (İMALAT) | C120: =E92 -> 0.4 | D120: =C118*C120 -> 0 | E120: =D120*$H$93 -> 0 | F120: =D120/100 -> 0 | G120: =E120-F120 -> 0 | H120: =G120 -> 0 | I120: =($H$93-0.01)-(($H$93-0.01)*F81) -> 0.24 | J120: =I120*D120 -> 0 | K120: =G120-J120 -> 0
B121: 5 PUAN İNDİRİMLİ ORANA TABİ KISIM ( İHRACAT) | C121: =D92 -> 0.6 | D121: =C118*C121 -> 0 | E121: =D121*$H$93 -> 0 | F121: =D121/20 -> 0 | G121: =E121-F121 -> 0 | H121: 0 | I121: =($H$93-0.05)-(($H$93-0.05)*F81) -> 0.2 | J121: 0 | K121: =G121-J121 -> 0
B122: TOPLAM | C122: =SUM(C119:C121) -> 1 | D122: 0 | E122: 0 | F122: =SUM(F119:F121) -> 0 | G122: =SUM(G119:G121) -> 0 | H122: =SUM(H119:H121) -> 0 | J122: =SUM(J119:J121) -> 0 | K122: 0
B123: 32/A UYGULANABİLECEK MATRAH (5.TEŞVİK BELGESİ) | C123: =G83 -> 0 | D123: KV MATRAHI | E123: 1 - 5 PUAN İNDİRİM OLMASAYDI HESAPLANAN KV TUTARI | F123: 1-5 Puan İndirim Tutarı | G123: 1 - 5 Puan İndirim Sonrasında Hesaplanan KV Tutarı | H123: 32/A İndirimi Olmasaydı Ödenecek KV Tutarı | I123: 1 -5 Puan İndirim ve 32/A VİO Uygulandıktan Sonra Tatbik Edilecek KV Oranı | J123: 1 - 5 Puan İndirim ve 32/A İndirimi Uygulandıktan Sonra Ödenecek KV Tutarı | K123: Yararlanılan Yatırıma Katkı Tutarı (32/A İnd. KV Nedeniyle Vazgeçilen Vergi Tutarı) | L123: Ödenecek KV Tutarı
B124: GENEL ORANA TABİ KISIM (DİĞER FAALİYETLER) | C124: =F92 -> 0 | D124: =C123*C124 -> 0 | E124: =D124*$H$93 -> 0 | F124: 0 | G124: =E124-F124 -> 0 | H124: =G124 -> 0 | I124: =($H$93)-(($H$93)*G81) -> 0.25 | J124: =I124*D124 -> 0 | K124: =G124-J124 -> 0 | L124: =J127 -> 0
B125: 1 PUAN İNDİRİMLİ ORANA TABİ KISIM (İMALAT) | C125: =E92 -> 0.4 | D125: =C123*C125 -> 0 | E125: =D125*$H$93 -> 0 | F125: =D125/100 -> 0 | G125: =E125-F125 -> 0 | H125: =G125 -> 0 | I125: =($H$93-0.01)-(($H$93-0.01)*G81) -> 0.24 | J125: =I125*D125 -> 0 | K125: =G125-J125 -> 0
B126: 5 PUAN İNDİRİMLİ ORANA TABİ KISIM ( İHRACAT) | C126: =D92 -> 0.6 | D126: =C123*C126 -> 0 | E126: =D126*$H$93 -> 0 | F126: =D126/20 -> 0 | G126: =E126-F126 -> 0 | H126: 0 | I126: =($H$93-0.05)-(($H$93-0.05)*G81) -> 0.2 | J126: 0 | K126: =G126-J126 -> 0
B127: TOPLAM | C127: =SUM(C124:C126) -> 1 | D127: 0 | E127: 0 | F127: =SUM(F124:F126) -> 0 | G127: =SUM(G124:G126) -> 0 | H127: =SUM(H124:H126) -> 0 | J127: =SUM(J124:J126) -> 0 | K127: 0
B128: 32/A UYGULANAMAYACAK MATRAH | C128: =IF(C84<=0,0,C84) -> 1000000 | D128: KV MATRAHI | E128: 1-5 PUAN İNDİRİM OLMASAYDI HESAPLANAN KV TUTARI | F128: 1-5 Puan İndirim Tutarı | G128: 1 -5 Puan İndirim Sonrasında Hesaplanan KV Tutarı | H128: 32/A İNDİRİMİ UYGULANMAZ | J128: 1 Puan İndirim ve 32/A İndirimi Uygulandıktan Sonra Ödenecek KV Tutarı | K128: Yararlanılan Yatırıma Katkı Tutarı (32/A İnd. KV Nedeniyle Vazgeçilen Vergi Tutarı) | L128: Ödenecek KV Tutarı
B129: GENEL ORANA TABİ KISIM (DİĞER FAALİYETLER) | C129: =F92 -> 0 | D129: =C128*C129 -> 0 | E129: =D129*$H$93 -> 0 | F129: 0 | G129: =E129-F129 -> 0 | J129: =G129 -> 0 | K129: =G129-J129 -> 0 | L129: =J132 -> 216000
B130: 1 PUAN İNDİRİMLİ ORANA TABİ KISIM (İMALAT) | C130: =E92 -> 0.4 | D130: =C130*C128 -> 400000 | E130: =D130*$H$93 -> 100000 | F130: =D130/100 -> 4000 | G130: =E130-F130 -> 96000 | J130: =G130 -> 96000 | K130: =G130-J130 -> 0
B131: 5 PUAN İNDİRİMLİ ORANA TABİ KISIM ( İHRACAT) | C131: =D92 -> 0.6 | D131: =C131*C128 -> 600000 | E131: =D131*$H$93 -> 150000 | F131: =D131/20 -> 30000 | G131: =E131-F131 -> 120000 | J131: 120000 | K131: 0
B132: TOPLAM | C132: =SUM(C129:C131) -> 1 | D132: =SUM(D129:D131) -> 1000000 | E132: 250000 | F132: =SUM(F129:F131) -> 34000 | G132: =SUM(G129:G131) -> 216000 | J132: 216000 | K132: 0
B133: TOPLAM KV MATRAHI VE ÖDENMESİ GEREKEN KV | C133: =C103+C128+C108+C113+C118+C123 -> 1000000 | D133: =D107+D132+D112+D117+D122+D127 -> 1000000 | E133: =E107+E132+E112+E117+E122+E127 -> 250000 | F133: =F107+F132+F112+F117+F122+F127 -> 34000 | G133: =G107+G132+G112+G117+G122+G127 -> 216000 | J133: =J107+J132+J112+J117+J122+J127 -> 216000 | K133: =K132+K107+K112+K117+K122+K127 -> 0 | L133: =L104+L129+L109+L114+L119+L124 -> 216000
B135: GEÇİCİ VERGİ BEYANNMESİNDE MATRAH BİLDİRİMİ BÖLÜMÜNDE DOLDURULACAK KISIMLAR VE TUTARLARI
B136: 32 A Madde Kapsamında İndirimli Kurumlar Vergisine (Geçici Vergiye) Tabi Matrah | C136: =C103+C108+C113+C118+C123 -> 0 | D136: =E107+E112+E117+E122+E127 -> 0 | E136: 1-5 Puan Olmasaydı Hesaplan KV Tutarı
D137: =G107+G112+G117+G122++G127 -> 0 | E137: 1 -5 Puan İndirim Sonrasında Ödenecek KV Tutarı (32 A olmasaydı hesaplanacak Vergi)
D138: =K107+K112+K117+K122+K127 -> 0 | E138: 32/A İndirimi ile Vazgeçilen Vergi
B139: 32 A Madde Kapsamında İndirimli Kurumlar Vergisi(Geçici Vergi) Oranı | C139: =IFERROR(D139/C136,0) -> 0 | D139: =L104+L109+L114+L119+L124 -> 0 | E139: 32/A ya Tabi Matrah Üzerinden Ödenecek KV
B140: 32/7 Madde Kapsamında İndirimli Kurumlar Vergisine (Geçici Vergiye) Tabi Matrah (İhracat) | C140: =D131 -> 600000 | D140: =E131 -> 150000 | E140: 5 Puan Olmasaydı Hesaplan KV Tutarı
D141: =F131 -> 30000 | E141: 5 Puan İndirimin Vergi Etkisi
B142: 32/7 Madde Kapsamında İndirimli Kurumlar Vergisi (Geçici Vergi) Oranı | C142: =IFERROR(D142/C140,0) -> 0.2 | D142: =G131 -> 120000 | E142: 5 Puan İndirim Sonrasında Ödenecek KV Tutarı (İhracat)
B143: 32/8 Madde Kapsamında İndirimli Kurumlar Vergisine (Geçici Vergiye) Tabi Matrah (Üretim) | C143: =D130 -> 400000 | D143: =E130 -> 100000 | E143: 1 Puan Olmasaydı Hesaplan KV Tutarı
D144: =F130 -> 4000 | E144: 1 Puan İndirimin Vergi Etkisi
B145: 32/8 Madde Kapsamında İndirimli Kurumlar Vergisi (Geçici Vergi) Oranı | C145: =IFERROR(D145/C143,0) -> 0.24 | D145: =G130 -> 96000 | E145: 1 Puan İndirim Sonrasında Ödenecek KV Tutarı (Üretim)
B146: Genel Orana Tabi Matrah (Diğer) | C146: =D129 -> 0 | D146: =J129 -> 0 | E146: Diğer Faalilyetlerden Elde Edilen Kazanç
C147: =IFERROR(D146/C146,0) -> 0
B148: MATRAHLAR TOPLAMI | C148: =C136+C143+C140+C146 -> 1000000 | D148: =D139+D145+D142+D146 -> 216000

Sheet İÜ Ö2 (hidden)
B2: FAALİYET TÜRLERİ İTİBARİYLE HASILATLAR VE TOPLAM İÇİNDEKİ ORANLARI | C2: =IFERROR(C4/C4,0) -> 1 | D2: =IFERROR(D4/C4,0) -> 0.5 | E2: =IFERROR(E4/C4,0) -> 0.3 | F2: =IFERROR(F4/C4,0) -> 0.2
C3: Toplam Hasılat | D3: İhracat faaliyeti | E3: İmalat faaliyeti | F3: Diğer faaliyetler
B4: A-BRÜT SATIŞLAR (60) | C4: =D4+E4+F4 -> 3000000 | D4: =SUM(D5:D7) -> 1500000 | E4: =SUM(E5:E7) -> 900000 | F4: 600000
B5: 1-Yurtiçi Satışlar (600) | C5: =D5+E5+F5 -> 1500000 | E5: 900000 | F5: 600000
B6: 2-Yurtdışı Satışlar (601) | C6: =D6+E6+F6 -> 1500000 | D6: 1500000
B7: 3-Diğer Gelirler (602) | C7: =D7+E7+F7 -> 0
B8: B-SATIŞ İNDİRİMLERİ(-) (61) | C8: =SUM(C9:C11) -> 0 | D8: =SUM(D9:D11) -> 0 | E8: =SUM(E9:E11) -> 0 | F8: 0
B9: 1-Satıştan İadeler (-) (610) | C9: =SUM(D9:F9) -> 0
B10: 2- Satış İskontoları (-) (611) | C10: =SUM(D10:F10) -> 0
B11: 3-Diğer İndirimler (-) (612) | C11: 0
B12: C-NET SATIŞLAR | C12: =C4-C8 -> 3000000 | D12: =D4-D8 -> 1500000 | E12: =E4-E8 -> 900000 | F12: 600000
B13: D-SATIŞLARIN MALİYETİ (-) (62) | C13: =SUM(C14:C17) -> 0 | D13: =SUM(D14:D17) -> 0 | E13: =SUM(E14:E17) -> 0 | F13: =SUM(F14:F17) -> 0
B14: 1-Satılan Mamuller Maliyeti ( 620) | C14: =SUM(D14:F14) -> 0
B15: 2-Satılan Ticari Mal Maliyeti (621) | C15: =SUM(D15:F15) -> 0
B16: 3-Satılan Hizmet Maliyeti (622) | C16: 0
B17: 4-Diğer Satışların Maliyeti (623) | C17: =SUM(D17:F17) -> 0
B18: BRÜT SATIŞ KARI / ZARARI | C18: =C12-C13 -> 3000000 | D18: =D12-D13 -> 1500000 | E18: =E12-E13 -> 900000 | F18: 600000
B19: E-FAALİYET GİDERLERİ (-) (63) | C19: =SUM(C20:C24) -> 0 | D19: =SUM(D20:D24) -> 0 | E19: =SUM(E20:E24) -> 0 | F19: 0
B20: 1-Araştırma ve Geliştirme Giderleri(-) (630) | C20: =SUM(D20:F20) -> 0
B21: 2-Pazarlama, Satış ve Dağıtım Giderleri(-) (631) | C21: =SUM(D21:F21) -> 0
B22: 3-Genel Yönetim Giderleri(-) (632) | C22: =SUM(D22:F22) -> 0
B23: MÜŞTEREK GENEL GİDERLER (DAĞITIM-HASILAT PAYINA GÖRE) | D23: =C23*D2 -> 0 | E23: =C23*E2 -> 0 | F23: =C23*F2 -> 0
B24: MÜŞTEREK GENEL GİDER GİBİ DAĞITIMA TABİ TUTULACAK AMORTİSMAN GİDERLERİ (DAĞITIM-HASILAT PAYINA GÖRE) | D24: =C24*D2 -> 0 | E24: =C24*E2 -> 0 | F24: =C24*F2 -> 0
B25: FAALİYET KARI / ZARARI | C25: =C18-C19 -> 3000000 | D25: =D18-D19 -> 1500000 | E25: =E18-E19 -> 900000 | F25: 600000
B26: F-DİĞER FAALİYETLERDEN OLAĞAN GELİR VE KARLAR (64) | C26: =SUM(C27:C35) -> 0 | D26: =SUM(D27:D35) -> 0 | E26: =SUM(E27:E35) -> 0 | F26: =SUM(F27:F35) -> 0
B27: 1- İŞTİRAKLERDEN TEMETTÜ GELİRLERİ (640) | C27: =SUM(D27:F27) -> 0
B28: 2- BAĞLI ORTAKLIKLARDAN TEMETTÜ GELİRLERİ (641) | C28: =SUM(D28:F28) -> 0
B29: 3- FAİZ GELİRLERİ (642) (ihracat ve imalat kaynaklı alacağın tahsiline kadar olan süreçte oluşan) | C29: 0
B30: 4- KOMİSYON GELİRLERİ (643) | C30: 0
B31: 5- KONUSU OLMAYAN KARŞILIKLAR (644) | C31: 0
B32: 6- MENKUL KIYMET SATIŞ KARLARI (645) | C32: 0
B33: 7- KAMBİYO KARLARI (646) (ihracat ve imalat kaynaklı alacağın tahsiline kadar olan süreçte oluşan) | C33: 0
B34: 8- REESKONT FAİZ GELİRLERİ (647) | C34: 0
B35: 9- FAALİYETLE İLGİLİ DİĞER GELİR VE KARLAR (649) | C35: 0
B36: ARA TOPLAM | C36: =C25+C26 -> 3000000 | D36: =D25+D26 -> 1500000 | E36: =E25+E26 -> 900000 | F36: =F25+F26 -> 600000
B37: G-DİĞER FAALİYETLERDEN OLAĞAN GİDER VE ZARARLAR(-) (65) | C37: =SUM(C38:C43) -> 0 | D37: =SUM(D38:D43) -> 0 | E37: =SUM(E38:E43) -> 0 | F37: 0
B38: 1- KOMİSYON GİDERLERİ (653) | C38: =SUM(D38:F38) -> 0
B39: 2- KARŞILIK GİDERLERİ (654) | C39: =SUM(D39:F39) -> 0
B40: 3- MENKUL KIYMET SATIŞ ZARARLARI (655) | C40: 0
B41: 4- KAMBİYO ZARARLARI (656) (ihracat ve imalat kaynaklı alacağın tahsiline kadar olan süreçte oluşan) | C41: 0
B42: 5- REESKONT FAİZ GİDERLERİ (657) | C42: 0
B43: 6- DİĞER OLAĞAN GİDER VE ZARARLAR (659) | C43: =SUM(D43:F43) -> 0
B44: ARA TOPLAM | C44: =C36-C37 -> 3000000 | D44: =D36-D37 -> 1500000 | E44: =E36-E37 -> 900000 | F44: 600000
B45: H-FİNANSMAN GİDERLERİ(-) (66) | C45: =SUM(C46:C49) -> 0 | D45: =SUM(D46:D49) -> 0 | E45: =SUM(E46:E49) -> 0 | F45: =SUM(F46:F49) -> 0
B46: 1- KISA VADELİ BORÇLANMA GİDERLERİ (-) | C46: =SUM(D46:F46) -> 0
B47: 2- UZUN VADELİ BORÇLANMA GİDERLERİ (-) | C47: =SUM(D47:F47) -> 0
B48: 1- KISA VADELİ BORÇLANMA GİDERLERİ (-) (DAĞITIM) | D48: =C48*D2 -> 0 | E48: =C48*E2 -> 0 | F48: =C48*F2 -> 0
B49: 2- UZUN VADELİ BORÇLANMA GİDERLERİ (-) (DAĞITIM) | D49: =C49*D2 -> 0 | E49: =C49*E2 -> 0 | F49: =C49*F2 -> 0
B50: ARA TOPLAM | C50: =C44-C45 -> 3000000 | D50: =D44-D45 -> 1500000 | E50: =E44-E45 -> 900000 | F50: =F44-F45 -> 600000
B51: I-OLAĞANDIŞI GELİR VE KÂRLAR (67) | C51: =SUM(D51:F51) -> 0 | D51: =SUM(D52:D53) -> 0 | E51: =SUM(E52:E53) -> 0 | F51: =SUM(F52:F53) -> 0
B52: 1- ÖNCEKİ DÖNEM GELİR VE KARLARI (671) | C52: =SUM(D52:F52) -> 0
B53: 2-DİĞER OLAĞAN DIŞI GELİR VE KARLAR (679) | C53: =SUM(D53:F53) -> 0
B54: ARA TOPLAM | C54: =SUM(D54:F54) -> 3000000 | D54: =D50+D51 -> 1500000 | E54: =E50+E51 -> 900000 | F54: 600000
B55: J-OLAĞANDIŞI GİDER VE ZARARLAR(-) (68) | C55: =SUM(C56:C58) -> 0 | D55: =SUM(D56:D58) -> 0 | E55: =SUM(E56:E58) -> 0 | F55: 0
B56: 1-Çalışmayan Kısım Gider ve Zararları(-) (680) | C56: =SUM(D56:F56) -> 0
B57: 2-Önceki Dönem Gider ve Zararları(-) (681) | C57: =SUM(D57:F57) -> 0
B58: 3-Diğer Olağan Dışı Gider ve Zararlar(-) (689) | C58: 0
B59: DÖNEM KÂRI VEYA ZARARI (TİCARİ BİLANÇO KARI ZARARI ) | C59: =C54-C55 -> 3000000 | D59: =D54-D55 -> 1500000 | E59: =E54-E55 -> 900000 | F59: 600000
B60: İHRACAT, İMALAT VE DİĞER FAALİYETLERDEN ELDE EDİLEN KAZANCIN TOPLAM TİCARİ KAZANÇ İÇİNDEKİ PAYLARI | D60: =IF(D59>=$C$59,1, IF(D59<=0,0, IF(AND(D59>0,D59<$C$59),D59/$C$59))) -> 0.5 | E60: =IF(E59>=$C$59,1, IF(E59<=0,0, IF(AND(E59>0,E59<$C$59),E59/$C$59))) -> 0.3 | F60: =IF(F59>=$C$59,1, IF(F59<=0,0, IF(AND(F59>0,F59<$C$59),F59/$C$59))) -> 0.2
D61: =D60/(D60+E60+F60) -> 0.5 | E61: =E60/(D60+E60+F60) -> 0.3 | F61: =F60/(D60+E60+F60) -> 0.2
B63: KKEG + | C63: 200000
B64: KABUL EDİLMEYEN GELİRLER -
B65: ZARAR OLSA DAHİ İNDİRİLECEK İSTİSNALAR - | C65: =C66+C67+C68 -> 0
B66: Hizmet İhracatı Faaliyetinden (KVK 10-1/ğ) Elde Edilen Kazançlardan İstisna Edilenlerin Toplamı
B67: İmalat Faaliyetinden Elde Edilen Kazançlardan İstisna Edilenlerin Toplamı
B68: Diğer Faaliyetlerden Elde Edilen Kazançlardan İstisna Edilenlerin Toplamı
B69: GEÇMİŞ YIL ZARARLARI - | C69: 1200000
B70: İNDİRİMLER - | D70: AZAMİ YAZILABİLECEK İNDİRİMLER TUTARI | E70: =C59+C63-C64-C65-C69 -> 2000000
B72: 1 PUAN İNDİRİM UYGULANACAK TUTARIN HESABINDA İSTİSNA KAZANÇLAR DÜŞÜLDÜKTEN SONRA BULUNAN TİCARİ KAZANÇ TUTARI İLE BU KAZANÇ İÇİNDE İHRACAT,İMALAT VE DİĞER KAZANÇLARIN TUTARI | C72: TİCARİ KAZANÇ TAN İhracat ve İmalat Kazancından İstisna Olan Tutarlar Düşüldükten Sonra Kalan Tutarı | D72: İhracat Faaliyetinden Elde Edilen Kazançtan İstisna Olan Kısım Düşüldükten Sonra Bulunan Tutarı | E72: Üretim Faaliyetinden Elde Edilen Kazançtan İstisna Olan Kısım Düşüldükten Sonra Bulunan Tutarı | F72: Diğer Faaliyetinden Elde Edilen Kazanç
C73: =IF(C59-C66-C67<=0,0,C59-C66-C67) -> 3000000 | D73: =IF($D$59-C66<=0,0,MIN($D$59-C66,$C$73*D61)) -> 1500000 | E73: =IF($E$59-C67<=0,0,MIN($E$59-C67,$C$73*E61)) -> 900000 | F73: =IF(C73-D73-E73<=0,0,C73-D73-E73) -> 600000
B74: İHRACAT, İMALAT VE DİĞER FAALİYETLERDEN ELDE EDİLEN KAZANCIN TOPLAM TİCARİ KAZANÇ İÇİNDEKİ PAYLARI | D74: =IFERROR(IF(D73/C73<=0,0,D73/C73),0) -> 0.5 | E74: =IFERROR(IF(E73/C73<=0,0,E73/C73),0) -> 0.3 | F74: =IFERROR(F73/C73,0) -> 0.2
B75: NEGATİF VE % 100 DEN BÜYÜKLÜK KONTROLÜ SONRASINDAKİ PAYLARI | D75: =IFERROR(IF(D74<=0,0,IF(D74>1,1,D74)),0) -> 0.5 | E75: =IFERROR(IF(E74<=0,0,IF(E74>1,1,E74)),0) -> 0.3 | F75: =IFERROR(IF(F74<=0,0,IF(F74>1,1,F74)),0) -> 0.2
B77: SAFİ KURUM KAZANCI (KURUMLAR VERGİSİ MATRAHI) | C77: =C59+C63-C64-C65-C69-C70 -> 2000000 | D77: =IF(C77<0, "ZARAR","KAR") -> KAR
B79: 2022 YILI 3. DÖNEM İNDİRİMLİ KURUMLAR VERGİSİ HESAPLAMA TABLOSU
C80: 1. TEŞVİK BELGESİ | D80: 2. TEŞVİK BELGESİ | E80: 3. TEŞVİK BELGESİ | F80: 4. TEŞVİK BELGESİ | G80: 5. TEŞVİK BELGESİ
B81: Vergi İndirim Oranı (VİO)
B82: KV MATRAHI (Safi Kurum Kazancı) | C82: =C77 -> 2000000
B83: 32/A Uygulanacak K.V. Matrahı (HER BİR TEŞVİK BELGESİ KAPSAMINDA YARARLANILABİLECEK YATIRIMA KATKI TUTARININ MATRAHI BU HÜCRELERE YAZILMALIDIR) | H83: =IF(SUM(C83:G83)>C77,"32/A İNDİRİMİ UYGULANACAK KAZANÇ, SAFİ KURUM KAZANCINDAN FAZLADIR",SUM(C83:G83)) -> 0
B84: 32/A UYGULANMAYACAK K.V. Matrahı | C84: =IF(C82-(C83+D83+E83+F83+G83)<0,0,C82-(C83+D83+E83+F83+G83)) -> 2000000
B85: MATRAH TOPLAMI | C85: =IF((C83+D83+E83+F83+G83+C84)>C77,C77,(C83+D83+E83+F83+G83+C84)) -> 2000000
B87: SAFİ KURUM KAZANCININ KV VERGİ ORANLARI İTİBARİYLE DAĞILIMI | C87: TOPLAM SAFİ KAZANÇ | D87: İhracat Kazancı Payı | E87: Üretim Kazancı Payı | F87: Diğer Faaliyet Kazancı Payı
C89: =C77 -> 2000000 | D89: =IF(AND(OR(D59>=C89,D59+E59>=C89),C66>0),MAX(MIN(C89*D74,D59,D73),0),MIN(C89*D74,D59)) -> 1000000 | E89: =MAX( IF(AND(OR(E59>=C89,E59+F59>=C89),C67>0),MAX(MIN(C89*E74,E59,E73),0),MIN(C89*E74,E59)),0) -> 600000 | F89: =IF(C89-D89-E89<=0,0,C89-D89-E89) -> 400000
B90: SAFİ KURUM KAZANCININ DAĞILIMI ORANSAL DAĞILIMI | C90: =C89 -> 2000000 | D90: =D89/C89 -> 0.5 | E90: =E89/C89 -> 0.3 | F90: =F89/C89 -> 0.2
B91: SAFİ KURUM KAZANCININ DAĞILIMI TUTARSAL | C91: =C90 -> 2000000 | D91: =D89 -> 1000000 | E91: =E89 -> 600000 | F91: =F89 -> 400000
B92: SAFİ KURUM KAZANCI DAĞILIMI | C92: =C91 -> 2000000 | D92: =IFERROR(IF(D91/C91>=1,1,D91/C91),0) -> 0.5 | E92: =IFERROR(IF(E91/C91>=1,1,E91/C91),0) -> 0.3 | F92: =IFERROR(IF(F91/C91>=1,1,F91/C91),0) -> 0.2 | H92: KV ORANI
B93: 1 PUAN VE 32/A İNDİRİMİ OLMASAYDI HESAPLANAN KV TUTARI | C93: =C92*$H$93 -> 500000 | D93: =D91*$H$93 -> 250000 | E93: =E91*$H$93 -> 150000 | F93: =F91*$H$93 -> 100000 | H93: 0.25
B94: 32/ A UYGULANAN MATRAH | C94: =C83+D83+E83+F83+G83 -> 0 | D94: =D106+D111+D116+D121+D126 -> 0 | E94: =D105+D110+D115+D120+D125 -> 0 | F94: =D104+D109+D114+D119+D124 -> 0
B95: 32/A UYGULANACAK MATRAH ÜZERİNDEN ÖDENECEK KV TUTARI | C95: =J107+J112+J117+J122+J127 -> 0 | D95: =J106+J111+J116+J121+J126 -> 0 | E95: =J105+J110+J115+J120+J125 -> 0 | F95: =J104+J109+J114+J119+J124 -> 0
B96: 32/A UYGULANMAYAN MATRAH | C96: =IF(C84<=0,0,C84) -> 2000000 | D96: =D131 -> 1000000 | E96: =D130 -> 600000 | F96: =D129 -> 400000
B97: 32/A UYGULANMAYAN MATRAH ÜZERİNDEN ÖDENECEK KV TUTARI | C97: =L129 -> 444000 | D97: =J131 -> 200000 | E97: =J130 -> 144000 | F97: =J129 -> 100000
B98: TOPLAM ÖDENECEK KV | C98: =C95+C97 -> 444000 | D98: =J131+J106 -> 200000 | E98: =J130+J105 -> 144000 | F98: =J129+J104 -> 100000
B99: TOPLAM AVANTAJ (YARARLANILAN 1 PUAN İNDİRİMİ + 32/A İNDİRİMİ TUTARI ) | C99: =C93-C98 -> 56000 | D99: =D100+D101 -> 50000 | E99: =E100+E101 -> 6000 | F99: =F100+F101 -> 0
B100: YARARLANILAN 1 - 5 PUAN İNDİRİMİ TUTARI | C100: =F132+F127+F122+F117+F112+F107 -> 56000 | D100: =F131+F106+F111+F116+F121+F126 -> 50000 | E100: =F130+F105+F110+F115+F120+F125 -> 6000 | F100: =F129+F104+F109+F114+F119+F124 -> 0
B101: YARLANILAN 32/A İNDİRİMİ TUTARI | C101: =K107+K112+K117+K122+K127+K132 -> 0 | D101: =K106+K111+K121+K126+K131 -> 0 | E101: =K105+K110+K115+K120+K125+K130 -> 0 | F101: =K104++K109+K114+K119+K124+K129 -> 0
B103: 32/A UYGULANABİLECEK MATRAH (1.TEŞVİK BELGESİ) | C103: =C83 -> 0 | D103: KV MATRAHI | E103: 1 - 5 PUAN İNDİRİM OLMASAYDI HESAPLANAN KV TUTARI | F103: 1 -5 Puan İndirim Tutarı | G103: 1 - 5 Puan İndirim Sonrasında Hesaplanan KV Tutarı | H103: 32/A İndirimi Olmasaydı Ödenecek KV Tutarı | I103: 1 -5 Puan İndirim ve 32/A VİO Uygulandıktan Sonra Tatbik Edilecek KV Oranı | J103: 1 -5 Puan İndirim ve 32/A İndirimi Uygulandıktan Sonra Ödenecek KV Tutarı | K103: Yararlanılan Yatırıma Katkı Tutarı (32/A İnd. KV Nedeniyle Vazgeçilen Vergi Tutarı) | L103: Ödenecek KV Tutarı
B104: GENEL ORANA TABİ KISIM (DİĞER FAALİYETLER) | C104: =F92 -> 0.2 | D104: =C103*C104 -> 0 | E104: =D104*$H$93 -> 0 | F104: 0 | G104: =E104-F104 -> 0 | H104: =G104 -> 0 | I104: =($H$93)-(($H$93)*$C$81) -> 0.25 | J104: =I104*D104 -> 0 | K104: =G104-J104 -> 0 | L104: =J107 -> 0
B105: 1 PUAN İNDİRİMLİ ORANA TABİ KISIM (İMALAT) | C105: =E92 -> 0.3 | D105: =C103*C105 -> 0 | E105: =D105*$H$93 -> 0 | F105: =D105/100 -> 0 | G105: =E105-F105 -> 0 | H105: =G105 -> 0 | I105: =($H$93-0.01)-(($H$93-0.01)*$C$81) -> 0.24 | J105: =I105*D105 -> 0 | K105: =G105-J105 -> 0
B106: 5 PUAN İNDİRİMLİ ORANA TABİ KISIM ( İHRACAT) | C106: =D92 -> 0.5 | D106: =C103*C106 -> 0 | E106: =D106*$H$93 -> 0 | F106: =D106/20 -> 0 | G106: =E106-F106 -> 0 | H106: 0 | I106: =($H$93-0.05)-(($H$93-0.05)*C81) -> 0.2 | J106: 0 | K106: =G106-J106 -> 0
B107: TOPLAM | C107: =SUM(C104:C106) -> 1 | D107: =SUM(D104:D106) -> 0 | E107: 0 | F107: =SUM(F104:F106) -> 0 | G107: =SUM(G104:G106) -> 0 | H107: =SUM(H104:H106) -> 0 | J107: 0 | K107: 0
B108: 32/A UYGULANABİLECEK MATRAH (2.TEŞVİK BELGESİ) | C108: =D83 -> 0 | D108: KV MATRAHI | E108: 1 - 5 PUAN İNDİRİM OLMASAYDI HESAPLANAN KV TUTARI | F108: 1 -5 Puan İndirim Tutarı | G108: 1 -5 Puan İndirim Sonrasında Hesaplanan KV Tutarı | H108: 32/A İndirimi Olmasaydı Ödenecek KV Tutarı | I108: 1 - 5 Puan İndirim ve 32/A VİO Uygulandıktan Sonra Tatbik Edilecek KV Oranı | J108: 1-5 Puan İndirim ve 32/A İndirimi Uygulandıktan Sonra Ödenecek KV Tutarı | K108: Yararlanılan Yatırıma Katkı Tutarı (32/A İnd. KV Nedeniyle Vazgeçilen Vergi Tutarı) | L108: Ödenecek KV Tutarı
B109: GENEL ORANA TABİ KISIM (DİĞER FAALİYETLER) | C109: =F92 -> 0.2 | D109: =C108*C109 -> 0 | E109: =D109*$H$93 -> 0 | F109: 0 | G109: =E109-F109 -> 0 | H109: =G109 -> 0 | I109: =($H$93)-(($H$93)*D81) -> 0.25 | J109: =I109*D109 -> 0 | K109: =G109-J109 -> 0 | L109: =J112 -> 0
B110: 1 PUAN İNDİRİMLİ ORANA TABİ KISIM (İMALAT) | C110: =E92 -> 0.3 | D110: =C108*C110 -> 0 | E110: =D110*$H$93 -> 0 | F110: =D110/100 -> 0 | G110: =E110-F110 -> 0 | H110: =G110 -> 0 | I110: =($H$93-0.01)-(($H$93-0.01)*D81) -> 0.24 | J110: =I110*D110 -> 0 | K110: =G110-J110 -> 0
B111: 5 PUAN İNDİRİMLİ ORANA TABİ KISIM ( İHRACAT) | C111: =D92 -> 0.5 | D111: =C108*C111 -> 0 | E111: =D111*$H$93 -> 0 | F111: =D111/20 -> 0 | G111: =E111-F111 -> 0 | H111: 0 | I111: =($H$93-0.05)-(($H$93-0.05)*D81) -> 0.2 | J111: 0 | K111: =G111-J111 -> 0
B112: TOPLAM | C112: =SUM(C109:C111) -> 1 | D112: 0 | E112: 0 | F112: =SUM(F109:F111) -> 0 | G112: =SUM(G109:G111) -> 0 | H112: =SUM(H109:H111) -> 0 | J112: =SUM(J109:J111) -> 0 | K112: 0
B113: 32/A UYGULANABİLECEK MATRAH (3.TEŞVİK BELGESİ) | C113: =E83 -> 0 | D113: KV MATRAHI | E113: 1 - 5 PUAN İNDİRİM OLMASAYDI HESAPLANAN KV TUTARI | F113: 1-5 Puan İndirim Tutarı | G113: 1 - 5 Puan İndirim Sonrasında Hesaplanan KV Tutarı | H113: 32/A İndirimi Olmasaydı Ödenecek KV Tutarı | I113: 1 - 5 Puan İndirim ve 32/A VİO Uygulandıktan Sonra Tatbik Edilecek KV Oranı | J113: 1 -5 Puan İndirim ve 32/A İndirimi Uygulandıktan Sonra Ödenecek KV Tutarı | K113: Yararlanılan Yatırıma Katkı Tutarı (32/A İnd. KV Nedeniyle Vazgeçilen Vergi Tutarı) | L113: Ödenecek KV Tutarı
B114: GENEL ORANA TABİ KISIM (DİĞER FAALİYETLER) | C114: =F92 -> 0.2 | D114: =C113*C114 -> 0 | E114: =D114*$H$93 -> 0 | F114: 0 | G114: =E114-F114 -> 0 | H114: =G114 -> 0 | I114: =($H$93)-(($H$93)*E81) -> 0.25 | J114: =I114*D114 -> 0 | K114: =G114-J114 -> 0 | L114: =J117 -> 0
B115: 1 PUAN İNDİRİMLİ ORANA TABİ KISIM (İMALAT) | C115: =E92 -> 0.3 | D115: =C113*C115 -> 0 | E115: =D115*$H$93 -> 0 | F115: =D115/100 -> 0 | G115: =E115-F115 -> 0 | H115: =G115 -> 0 | I115: =($H$93-0.01)-(($H$93-0.01)*E81) -> 0.24 | J115: =I115*D115 -> 0 | K115: =G115-J115 -> 0
B116: 5 PUAN İNDİRİMLİ ORANA TABİ KISIM ( İHRACAT) | C116: =D92 -> 0.5 | D116: =C113*C116 -> 0 | E116: =D116*$H$93 -> 0 | F116: =D116/20 -> 0 | G116: =E116-F116 -> 0 | H116: 0 | I116: =($H$93-0.05)-(($H$93-0.05)*E81) -> 0.2 | J116: 0 | K116: =G116-J116 -> 0
B117: TOPLAM | C117: =SUM(C114:C116) -> 1 | D117: 0 | E117: 0 | F117: =SUM(F114:F116) -> 0 | G117: =SUM(G114:G116) -> 0 | H117: =SUM(H114:H116) -> 0 | J117: =SUM(J114:J116) -> 0 | K117: 0
B118: 32/A UYGULANABİLECEK MATRAH (4. TEŞVİK BELGESİ) | C118: =F83 -> 0 | D118: KV MATRAHI | E118: 1 - 5 PUAN İNDİRİM OLMASAYDI HESAPLANAN KV TUTARI | F118: 1-5 Puan İndirim Tutarı | G118: 1 -5 Puan İndirim Sonrasında Hesaplanan KV Tutarı | H118: 32/A İndirimi Olmasaydı Ödenecek KV Tutarı | I118: 1- 5 Puan İndirim ve 32/A VİO Uygulandıktan Sonra Tatbik Edilecek KV Oranı | J118: 1-5 Puan İndirim ve 32/A İndirimi Uygulandıktan Sonra Ödenecek KV Tutarı | K118: Yararlanılan Yatırıma Katkı Tutarı (32/A İnd. KV Nedeniyle Vazgeçilen Vergi Tutarı) | L118: Ödenecek KV Tutarı
B119: GENEL ORANA TABİ KISIM (DİĞER FAALİYETLER) | C119: =F92 -> 0.2 | D119: =C118*C119 -> 0 | E119: =D119*$H$93 -> 0 | F119: 0 | G119: =E119-F119 -> 0 | H119: =G119 -> 0 | I119: =($H$93)-(($H$93)*F81) -> 0.25 | J119: =I119*D119 -> 0 | K119: =G119-J119 -> 0 | L119: =J122 -> 0
B120: 1 PUAN İNDİRİMLİ ORANA TABİ KISIM (İMALAT) | C120: =E92 -> 0.3 | D120: =C118*C120 -> 0 | E120: =D120*$H$93 -> 0 | F120: =D120/100 -> 0 | G120: =E120-F120 -> 0 | H120: =G120 -> 0 | I120: =($H$93-0.01)-(($H$93-0.01)*F81) -> 0.24 | J120: =I120*D120 -> 0 | K120: =G120-J120 -> 0
B121: 5 PUAN İNDİRİMLİ ORANA TABİ KISIM ( İHRACAT) | C121: =D92 -> 0.5 | D121: =C118*C121 -> 0 | E121: =D121*$H$93 -> 0 | F121: =D121/20 -> 0 | G121: =E121-F121 -> 0 | H121: 0 | I121: =($H$93-0.05)-(($H$93-0.05)*F81) -> 0.2 | J121: 0 | K121: =G121-J121 -> 0
B122: TOPLAM | C122: =SUM(C119:C121) -> 1 | D122: 0 | E122: 0 | F122: =SUM(F119:F121) -> 0 | G122: =SUM(G119:G121) -> 0 | H122: =SUM(H119:H121) -> 0 | J122: =SUM(J119:J121) -> 0 | K122: 0
B123: 32/A UYGULANABİLECEK MATRAH (5.TEŞVİK BELGESİ) | C123: =G83 -> 0 | D123: KV MATRAHI | E123: 1 - 5 PUAN İNDİRİM OLMASAYDI HESAPLANAN KV TUTARI | F123: 1-5 Puan İndirim Tutarı | G123: 1 - 5 Puan İndirim Sonrasında Hesaplanan KV Tutarı | H123: 32/A İndirimi Olmasaydı Ödenecek KV Tutarı | I123: 1 -5 Puan İndirim ve 32/A VİO Uygulandıktan Sonra Tatbik Edilecek KV Oranı | J123: 1 - 5 Puan İndirim ve 32/A İndirimi Uygulandıktan Sonra Ödenecek KV Tutarı | K123: Yararlanılan Yatırıma Katkı Tutarı (32/A İnd. KV Nedeniyle Vazgeçilen Vergi Tutarı) | L123: Ödenecek KV Tutarı
B124: GENEL ORANA TABİ KISIM (DİĞER FAALİYETLER) | C124: =F92 -> 0.2 | D124: =C123*C124 -> 0 | E124: =D124*$H$93 -> 0 | F124: 0 | G124: =E124-F124 -> 0 | H124: =G124 -> 0 | I124: =($H$93)-(($H$93)*G81) -> 0.25 | J124: =I124*D124 -> 0 | K124: =G124-J124 -> 0 | L124: =J127 -> 0
B125: 1 PUAN İNDİRİMLİ ORANA TABİ KISIM (İMALAT) | C125: =E92 -> 0.3 | D125: =C123*C125 -> 0 | E125: =D125*$H$93 -> 0 | F125: =D125/100 -> 0 | G125: =E125-F125 -> 0 | H125: =G125 -> 0 | I125: =($H$93-0.01)-(($H$93-0.01)*G81) -> 0.24 | J125: =I125*D125 -> 0 | K125: =G125-J125 -> 0
B126: 5 PUAN İNDİRİMLİ ORANA TABİ KISIM ( İHRACAT) | C126: =D92 -> 0.5 | D126: =C123*C126 -> 0 | E126: =D126*$H$93 -> 0 | F126: =D126/20 -> 0 | G126: =E126-F126 -> 0 | H126: 0 | I126: =($H$93-0.05)-(($H$93-0.05)*G81) -> 0.2 | J126: 0 | K126: =G126-J126 -> 0
B127: TOPLAM | C127: =SUM(C124:C126) -> 1 | D127: 0 | E127: 0 | F127: =SUM(F124:F126) -> 0 | G127: =SUM(G124:G126) -> 0 | H127: =SUM(H124:H126) -> 0 | J127: =SUM(J124:J126) -> 0 | K127: 0
B128: 32/A UYGULANAMAYACAK MATRAH | C128: =IF(C84<=0,0,C84) -> 2000000 | D128: KV MATRAHI | E128: 1-5 PUAN İNDİRİM OLMASAYDI HESAPLANAN KV TUTARI | F128: 1-5 Puan İndirim Tutarı | G128: 1 -5 Puan İndirim Sonrasında Hesaplanan KV Tutarı | H128: 32/A İNDİRİMİ UYGULANMAZ | J128: 1 Puan İndirim ve 32/A İndirimi Uygulandıktan Sonra Ödenecek KV Tutarı | K128: Yararlanılan Yatırıma Katkı Tutarı (32/A İnd. KV Nedeniyle Vazgeçilen Vergi Tutarı) | L128: Ödenecek KV Tutarı
B129: GENEL ORANA TABİ KISIM (DİĞER FAALİYETLER) | C129: =F92 -> 0.2 | D129: =C128*C129 -> 400000 | E129: =D129*$H$93 -> 100000 | F129: 0 | G129: =E129-F129 -> 100000 | J129: =G129 -> 100000 | K129: =G129-J129 -> 0 | L129: =J132 -> 444000
B130: 1 PUAN İNDİRİMLİ ORANA TABİ KISIM (İMALAT) | C130: =E92 -> 0.3 | D130: =C130*C128 -> 600000 | E130: =D130*$H$93 -> 150000 | F130: =D130/100 -> 6000 | G130: =E130-F130 -> 144000 | J130: =G130 -> 144000 | K130: =G130-J130 -> 0
B131: 5 PUAN İNDİRİMLİ ORANA TABİ KISIM ( İHRACAT) | C131: =D92 -> 0.5 | D131: =C131*C128 -> 1000000 | E131: =D131*$H$93 -> 250000 | F131: =D131/20 -> 50000 | G131: =E131-F131 -> 200000 | J131: 200000 | K131: 0
B132: TOPLAM | C132: =SUM(C129:C131) -> 1 | D132: =SUM(D129:D131) -> 2000000 | E132: 500000 | F132: =SUM(F129:F131) -> 56000 | G132: =SUM(G129:G131) -> 444000 | J132: 444000 | K132: 0
B133: TOPLAM KV MATRAHI VE ÖDENMESİ GEREKEN KV | C133: =C103+C128+C108+C113+C118+C123 -> 2000000 | D133: =D107+D132+D112+D117+D122+D127 -> 2000000 | E133: =E107+E132+E112+E117+E122+E127 -> 500000 | F133: =F107+F132+F112+F117+F122+F127 -> 56000 | G133: =G107+G132+G112+G117+G122+G127 -> 444000 | J133: =J107+J132+J112+J117+J122+J127 -> 444000 | K133: =K132+K107+K112+K117+K122+K127 -> 0 | L133: =L104+L129+L109+L114+L119+L124 -> 444000
B135: GEÇİCİ VERGİ BEYANNMESİNDE MATRAH BİLDİRİMİ BÖLÜMÜNDE DOLDURULACAK KISIMLAR VE TUTARLARI
B136: 32 A Madde Kapsamında İndirimli Kurumlar Vergisine (Geçici Vergiye) Tabi Matrah | C136: =C103+C108+C113+C118+C123 -> 0 | D136: =E107+E112+E117+E122+E127 -> 0 | E136: 1-5 Puan Olmasaydı Hesaplan KV Tutarı
D137: =G107+G112+G117+G122++G127 -> 0 | E137: 1 -5 Puan İndirim Sonrasında Ödenecek KV Tutarı (32 A olmasaydı hesaplanacak Vergi)
D138: =K107+K112+K117+K122+K127 -> 0 | E138: 32/A İndirimi ile Vazgeçilen Vergi
B139: 32 A Madde Kapsamında İndirimli Kurumlar Vergisi(Geçici Vergi) Oranı | C139: =IFERROR(D139/C136,0) -> 0 | D139: =L104+L109+L114+L119+L124 -> 0 | E139: 32/A ya Tabi Matrah Üzerinden Ödenecek KV
B140: 32/7 Madde Kapsamında İndirimli Kurumlar Vergisine (Geçici Vergiye) Tabi Matrah (İhracat) | C140: =D131 -> 1000000 | D140: =E131 -> 250000 | E140: 5 Puan Olmasaydı Hesaplan KV Tutarı
D141: =F131 -> 50000 | E141: 5 Puan İndirimin Vergi Etkisi
B142: 32/7 Madde Kapsamında İndirimli Kurumlar Vergisi (Geçici Vergi) Oranı | C142: =IFERROR(D142/C140,0) -> 0.2 | D142: =G131 -> 200000 | E142: 5 Puan İndirim Sonrasında Ödenecek KV Tutarı (İhracat)
B143: 32/8 Madde Kapsamında İndirimli Kurumlar Vergisine (Geçici Vergiye) Tabi Matrah (Üretim) | C143: =D130 -> 600000 | D143: =E130 -> 150000 | E143: 1 Puan Olmasaydı Hesaplan KV Tutarı
D144: =F130 -> 6000 | E144: 1 Puan İndirimin Vergi Etkisi
B145: 32/8 Madde Kapsamında İndirimli Kurumlar Vergisi (Geçici Vergi) Oranı | C145: =IFERROR(D145/C143,0) -> 0.24 | D145: =G130 -> 144000 | E145: 1 Puan İndirim Sonrasında Ödenecek KV Tutarı (Üretim)
B146: Genel Orana Tabi Matrah (Diğer) | C146: =D129 -> 400000 | D146: =J129 -> 100000 | E146: Diğer Faalilyetlerden Elde Edilen Kazanç
C147: =IFERROR(D146/C146,0) -> 0.25
B148: MATRAHLAR TOPLAMI | C148: =C136+C143+C140+C146 -> 2000000 | D148: =D139+D145+D142+D146 -> 444000

Sheet İÜ Ö3 (hidden)
B2: FAALİYET TÜRLERİ İTİBARİYLE HASILATLAR VE TOPLAM İÇİNDEKİ ORANLARI | C2: =IFERROR(C4/C4,0) -> 1 | D2: =IFERROR(D4/C4,0) -> 0.2 | E2: =IFERROR(E4/C4,0) -> 0.3 | F2: =IFERROR(F4/C4,0) -> 0.5
C3: Toplam Hasılat | D3: İhracat faaliyeti | E3: İmalat faaliyeti | F3: Diğer faaliyetler
B4: A-BRÜT SATIŞLAR (60) | C4: =D4+E4+F4 -> 2000000 | D4: =SUM(D5:D7) -> 400000 | E4: =SUM(E5:E7) -> 600000 | F4: 1000000
B5: 1-Yurtiçi Satışlar (600) | C5: =D5+E5+F5 -> 1400000 | E5: 1400000
B6: 2-Yurtdışı Satışlar (601) | C6: =D6+E6+F6 -> 400000 | D6: 400000
B7: 3-Diğer Gelirler (602) | C7: =D7+E7+F7 -> 200000 | E7: -800000 | F7: 1000000
B8: B-SATIŞ İNDİRİMLERİ(-) (61) | C8: =SUM(C9:C11) -> 0 | D8: =SUM(D9:D11) -> 0 | E8: =SUM(E9:E11) -> 0 | F8: 0
B9: 1-Satıştan İadeler (-) (610) | C9: =SUM(D9:F9) -> 0
B10: 2- Satış İskontoları (-) (611) | C10: =SUM(D10:F10) -> 0
B11: 3-Diğer İndirimler (-) (612) | C11: 0
B12: C-NET SATIŞLAR | C12: =C4-C8 -> 2000000 | D12: =D4-D8 -> 400000 | E12: =E4-E8 -> 600000 | F12: 1000000
B13: D-SATIŞLARIN MALİYETİ (-) (62) | C13: =SUM(C14:C17) -> 0 | D13: =SUM(D14:D17) -> 0 | E13: =SUM(E14:E17) -> 0 | F13: =SUM(F14:F17) -> 0
B14: 1-Satılan Mamuller Maliyeti ( 620) | C14: =SUM(D14:F14) -> 0
B15: 2-Satılan Ticari Mal Maliyeti (621) | C15: =SUM(D15:F15) -> 0
B16: 3-Satılan Hizmet Maliyeti (622) | C16: 0
B17: 4-Diğer Satışların Maliyeti (623) | C17: 0
B18: BRÜT SATIŞ KARI / ZARARI | C18: =C12-C13 -> 2000000 | D18: =D12-D13 -> 400000 | E18: =E12-E13 -> 600000 | F18: 1000000
B19: E-FAALİYET GİDERLERİ (-) (63) | C19: =SUM(C20:C24) -> 0 | D19: =SUM(D20:D24) -> 0 | E19: =SUM(E20:E24) -> 0 | F19: 0
B20: 1-Araştırma ve Geliştirme Giderleri(-) (630) | C20: =SUM(D20:F20) -> 0
B21: 2-Pazarlama, Satış ve Dağıtım Giderleri(-) (631) | C21: =SUM(D21:F21) -> 0
B22: 3-Genel Yönetim Giderleri(-) (632) | C22: =SUM(D22:F22) -> 0
B23: MÜŞTEREK GENEL GİDERLER (DAĞITIM-HASILAT PAYINA GÖRE) | D23: =C23*D2 -> 0 | E23: =C23*E2 -> 0 | F23: =C23*F2 -> 0
B24: MÜŞTEREK GENEL GİDER GİBİ DAĞITIMA TABİ TUTULACAK AMORTİSMAN GİDERLERİ (DAĞITIM-HASILAT PAYINA GÖRE) | D24: =C24*D2 -> 0 | E24: =C24*E2 -> 0 | F24: =C24*F2 -> 0
B25: FAALİYET KARI / ZARARI | C25: =C18-C19 -> 2000000 | D25: =D18-D19 -> 400000 | E25: =E18-E19 -> 600000 | F25: 1000000
B26: F-DİĞER FAALİYETLERDEN OLAĞAN GELİR VE KARLAR (64) | C26: =SUM(C27:C35) -> 0 | D26: =SUM(D27:D35) -> 0 | E26: =SUM(E27:E35) -> 0 | F26: =SUM(F27:F35) -> 0
B27: 1- İŞTİRAKLERDEN TEMETTÜ GELİRLERİ (640) | C27: =SUM(D27:F27) -> 0
B28: 2- BAĞLI ORTAKLIKLARDAN TEMETTÜ GELİRLERİ (641) | C28: =SUM(D28:F28) -> 0
B29: 3- FAİZ GELİRLERİ (642) (ihracat ve imalat kaynaklı alacağın tahsiline kadar olan süreçte oluşan) | C29: 0
B30: 4- KOMİSYON GELİRLERİ (643) | C30: 0
B31: 5- KONUSU OLMAYAN KARŞILIKLAR (644) | C31: 0
B32: 6- MENKUL KIYMET SATIŞ KARLARI (645) | C32: 0
B33: 7- KAMBİYO KARLARI (646) (ihracat ve imalat kaynaklı alacağın tahsiline kadar olan süreçte oluşan) | C33: 0
B34: 8- REESKONT FAİZ GELİRLERİ (647) | C34: 0
B35: 9- FAALİYETLE İLGİLİ DİĞER GELİR VE KARLAR (649) | C35: 0
B36: ARA TOPLAM | C36: =C25+C26 -> 2000000 | D36: =D25+D26 -> 400000 | E36: =E25+E26 -> 600000 | F36: =F25+F26 -> 1000000
B37: G-DİĞER FAALİYETLERDEN OLAĞAN GİDER VE ZARARLAR(-) (65) | C37: =SUM(C38:C43) -> 0 | D37: =SUM(D38:D43) -> 0 | E37: =SUM(E38:E43) -> 0 | F37: 0
B38: 1- KOMİSYON GİDERLERİ (653) | C38: =SUM(D38:F38) -> 0
B39: 2- KARŞILIK GİDERLERİ (654) | C39: =SUM(D39:F39) -> 0
B40: 3- MENKUL KIYMET SATIŞ ZARARLARI (655) | C40: 0
B41: 4- KAMBİYO ZARARLARI (656) (ihracat ve imalat kaynaklı alacağın tahsiline kadar olan süreçte oluşan) | C41: 0
B42: 5- REESKONT FAİZ GİDERLERİ (657) | C42: 0
B43: 6- DİĞER OLAĞAN GİDER VE ZARARLAR (659) | C43: =SUM(D43:F43) -> 0
B44: ARA TOPLAM | C44: =C36-C37 -> 2000000 | D44: =D36-D37 -> 400000 | E44: =E36-E37 -> 600000 | F44: 1000000
B45: H-FİNANSMAN GİDERLERİ(-) (66) | C45: =SUM(C46:C49) -> 0 | D45: =SUM(D46:D49) -> 0 | E45: =SUM(E46:E49) -> 0 | F45: =SUM(F46:F49) -> 0
B46: 1- KISA VADELİ BORÇLANMA GİDERLERİ (-) | C46: =SUM(D46:F46) -> 0
B47: 2- UZUN VADELİ BORÇLANMA GİDERLERİ (-) | C47: =SUM(D47:F47) -> 0
B48: 1- KISA VADELİ BORÇLANMA GİDERLERİ (-) (DAĞITIM) | D48: =C48*D2 -> 0 | E48: =C48*E2 -> 0 | F48: =C48*F2 -> 0
B49: 2- UZUN VADELİ BORÇLANMA GİDERLERİ (-) (DAĞITIM) | D49: =C49*D2 -> 0 | E49: =C49*E2 -> 0 | F49: =C49*F2 -> 0
B50: ARA TOPLAM | C50: =C44-C45 -> 2000000 | D50: =D44-D45 -> 400000 | E50: =E44-E45 -> 600000 | F50: =F44-F45 -> 1000000
B51: I-OLAĞANDIŞI GELİR VE KÂRLAR (67) | C51: =SUM(D51:F51) -> 0 | D51: =SUM(D52:D53) -> 0 | E51: =SUM(E52:E53) -> 0 | F51: =SUM(F52:F53) -> 0
B52: 1- ÖNCEKİ DÖNEM GELİR VE KARLARI (671) | C52: =SUM(D52:F52) -> 0
B53: 2-DİĞER OLAĞAN DIŞI GELİR VE KARLAR (679) | C53: =SUM(D53:F53) -> 0
B54: ARA TOPLAM | C54: =SUM(D54:F54) -> 2000000 | D54: =D50+D51 -> 400000 | E54: =E50+E51 -> 600000 | F54: 1000000
B55: J-OLAĞANDIŞI GİDER VE ZARARLAR(-) (68) | C55: =SUM(C56:C58) -> 0 | D55: =SUM(D56:D58) -> 0 | E55: =SUM(E56:E58) -> 0 | F55: 0
B56: 1-Çalışmayan Kısım Gider ve Zararları(-) (680) | C56: =SUM(D56:F56) -> 0
B57: 2-Önceki Dönem Gider ve Zararları(-) (681) | C57: =SUM(D57:F57) -> 0
B58: 3-Diğer Olağan Dışı Gider ve Zararlar(-) (689) | C58: 0
B59: DÖNEM KÂRI VEYA ZARARI (TİCARİ BİLANÇO KARI ZARARI ) | C59: =C54-C55 -> 2000000 | D59: =D54-D55 -> 400000 | E59: =E54-E55 -> 600000 | F59: 1000000
B60: İHRACAT, İMALAT VE DİĞER FAALİYETLERDEN ELDE EDİLEN KAZANCIN TOPLAM TİCARİ KAZANÇ İÇİNDEKİ PAYLARI | D60: =IF(D59>=$C$59,1, IF(D59<=0,0, IF(AND(D59>0,D59<$C$59),D59/$C$59))) -> 0.2 | E60: =IF(E59>=$C$59,1, IF(E59<=0,0, IF(AND(E59>0,E59<$C$59),E59/$C$59))) -> 0.3 | F60: =IF(F59>=$C$59,1, IF(F59<=0,0, IF(AND(F59>0,F59<$C$59),F59/$C$59))) -> 0.5
D61: =D60/(D60+E60+F60) -> 0.2 | E61: =E60/(D60+E60+F60) -> 0.3 | F61: =F60/(D60+E60+F60) -> 0.5
B63: KKEG + | C63: 500000
B64: KABUL EDİLMEYEN GELİRLER -
B65: ZARAR OLSA DAHİ İNDİRİLECEK İSTİSNALAR - | C65: =C66+C67+C68 -> 0
B66: Hizmet İhracatı Faaliyetinden (KVK 10-1/ğ) Elde Edilen Kazançlardan İstisna Edilenlerin Toplamı
B67: İmalat Faaliyetinden Elde Edilen Kazançlardan İstisna Edilenlerin Toplamı
B68: Diğer Faaliyetlerden Elde Edilen Kazançlardan İstisna Edilenlerin Toplamı
B69: GEÇMİŞ YIL ZARARLARI - | C69: 1200000
B70: İNDİRİMLER - | D70: AZAMİ YAZILABİLECEK İNDİRİMLER TUTARI | E70: =C59+C63-C64-C65-C69 -> 1300000
B72: 1 PUAN İNDİRİM UYGULANACAK TUTARIN HESABINDA İSTİSNA KAZANÇLAR DÜŞÜLDÜKTEN SONRA BULUNAN TİCARİ KAZANÇ TUTARI İLE BU KAZANÇ İÇİNDE İHRACAT,İMALAT VE DİĞER KAZANÇLARIN TUTARI | C72: TİCARİ KAZANÇ TAN İhracat ve İmalat Kazancından İstisna Olan Tutarlar Düşüldükten Sonra Kalan Tutarı | D72: İhracat Faaliyetinden Elde Edilen Kazançtan İstisna Olan Kısım Düşüldükten Sonra Bulunan Tutarı | E72: Üretim Faaliyetinden Elde Edilen Kazançtan İstisna Olan Kısım Düşüldükten Sonra Bulunan Tutarı | F72: Diğer Faaliyetinden Elde Edilen Kazanç
C73: =IF(C59-C66-C67<=0,0,C59-C66-C67) -> 2000000 | D73: =IF($D$59-C66<=0,0,MIN($D$59-C66,$C$73*D61)) -> 400000 | E73: =IF($E$59-C67<=0,0,MIN($E$59-C67,$C$73*E61)) -> 600000 | F73: =IF(C73-D73-E73<=0,0,C73-D73-E73) -> 1000000
B74: İHRACAT, İMALAT VE DİĞER FAALİYETLERDEN ELDE EDİLEN KAZANCIN TOPLAM TİCARİ KAZANÇ İÇİNDEKİ PAYLARI | D74: =IFERROR(IF(D73/C73<=0,0,D73/C73),0) -> 0.2 | E74: =IFERROR(IF(E73/C73<=0,0,E73/C73),0) -> 0.3 | F74: =IFERROR(F73/C73,0) -> 0.5
B75: NEGATİF VE % 100 DEN BÜYÜKLÜK KONTROLÜ SONRASINDAKİ PAYLARI | D75: =IFERROR(IF(D74<=0,0,IF(D74>1,1,D74)),0) -> 0.2 | E75: =IFERROR(IF(E74<=0,0,IF(E74>1,1,E74)),0) -> 0.3 | F75: =IFERROR(IF(F74<=0,0,IF(F74>1,1,F74)),0) -> 0.5
B77: SAFİ KURUM KAZANCI (KURUMLAR VERGİSİ MATRAHI) | C77: =C59+C63-C64-C65-C69-C70 -> 1300000 | D77: =IF(C77<0, "ZARAR","KAR") -> KAR
B79: 2022 YILI 3. DÖNEM İNDİRİMLİ KURUMLAR VERGİSİ HESAPLAMA TABLOSU
C80: 1. TEŞVİK BELGESİ | D80: 2. TEŞVİK BELGESİ | E80: 3. TEŞVİK BELGESİ | F80: 4. TEŞVİK BELGESİ | G80: 5. TEŞVİK BELGESİ
B81: Vergi İndirim Oranı (VİO)
B82: KV MATRAHI (Safi Kurum Kazancı) | C82: =C77 -> 1300000
B83: 32/A Uygulanacak K.V. Matrahı (HER BİR TEŞVİK BELGESİ KAPSAMINDA YARARLANILABİLECEK YATIRIMA KATKI TUTARININ MATRAHI BU HÜCRELERE YAZILMALIDIR) | H83: =IF(SUM(C83:G83)>C77,"32/A İNDİRİMİ UYGULANACAK KAZANÇ, SAFİ KURUM KAZANCINDAN FAZLADIR",SUM(C83:G83)) -> 0
B84: 32/A UYGULANMAYACAK K.V. Matrahı | C84: =IF(C82-(C83+D83+E83+F83+G83)<0,0,C82-(C83+D83+E83+F83+G83)) -> 1300000
B85: MATRAH TOPLAMI | C85: =IF((C83+D83+E83+F83+G83+C84)>C77,C77,(C83+D83+E83+F83+G83+C84)) -> 1300000
B87: SAFİ KURUM KAZANCININ KV VERGİ ORANLARI İTİBARİYLE DAĞILIMI | C87: TOPLAM SAFİ KAZANÇ | D87: İhracat Kazancı Payı | E87: Üretim Kazancı Payı | F87: Diğer Faaliyet Kazancı Payı
C89: =C77 -> 1300000 | D89: =IF(AND(OR(D59>=C89,D59+E59>=C89),C66>0),MAX(MIN(C89*D74,D59,D73),0),MIN(C89*D74,D59)) -> 260000 | E89: =MAX( IF(AND(OR(E59>=C89,E59+F59>=C89),C67>0),MAX(MIN(C89*E74,E59,E73),0),MIN(C89*E74,E59)),0) -> 390000 | F89: =IF(C89-D89-E89<=0,0,C89-D89-E89) -> 650000
B90: SAFİ KURUM KAZANCININ DAĞILIMI ORANSAL DAĞILIMI | C90: =C89 -> 1300000 | D90: =D89/C89 -> 0.2 | E90: =E89/C89 -> 0.3 | F90: =F89/C89 -> 0.5
B91: SAFİ KURUM KAZANCININ DAĞILIMI TUTARSAL | C91: =C90 -> 1300000 | D91: =D89 -> 260000 | E91: =E89 -> 390000 | F91: =F89 -> 650000
B92: SAFİ KURUM KAZANCI DAĞILIMI | C92: =C91 -> 1300000 | D92: =IFERROR(IF(D91/C91>=1,1,D91/C91),0) -> 0.2 | E92: =IFERROR(IF(E91/C91>=1,1,E91/C91),0) -> 0.3 | F92: =IFERROR(IF(F91/C91>=1,1,F91/C91),0) -> 0.5 | H92: KV ORANI
B93: 1 PUAN VE 32/A İNDİRİMİ OLMASAYDI HESAPLANAN KV TUTARI | C93: =C92*$H$93 -> 325000 | D93: =D91*$H$93 -> 65000 | E93: =E91*$H$93 -> 97500 | F93: =F91*$H$93 -> 162500 | H93: 0.25
B94: 32/ A UYGULANAN MATRAH | C94: =C83+D83+E83+F83+G83 -> 0 | D94: =D106+D111+D116+D121+D126 -> 0 | E94: =D105+D110+D115+D120+D125 -> 0 | F94: =D104+D109+D114+D119+D124 -> 0
B95: 32/A UYGULANACAK MATRAH ÜZERİNDEN ÖDENECEK KV TUTARI | C95: =J107+J112+J117+J122+J127 -> 0 | D95: =J106+J111+J116+J121+J126 -> 0 | E95: =J105+J110+J115+J120+J125 -> 0 | F95: =J104+J109+J114+J119+J124 -> 0
B96: 32/A UYGULANMAYAN MATRAH | C96: =IF(C84<=0,0,C84) -> 1300000 | D96: =D131 -> 260000 | E96: =D130 -> 390000 | F96: =D129 -> 650000
B97: 32/A UYGULANMAYAN MATRAH ÜZERİNDEN ÖDENECEK KV TUTARI | C97: =L129 -> 308100 | D97: =J131 -> 52000 | E97: =J130 -> 93600 | F97: =J129 -> 162500
B98: TOPLAM ÖDENECEK KV | C98: =C95+C97 -> 308100 | D98: =J131+J106 -> 52000 | E98: =J130+J105 -> 93600 | F98: =J129+J104 -> 162500
B99: TOPLAM AVANTAJ (YARARLANILAN 1 PUAN İNDİRİMİ + 32/A İNDİRİMİ TUTARI ) | C99: =C93-C98 -> 16900 | D99: =D100+D101 -> 13000 | E99: =E100+E101 -> 3900 | F99: =F100+F101 -> 0
B100: YARARLANILAN 1 - 5 PUAN İNDİRİMİ TUTARI | C100: =F132+F127+F122+F117+F112+F107 -> 16900 | D100: =F131+F106+F111+F116+F121+F126 -> 13000 | E100: =F130+F105+F110+F115+F120+F125 -> 3900 | F100: =F129+F104+F109+F114+F119+F124 -> 0
B101: YARLANILAN 32/A İNDİRİMİ TUTARI | C101: =K107+K112+K117+K122+K127+K132 -> 0 | D101: =K106+K111+K121+K126+K131 -> 0 | E101: =K105+K110+K115+K120+K125+K130 -> 0 | F101: =K104++K109+K114+K119+K124+K129 -> 0
B103: 32/A UYGULANABİLECEK MATRAH (1.TEŞVİK BELGESİ) | C103: =C83 -> 0 | D103: KV MATRAHI | E103: 1 - 5 PUAN İNDİRİM OLMASAYDI HESAPLANAN KV TUTARI | F103: 1 -5 Puan İndirim Tutarı | G103: 1 - 5 Puan İndirim Sonrasında Hesaplanan KV Tutarı | H103: 32/A İndirimi Olmasaydı Ödenecek KV Tutarı | I103: 1 -5 Puan İndirim ve 32/A VİO Uygulandıktan Sonra Tatbik Edilecek KV Oranı | J103: 1 -5 Puan İndirim ve 32/A İndirimi Uygulandıktan Sonra Ödenecek KV Tutarı | K103: Yararlanılan Yatırıma Katkı Tutarı (32/A İnd. KV Nedeniyle Vazgeçilen Vergi Tutarı) | L103: Ödenecek KV Tutarı
B104: GENEL ORANA TABİ KISIM (DİĞER FAALİYETLER) | C104: =F92 -> 0.5 | D104: =C103*C104 -> 0 | E104: =D104*$H$93 -> 0 | F104: 0 | G104: =E104-F104 -> 0 | H104: =G104 -> 0 | I104: =($H$93)-(($H$93)*$C$81) -> 0.25 | J104: =I104*D104 -> 0 | K104: =G104-J104 -> 0 | L104: =J107 -> 0
B105: 1 PUAN İNDİRİMLİ ORANA TABİ KISIM (İMALAT) | C105: =E92 -> 0.3 | D105: =C103*C105 -> 0 | E105: =D105*$H$93 -> 0 | F105: =D105/100 -> 0 | G105: =E105-F105 -> 0 | H105: =G105 -> 0 | I105: =($H$93-0.01)-(($H$93-0.01)*$C$81) -> 0.24 | J105: =I105*D105 -> 0 | K105: =G105-J105 -> 0
B106: 5 PUAN İNDİRİMLİ ORANA TABİ KISIM ( İHRACAT) | C106: =D92 -> 0.2 | D106: =C103*C106 -> 0 | E106: =D106*$H$93 -> 0 | F106: =D106/20 -> 0 | G106: =E106-F106 -> 0 | H106: 0 | I106: =($H$93-0.05)-(($H$93-0.05)*C81) -> 0.2 | J106: 0 | K106: =G106-J106 -> 0
B107: TOPLAM | C107: =SUM(C104:C106) -> 1 | D107: =SUM(D104:D106) -> 0 | E107: 0 | F107: =SUM(F104:F106) -> 0 | G107: =SUM(G104:G106) -> 0 | H107: =SUM(H104:H106) -> 0 | J107: 0 | K107: 0
B108: 32/A UYGULANABİLECEK MATRAH (2.TEŞVİK BELGESİ) | C108: =D83 -> 0 | D108: KV MATRAHI | E108: 1 - 5 PUAN İNDİRİM OLMASAYDI HESAPLANAN KV TUTARI | F108: 1 -5 Puan İndirim Tutarı | G108: 1 -5 Puan İndirim Sonrasında Hesaplanan KV Tutarı | H108: 32/A İndirimi Olmasaydı Ödenecek KV Tutarı | I108: 1 - 5 Puan İndirim ve 32/A VİO Uygulandıktan Sonra Tatbik Edilecek KV Oranı | J108: 1-5 Puan İndirim ve 32/A İndirimi Uygulandıktan Sonra Ödenecek KV Tutarı | K108: Yararlanılan Yatırıma Katkı Tutarı (32/A İnd. KV Nedeniyle Vazgeçilen Vergi Tutarı) | L108: Ödenecek KV Tutarı
B109: GENEL ORANA TABİ KISIM (DİĞER FAALİYETLER) | C109: =F92 -> 0.5 | D109: =C108*C109 -> 0 | E109: =D109*$H$93 -> 0 | F109: 0 | G109: =E109-F109 -> 0 | H109: =G109 -> 0 | I109: =($H$93)-(($H$93)*D81) -> 0.25 | J109: =I109*D109 -> 0 | K109: =G109-J109 -> 0 | L109: =J112 -> 0
B110: 1 PUAN İNDİRİMLİ ORANA TABİ KISIM (İMALAT) | C110: =E92 -> 0.3 | D110: =C108*C110 -> 0 | E110: =D110*$H$93 -> 0 | F110: =D110/100 -> 0 | G110: =E110-F110 -> 0 | H110: =G110 -> 0 | I110: =($H$93-0.01)-(($H$93-0.01)*D81) -> 0.24 | J110: =I110*D110 -> 0 | K110: =G110-J110 -> 0
B111: 5 PUAN İNDİRİMLİ ORANA TABİ KISIM ( İHRACAT) | C111: =D92 -> 0.2 | D111: =C108*C111 -> 0 | E111: =D111*$H$93 -> 0 | F111: =D111/20 -> 0 | G111: =E111-F111 -> 0 | H111: 0 | I111: =($H$93-0.05)-(($H$93-0.05)*D81) -> 0.2 | J111: 0 | K111: =G111-J111 -> 0
B112: TOPLAM | C112: =SUM(C109:C111) -> 1 | D112: 0 | E112: 0 | F112: =SUM(F109:F111) -> 0 | G112: =SUM(G109:G111) -> 0 | H112: =SUM(H109:H111) -> 0 | J112: =SUM(J109:J111) -> 0 | K112: 0
B113: 32/A UYGULANABİLECEK MATRAH (3.TEŞVİK BELGESİ) | C113: =E83 -> 0 | D113: KV MATRAHI | E113: 1 - 5 PUAN İNDİRİM OLMASAYDI HESAPLANAN KV TUTARI | F113: 1-5 Puan İndirim Tutarı | G113: 1 - 5 Puan İndirim Sonrasında Hesaplanan KV Tutarı | H113: 32/A İndirimi Olmasaydı Ödenecek KV Tutarı | I113: 1 - 5 Puan İndirim ve 32/A VİO Uygulandıktan Sonra Tatbik Edilecek KV Oranı | J113: 1 -5 Puan İndirim ve 32/A İndirimi Uygulandıktan Sonra Ödenecek KV Tutarı | K113: Yararlanılan Yatırıma Katkı Tutarı (32/A İnd. KV Nedeniyle Vazgeçilen Vergi Tutarı) | L113: Ödenecek KV Tutarı
B114: GENEL ORANA TABİ KISIM (DİĞER FAALİYETLER) | C114: =F92 -> 0.5 | D114: =C113*C114 -> 0 | E114: =D114*$H$93 -> 0 | F114: 0 | G114: =E114-F114 -> 0 | H114: =G114 -> 0 | I114: =($H$93)-(($H$93)*E81) -> 0.25 | J114: =I114*D114 -> 0 | K114: =G114-J114 -> 0 | L114: =J117 -> 0
B115: 1 PUAN İNDİRİMLİ ORANA TABİ KISIM (İMALAT) | C115: =E92 -> 0.3 | D115: =C113*C115 -> 0 | E115: =D115*$H$93 -> 0 | F115: =D115/100 -> 0 | G115: =E115-F115 -> 0 | H115: =G115 -> 0 | I115: =($H$93-0.01)-(($H$93-0.01)*E81) -> 0.24 | J115: =I115*D115 -> 0 | K115: =G115-J115 -> 0
B116: 5 PUAN İNDİRİMLİ ORANA TABİ KISIM ( İHRACAT) | C116: =D92 -> 0.2 | D116: =C113*C116 -> 0 | E116: =D116*$H$93 -> 0 | F116: =D116/20 -> 0 | G116: =E116-F116 -> 0 | H116: 0 | I116: =($H$93-0.05)-(($H$93-0.05)*E81) -> 0.2 | J116: 0 | K116: =G116-J116 -> 0
B117: TOPLAM | C117: =SUM(C114:C116) -> 1 | D117: 0 | E117: 0 | F117: =SUM(F114:F116) -> 0 | G117: =SUM(G114:G116) -> 0 | H117: =SUM(H114:H116) -> 0 | J117: =SUM(J114:J116) -> 0 | K117: 0
B118: 32/A UYGULANABİLECEK MATRAH (4. TEŞVİK BELGESİ) | C118: =F83 -> 0 | D118: KV MATRAHI | E118: 1 - 5 PUAN İNDİRİM OLMASAYDI HESAPLANAN KV TUTARI | F118: 1-5 Puan İndirim Tutarı | G118: 1 -5 Puan İndirim Sonrasında Hesaplanan KV Tutarı | H118: 32/A İndirimi Olmasaydı Ödenecek KV Tutarı | I118: 1- 5 Puan İndirim ve 32/A VİO Uygulandıktan Sonra Tatbik Edilecek KV Oranı | J118: 1-5 Puan İndirim ve 32/A İndirimi Uygulandıktan Sonra Ödenecek KV Tutarı | K118: Yararlanılan Yatırıma Katkı Tutarı (32/A İnd. KV Nedeniyle Vazgeçilen Vergi Tutarı) | L118: Ödenecek KV Tutarı
B119: GENEL ORANA TABİ KISIM (DİĞER FAALİYETLER) | C119: =F92 -> 0.5 | D119: =C118*C119 -> 0 | E119: =D119*$H$93 -> 0 | F119: 0 | G119: =E119-F119 -> 0 | H119: =G119 -> 0 | I119: =($H$93)-(($H$93)*F81) -> 0.25 | J119: =I119*D119 -> 0 | K119: =G119-J119 -> 0 | L119: =J122 -> 0
B120: 1 PUAN İNDİRİMLİ ORANA TABİ KISIM (İMALAT) | C120: =E92 -> 0.3 | D120: =C118*C120 -> 0 | E120: =D120*$H$93 -> 0 | F120: =D120/100 -> 0 | G120: =E120-F120 -> 0 | H120: =G120 -> 0 | I120: =($H$93-0.01)-(($H$93-0.01)*F81) -> 0.24 | J120: =I120*D120 -> 0 | K120: =G120-J120 -> 0
B121: 5 PUAN İNDİRİMLİ ORANA TABİ KISIM ( İHRACAT) | C121: =D92 -> 0.2 | D121: =C118*C121 -> 0 | E121: =D121*$H$93 -> 0 | F121: =D121/20 -> 0 | G121: =E121-F121 -> 0 | H121: 0 | I121: =($H$93-0.05)-(($H$93-0.05)*F81) -> 0.2 | J121: 0 | K121: =G121-J121 -> 0
B122: TOPLAM | C122: =SUM(C119:C121) -> 1 | D122: 0 | E122: 0 | F122: =SUM(F119:F121) -> 0 | G122: =SUM(G119:G121) -> 0 | H122: =SUM(H119:H121) -> 0 | J122: =SUM(J119:J121) -> 0 | K122: 0
B123: 32/A UYGULANABİLECEK MATRAH (5.TEŞVİK BELGESİ) | C123: =G83 -> 0 | D123: KV MATRAHI | E123: 1 - 5 PUAN İNDİRİM OLMASAYDI HESAPLANAN KV TUTARI | F123: 1-5 Puan İndirim Tutarı | G123: 1 - 5 Puan İndirim Sonrasında Hesaplanan KV Tutarı | H123: 32/A İndirimi Olmasaydı Ödenecek KV Tutarı | I123: 1 -5 Puan İndirim ve 32/A VİO Uygulandıktan Sonra Tatbik Edilecek KV Oranı | J123: 1 - 5 Puan İndirim ve 32/A İndirimi Uygulandıktan Sonra Ödenecek KV Tutarı | K123: Yararlanılan Yatırıma Katkı Tutarı (32/A İnd. KV Nedeniyle Vazgeçilen Vergi Tutarı) | L123: Ödenecek KV Tutarı
B124: GENEL ORANA TABİ KISIM (DİĞER FAALİYETLER) | C124: =F92 -> 0.5 | D124: =C123*C124 -> 0 | E124: =D124*$H$93 -> 0 | F124: 0 | G124: =E124-F124 -> 0 | H124: =G124 -> 0 | I124: =($H$93)-(($H$93)*G81) -> 0.25 | J124: =I124*D124 -> 0 | K124: =G124-J124 -> 0 | L124: =J127 -> 0
B125: 1 PUAN İNDİRİMLİ ORANA TABİ KISIM (İMALAT) | C125: =E92 -> 0.3 | D125: =C123*C125 -> 0 | E125: =D125*$H$93 -> 0 | F125: =D125/100 -> 0 | G125: =E125-F125 -> 0 | H125: =G125 -> 0 | I125: =($H$93-0.01)-(($H$93-0.01)*G81) -> 0.24 | J125: =I125*D125 -> 0 | K125: =G125-J125 -> 0
B126: 5 PUAN İNDİRİMLİ ORANA TABİ KISIM ( İHRACAT) | C126: =D92 -> 0.2 | D126: =C123*C126 -> 0 | E126: =D126*$H$93 -> 0 | F126: =D126/20 -> 0 | G126: =E126-F126 -> 0 | H126: 0 | I126: =($H$93-0.05)-(($H$93-0.05)*G81) -> 0.2 | J126: 0 | K126: =G126-J126 -> 0
B127: TOPLAM | C127: =SUM(C124:C126) -> 1 | D127: 0 | E127: 0 | F127: =SUM(F124:F126) -> 0 | G127: =SUM(G124:G126) -> 0 | H127: =SUM(H124:H126) -> 0 | J127: =SUM(J124:J126) -> 0 | K127: 0
B128: 32/A UYGULANAMAYACAK MATRAH | C128: =IF(C84<=0,0,C84) -> 1300000 | D128: KV MATRAHI | E128: 1-5 PUAN İNDİRİM OLMASAYDI HESAPLANAN KV TUTARI | F128: 1-5 Puan İndirim Tutarı | G128: 1 -5 Puan İndirim Sonrasında Hesaplanan KV Tutarı | H128: 32/A İNDİRİMİ UYGULANMAZ | J128: 1 Puan İndirim ve 32/A İndirimi Uygulandıktan Sonra Ödenecek KV Tutarı | K128: Yararlanılan Yatırıma Katkı Tutarı (32/A İnd. KV Nedeniyle Vazgeçilen Vergi Tutarı) | L128: Ödenecek KV Tutarı
B129: GENEL ORANA TABİ KISIM (DİĞER FAALİYETLER) | C129: =F92 -> 0.5 | D129: =C128*C129 -> 650000 | E129: =D129*$H$93 -> 162500 | F129: 0 | G129: =E129-F129 -> 162500 | J129: =G129 -> 162500 | K129: =G129-J129 -> 0 | L129: =J132 -> 308100
B130: 1 PUAN İNDİRİMLİ ORANA TABİ KISIM (İMALAT) | C130: =E92 -> 0.3 | D130: =C130*C128 -> 390000 | E130: =D130*$H$93 -> 97500 | F130: =D130/100 -> 3900 | G130: =E130-F130 -> 93600 | J130: =G130 -> 93600 | K130: =G130-J130 -> 0
B131: 5 PUAN İNDİRİMLİ ORANA TABİ KISIM ( İHRACAT) | C131: =D92 -> 0.2 | D131: =C131*C128 -> 260000 | E131: =D131*$H$93 -> 65000 | F131: =D131/20 -> 13000 | G131: =E131-F131 -> 52000 | J131: 52000 | K131: 0
B132: TOPLAM | C132: =SUM(C129:C131) -> 1 | D132: =SUM(D129:D131) -> 1300000 | E132: 325000 | F132: =SUM(F129:F131) -> 16900 | G132: =SUM(G129:G131) -> 308100 | J132: 308100 | K132: 0
B133: TOPLAM KV MATRAHI VE ÖDENMESİ GEREKEN KV | C133: =C103+C128+C108+C113+C118+C123 -> 1300000 | D133: =D107+D132+D112+D117+D122+D127 -> 1300000 | E133: =E107+E132+E112+E117+E122+E127 -> 325000 | F133: =F107+F132+F112+F117+F122+F127 -> 16900 | G133: =G107+G132+G112+G117+G122+G127 -> 308100 | J133: =J107+J132+J112+J117+J122+J127 -> 308100 | K133: =K132+K107+K112+K117+K122+K127 -> 0 | L133: =L104+L129+L109+L114+L119+L124 -> 308100
B135: GEÇİCİ VERGİ BEYANNMESİNDE MATRAH BİLDİRİMİ BÖLÜMÜNDE DOLDURULACAK KISIMLAR VE TUTARLARI
B136: 32 A Madde Kapsamında İndirimli Kurumlar Vergisine (Geçici Vergiye) Tabi Matrah | C136: =C103+C108+C113+C118+C123 -> 0 | D136: =E107+E112+E117+E122+E127 -> 0 | E136: 1-5 Puan Olmasaydı Hesaplan KV Tutarı
D137: =G107+G112+G117+G122++G127 -> 0 | E137: 1 -5 Puan İndirim Sonrasında Ödenecek KV Tutarı (32 A olmasaydı hesaplanacak Vergi)
D138: =K107+K112+K117+K122+K127 -> 0 | E138: 32/A İndirimi ile Vazgeçilen Vergi
B139: 32 A Madde Kapsamında İndirimli Kurumlar Vergisi(Geçici Vergi) Oranı | C139: =IFERROR(D139/C136,0) -> 0 | D139: =L104+L109+L114+L119+L124 -> 0 | E139: 32/A ya Tabi Matrah Üzerinden Ödenecek KV
B140: 32/7 Madde Kapsamında İndirimli Kurumlar Vergisine (Geçici Vergiye) Tabi Matrah (İhracat) | C140: =D131 -> 260000 | D140: =E131 -> 65000 | E140: 5 Puan Olmasaydı Hesaplan KV Tutarı
D141: =F131 -> 13000 | E141: 5 Puan İndirimin Vergi Etkisi
B142: 32/7 Madde Kapsamında İndirimli Kurumlar Vergisi (Geçici Vergi) Oranı | C142: =IFERROR(D142/C140,0) -> 0.2 | D142: =G131 -> 52000 | E142: 5 Puan İndirim Sonrasında Ödenecek KV Tutarı (İhracat)
B143: 32/8 Madde Kapsamında İndirimli Kurumlar Vergisine (Geçici Vergiye) Tabi Matrah (Üretim) | C143: =D130 -> 390000 | D143: =E130 -> 97500 | E143: 1 Puan Olmasaydı Hesaplan KV Tutarı
D144: =F130 -> 3900 | E144: 1 Puan İndirimin Vergi Etkisi
B145: 32/8 Madde Kapsamında İndirimli Kurumlar Vergisi (Geçici Vergi) Oranı | C145: =IFERROR(D145/C143,0) -> 0.24 | D145: =G130 -> 93600 | E145: 1 Puan İndirim Sonrasında Ödenecek KV Tutarı (Üretim)
B146: Genel Orana Tabi Matrah (Diğer) | C146: =D129 -> 650000 | D146: =J129 -> 162500 | E146: Diğer Faalilyetlerden Elde Edilen Kazanç
C147: =IFERROR(D146/C146,0) -> 0.25
B148: MATRAHLAR TOPLAMI | C148: =C136+C143+C140+C146 -> 1300000 | D148: =D139+D145+D142+D146 -> 308100

Sheet İÜ Ö4 (hidden)
B2: FAALİYET TÜRLERİ İTİBARİYLE HASILATLAR VE TOPLAM İÇİNDEKİ ORANLARI | C2: =IFERROR(C4/C4,0) -> 1 | D2: =IFERROR(D4/C4,0) -> 0.8 | E2: =IFERROR(E4/C4,0) -> -0.1 | F2: =IFERROR(F4/C4,0) -> 0.3
C3: Toplam Hasılat | D3: İhracat faaliyeti | E3: İmalat faaliyeti | F3: Diğer faaliyetler
B4: A-BRÜT SATIŞLAR (60) | C4: =D4+E4+F4 -> 1000000 | D4: =SUM(D5:D7) -> 800000 | E4: =SUM(E5:E7) -> -100000 | F4: 300000
B5: 1-Yurtiçi Satışlar (600) | C5: =D5+E5+F5 -> -600000 | E5: -600000
B6: 2-Yurtdışı Satışlar (601) | C6: =D6+E6+F6 -> 0
B7: 3-Diğer Gelirler (602) | C7: =D7+E7+F7 -> 1600000 | D7: 800000 | E7: 500000 | F7: 300000
B8: B-SATIŞ İNDİRİMLERİ(-) (61) | C8: =SUM(C9:C11) -> 0 | D8: =SUM(D9:D11) -> 0 | E8: =SUM(E9:E11) -> 0 | F8: 0
B9: 1-Satıştan İadeler (-) (610) | C9: =SUM(D9:F9) -> 0
B10: 2- Satış İskontoları (-) (611) | C10: =SUM(D10:F10) -> 0
B11: 3-Diğer İndirimler (-) (612) | C11: 0
B12: C-NET SATIŞLAR | C12: =C4-C8 -> 1000000 | D12: =D4-D8 -> 800000 | E12: =E4-E8 -> -100000 | F12: 300000
B13: D-SATIŞLARIN MALİYETİ (-) (62) | C13: =SUM(C14:C17) -> 0 | D13: =SUM(D14:D17) -> 0 | E13: =SUM(E14:E17) -> 0 | F13: =SUM(F14:F17) -> 0
B14: 1-Satılan Mamuller Maliyeti ( 620) | C14: =SUM(D14:F14) -> 0
B15: 2-Satılan Ticari Mal Maliyeti (621) | C15: =SUM(D15:F15) -> 0
B16: 3-Satılan Hizmet Maliyeti (622) | C16: 0
B17: 4-Diğer Satışların Maliyeti (623) | C17: 0
B18: BRÜT SATIŞ KARI / ZARARI | C18: =C12-C13 -> 1000000 | D18: =D12-D13 -> 800000 | E18: =E12-E13 -> -100000 | F18: 300000
B19: E-FAALİYET GİDERLERİ (-) (63) | C19: =SUM(C20:C24) -> 0 | D19: =SUM(D20:D24) -> 0 | E19: =SUM(E20:E24) -> 0 | F19: 0
B20: 1-Araştırma ve Geliştirme Giderleri(-) (630) | C20: =SUM(D20:F20) -> 0
B21: 2-Pazarlama, Satış ve Dağıtım Giderleri(-) (631) | C21: =SUM(D21:F21) -> 0
B22: 3-Genel Yönetim Giderleri(-) (632) | C22: =SUM(D22:F22) -> 0
B23: MÜŞTEREK GENEL GİDERLER (DAĞITIM-HASILAT PAYINA GÖRE) | D23: =C23*D2 -> 0 | E23: =C23*E2 -> 0 | F23: =C23*F2 -> 0
B24: MÜŞTEREK GENEL GİDER GİBİ DAĞITIMA TABİ TUTULACAK AMORTİSMAN GİDERLERİ (DAĞITIM-HASILAT PAYINA GÖRE) | D24: =C24*D2 -> 0 | E24: =C24*E2 -> 0 | F24: =C24*F2 -> 0
B25: FAALİYET KARI / ZARARI | C25: =C18-C19 -> 1000000 | D25: =D18-D19 -> 800000 | E25: =E18-E19 -> -100000 | F25: 300000
B26: F-DİĞER FAALİYETLERDEN OLAĞAN GELİR VE KARLAR (64) | C26: =SUM(C27:C35) -> 0 | D26: =SUM(D27:D35) -> 0 | E26: =SUM(E27:E35) -> 0 | F26: =SUM(F27:F35) -> 0
B27: 1- İŞTİRAKLERDEN TEMETTÜ GELİRLERİ (640) | C27: =SUM(D27:F27) -> 0
B28: 2- BAĞLI ORTAKLIKLARDAN TEMETTÜ GELİRLERİ (641) | C28: =SUM(D28:F28) -> 0
B29: 3- FAİZ GELİRLERİ (642) (ihracat ve imalat kaynaklı alacağın tahsiline kadar olan süreçte oluşan) | C29: 0
B30: 4- KOMİSYON GELİRLERİ (643) | C30: 0
B31: 5- KONUSU OLMAYAN KARŞILIKLAR (644) | C31: 0
B32: 6- MENKUL KIYMET SATIŞ KARLARI (645) | C32: 0
B33: 7- KAMBİYO KARLARI (646) (ihracat ve imalat kaynaklı alacağın tahsiline kadar olan süreçte oluşan) | C33: 0
B34: 8- REESKONT FAİZ GELİRLERİ (647) | C34: 0
B35: 9- FAALİYETLE İLGİLİ DİĞER GELİR VE KARLAR (649) | C35: 0
B36: ARA TOPLAM | C36: =C25+C26 -> 1000000 | D36: =D25+D26 -> 800000 | E36: =E25+E26 -> -100000 | F36: =F25+F26 -> 300000
B37: G-DİĞER FAALİYETLERDEN OLAĞAN GİDER VE ZARARLAR(-) (65) | C37: =SUM(C38:C43) -> 0 | D37: =SUM(D38:D43) -> 0 | E37: =SUM(E38:E43) -> 0 | F37: 0
B38: 1- KOMİSYON GİDERLERİ (653) | C38: =SUM(D38:F38) -> 0
B39: 2- KARŞILIK GİDERLERİ (654) | C39: =SUM(D39:F39) -> 0
B40: 3- MENKUL KIYMET SATIŞ ZARARLARI (655) | C40: 0
B41: 4- KAMBİYO ZARARLARI (656) (ihracat ve imalat kaynaklı alacağın tahsiline kadar olan süreçte oluşan) | C41: 0
B42: 5- REESKONT FAİZ GİDERLERİ (657) | C42: 0
B43: 6- DİĞER OLAĞAN GİDER VE ZARARLAR (659) | C43: =SUM(D43:F43) -> 0
B44: ARA TOPLAM | C44: =C36-C37 -> 1000000 | D44: =D36-D37 -> 800000 | E44: =E36-E37 -> -100000 | F44: 300000
B45: H-FİNANSMAN GİDERLERİ(-) (66) | C45: =SUM(C46:C49) -> 0 | D45: =SUM(D46:D49) -> 0 | E45: =SUM(E46:E49) -> 0 | F45: =SUM(F46:F49) -> 0
B46: 1- KISA VADELİ BORÇLANMA GİDERLERİ (-) | C46: =SUM(D46:F46) -> 0
B47: 2- UZUN VADELİ BORÇLANMA GİDERLERİ (-) | C47: =SUM(D47:F47) -> 0
B48: 1- KISA VADELİ BORÇLANMA GİDERLERİ (-) (DAĞITIM) | D48: =C48*D2 -> 0 | E48: =C48*E2 -> 0 | F48: =C48*F2 -> 0
B49: 2- UZUN VADELİ BORÇLANMA GİDERLERİ (-) (DAĞITIM) | D49: =C49*D2 -> 0 | E49: =C49*E2 -> 0 | F49: =C49*F2 -> 0
B50: ARA TOPLAM | C50: =C44-C45 -> 1000000 | D50: =D44-D45 -> 800000 | E50: =E44-E45 -> -100000 | F50: =F44-F45 -> 300000
B51: I-OLAĞANDIŞI GELİR VE KÂRLAR (67) | C51: =SUM(D51:F51) -> 0 | D51: =SUM(D52:D53) -> 0 | E51: =SUM(E52:E53) -> 0 | F51: =SUM(F52:F53) -> 0
B52: 1- ÖNCEKİ DÖNEM GELİR VE KARLARI (671) | C52: =SUM(D52:F52) -> 0
B53: 2-DİĞER OLAĞAN DIŞI GELİR VE KARLAR (679) | C53: =SUM(D53:F53) -> 0
B54: ARA TOPLAM | C54: =SUM(D54:F54) -> 1000000 | D54: =D50+D51 -> 800000 | E54: =E50+E51 -> -100000 | F54: 300000
B55: J-OLAĞANDIŞI GİDER VE ZARARLAR(-) (68) | C55: =SUM(C56:C58) -> 0 | D55: =SUM(D56:D58) -> 0 | E55: =SUM(E56:E58) -> 0 | F55: 0
B56: 1-Çalışmayan Kısım Gider ve Zararları(-) (680) | C56: =SUM(D56:F56) -> 0
B57: 2-Önceki Dönem Gider ve Zararları(-) (681) | C57: =SUM(D57:F57) -> 0
B58: 3-Diğer Olağan Dışı Gider ve Zararlar(-) (689) | C58: 0
B59: DÖNEM KÂRI VEYA ZARARI (TİCARİ BİLANÇO KARI ZARARI ) | C59: =C54-C55 -> 1000000 | D59: =D54-D55 -> 800000 | E59: =E54-E55 -> -100000 | F59: 300000
B60: İHRACAT, İMALAT VE DİĞER FAALİYETLERDEN ELDE EDİLEN KAZANCIN TOPLAM TİCARİ KAZANÇ İÇİNDEKİ PAYLARI | D60: =IF(D59>=$C$59,1, IF(D59<=0,0, IF(AND(D59>0,D59<$C$59),D59/$C$59))) -> 0.8 | E60: =IF(E59>=$C$59,1, IF(E59<=0,0, IF(AND(E59>0,E59<$C$59),E59/$C$59))) -> 0 | F60: =IF(F59>=$C$59,1, IF(F59<=0,0, IF(AND(F59>0,F59<$C$59),F59/$C$59))) -> 0.3
D61: =D60/(D60+E60+F60) -> 0.7272727273 | E61: =E60/(D60+E60+F60) -> 0 | F61: =F60/(D60+E60+F60) -> 0.2727272727
B63: KKEG + | C63: 200000
B64: KABUL EDİLMEYEN GELİRLER -
B65: ZARAR OLSA DAHİ İNDİRİLECEK İSTİSNALAR - | C65: =C66+C67+C68 -> 0
B66: Hizmet İhracatı Faaliyetinden (KVK 10-1/ğ) Elde Edilen Kazançlardan İstisna Edilenlerin Toplamı
B67: İmalat Faaliyetinden Elde Edilen Kazançlardan İstisna Edilenlerin Toplamı
B68: Diğer Faaliyetlerden Elde Edilen Kazançlardan İstisna Edilenlerin Toplamı
B69: GEÇMİŞ YIL ZARARLARI -
B70: İNDİRİMLER - | D70: AZAMİ YAZILABİLECEK İNDİRİMLER TUTARI | E70: =C59+C63-C64-C65-C69 -> 1200000
B72: 1 PUAN İNDİRİM UYGULANACAK TUTARIN HESABINDA İSTİSNA KAZANÇLAR DÜŞÜLDÜKTEN SONRA BULUNAN TİCARİ KAZANÇ TUTARI İLE BU KAZANÇ İÇİNDE İHRACAT,İMALAT VE DİĞER KAZANÇLARIN TUTARI | C72: TİCARİ KAZANÇ TAN İhracat ve İmalat Kazancından İstisna Olan Tutarlar Düşüldükten Sonra Kalan Tutarı | D72: İhracat Faaliyetinden Elde Edilen Kazançtan İstisna Olan Kısım Düşüldükten Sonra Bulunan Tutarı | E72: Üretim Faaliyetinden Elde Edilen Kazançtan İstisna Olan Kısım Düşüldükten Sonra Bulunan Tutarı | F72: Diğer Faaliyetinden Elde Edilen Kazanç
C73: =IF(C59-C66-C67<=0,0,C59-C66-C67) -> 1000000 | D73: =IF($D$59-C66<=0,0,MIN($D$59-C66,$C$73*D61)) -> 727272.7273 | E73: =IF($E$59-C67<=0,0,MIN($E$59-C67,$C$73*E61)) -> 0 | F73: =IF(C73-D73-E73<=0,0,C73-D73-E73) -> 272727.2727
B74: İHRACAT, İMALAT VE DİĞER FAALİYETLERDEN ELDE EDİLEN KAZANCIN TOPLAM TİCARİ KAZANÇ İÇİNDEKİ PAYLARI | D74: =IFERROR(IF(D73/C73<=0,0,D73/C73),0) -> 0.7272727273 | E74: =IFERROR(IF(E73/C73<=0,0,E73/C73),0) -> 0 | F74: =IFERROR(F73/C73,0) -> 0.2727272727
B75: NEGATİF VE % 100 DEN BÜYÜKLÜK KONTROLÜ SONRASINDAKİ PAYLARI | D75: =IFERROR(IF(D74<=0,0,IF(D74>1,1,D74)),0) -> 0.7272727273 | E75: =IFERROR(IF(E74<=0,0,IF(E74>1,1,E74)),0) -> 0 | F75: =IFERROR(IF(F74<=0,0,IF(F74>1,1,F74)),0) -> 0.2727272727
B77: SAFİ KURUM KAZANCI (KURUMLAR VERGİSİ MATRAHI) | C77: =C59+C63-C64-C65-C69-C70 -> 1200000 | D77: =IF(C77<0, "ZARAR","KAR") -> KAR
B79: 2022 YILI 3. DÖNEM İNDİRİMLİ KURUMLAR VERGİSİ HESAPLAMA TABLOSU
C80: 1. TEŞVİK BELGESİ | D80: 2. TEŞVİK BELGESİ | E80: 3. TEŞVİK BELGESİ | F80: 4. TEŞVİK BELGESİ | G80: 5. TEŞVİK BELGESİ
B81: Vergi İndirim Oranı (VİO)
B82: KV MATRAHI (Safi Kurum Kazancı) | C82: =C77 -> 1200000
B83: 32/A Uygulanacak K.V. Matrahı (HER BİR TEŞVİK BELGESİ KAPSAMINDA YARARLANILABİLECEK YATIRIMA KATKI TUTARININ MATRAHI BU HÜCRELERE YAZILMALIDIR) | H83: =IF(SUM(C83:G83)>C77,"32/A İNDİRİMİ UYGULANACAK KAZANÇ, SAFİ KURUM KAZANCINDAN FAZLADIR",SUM(C83:G83)) -> 0
B84: 32/A UYGULANMAYACAK K.V. Matrahı | C84: =IF(C82-(C83+D83+E83+F83+G83)<0,0,C82-(C83+D83+E83+F83+G83)) -> 1200000
B85: MATRAH TOPLAMI | C85: =IF((C83+D83+E83+F83+G83+C84)>C77,C77,(C83+D83+E83+F83+G83+C84)) -> 1200000
B87: SAFİ KURUM KAZANCININ KV VERGİ ORANLARI İTİBARİYLE DAĞILIMI | C87: TOPLAM SAFİ KAZANÇ | D87: İhracat Kazancı Payı | E87: Üretim Kazancı Payı | F87: Diğer Faaliyet Kazancı Payı
C89: =C77 -> 1200000 | D89: =IF(AND(OR(D59>=C89,D59+E59>=C89),C66>0),MAX(MIN(C89*D74,D59,D73),0),MIN(C89*D74,D59)) -> 800000 | E89: =MAX( IF(AND(OR(E59>=C89,E59+F59>=C89),C67>0),MAX(MIN(C89*E74,E59,E73),0),MIN(C89*E74,E59)),0) -> 0 | F89: =IF(C89-D89-E89<=0,0,C89-D89-E89) -> 400000
B90: SAFİ KURUM KAZANCININ DAĞILIMI ORANSAL DAĞILIMI | C90: =C89 -> 1200000 | D90: =D89/C89 -> 0.6666666667 | E90: =E89/C89 -> 0 | F90: =F89/C89 -> 0.3333333333
B91: SAFİ KURUM KAZANCININ DAĞILIMI TUTARSAL | C91: =C90 -> 1200000 | D91: =D89 -> 800000 | E91: =E89 -> 0 | F91: =F89 -> 400000
B92: SAFİ KURUM KAZANCI DAĞILIMI | C92: =C91 -> 1200000 | D92: =IFERROR(IF(D91/C91>=1,1,D91/C91),0) -> 0.6666666667 | E92: =IFERROR(IF(E91/C91>=1,1,E91/C91),0) -> 0 | F92: =IFERROR(IF(F91/C91>=1,1,F91/C91),0) -> 0.3333333333 | H92: KV ORANI
B93: 1 PUAN VE 32/A İNDİRİMİ OLMASAYDI HESAPLANAN KV TUTARI | C93: =C92*$H$93 -> 300000 | D93: =D91*$H$93 -> 200000 | E93: =E91*$H$93 -> 0 | F93: =F91*$H$93 -> 100000 | H93: 0.25
B94: 32/ A UYGULANAN MATRAH | C94: =C83+D83+E83+F83+G83 -> 0 | D94: =D106+D111+D116+D121+D126 -> 0 | E94: =D105+D110+D115+D120+D125 -> 0 | F94: =D104+D109+D114+D119+D124 -> 0
B95: 32/A UYGULANACAK MATRAH ÜZERİNDEN ÖDENECEK KV TUTARI | C95: =J107+J112+J117+J122+J127 -> 0 | D95: =J106+J111+J116+J121+J126 -> 0 | E95: =J105+J110+J115+J120+J125 -> 0 | F95: =J104+J109+J114+J119+J124 -> 0
B96: 32/A UYGULANMAYAN MATRAH | C96: =IF(C84<=0,0,C84) -> 1200000 | D96: =D131 -> 800000 | E96: =D130 -> 0 | F96: =D129 -> 400000
B97: 32/A UYGULANMAYAN MATRAH ÜZERİNDEN ÖDENECEK KV TUTARI | C97: =L129 -> 260000 | D97: =J131 -> 160000 | E97: =J130 -> 0 | F97: =J129 -> 100000
B98: TOPLAM ÖDENECEK KV | C98: =C95+C97 -> 260000 | D98: =J131+J106 -> 160000 | E98: =J130+J105 -> 0 | F98: =J129+J104 -> 100000
B99: TOPLAM AVANTAJ (YARARLANILAN 1 PUAN İNDİRİMİ + 32/A İNDİRİMİ TUTARI ) | C99: =C93-C98 -> 40000 | D99: =D100+D101 -> 40000 | E99: =E100+E101 -> 0 | F99: =F100+F101 -> 0
B100: YARARLANILAN 1 - 5 PUAN İNDİRİMİ TUTARI | C100: =F132+F127+F122+F117+F112+F107 -> 40000 | D100: =F131+F106+F111+F116+F121+F126 -> 40000 | E100: =F130+F105+F110+F115+F120+F125 -> 0 | F100: =F129+F104+F109+F114+F119+F124 -> 0
B101: YARLANILAN 32/A İNDİRİMİ TUTARI | C101: =K107+K112+K117+K122+K127+K132 -> 0 | D101: =K106+K111+K121+K126+K131 -> 0 | E101: =K105+K110+K115+K120+K125+K130 -> 0 | F101: =K104++K109+K114+K119+K124+K129 -> 0
B103: 32/A UYGULANABİLECEK MATRAH (1.TEŞVİK BELGESİ) | C103: =C83 -> 0 | D103: KV MATRAHI | E103: 1 - 5 PUAN İNDİRİM OLMASAYDI HESAPLANAN KV TUTARI | F103: 1 -5 Puan İndirim Tutarı | G103: 1 - 5 Puan İndirim Sonrasında Hesaplanan KV Tutarı | H103: 32/A İndirimi Olmasaydı Ödenecek KV Tutarı | I103: 1 -5 Puan İndirim ve 32/A VİO Uygulandıktan Sonra Tatbik Edilecek KV Oranı | J103: 1 -5 Puan İndirim ve 32/A İndirimi Uygulandıktan Sonra Ödenecek KV Tutarı | K103: Yararlanılan Yatırıma Katkı Tutarı (32/A İnd. KV Nedeniyle Vazgeçilen Vergi Tutarı) | L103: Ödenecek KV Tutarı
B104: GENEL ORANA TABİ KISIM (DİĞER FAALİYETLER) | C104: =F92 -> 0.3333333333 | D104: =C103*C104 -> 0 | E104: =D104*$H$93 -> 0 | F104: 0 | G104: =E104-F104 -> 0 | H104: =G104 -> 0 | I104: =($H$93)-(($H$93)*$C$81) -> 0.25 | J104: =I104*D104 -> 0 | K104: =G104-J104 -> 0 | L104: =J107 -> 0
B105: 1 PUAN İNDİRİMLİ ORANA TABİ KISIM (İMALAT) | C105: =E92 -> 0 | D105: =C103*C105 -> 0 | E105: =D105*$H$93 -> 0 | F105: =D105/100 -> 0 | G105: =E105-F105 -> 0 | H105: =G105 -> 0 | I105: =($H$93-0.01)-(($H$93-0.01)*$C$81) -> 0.24 | J105: =I105*D105 -> 0 | K105: =G105-J105 -> 0
B106: 5 PUAN İNDİRİMLİ ORANA TABİ KISIM ( İHRACAT) | C106: =D92 -> 0.6666666667 | D106: =C103*C106 -> 0 | E106: =D106*$H$93 -> 0 | F106: =D106/20 -> 0 | G106: =E106-F106 -> 0 | H106: 0 | I106: =($H$93-0.05)-(($H$93-0.05)*C81) -> 0.2 | J106: 0 | K106: =G106-J106 -> 0
B107: TOPLAM | C107: =SUM(C104:C106) -> 1 | D107: =SUM(D104:D106) -> 0 | E107: 0 | F107: =SUM(F104:F106) -> 0 | G107: =SUM(G104:G106) -> 0 | H107: =SUM(H104:H106) -> 0 | J107: 0 | K107: 0
B108: 32/A UYGULANABİLECEK MATRAH (2.TEŞVİK BELGESİ) | C108: =D83 -> 0 | D108: KV MATRAHI | E108: 1 - 5 PUAN İNDİRİM OLMASAYDI HESAPLANAN KV TUTARI | F108: 1 -5 Puan İndirim Tutarı | G108: 1 -5 Puan İndirim Sonrasında Hesaplanan KV Tutarı | H108: 32/A İndirimi Olmasaydı Ödenecek KV Tutarı | I108: 1 - 5 Puan İndirim ve 32/A VİO Uygulandıktan Sonra Tatbik Edilecek KV Oranı | J108: 1-5 Puan İndirim ve 32/A İndirimi Uygulandıktan Sonra Ödenecek KV Tutarı | K108: Yararlanılan Yatırıma Katkı Tutarı (32/A İnd. KV Nedeniyle Vazgeçilen Vergi Tutarı) | L108: Ödenecek KV Tutarı
B109: GENEL ORANA TABİ KISIM (DİĞER FAALİYETLER) | C109: =F92 -> 0.3333333333 | D109: =C108*C109 -> 0 | E109: =D109*$H$93 -> 0 | F109: 0 | G109: =E109-F109 -> 0 | H109: =G109 -> 0 | I109: =($H$93)-(($H$93)*D81) -> 0.25 | J109: =I109*D109 -> 0 | K109: =G109-J109 -> 0 | L109: =J112 -> 0
B110: 1 PUAN İNDİRİMLİ ORANA TABİ KISIM (İMALAT) | C110: =E92 -> 0 | D110: =C108*C110 -> 0 | E110: =D110*$H$93 -> 0 | F110: =D110/100 -> 0 | G110: =E110-F110 -> 0 | H110: =G110 -> 0 | I110: =($H$93-0.01)-(($H$93-0.01)*D81) -> 0.24 | J110: =I110*D110 -> 0 | K110: =G110-J110 -> 0
B111: 5 PUAN İNDİRİMLİ ORANA TABİ KISIM ( İHRACAT) | C111: =D92 -> 0.6666666667 | D111: =C108*C111 -> 0 | E111: =D111*$H$93 -> 0 | F111: =D111/20 -> 0 | G111: =E111-F111 -> 0 | H111: 0 | I111: =($H$93-0.05)-(($H$93-0.05)*D81) -> 0.2 | J111: 0 | K111: =G111-J111 -> 0
B112: TOPLAM | C112: =SUM(C109:C111) -> 1 | D112: 0 | E112: 0 | F112: =SUM(F109:F111) -> 0 | G112: =SUM(G109:G111) -> 0 | H112: =SUM(H109:H111) -> 0 | J112: =SUM(J109:J111) -> 0 | K112: 0
B113: 32/A UYGULANABİLECEK MATRAH (3.TEŞVİK BELGESİ) | C113: =E83 -> 0 | D113: KV MATRAHI | E113: 1 - 5 PUAN İNDİRİM OLMASAYDI HESAPLANAN KV TUTARI | F113: 1-5 Puan İndirim Tutarı | G113: 1 - 5 Puan İndirim Sonrasında Hesaplanan KV Tutarı | H113: 32/A İndirimi Olmasaydı Ödenecek KV Tutarı | I113: 1 - 5 Puan İndirim ve 32/A VİO Uygulandıktan Sonra Tatbik Edilecek KV Oranı | J113: 1 -5 Puan İndirim ve 32/A İndirimi Uygulandıktan Sonra Ödenecek KV Tutarı | K113: Yararlanılan Yatırıma Katkı Tutarı (32/A İnd. KV Nedeniyle Vazgeçilen Vergi Tutarı) | L113: Ödenecek KV Tutarı
B114: GENEL ORANA TABİ KISIM (DİĞER FAALİYETLER) | C114: =F92 -> 0.3333333333 | D114: =C113*C114 -> 0 | E114: =D114*$H$93 -> 0 | F114: 0 | G114: =E114-F114 -> 0 | H114: =G114 -> 0 | I114: =($H$93)-(($H$93)*E81) -> 0.25 | J114: =I114*D114 -> 0 | K114: =G114-J114 -> 0 | L114: =J117 -> 0
B115: 1 PUAN İNDİRİMLİ ORANA TABİ KISIM (İMALAT) | C115: =E92 -> 0 | D115: =C113*C115 -> 0 | E115: =D115*$H$93 -> 0 | F115: =D115/100 -> 0 | G115: =E115-F115 -> 0 | H115: =G115 -> 0 | I115: =($H$93-0.01)-(($H$93-0.01)*E81) -> 0.24 | J115: =I115*D115 -> 0 | K115: =G115-J115 -> 0
B116: 5 PUAN İNDİRİMLİ ORANA TABİ KISIM ( İHRACAT) | C116: =D92 -> 0.6666666667 | D116: =C113*C116 -> 0 | E116: =D116*$H$93 -> 0 | F116: =D116/20 -> 0 | G116: =E116-F116 -> 0 | H116: 0 | I116: =($H$93-0.05)-(($H$93-0.05)*E81) -> 0.2 | J116: 0 | K116: =G116-J116 -> 0
B117: TOPLAM | C117: =SUM(C114:C116) -> 1 | D117: 0 | E117: 0 | F117: =SUM(F114:F116) -> 0 | G117: =SUM(G114:G116) -> 0 | H117: =SUM(H114:H116) -> 0 | J117: =SUM(J114:J116) -> 0 | K117: 0
B118: 32/A UYGULANABİLECEK MATRAH (4. TEŞVİK BELGESİ) | C118: =F83 -> 0 | D118: KV MATRAHI | E118: 1 - 5 PUAN İNDİRİM OLMASAYDI HESAPLANAN KV TUTARI | F118: 1-5 Puan İndirim Tutarı | G118: 1 -5 Puan İndirim Sonrasında Hesaplanan KV Tutarı | H118: 32/A İndirimi Olmasaydı Ödenecek KV Tutarı | I118: 1- 5 Puan İndirim ve 32/A VİO Uygulandıktan Sonra Tatbik Edilecek KV Oranı | J118: 1-5 Puan İndirim ve 32/A İndirimi Uygulandıktan Sonra Ödenecek KV Tutarı | K118: Yararlanılan Yatırıma Katkı Tutarı (32/A İnd. KV Nedeniyle Vazgeçilen Vergi Tutarı) | L118: Ödenecek KV Tutarı
B119: GENEL ORANA TABİ KISIM (DİĞER FAALİYETLER) | C119: =F92 -> 0.3333333333 | D119: =C118*C119 -> 0 | E119: =D119*$H$93 -> 0 | F119: 0 | G119: =E119-F119 -> 0 | H119: =G119 -> 0 | I119: =($H$93)-(($H$93)*F81) -> 0.25 | J119: =I119*D119 -> 0 | K119: =G119-J119 -> 0 | L119: =J122 -> 0
B120: 1 PUAN İNDİRİMLİ ORANA TABİ KISIM (İMALAT) | C120: =E92 -> 0 | D120: =C118*C120 -> 0 | E120: =D120*$H$93 -> 0 | F120: =D120/100 -> 0 | G120: =E120-F120 -> 0 | H120: =G120 -> 0 | I120: =($H$93-0.01)-(($H$93-0.01)*F81) -> 0.24 | J120: =I120*D120 -> 0 | K120: =G120-J120 -> 0
B121: 5 PUAN İNDİRİMLİ ORANA TABİ KISIM ( İHRACAT) | C121: =D92 -> 0.6666666667 | D121: =C118*C121 -> 0 | E121: =D121*$H$93 -> 0 | F121: =D121/20 -> 0 | G121: =E121-F121 -> 0 | H121: 0 | I121: =($H$93-0.05)-(($H$93-0.05)*F81) -> 0.2 | J121: 0 | K121: =G121-J121 -> 0
B122: TOPLAM | C122: =SUM(C119:C121) -> 1 | D122: 0 | E122: 0 | F122: =SUM(F119:F121) -> 0 | G122: =SUM(G119:G121) -> 0 | H122: =SUM(H119:H121) -> 0 | J122: =SUM(J119:J121) -> 0 | K122: 0
B123: 32/A UYGULANABİLECEK MATRAH (5.TEŞVİK BELGESİ) | C123: =G83 -> 0 | D123: KV MATRAHI | E123: 1 - 5 PUAN İNDİRİM OLMASAYDI HESAPLANAN KV TUTARI | F123: 1-5 Puan İndirim Tutarı | G123: 1 - 5 Puan İndirim Sonrasında Hesaplanan KV Tutarı | H123: 32/A İndirimi Olmasaydı Ödenecek KV Tutarı | I123: 1 -5 Puan İndirim ve 32/A VİO Uygulandıktan Sonra Tatbik Edilecek KV Oranı | J123: 1 - 5 Puan İndirim ve 32/A İndirimi Uygulandıktan Sonra Ödenecek KV Tutarı | K123: Yararlanılan Yatırıma Katkı Tutarı (32/A İnd. KV Nedeniyle Vazgeçilen Vergi Tutarı) | L123: Ödenecek KV Tutarı
B124: GENEL ORANA TABİ KISIM (DİĞER FAALİYETLER) | C124: =F92 -> 0.3333333333 | D124: =C123*C124 -> 0 | E124: =D124*$H$93 -> 0 | F124: 0 | G124: =E124-F124 -> 0 | H124: =G124 -> 0 | I124: =($H$93)-(($H$93)*G81) -> 0.25 | J124: =I124*D124 -> 0 | K124: =G124-J124 -> 0 | L124: =J127 -> 0
B125: 1 PUAN İNDİRİMLİ ORANA TABİ KISIM (İMALAT) | C125: =E92 -> 0 | D125: =C123*C125 -> 0 | E125: =D125*$H$93 -> 0 | F125: =D125/100 -> 0 | G125: =E125-F125 -> 0 | H125: =G125 -> 0 | I125: =($H$93-0.01)-(($H$93-0.01)*G81) -> 0.24 | J125: =I125*D125 -> 0 | K125: =G125-J125 -> 0
B126: 5 PUAN İNDİRİMLİ ORANA TABİ KISIM ( İHRACAT) | C126: =D92 -> 0.6666666667 | D126: =C123*C126 -> 0 | E126: =D126*$H$93 -> 0 | F126: =D126/20 -> 0 | G126: =E126-F126 -> 0 | H126: 0 | I126: =($H$93-0.05)-(($H$93-0.05)*G81) -> 0.2 | J126: 0 | K126: =G126-J126 -> 0
B127: TOPLAM | C127: =SUM(C124:C126) -> 1 | D127: 0 | E127: 0 | F127: =SUM(F124:F126) -> 0 | G127: =SUM(G124:G126) -> 0 | H127: =SUM(H124:H126) -> 0 | J127: =SUM(J124:J126) -> 0 | K127: 0
B128: 32/A UYGULANAMAYACAK MATRAH | C128: =IF(C84<=0,0,C84) -> 1200000 | D128: KV MATRAHI | E128: 1-5 PUAN İNDİRİM OLMASAYDI HESAPLANAN KV TUTARI | F128: 1-5 Puan İndirim Tutarı | G128: 1 -5 Puan İndirim Sonrasında Hesaplanan KV Tutarı | H128: 32/A İNDİRİMİ UYGULANMAZ | J128: 1 Puan İndirim ve 32/A İndirimi Uygulandıktan Sonra Ödenecek KV Tutarı | K128: Yararlanılan Yatırıma Katkı Tutarı (32/A İnd. KV Nedeniyle Vazgeçilen Vergi Tutarı) | L128: Ödenecek KV Tutarı
B129: GENEL ORANA TABİ KISIM (DİĞER FAALİYETLER) | C129: =F92 -> 0.3333333333 | D129: =C128*C129 -> 400000 | E129: =D129*$H$93 -> 100000 | F129: 0 | G129: =E129-F129 -> 100000 | J129: =G129 -> 100000 | K129: =G129-J129 -> 0 | L129: =J132 -> 260000
B130: 1 PUAN İNDİRİMLİ ORANA TABİ KISIM (İMALAT) | C130: =E92 -> 0 | D130: =C130*C128 -> 0 | E130: =D130*$H$93 -> 0 | F130: =D130/100 -> 0 | G130: =E130-F130 -> 0 | J130: =G130 -> 0 | K130: =G130-J130 -> 0
B131: 5 PUAN İNDİRİMLİ ORANA TABİ KISIM ( İHRACAT) | C131: =D92 -> 0.6666666667 | D131: =C131*C128 -> 800000 | E131: =D131*$H$93 -> 200000 | F131: =D131/20 -> 40000 | G131: =E131-F131 -> 160000 | J131: 160000 | K131: 0
B132: TOPLAM | C132: =SUM(C129:C131) -> 1 | D132: =SUM(D129:D131) -> 1200000 | E132: 300000 | F132: =SUM(F129:F131) -> 40000 | G132: =SUM(G129:G131) -> 260000 | J132: 260000 | K132: 0
B133: TOPLAM KV MATRAHI VE ÖDENMESİ GEREKEN KV | C133: =C103+C128+C108+C113+C118+C123 -> 1200000 | D133: =D107+D132+D112+D117+D122+D127 -> 1200000 | E133: =E107+E132+E112+E117+E122+E127 -> 300000 | F133: =F107+F132+F112+F117+F122+F127 -> 40000 | G133: =G107+G132+G112+G117+G122+G127 -> 260000 | J133: =J107+J132+J112+J117+J122+J127 -> 260000 | K133: =K132+K107+K112+K117+K122+K127 -> 0 | L133: =L104+L129+L109+L114+L119+L124 -> 260000
B135: GEÇİCİ VERGİ BEYANNMESİNDE MATRAH BİLDİRİMİ BÖLÜMÜNDE DOLDURULACAK KISIMLAR VE TUTARLARI
B136: 32 A Madde Kapsamında İndirimli Kurumlar Vergisine (Geçici Vergiye) Tabi Matrah | C136: =C103+C108+C113+C118+C123 -> 0 | D136: =E107+E112+E117+E122+E127 -> 0 | E136: 1-5 Puan Olmasaydı Hesaplan KV Tutarı
D137: =G107+G112+G117+G122++G127 -> 0 | E137: 1 -5 Puan İndirim Sonrasında Ödenecek KV Tutarı (32 A olmasaydı hesaplanacak Vergi)
D138: =K107+K112+K117+K122+K127 -> 0 | E138: 32/A İndirimi ile Vazgeçilen Vergi
B139: 32 A Madde Kapsamında İndirimli Kurumlar Vergisi(Geçici Vergi) Oranı | C139: =IFERROR(D139/C136,0) -> 0 | D139: =L104+L109+L114+L119+L124 -> 0 | E139: 32/A ya Tabi Matrah Üzerinden Ödenecek KV
B140: 32/7 Madde Kapsamında İndirimli Kurumlar Vergisine (Geçici Vergiye) Tabi Matrah (İhracat) | C140: =D131 -> 800000 | D140: =E131 -> 200000 | E140: 5 Puan Olmasaydı Hesaplan KV Tutarı
D141: =F131 -> 40000 | E141: 5 Puan İndirimin Vergi Etkisi
B142: 32/7 Madde Kapsamında İndirimli Kurumlar Vergisi (Geçici Vergi) Oranı | C142: =IFERROR(D142/C140,0) -> 0.2 | D142: =G131 -> 160000 | E142: 5 Puan İndirim Sonrasında Ödenecek KV Tutarı (İhracat)
B143: 32/8 Madde Kapsamında İndirimli Kurumlar Vergisine (Geçici Vergiye) Tabi Matrah (Üretim) | C143: =D130 -> 0 | D143: =E130 -> 0 | E143: 1 Puan Olmasaydı Hesaplan KV Tutarı
D144: =F130 -> 0 | E144: 1 Puan İndirimin Vergi Etkisi
B145: 32/8 Madde Kapsamında İndirimli Kurumlar Vergisi (Geçici Vergi) Oranı | C145: =IFERROR(D145/C143,0) -> 0 | D145: =G130 -> 0 | E145: 1 Puan İndirim Sonrasında Ödenecek KV Tutarı (Üretim)
B146: Genel Orana Tabi Matrah (Diğer) | C146: =D129 -> 400000 | D146: =J129 -> 100000 | E146: Diğer Faalilyetlerden Elde Edilen Kazanç
C147: =IFERROR(D146/C146,0) -> 0.25
B148: MATRAHLAR TOPLAMI | C148: =C136+C143+C140+C146 -> 1200000 | D148: =D139+D145+D142+D146 -> 260000

Sheet 32-1-2-8 Ö (hidden)
B2: FAALİYET TÜRLERİ İTİBARİYLE HASILATLAR VE TOPLAM İÇİNDEKİ ORANLARI | C2: =IFERROR(C4/C4,0) -> 1 | D2: =IFERROR(D4/C4,0) -> 0.5 | E2: =IFERROR(E4/C4,0) -> 0.75 | F2: =IFERROR(F4/C4,0) -> -0.25
C3: Toplam Hasılat | D3: İhracat faaliyeti | E3: İmalat faaliyeti | F3: Diğer faaliyetler
B4: A-BRÜT SATIŞLAR (60) | C4: =D4+E4+F4 -> 2000000 | D4: =SUM(D5:D7) -> 1000000 | E4: =SUM(E5:E7) -> 1500000 | F4: -500000
B5: 1-Yurtiçi Satışlar (600) | C5: =D5+E5+F5 -> 1000000 | E5: 1500000 | F5: -500000
B6: 2-Yurtdışı Satışlar (601) | C6: =D6+E6+F6 -> 1000000 | D6: 1000000
B7: 3-Diğer Gelirler (602) | C7: =D7+E7+F7 -> 0
B8: B-SATIŞ İNDİRİMLERİ(-) (61) | C8: =SUM(C9:C11) -> 0 | D8: =SUM(D9:D11) -> 0 | E8: =SUM(E9:E11) -> 0 | F8: 0
B9: 1-Satıştan İadeler (-) (610) | C9: =SUM(D9:F9) -> 0
B10: 2- Satış İskontoları (-) (611) | C10: =SUM(D10:F10) -> 0
B11: 3-Diğer İndirimler (-) (612) | C11: 0
B12: C-NET SATIŞLAR | C12: =C4-C8 -> 2000000 | D12: =D4-D8 -> 1000000 | E12: =E4-E8 -> 1500000 | F12: -500000
B13: D-SATIŞLARIN MALİYETİ (-) (62) | C13: =SUM(C14:C17) -> 0 | D13: =SUM(D14:D17) -> 0 | E13: =SUM(E14:E17) -> 0 | F13: =SUM(F14:F17) -> 0
B14: 1-Satılan Mamuller Maliyeti ( 620) | C14: =SUM(D14:F14) -> 0
B15: 2-Satılan Ticari Mal Maliyeti (621) | C15: =SUM(D15:F15) -> 0
B16: 3-Satılan Hizmet Maliyeti (622) | C16: 0
B17: 4-Diğer Satışların Maliyeti (623) | C17: 0
B18: BRÜT SATIŞ KARI / ZARARI | C18: =C12-C13 -> 2000000 | D18: =D12-D13 -> 1000000 | E18: =E12-E13 -> 1500000 | F18: -500000
B19: E-FAALİYET GİDERLERİ (-) (63) | C19: =SUM(C20:C24) -> 0 | D19: =SUM(D20:D24) -> 0 | E19: =SUM(E20:E24) -> 0 | F19: 0
B20: 1-Araştırma ve Geliştirme Giderleri(-) (630) | C20: =SUM(D20:F20) -> 0
B21: 2-Pazarlama, Satış ve Dağıtım Giderleri(-) (631) | C21: =SUM(D21:F21) -> 0
B22: 3-Genel Yönetim Giderleri(-) (632) | C22: =SUM(D22:F22) -> 0
B23: MÜŞTEREK GENEL GİDERLER (DAĞITIM-HASILAT PAYINA GÖRE) | D23: =C23*D2 -> 0 | E23: =C23*E2 -> 0 | F23: =C23*F2 -> 0
B24: MÜŞTEREK GENEL GİDER GİBİ DAĞITIMA TABİ TUTULACAK AMORTİSMAN GİDERLERİ (DAĞITIM-HASILAT PAYINA GÖRE) | D24: =C24*D2 -> 0 | E24: =C24*E2 -> 0 | F24: =C24*F2 -> 0
B25: FAALİYET KARI / ZARARI | C25: =C18-C19 -> 2000000 | D25: =D18-D19 -> 1000000 | E25: =E18-E19 -> 1500000 | F25: -500000
B26: F-DİĞER FAALİYETLERDEN OLAĞAN GELİR VE KARLAR (64) | C26: =SUM(C27:C35) -> 0 | D26: =SUM(D27:D35) -> 0 | E26: =SUM(E27:E35) -> 0 | F26: =SUM(F27:F35) -> 0
B27: 1- İŞTİRAKLERDEN TEMETTÜ GELİRLERİ (640) | C27: =SUM(D27:F27) -> 0
B28: 2- BAĞLI ORTAKLIKLARDAN TEMETTÜ GELİRLERİ (641) | C28: =SUM(D28:F28) -> 0
B29: 3- FAİZ GELİRLERİ (642) (ihracat ve imalat kaynaklı alacağın tahsiline kadar olan süreçte oluşan) | C29: 0
B30: 4- KOMİSYON GELİRLERİ (643) | C30: 0
B31: 5- KONUSU OLMAYAN KARŞILIKLAR (644) | C31: 0
B32: 6- MENKUL KIYMET SATIŞ KARLARI (645) | C32: 0
B33: 7- KAMBİYO KARLARI (646) (ihracat ve imalat kaynaklı alacağın tahsiline kadar olan süreçte oluşan) | C33: 0
B34: 8- REESKONT FAİZ GELİRLERİ (647) | C34: 0
B35: 9- FAALİYETLE İLGİLİ DİĞER GELİR VE KARLAR (649) | C35: 0
B36: ARA TOPLAM | C36: =C25+C26 -> 2000000 | D36: =D25+D26 -> 1000000 | E36: =E25+E26 -> 1500000 | F36: =F25+F26 -> -500000
B37: G-DİĞER FAALİYETLERDEN OLAĞAN GİDER VE ZARARLAR(-) (65) | C37: =SUM(C38:C43) -> 0 | D37: =SUM(D38:D43) -> 0 | E37: =SUM(E38:E43) -> 0 | F37: 0
B38: 1- KOMİSYON GİDERLERİ (653) | C38: =SUM(D38:F38) -> 0
B39: 2- KARŞILIK GİDERLERİ (654) | C39: =SUM(D39:F39) -> 0
B40: 3- MENKUL KIYMET SATIŞ ZARARLARI (655) | C40: 0
B41: 4- KAMBİYO ZARARLARI (656) (ihracat ve imalat kaynaklı alacağın tahsiline kadar olan süreçte oluşan) | C41: 0
B42: 5- REESKONT FAİZ GİDERLERİ (657) | C42: 0
B43: 6- DİĞER OLAĞAN GİDER VE ZARARLAR (659) | C43: =SUM(D43:F43) -> 0
B44: ARA TOPLAM | C44: =C36-C37 -> 2000000 | D44: =D36-D37 -> 1000000 | E44: =E36-E37 -> 1500000 | F44: -500000
B45: H-FİNANSMAN GİDERLERİ(-) (66) | C45: =SUM(C46:C49) -> 0 | D45: =SUM(D46:D49) -> 0 | E45: =SUM(E46:E49) -> 0 | F45: =SUM(F46:F49) -> 0
B46: 1- KISA VADELİ BORÇLANMA GİDERLERİ (-) | C46: =SUM(D46:F46) -> 0
B47: 2- UZUN VADELİ BORÇLANMA GİDERLERİ (-) | C47: =SUM(D47:F47) -> 0
B48: 1- KISA VADELİ BORÇLANMA GİDERLERİ (-) (DAĞITIM) | D48: =C48*D2 -> 0 | E48: =C48*E2 -> 0 | F48: =C48*F2 -> 0
B49: 2- UZUN VADELİ BORÇLANMA GİDERLERİ (-) (DAĞITIM) | D49: =C49*D2 -> 0 | E49: =C49*E2 -> 0 | F49: =C49*F2 -> 0
B50: ARA TOPLAM | C50: =C44-C45 -> 2000000 | D50: =D44-D45 -> 1000000 | E50: =E44-E45 -> 1500000 | F50: =F44-F45 -> -500000
B51: I-OLAĞANDIŞI GELİR VE KÂRLAR (67) | C51: =SUM(D51:F51) -> 0 | D51: =SUM(D52:D53) -> 0 | E51: =SUM(E52:E53) -> 0 | F51: =SUM(F52:F53) -> 0
B52: 1- ÖNCEKİ DÖNEM GELİR VE KARLARI (671) | C52: =SUM(D52:F52) -> 0
B53: 2-DİĞER OLAĞAN DIŞI GELİR VE KARLAR (679) | C53: =SUM(D53:F53) -> 0
B54: ARA TOPLAM | C54: =SUM(D54:F54) -> 2000000 | D54: =D50+D51 -> 1000000 | E54: =E50+E51 -> 1500000 | F54: -500000
B55: J-OLAĞANDIŞI GİDER VE ZARARLAR(-) (68) | C55: =SUM(C56:C58) -> 0 | D55: =SUM(D56:D58) -> 0 | E55: =SUM(E56:E58) -> 0 | F55: 0
B56: 1-Çalışmayan Kısım Gider ve Zararları(-) (680) | C56: =SUM(D56:F56) -> 0
B57: 2-Önceki Dönem Gider ve Zararları(-) (681) | C57: =SUM(D57:F57) -> 0
B58: 3-Diğer Olağan Dışı Gider ve Zararlar(-) (689) | C58: 0
B59: DÖNEM KÂRI VEYA ZARARI (TİCARİ BİLANÇO KARI ZARARI ) | C59: =C54-C55 -> 2000000 | D59: =D54-D55 -> 1000000 | E59: =E54-E55 -> 1500000 | F59: -500000
B60: İHRACAT, İMALAT VE DİĞER FAALİYETLERDEN ELDE EDİLEN KAZANCIN TOPLAM TİCARİ KAZANÇ İÇİNDEKİ PAYLARI | D60: =IF(D59>=$C$59,1, IF(D59<=0,0, IF(AND(D59>0,D59<$C$59),D59/$C$59))) -> 0.5 | E60: =IF(E59>=$C$59,1, IF(E59<=0,0, IF(AND(E59>0,E59<$C$59),E59/$C$59))) -> 0.75 | F60: =IF(F59>=$C$59,1, IF(F59<=0,0, IF(AND(F59>0,F59<$C$59),F59/$C$59))) -> 0
D61: =D60/(D60+E60+F60) -> 0.4 | E61: =E60/(D60+E60+F60) -> 0.6 | F61: =F60/(D60+E60+F60) -> 0
B63: KKEG + | C63: 700000
B64: KABUL EDİLMEYEN GELİRLER -
B65: ZARAR OLSA DAHİ İNDİRİLECEK İSTİSNALAR - | C65: =C66+C67+C68 -> 0
B66: Hizmet İhracatı Faaliyetinden (KVK 10-1/ğ) Elde Edilen Kazançlardan İstisna Edilenlerin Toplamı
B67: İmalat Faaliyetinden Elde Edilen Kazançlardan İstisna Edilenlerin Toplamı
B68: Diğer Faaliyetlerden Elde Edilen Kazançlardan İstisna Edilenlerin Toplamı
